Workbook

Sheet Input
A1: Inputs (Fill only the green cells in column B) | D1: Results | K1: Trial | L1: SIP | N1: VIP | P1: SIP | Q1: VIP | R1: Lumpsum | S1: Lumpsum | T1: STP | U1: STP | V1: STP/LSP | W1: Growth SIP I | Y1: Growth SIP I | Z1: SIP | AA1: GSIP-I | AB1: GSIP-I vs | AE1: =dura*12 -> 300 | AG1: GSIP-I/SIP | AH1: =SUM(AK5:AK37) -> 1 | AI1: No of STP | AR1: SIP vs | AS1: VIP vs | AT1: VIP vs | AU1: Growth SIP-II | AW1: GSIP-II | AX1: GSIP-II | AY1: GSIP-II/SIP | AZ1: GSIP-II | BA1: GSIP-I/GSIP-II
A2: Return expected from investment | B2: 0.1 | D2: Compounded Growth Rate | G2: Portfolio | H2: Total | I2: Cost per | K2: period | L2: Portfolio | M2: Invest. | N2: Portfolio | O2: Invest. | P2: probability | Q2: probability | R2: Portfolio | S2: probability | T2: Portfolio | U2: probability | V2: probability | W2: Portfolio | X2: Invest. | Y2: probability | Z2: CAGR | AA2: CAGR | AB2: target | AD2: startm | AE2: endm | AG2: probability | AH2: =SUM(AN5:AN37) -> 396 | AI2: installments | AJ2: =lumpsum/stp -> 10 | AR2: Target | AS2: Target | AT2: SIP | AU2: Portfolio | AV2: Invest. | AW2: probability | AX2: CAGR | AY2: probability | AZ2: Target | BA2: probability
A3: Duration of invest. (years) for testing | B3: 25 | E3: Monthly | F3: Annual | G3: Final Value | H3: Investment | I3: unit | K3: 1 | L3: 17302554.2 | M3: 1500000 | N3: 13163683.51 | O3: 613627.841 | P3: =IF(L3<M3,1,"") ->  | Q3: =IF(N3<O3,1,"") ->  | R3: 5758641.315 | S3: =IF(K3=0,"",IF(R3<lumpsum,1,"")) ->  | T3: 5518027.197 | U3: =IF(K3=0,"",IF(T3<lumpsum,1,"")) ->  | V3: =IF(K3=0,"",IF(T3>R3,1,"")) ->  | W3: 31766217.35 | X3: 5990289.723 | Y3: =IF(K3=0,"",IF(W3<X3,1,"")) ->  | Z3: 0.1534819168 | AA3: 0.1852603216 | AB3: =IF(K3=0,"",IF(W3>target1,1,"")) -> 1 | AD3: range | AE3: range | AG3: =IF(K3=0,"",IF(W3>L3,1,"")) -> 1 | AR3: =IF(K3=0,"",IF(L3>targetp,1,"")) -> 1 | AS3: =IF(K3=0,"",IF(N3>targetp,1,"")) -> 1 | AT3: =IF(K3=0,"",IF(N3>L3,1,"")) ->  | AU3: 11635669.12 | AV3: 2194187.252 | AW3: =IF(K3=0,"",IF(AU3<AV3,1,"")) ->  | AX3: 0.1852603216 | AY3: =IF(K3=0,"",IF(AU3>L3,1,"")) ->  | AZ3: =IF(K3=0,"",IF(AU3>target1,1,"")) -> 1 | BA3: =IF(K3=0,"",IF(W3>AU3,1,"")) -> 1
A4: Target amount expected | B4: 10000000 | D4: Target | E4: =B2/12 -> 0.008333333333 | F4: =12*E4 -> 0.1 | G4: =SUM('Sensex VIP & SIP'!AI10:AI405) -> 10000000 | H4: =H5 -> 2262727.726 | I4: NA | J4: Press 'Run' after completing entires in | K4: 2 | L4: 16900519.78 | M4: 1500000 | N4: 13062063.64 | O4: 421434.6899 | P4: =IF(L4<M4,1,"") ->  | Q4: =IF(N4<O4,1,"") ->  | R4: 5508989.235 | T4: 5411459.465 | V4: =IF(K4=0,"",IF(T4>R4,1,"")) ->  | W4: 31070120.73 | X4: 5990289.723 | Y4: =IF(K4=0,"",IF(W4<X4,1,"")) ->  | Z4: 0.1522257388 | AA4: 0.1841219909 | AB4: 1 | AC4: 97 | AD4: =startm2 -> 1 | AE4: =startm2+durm-1 -> 300 | AG4: =IF(K4=0,"",IF(W4>L4,1,"")) -> 1 | AI4: Start | AJ4: start | AL4: end | AM4: end | AR4: 1 | AS4: 1 | AT4: =IF(K4=0,"",IF(N4>L4,1,"")) ->  | AU4: 11380695.42 | AV4: 2194187.252 | AW4: =IF(K4=0,"",IF(AU4<AV4,1,"")) ->  | AX4: 0.1841219909 | AY4: =IF(K4=0,"",IF(AU4>L4,1,"")) ->  | AZ4: 1 | BA4: =IF(K4=0,"",IF(W4>AU4,1,"")) -> 1
D5: SIP | E5: =IRR('Sensex VIP & SIP'!AE10:AE405) -> 0.01087979538 | F5: =12*E5 -> 0.1305575445 | G5: =SUM('Sensex VIP & SIP'!AJ10:AJ405) -> 17112540.86 | H5: =SUM('Sensex VIP & SIP'!AL10:AL405) -> 2262727.726 | I5: =H5/SUM('Sensex VIP & SIP'!AG10:AG405) -> 213.7451259 | J5: column 'B' and wait till the macro | K5: 3 | L5: 16995821.86 | M5: 1500000 | N5: 13076451.14 | O5: 461811.0268 | R5: 5613346.957 | T5: 5454238.767 | W5: 31287489.93 | X5: 5990289.723 | Z5: 0.152526399 | AA5: 0.1844803218 | AB5: 1 | AC5: 396 | AD5: =endm2-durm+1 -> 97 | AE5: =endm2 -> 396 | AF5: =AD5-AD4+1 -> 97 | AG5: 1 | AI5: 1980 | AJ5: 1 | AK5: =IF(AI5=start,AJ5,0) -> 1 | AL5: 1980 | AM5: =AJ5+11 -> 12 | AN5: =IF(AL5=end,AM5,0) -> 0 | AO5: 1980 | AP5: 1 | AQ5: 1 | AR5: 1 | AS5: 1 | AU5: 11460315.73 | AV5: 2194187.252 | AX5: 0.1844803218 | AZ5: 1 | BA5: 1
A6: SIP and VIP investment | D6: VIP | E6: =IRR('Sensex VIP & SIP'!AF10:AF405) -> 0.0009071688557 | F6: =12*E6 -> 0.01088602627 | G6: =SUM('Sensex VIP & SIP'!AK10:AK405) -> 4788032.317 | H6: =SUM('Sensex VIP & SIP'!AM10:AM405) -> 4214014.071 | I6: =H6/SUM('Sensex VIP & SIP'!AH1:AH405) -> 251.3353387 | J6: finishes executing | K6: 4 | L6: 16185269.57 | M6: 1500000 | N6: 12387120.95 | O6: 522875.5099 | R6: 5488605.914 | T6: 5212741.682 | W6: 29837160.98 | X6: 5990289.723 | Z6: 0.1499093186 | AA6: 0.1820380402 | AB6: 1 | AG6: 1 | AI6: =AI5+1 -> 1981 | AJ6: =AJ5+12 -> 13 | AK6: 0 | AL6: =AL5+1 -> 1981 | AM6: =AJ6+11 -> 24 | AN6: 0 | AO6: =AO5+1 -> 1981 | AP6: 2 | AQ6: =1+AQ5 -> 2 | AR6: 1 | AS6: 1 | AU6: 10929073.77 | AV6: 2194187.252 | AX6: 0.1820380402 | AZ6: 1 | BA6: 1
A7: SIP amt* needed to reach target | B7: =target1/((1+(rate/12))*((1+(rate)/12)^(12*dura-1)-1)/(rate/12)) -> 7542.425752 | D7: The compounded growth may sometimes show a #DIV/0! or divide by | K7: 5 | L7: 14881634.72 | M7: 1500000 | N7: 11314662.09 | O7: 601829.2264 | R7: 5183683.363 | T7: 4772795.291 | W7: 27483392.48 | X7: 5990289.723 | Z7: 0.1453886799 | AA7: 0.1777941587 | AB7: 1 | AG7: 1 | AI7: =AI6+1 -> 1982 | AJ7: =AJ6+12 -> 25 | AK7: 0 | AL7: 1982 | AM7: =AJ7+11 -> 36 | AN7: 0 | AO7: =AO6+1 -> 1982 | AP7: 3 | AQ7: =1+AQ6 -> 3 | AR7: 1 | AS7: 1 | AU7: 10066910.32 | AV7: 2194187.252 | AX7: 0.1777941587 | AZ7: 1 | BA7: 1
A8: Minimum investment | B8: 1000 | D8: zero error. Increase or decrease the investment tenure by 1/2 years to | K8: 6 | L8: 16045828.26 | M8: 1500000 | N8: 12116637.26 | O8: 679223.8681 | R8: 5862371.803 | T8: 5080302.822 | W8: 29690285.05 | X8: 5990289.723 | Z8: 0.1494448903 | AA8: 0.1817837456 | AB8: 1 | AG8: 1 | AI8: 1983 | AJ8: 37 | AK8: 0 | AL8: 1983 | AM8: 48 | AN8: 0 | AO8: 1983 | AP8: 4 | AQ8: 4 | AR8: 1 | AS8: 1 | AU8: 10875274.49 | AV8: 2194187.252 | AX8: 0.1817837456 | AZ8: 1 | BA8: 1
A9: Maximum investment | B9: 15000 | D9: get rid of it! More intelligent ways to get rid of this will take some doing | K9: 7 | L9: 16765883.09 | M9: 1500000 | N9: 12504809.02 | O9: 840096.4783 | R9: 5923612.154 | T9: 5191035.028 | W9: 31097305.32 | X9: 5990289.723 | Z9: 0.1517978627 | AA9: 0.184166949 | AB9: 1 | AG9: 1 | AI9: 1984 | AJ9: 49 | AK9: 0 | AL9: 1984 | AM9: 60 | AN9: 0 | AO9: 1984 | AP9: 5 | AQ9: 5 | AR9: 1 | AS9: 1 | AU9: 11390652.88 | AV9: 2194187.252 | AX9: 0.184166949 | AZ9: 1 | BA9: 1
A10: * VIP invest. will be calculated wrt this amt | D10: For example see: | F10: Getting IRR in Excel | K10: 8 | L10: 17149960.28 | M10: 1500000 | N10: 12768102.55 | O10: 857446.9429 | R10: 5636636.428 | T10: 5235779.968 | W10: 31879122.31 | X10: 5990289.723 | Z10: 0.1530088601 | AA10: 0.1854424728 | AB10: 1 | AG10: 1 | AI10: 1985 | AJ10: 61 | AK10: 0 | AL10: 1985 | AM10: 72 | AN10: 0 | AO10: 1985 | AP10: 6 | AQ10: 6 | AR10: 1 | AS10: 1 | AU10: 11677025.16 | AV10: 2194187.252 | AX10: 0.1854424728 | AZ10: 1 | BA10: 1
D11: The #DIV/0! error is seen for all input values with Excel 2007/2002! | K11: 9 | L11: 17396040.44 | M11: 1500000 | N11: 13066729.26 | O11: 748566.1029 | R11: 6085206.448 | T11: 5203952.688 | W11: 32384328.78 | X11: 5990289.723 | Z11: 0.153769524 | AA11: 0.1862492809 | AB11: 1 | AG11: 1 | AI11: 1986 | AJ11: 73 | AK11: 0 | AL11: 1986 | AM11: 84 | AN11: 0 | AO11: 1986 | AP11: 7 | AQ11: 7 | AR11: 1 | AS11: 1 | AU11: 11862077.57 | AV11: 2194187.252 | AX11: 0.1862492809 | AZ11: 1 | BA11: 1
A12: SIP and Growth-SIP investment | D12: Lump sum | F12: =(G12/H12)^(1/(dura))-1 -> 0.1660730426 | G12: =SUM('Sensex Lumpsum & STP'!AK10:AK405) -> 4657403.713 | H12: =SUM('Sensex Lumpsum & STP'!AM10:AM405) -> 100000 | K12: 10 | L12: 18652132.11 | M12: 1500000 | N12: 13787974.02 | O12: 900949.1534 | R12: 6816180.939 | T12: 5443136.02 | W12: 34789549.32 | X12: 5990289.723 | Z12: 0.1574803975 | AA12: 0.1899168296 | AB12: 1 | AG12: 1 | AI12: 1987 | AJ12: 85 | AK12: 0 | AL12: 1987 | AM12: 96 | AN12: 0 | AO12: 1987 | AP12: 8 | AQ12: 8 | AR12: 1 | AS12: 1 | AU12: 12743087.42 | AV12: 2194187.252 | AX12: 0.1899168296 | AZ12: 1 | BA12: 1
A13: SIP amount (as above) | B13: =sipamt -> 7542.425752 | D13: STP | E13: =IRR('Sensex Lumpsum & STP'!AE10:AE405) -> 0.003434586807 | F13: =12*E13 -> 0.04121504168 | G13: =SUM('Sensex Lumpsum & STP'!AJ10:AJ405) -> 3939096.105 | H13: =SUM('Sensex Lumpsum & STP'!AL10:AL405) -> 100000 | K13: 11 | L13: 16686615.31 | M13: 1500000 | N13: 12131768.42 | O13: 1077118.012 | R13: 5803309.192 | T13: 4758487.358 | W13: 31194879.93 | X13: 5990289.723 | Z13: 0.1515442167 | AA13: 0.1843279774 | AB13: 1 | AG13: 1 | AI13: 1988 | AJ13: 97 | AK13: 0 | AL13: 1988 | AM13: 108 | AN13: 0 | AO13: 1988 | AP13: 9 | AQ13: 9 | AR13: 1 | AS13: 1 | AU13: 11426393.56 | AV13: 2194187.252 | AX13: 0.1843279774 | AZ13: 1 | BA13: 1
A14: Growth SIP amt reqd. to reach target | B14: =(rate/12-(gsip1+0.00000001%)/12)*target1/((1+(rate/12))*((1+(rate)/12)^(12*dura-1)-(1+(gsip1+0.00000001%)/12)^(12*dura-1))) -> 2762.720202 | D14: GSIP | E14: =IRR('Sensex Growth SIP'!AE10:AE405) -> 0.01417786214 | F14: =12*E14 -> 0.1701343456 | G14: =SUM('Sensex Growth SIP'!AJ10:AJ405) -> 35779832.98 | H14: =SUM('Sensex Growth SIP'!AL10:AL405) -> 9036263.094 | K14: 12 | L14: 18352627.38 | M14: 1500000 | N14: 13441979.35 | O14: 1018186.202 | R14: 6137904.524 | T14: 5118683.917 | W14: 34365958.28 | X14: 5990289.723 | Z14: 0.1566204537 | AA14: 0.1892906841 | AB14: 1 | AG14: 1 | AI14: 1989 | AJ14: 109 | AK14: 0 | AL14: 1989 | AM14: 120 | AN14: 0 | AO14: 1989 | AP14: 10 | AQ14: 10 | AR14: 1 | AS14: 1 | AU14: 12587929.98 | AV14: 2194187.252 | AX14: 0.1892906841 | AZ14: 1 | BA14: 1
A15: % annual increase in SIP growth invest. | B15: 0.101 | D15: Tgt-GSIP | E15: =IRR('Sensex Target Growth SIP '!AE10:AE405) -> 0.01417786214 | F15: =12*E15 -> 0.1701343456 | G15: =SUM('Sensex Target Growth SIP '!AJ10:AJ405) -> 13105819.09 | H15: =SUM('Sensex Target Growth SIP '!AL10:AL405) -> 3309898.887 | K15: 13 | L15: 19295887.67 | M15: 1500000 | N15: 14233017 | O15: 957033.0605 | R15: 6634398.317 | T15: 5282643.837 | W15: 36184782.71 | X15: 5990289.723 | Z15: 0.15927972 | AA15: 0.191923919 | AB15: 1 | AG15: 1 | AI15: 1990 | AJ15: 121 | AK15: 0 | AL15: 1990 | AM15: 132 | AN15: 0 | AO15: 1990 | AP15: 11 | AQ15: 11 | AR15: 1 | AS15: 1 | AU15: 13254148.4 | AV15: 2194187.252 | AX15: 0.191923919 | AZ15: 1 | BA15: 1
K16: 14 | L16: 20031161.15 | M16: 1500000 | N16: 14569478.83 | O16: 1061447.025 | R16: 6480966.349 | T16: 5356578.3 | W16: 37621900.99 | X16: 5990289.723 | Z16: 0.1612578349 | AA16: 0.1939079225 | AB16: 1 | AG16: 1 | AI16: 1991 | AJ16: 133 | AK16: 0 | AL16: 1991 | AM16: 144 | AN16: 0 | AO16: 1991 | AP16: 12 | AQ16: 12 | AR16: 1 | AS16: 1 | AU16: 13780551.42 | AV16: 2194187.252 | AX16: 0.1939079225 | AZ16: 1 | BA16: 1
A17: Lump sum and STP investments | K17: 15 | L17: 20204790.66 | M17: 1500000 | N17: 14839771.54 | O17: 981708.8536 | R17: 6072203.389 | T17: 5288650.202 | W17: 37992935.3 | X17: 5990289.723 | Z17: 0.16171362 | AA17: 0.1944072254 | AB17: 1 | AG17: 1 | AI17: 1992 | AJ17: 145 | AK17: 0 | AL17: 1992 | AM17: 156 | AN17: 0 | AO17: 1992 | AQ17: 13 | AR17: 1 | AS17: 1 | AU17: 13916457.83 | AV17: 2194187.252 | AX17: 0.1944072254 | AZ17: 1 | BA17: 1
A18: Lump sum investment | B18: 100000 | K18: 16 | L18: 22035606.8 | M18: 1500000 | N18: 16338357.32 | O18: 865906.9633 | R18: 6258779.471 | T18: 5712300.768 | W18: 41450337.44 | X18: 5990289.723 | Z18: 0.1662795587 | AA18: 0.1988277793 | AB18: 1 | AG18: 1 | AI18: 1993 | AJ18: 157 | AK18: 0 | AL18: 1993 | AM18: 168 | AN18: 0 | AO18: 1993 | AQ18: 14 | AR18: 1 | AS18: 1 | AU18: 15182871.99 | AV18: 2194187.252 | AX18: 0.1988277793 | AZ18: 1 | BA18: 1
A19: No of STP installments | B19: 10 | K19: 17 | L19: 22726910.55 | M19: 1500000 | N19: 17042729.04 | O19: 702203.9913 | R19: 6891245.607 | T19: 5854955.623 | W19: 42748644.12 | X19: 5990289.723 | Z19: 0.1678992435 | AA19: 0.2003886566 | AB19: 1 | AG19: 1 | AI19: 1994 | AJ19: 169 | AK19: 0 | AL19: 1994 | AM19: 180 | AN19: 0 | AO19: 1994 | AQ19: 15 | AR19: 1 | AS19: 1 | AU19: 15658429.61 | AV19: 2194187.252 | AX19: 0.2003886566 | AZ19: 1 | BA19: 1
A20: STP installment | B20: =lumpsum/B19 -> 10000 | K20: 18 | L20: 19320966.55 | M20: 1500000 | N20: 14342098.96 | O20: 789229.2335 | R20: 4976690.342 | T20: 4941172.934 | W20: 36365440.17 | X20: 5990289.723 | Z20: 0.1593485097 | AA20: 0.1921778323 | AB20: 1 | AG20: 1 | AI20: 1995 | AJ20: 181 | AK20: 0 | AL20: 1995 | AM20: 192 | AN20: 0 | AO20: 1995 | AQ20: 16 | AR20: 1 | AS20: 1 | AU20: 13320321.54 | AV20: 2194187.252 | AX20: 0.1921778323 | AZ20: 1 | BA20: 1
K21: 19 | L21: 19439502.55 | M21: 1500000 | N21: 14569290.48 | O21: 648237.0964 | R21: 5158949.602 | T21: 5002149.048 | W21: 36574059.31 | X21: 5990289.723 | Z21: 0.1596723581 | AA21: 0.1924694009 | AB21: 1 | AG21: 1 | AI21: 1996 | AJ21: 193 | AK21: 0 | AL21: 1996 | AM21: 204 | AN21: 0 | AO21: 1996 | AQ21: 17 | AR21: 1 | AS21: 1 | AU21: 13396736.79 | AV21: 2194187.252 | AX21: 0.1924694009 | AZ21: 1 | BA21: 1
A22: Year investment starts (from Jan.) | B22: 1980 | K22: 20 | L22: 19282462.84 | M22: 1500000 | N22: 14610806.96 | O22: 540493.5013 | R22: 5574993.924 | T22: 4979158.871 | W22: 36275506.25 | X22: 5990289.723 | Z22: 0.1592428572 | AA22: 0.1920515967 | AB22: 1 | AG22: 1 | AI22: 1997 | AJ22: 205 | AK22: 0 | AL22: 1997 | AM22: 216 | AN22: 0 | AO22: 1997 | AQ22: 18 | AR22: 1 | AS22: 1 | AU22: 13287379.59 | AV22: 2194187.252 | AX22: 0.1920515967 | AZ22: 1 | BA22: 1
K23: 21 | L23: 20643032.47 | M23: 1500000 | N23: 15416788.53 | O23: 622299.0993 | R23: 5700982.488 | T23: 5351313.843 | W23: 38848563.59 | X23: 5990289.723 | Z23: 0.1628456572 | AA23: 0.195539395 | AB23: 1 | AG23: 1 | AI23: =AI22+1 -> 1998 | AJ23: 217 | AK23: 0 | AL23: 1998 | AM23: 228 | AN23: 0 | AO23: 1998 | AQ23: 19 | AR23: 1 | AS23: 1 | AU23: 14229866.49 | AV23: 2194187.252 | AX23: 0.195539395 | AZ23: 1 | BA23: 1
A24: Year investment ends (up to Dec.) | B24: 2012 | K24: 22 | L24: 21401240.5 | M24: 1500000 | N24: 16139751.03 | O24: 543886.9796 | R24: 5903184.822 | T24: 5593375.133 | W24: 40276174.92 | X24: 5990289.723 | Z24: 0.164744893 | AA24: 0.197371374 | AB24: 1 | AG24: 1 | AI24: 1999 | AJ24: 229 | AK24: 0 | AL24: 1999 | AM24: 240 | AN24: 0 | AO24: 1999 | AQ24: 20 | AR24: 1 | AS24: 1 | AU24: 14752787.2 | AV24: 2194187.252 | AX24: 0.197371374 | AZ24: 1 | BA24: 1
A25: Example: If the duration of investment is 3 yrs then every 3 year period from investment start | K25: 23 | L25: 22018642.75 | M25: 1500000 | N25: 16678208.5 | O25: 522056.1146 | R25: 5977691.038 | T25: 5816930.711 | W25: 41430140.08 | X25: 5990289.723 | Z25: 0.1662391352 | AA25: 0.1988030943 | AB25: 1 | AG25: 1 | AI25: 2000 | AJ25: 241 | AK25: 0 | AL25: 2000 | AM25: 252 | AN25: 0 | AO25: 2000 | AQ25: 21 | AR25: 1 | AS25: 1 | AU25: 15175473.88 | AV25: 2194187.252 | AX25: 0.1988030943 | AZ25: 1 | BA25: 1
A26: year(say 1990 as chosen above) to investment end year (say 1998 as chosen above) | K26: 24 | L26: 22941064.66 | M26: 1500000 | N26: 17443847.82 | O26: 507189.4361 | R26: 5949520.958 | T26: 6104560.558 | V26: 1 | W26: 43146361.61 | X26: 5990289.723 | Z26: 0.1683903664 | AA26: 0.2008568862 | AB26: 1 | AG26: 1 | AI26: 2001 | AJ26: 253 | AK26: 0 | AL26: 2001 | AM26: 264 | AN26: 0 | AO26: 2001 | AQ26: 22 | AR26: 1 | AS26: 1 | AU26: 15804109.82 | AV26: 2194187.252 | AX26: 0.2008568862 | AZ26: 1 | BA26: 1
A27: will be tested when you press 'RUN'. Thus a total of 73 3-year periods will be tested for the | K27: 25 | L27: 22716519.38 | M27: 1500000 | N27: 17448010.25 | O27: 486221.3521 | R27: 6177401.16 | T27: 6137550.73 | W27: 42700226.2 | X27: 5990289.723 | Z27: 0.167875288 | AA27: 0.2003313432 | AB27: 1 | AG27: 1 | AI27: 2002 | AJ27: 265 | AK27: 0 | AL27: 2002 | AM27: 276 | AN27: 0 | AO27: 2002 | AQ27: 23 | AR27: 1 | AS27: 1 | AU27: 15640694.58 | AV27: 2194187.252 | AX27: 0.2003313432 | AZ27: 1 | BA27: 1
A28: probability calculation | K28: 26 | L28: 22905617.61 | M28: 1500000 | N28: 17313894.44 | O28: 505170.8565 | R28: 6088046.274 | T28: 6250276.211 | V28: 1 | W28: 43041876.46 | X28: 5990289.723 | Z28: 0.1683094131 | AA28: 0.2007343158 | AB28: 1 | AG28: 1 | AI28: 2003 | AJ28: 277 | AK28: 0 | AL28: 2003 | AM28: 288 | AN28: 0 | AO28: 2003 | AQ28: 24 | AR28: 1 | AS28: 1 | AU28: 15765837.88 | AV28: 2194187.252 | AX28: 0.2007343158 | AZ28: 1 | BA28: 1
K29: 27 | L29: 20730314.42 | M29: 1500000 | N29: 15833166.04 | O29: 500000 | R29: 5845799.406 | T29: 5713345.78 | W29: 38944624.67 | X29: 5990289.723 | Z29: 0.1630680509 | AA29: 0.1956648657 | AB29: 1 | AG29: 1 | AI29: 2004 | AJ29: 289 | AK29: 0 | AL29: 2004 | AM29: 300 | AN29: 0 | AO29: 2004 | AQ29: 25 | AR29: 1 | AS29: 1 | AU29: 14265052.77 | AV29: 2194187.252 | AX29: 0.1956648657 | AZ29: 1 | BA29: 1
A30: If above entires are complete to your satisfaction scroll up and press the 'RUN' button. | K30: 28 | L30: 20851784.94 | M30: 1500000 | N30: 15382306.49 | O30: 566398.7005 | R30: 5744427.162 | T30: 5817424.842 | V30: 1 | W30: 39171962.63 | X30: 5990289.723 | Z30: 0.1633758982 | AA30: 0.195960515 | AB30: 1 | AG30: 1 | AI30: 2005 | AJ30: 301 | AK30: 0 | AL30: 2005 | AM30: 312 | AN30: 0 | AO30: 2005 | AQ30: 26 | AR30: 1 | AS30: 1 | AU30: 14348324.54 | AV30: 2194187.252 | AX30: 0.195960515 | AZ30: 1 | BA30: 1
A31: The macro may take several minutes to execute and your may take several minutes to | K31: 29 | L31: 22009083.03 | M31: 1500000 | N31: 16394728.6 | O31: 520200.8032 | R31: 6067657.516 | T31: 6245360.22 | V31: 1 | W31: 41336842.39 | X31: 5990289.723 | Z31: 0.1662163408 | AA31: 0.1986889031 | AB31: 1 | AG31: 1 | AI31: 2006 | AJ31: 313 | AK31: 0 | AL31: 2006 | AM31: 324 | AN31: 0 | AO31: 2006 | AQ31: 27 | AR31: 1 | AS31: 1 | AU31: 15141299.81 | AV31: 2194187.252 | AX31: 0.1986889031 | AZ31: 1 | BA31: 1
A32: execute and your computer could slow down a bit. So best to press 'RUN' and take a short | K32: 30 | L32: 22817690.87 | M32: 1500000 | N32: 17014162 | O32: 530228.6583 | R32: 6857105.429 | T32: 6616724.504 | W32: 42846803.75 | X32: 5990289.723 | Z32: 0.1681080305 | AA32: 0.2005046419 | AB32: 1 | AG32: 1 | AI32: 2007 | AJ32: 325 | AK32: 0 | AL32: 2007 | AM32: 336 | AN32: 0 | AO32: 2007 | AQ32: 28 | AR32: 1 | AS32: 1 | AU32: 15694384.57 | AV32: 2194187.252 | AX32: 0.2005046419 | AZ32: 1 | BA32: 1
A33: break! The entries in the adjoning column will be cleared and when the macro is finished the | K33: 31 | L33: 22592209.77 | M33: 1500000 | N33: 16061102.88 | O33: 673844.7289 | R33: 6782865.115 | T33: 6645777.153 | W33: 42445043.82 | X33: 5990289.723 | Z33: 0.1675878009 | AA33: 0.200028149 | AB33: 1 | AG33: 1 | AI33: 2008 | AJ33: 337 | AK33: 0 | AL33: 2008 | AM33: 348 | AN33: 0 | AO33: 2008 | AQ33: 29 | AR33: 1 | AS33: 1 | AU33: 15547223.65 | AV33: 2194187.252 | AX33: 0.200028149 | AZ33: 1 | BA33: 1
A34: table will be filled with output corresponding to your input values. You will then be taken to | K34: 32 | L34: 23348466.78 | M34: 1500000 | N34: 16387924.05 | O34: 725493.7305 | R34: 7187096.47 | T34: 6907939.54 | W34: 43891755.78 | X34: 5990289.723 | Z34: 0.1693113386 | AA34: 0.2017223831 | AB34: 1 | AG34: 1 | AI34: 2009 | AJ34: 349 | AK34: 0 | AL34: 2009 | AM34: 360 | AN34: 0 | AO34: 2009 | AQ34: 30 | AR34: 1 | AS34: 1 | AU34: 16077140.75 | AV34: 2194187.252 | AX34: 0.2017223831 | AZ34: 1 | BA34: 1
A35: the 'Results' sheet to review the results | K35: 33 | L35: 22672264.39 | M35: 1500000 | N35: 15554520.41 | O35: 766190.4463 | R35: 6647727.129 | T35: 6741549.946 | V35: 1 | W35: 42653054.76 | X35: 5990289.723 | Z35: 0.1677731333 | AA35: 0.2002754399 | AB35: 1 | AG35: 1 | AI35: =AI34+1 -> 2010 | AJ35: =AJ34+12 -> 361 | AK35: 0 | AL35: =AL34+1 -> 2010 | AM35: 372 | AN35: 0 | AO35: 2010 | AQ35: 31 | AR35: 1 | AS35: 1 | AU35: 15623416.12 | AV35: 2194187.252 | AX35: 0.2002754399 | AZ35: 1 | BA35: 1
K36: 34 | L36: 25137362.78 | M36: 1500000 | N36: 17435549.93 | O36: 738387.7975 | R36: 7686220.987 | T36: 7561011.917 | W36: 47305001.44 | X36: 5990289.723 | Z36: 0.1731626155 | AA36: 0.205498463 | AB36: 1 | AG36: 1 | AI36: =AI35+1 -> 2011 | AJ36: =AJ35+12 -> 373 | AK36: 0 | AL36: =AL35+1 -> 2011 | AM36: 384 | AN36: 0 | AO36: 2011 | AQ36: 32 | AR36: 1 | AS36: 1 | AU36: 17327380.8 | AV36: 2194187.252 | AX36: 0.205498463 | AZ36: 1 | BA36: 1
K37: 35 | L37: 29089835.79 | M37: 1500000 | N37: 19995065.25 | O37: 761098.9951 | R37: 8802446.062 | T37: 8821580.345 | V37: 1 | W37: 54761067.22 | X37: 5990289.723 | Z37: 0.1807301427 | AA37: 0.2128419539 | AB37: 1 | AG37: 1 | AI37: =AI36+1 -> 2012 | AJ37: =AJ36+12 -> 385 | AK37: 0 | AL37: =AL36+1 -> 2012 | AM37: 396 | AN37: 396 | AO37: 2012 | AQ37: 33 | AR37: 1 | AS37: 1 | AU37: 20058468.15 | AV37: 2194187.252 | AX37: 0.2128419539 | AZ37: 1 | BA37: 1
K38: 36 | L38: 27995770.07 | M38: 1500000 | N38: 19389189.08 | O38: 745684.0741 | R38: 8317204.838 | T38: 8588170.163 | V38: 1 | W38: 52709533.34 | X38: 5990289.723 | Z38: 0.1787498974 | AA38: 0.2109306965 | AB38: 1 | AG38: 1 | AR38: 1 | AS38: 1 | AU38: 19307010.43 | AV38: 2194187.252 | AX38: 0.2109306965 | AZ38: 1 | BA38: 1
K39: 37 | L39: 29377603.97 | M39: 1500000 | N39: 20590242.78 | O39: 710202.4497 | R39: 9423216.119 | T39: 9141378.311 | W39: 55319395.06 | X39: 5990289.723 | Z39: 0.1812379269 | AA39: 0.2133491952 | AB39: 1 | AG39: 1 | AR39: 1 | AS39: 1 | AU39: 20262978.43 | AV39: 2194187.252 | AX39: 0.2133491952 | AZ39: 1 | BA39: 1
K40: 38 | L40: 25153605.55 | M40: 1500000 | N40: 16690050.53 | O40: 847045.4275 | R40: 8306178.342 | T40: 7888860.473 | W40: 47404827.06 | X40: 5990289.723 | Z40: 0.1731962355 | AA40: 0.205604567 | AB40: 1 | AG40: 1 | AR40: 1 | AS40: 1 | AU40: 17363945.99 | AV40: 2194187.252 | AX40: 0.205604567 | AZ40: 1 | BA40: 1
K41: 39 | L41: 25163847.68 | M41: 1500000 | N41: 15915045.81 | O41: 988283.4173 | R41: 8735660.159 | T41: 7908078.655 | W41: 47480647.59 | X41: 5990289.723 | Z41: 0.1732174233 | AA41: 0.2056850001 | AB41: 1 | AG41: 1 | AR41: 1 | AS41: 1 | AU41: 17391718.35 | AV41: 2194187.252 | AX41: 0.2056850001 | AZ41: 1 | BA41: 1
K42: 40 | L42: 22407720.59 | M42: 1500000 | N42: 13291435.81 | O42: 1428728.536 | R42: 7812939.886 | T42: 7046629.324 | W42: 42346842.9 | X42: 5990289.723 | Z42: 0.1671580178 | AA42: 0.1999109626 | AB42: 1 | AG42: 1 | AR42: 1 | AS42: 1 | AU42: 15511253.57 | AV42: 2194187.252 | AX42: 0.1999109626 | AZ42: 1 | BA42: 1
K43: 41 | L43: 24025627.3 | M43: 1500000 | N43: 14125174.12 | O43: 1484719.819 | R43: 7686129.32 | T43: 7564287.114 | W43: 45475421.48 | X43: 5990289.723 | Z43: 0.1708049401 | AA43: 0.2035112399 | AB43: 1 | AG43: 1 | AR43: 1 | AS43: 1 | AU43: 16657222.72 | AV43: 2194187.252 | AX43: 0.2035112399 | AZ43: 1 | BA43: 1
K44: 42 | L44: 22298765.54 | M44: 1500000 | N44: 13248502 | O44: 1366368.322 | R44: 7248019.948 | T44: 7110327.195 | W44: 42245966.46 | X44: 5990289.723 | Z44: 0.1669024237 | AA44: 0.1997902867 | AB44: 1 | AG44: 1 | AR44: 1 | AS44: 1 | AU44: 15474303.47 | AV44: 2194187.252 | AX44: 0.1997902867 | AZ44: 1 | BA44: 1
K45: 43 | L45: 18212182.57 | M45: 1500000 | N45: 10939353.84 | O45: 1254148.007 | R45: 6064371.529 | T45: 5907561.877 | W45: 34552204.8 | X45: 5990289.723 | Z45: 0.1562120086 | AA45: 0.1895669858 | AB45: 1 | AG45: 1 | AR45: 1 | AS45: 1 | AU45: 12656150.34 | AV45: 2194187.252 | AX45: 0.1895669858 | AZ45: 1 | BA45: 1
K46: 44 | L46: 19203409.4 | M46: 1500000 | N46: 11658877.83 | O46: 1182476.147 | R46: 6417577.768 | T46: 6319483.543 | W46: 36494304.25 | X46: 5990289.723 | Z46: 0.1590252281 | AA46: 0.1923581412 | AB46: 1 | AG46: 1 | AR46: 1 | AS46: 1 | AU46: 13367523.25 | AV46: 2194187.252 | AX46: 0.1923581412 | AZ46: 1 | BA46: 1
K47: 45 | L47: 19000825.7 | M47: 1500000 | N47: 11668536.91 | O47: 1153040.4 | R47: 6521296.197 | T47: 6330033.343 | W47: 36170412.61 | X47: 5990289.723 | Z47: 0.1584631197 | AA47: 0.1919036646 | AB47: 1 | AG47: 1 | AR47: 1 | AS47: 1 | AU47: 13248884.77 | AV47: 2194187.252 | AX47: 0.1919036646 | AZ47: 1 | BA47: 1
K48: 46 | L48: 16793610.04 | M48: 1500000 | N48: 10076841.08 | O48: 1255054.127 | R48: 5845109.951 | T48: 5650943.667 | W48: 32035135.09 | X48: 5990289.723 | Z48: 0.1518862806 | AA48: 0.1856930538 | AB48: 1 | AG48: 1 | AR48: 1 | AS48: 1 | AU48: 11734171.18 | AV48: 2194187.252 | AX48: 0.1856930538 | AZ48: 1 | BA48: 1
K49: 47 | L49: 12149996.94 | M49: 1500000 | N49: 7136896.213 | O49: 1380724.613 | R49: 4242604.462 | T49: 4138497.348 | W49: 23236107.6 | X49: 5990289.723 | Z49: 0.1343408647 | AA49: 0.169059058 | AB49: 1 | AG49: 1 | AR49: 1 | AU49: 8511169.482 | AV49: 2194187.252 | AX49: 0.169059058 | BA49: 1
K50: 48 | L50: 11405662.72 | M50: 1500000 | N50: 6667944.88 | O50: 1450670.717 | R50: 3847756.183 | T50: 3914048.184 | V50: 1 | W50: 21868460.08 | X50: 5990289.723 | Z50: 0.1308563658 | AA50: 0.1658798116 | AB50: 1 | AG50: 1 | AR50: 1 | AU50: 8010212.954 | AV50: 2194187.252 | AX50: 0.1658798116 | BA50: 1
K51: 49 | L51: 12048057.25 | M51: 1500000 | N51: 7124909.315 | O51: 1362303.834 | R51: 4208238.433 | T51: 4181417.294 | W51: 23154283.61 | X51: 5990289.723 | Z51: 0.1338776317 | AA51: 0.1688745199 | AB51: 1 | AG51: 1 | AR51: 1 | AU51: 8481198.119 | AV51: 2194187.252 | AX51: 0.1688745199 | BA51: 1
K52: 50 | L52: 11570379.49 | M52: 1500000 | N52: 6791602.573 | O52: 1438978.971 | R52: 4078818.401 | T52: 4068306.252 | W52: 22297028.88 | X52: 5990289.723 | Z52: 0.1316484485 | AA52: 0.1668983389 | AB52: 1 | AG52: 1 | AR52: 1 | AU52: 8167193.709 | AV52: 2194187.252 | AX52: 0.1668983389 | BA52: 1
K53: 51 | L53: 10928147.46 | M53: 1500000 | N53: 6331974.281 | O53: 1511449.18 | R53: 4003824.805 | T53: 3879149.157 | W53: 21124443.28 | X53: 5990289.723 | Z53: 0.1284874125 | AA53: 0.1640599899 | AB53: 1 | AG53: 1 | AR53: 1 | AU53: 7737686.54 | AV53: 2194187.252 | AX53: 0.1640599899 | BA53: 1
K54: 52 | L54: 11730656.15 | M54: 1500000 | N54: 6316384.052 | O54: 1955197.182 | R54: 4563274.777 | T54: 4175731.541 | W54: 22748201.65 | X54: 5990289.723 | Z54: 0.1324074396 | AA54: 0.1679482908 | AB54: 1 | AG54: 1 | AR54: 1 | AU54: 8332454.087 | AV54: 2194187.252 | AX54: 0.1679482908 | BA54: 1
K55: 53 | L55: 13232866.27 | M55: 1500000 | N55: 6471927.512 | O55: 2513973.774 | R55: 5129781.03 | T55: 4683996.016 | W55: 25754961.42 | X55: 5990289.723 | Z55: 0.1390152104 | AA55: 0.1744249918 | AB55: 1 | AG55: 1 | AR55: 1 | AU55: 9433802.146 | AV55: 2194187.252 | AX55: 0.1744249918 | BA55: 1
K56: 54 | L56: 16627739.22 | M56: 1500000 | N56: 7887689.176 | O56: 2696002.566 | R56: 6342904.923 | T56: 5790248.882 | W56: 32468456.62 | X56: 5990289.723 | Z56: 0.1513549808 | AA56: 0.1863823421 | AB56: 1 | AG56: 1 | AR56: 1 | AU56: 11892892.82 | AV56: 2194187.252 | AX56: 0.1863823421 | AZ56: 1 | BA56: 1
K57: 55 | L57: 15744723.19 | M57: 1500000 | N57: 7546260.223 | O57: 2644723.034 | R57: 6018587.267 | T57: 5369945.744 | W57: 30845914.05 | X57: 5990289.723 | Z57: 0.1484270043 | AA57: 0.1837496059 | AB57: 1 | AG57: 1 | AR57: 1 | AU57: 11298570.61 | AV57: 2194187.252 | AX57: 0.1837496059 | AZ57: 1 | BA57: 1
K58: 56 | L58: 16684297.33 | M58: 1500000 | N58: 8091997.597 | O58: 2591184.471 | R58: 6619220.212 | T58: 5562326.198 | W58: 32799055.09 | X58: 5990289.723 | Z58: 0.15153678 | AA58: 0.1869017371 | AB58: 1 | AG58: 1 | AR58: 1 | AU58: 12013987.95 | AV58: 2194187.252 | AX58: 0.1869017371 | AZ58: 1 | BA58: 1
K59: 57 | L59: 16456456.34 | M59: 1500000 | N59: 7453969.583 | O59: 2959477.655 | R59: 6246656.222 | T59: 5276731.391 | W59: 32474645.8 | X59: 5990289.723 | Z59: 0.1508003254 | AA59: 0.1863921169 | AB59: 1 | AG59: 1 | AR59: 1 | AU59: 11895159.86 | AV59: 2194187.252 | AX59: 0.1863921169 | AZ59: 1 | BA59: 1
K60: 58 | L60: 17602094.64 | M60: 1500000 | N60: 8055126.366 | O60: 2923167.416 | R60: 6754816.748 | T60: 5421864.056 | W60: 34849035.53 | X60: 5990289.723 | Z60: 0.1543976217 | AA60: 0.1900041181 | AB60: 1 | AG60: 1 | AR60: 1 | AU60: 12764876.67 | AV60: 2194187.252 | AX60: 0.1900041181 | AZ60: 1 | BA60: 1
K61: 59 | L61: 16009055.98 | M61: 1500000 | N61: 7415428.15 | O61: 2891825.617 | R61: 6462038.314 | T61: 4757961.555 | W61: 31799382.07 | X61: 5990289.723 | Z61: 0.1493216904 | AA61: 0.1853138975 | AB61: 1 | AG61: 1 | AR61: 1 | AU61: 11647817.05 | AV61: 2194187.252 | AX61: 0.1853138975 | AZ61: 1 | BA61: 1
K62: 60 | L62: 16757598.94 | M62: 1500000 | N62: 7387521.296 | O62: 3135186.456 | R62: 6585359.655 | T62: 4802997.199 | W62: 33406907.08 | X62: 5990289.723 | Z62: 0.151771415 | AA62: 0.1878424773 | AB62: 1 | AG62: 1 | AR62: 1 | AU62: 12236638.47 | AV62: 2194187.252 | AX62: 0.1878424773 | AZ62: 1 | BA62: 1
K63: 61 | L63: 16975465.88 | M63: 1500000 | N63: 7545669.456 | O63: 3119328.149 | R63: 6429750.968 | T63: 4669560.937 | W63: 33959887.31 | X63: 5990289.723 | Z63: 0.1524623322 | AA63: 0.1886827615 | AB63: 1 | AG63: 1 | AR63: 1 | AU63: 12439189.97 | AV63: 2194187.252 | AX63: 0.1886827615 | AZ63: 1 | BA63: 1
K64: 62 | L64: 15609777.69 | M64: 1500000 | N64: 6995007.992 | O64: 3101471.682 | R64: 5705186.228 | T64: 4122112.023 | W64: 31328493.93 | X64: 5990289.723 | Z64: 0.1479639881 | AA64: 0.1845476219 | AB64: 1 | AG64: 1 | AR64: 1 | AU64: 11475335.12 | AV64: 2194187.252 | AX64: 0.1845476219 | AZ64: 1 | BA64: 1
K65: 63 | L65: 15452114.53 | M65: 1500000 | N65: 6953743.033 | O65: 3091498.188 | R65: 4936332.805 | T65: 3911451.251 | W65: 31106064.1 | X65: 5990289.723 | Z65: 0.147417523 | AA65: 0.1841814254 | AB65: 1 | AG65: 1 | AR65: 1 | AU65: 11393861.14 | AV65: 2194187.252 | AX65: 0.1841814254 | AZ65: 1 | BA65: 1
K66: 64 | L66: 16213847.55 | M66: 1500000 | N66: 7338527.805 | O66: 3075467.891 | R66: 4809991.563 | T66: 3954964.044 | W66: 32691073.3 | X66: 5990289.723 | Z66: 0.1500039691 | AA66: 0.1867326988 | AB66: 1 | AG66: 1 | AR66: 1 | AU66: 11974435.23 | AV66: 2194187.252 | AX66: 0.1867326988 | AZ66: 1 | BA66: 1
K67: 65 | L67: 16074188.06 | M67: 1500000 | N67: 7327674.362 | O67: 3047006.134 | R67: 4688809.605 | S67: =IF(K67=0,"",IF(R67<lumpsum,1,"")) ->  | T67: 3780012.962 | U67: =IF(K67=0,"",IF(T67<lumpsum,1,"")) ->  | W67: 32444401.82 | X67: 5990289.723 | Z67: 0.1495396979 | AA67: 0.1863443328 | AB67: =IF(K67=0,"",IF(W67>target1,1,"")) -> 1 | AG67: 1 | AR67: =IF(K67=0,"",IF(L67>targetp,1,"")) -> 1 | AS67: =IF(K67=0,"",IF(N67>targetp,1,"")) ->  | AU67: 11884081.77 | AV67: 2194187.252 | AX67: 0.1863443328 | AZ67: =IF(K67=0,"",IF(AU67>target1,1,"")) -> 1 | BA67: 1
K68: 66 | L68: 15274516.67 | M68: 1500000 | N68: 6982447.204 | O68: 3032494.412 | P68: =IF(L68<M68,1,"") ->  | Q68: =IF(N68<O68,1,"") ->  | R68: 3776117.343 | T68: 3506504.396 | V68: =IF(K68=0,"",IF(T68>R68,1,"")) ->  | W68: 30861819.61 | X68: 5990289.723 | Y68: =IF(K68=0,"",IF(W68<X68,1,"")) ->  | Z68: 0.1467947097 | AA68: 0.1837761174 | AB68: 1 | AG68: =IF(K68=0,"",IF(W68>L68,1,"")) -> 1 | AR68: 1 | AT68: =IF(K68=0,"",IF(N68>L68,1,"")) ->  | AU68: 11304396.67 | AV68: 2194187.252 | AW68: =IF(K68=0,"",IF(AU68<AV68,1,"")) ->  | AX68: 0.1837761174 | AY68: =IF(K68=0,"",IF(AU68>L68,1,"")) ->  | AZ68: 1 | BA68: =IF(K68=0,"",IF(W68>AU68,1,"")) -> 1
K69: 67 | L69: 15754482.07 | M69: 1500000 | N69: 7237203.62 | O69: 3005118.694 | R69: 3660414.583 | T69: 3581438.689 | W69: 31826940.63 | X69: 5990289.723 | Z69: 0.1484603222 | AA69: 0.1853583721 | AB69: 1 | AG69: 1 | AR69: 1 | AU69: 11657911.49 | AV69: 2194187.252 | AX69: 0.1853583721 | AZ69: 1 | BA69: 1
K70: 68 | L70: 15732175.96 | M70: 1500000 | N70: 7292120.898 | O70: 2985103.007 | R70: 4067127.315 | T70: 3551879.91 | W70: 31770780.38 | X70: 5990289.723 | Z70: 0.1483841339 | AA70: 0.1852676965 | AB70: 1 | AG70: 1 | AR70: 1 | AU70: 11637340.52 | AV70: 2194187.252 | AX70: 0.1852676965 | AZ70: 1 | BA70: 1
K71: 69 | L71: 15626992.51 | M71: 1500000 | N71: 7311599.341 | O71: 2967103.81 | R71: 4404230.44 | T71: 3480313.676 | W71: 31570392.79 | X71: 5990289.723 | Z71: 0.1480232942 | AA71: 0.1849427698 | AB71: 1 | AG71: 1 | AR71: 1 | AU71: 11563940.41 | AV71: 2194187.252 | AX71: 0.1849427698 | AZ71: 1 | BA71: 1
K72: 70 | L72: 17198967.58 | M72: 1500000 | N72: 8090388.351 | O72: 2953073.755 | R72: 4488695.133 | T72: 3750856.475 | W72: 34776973.43 | X72: 5990289.723 | Z72: 0.1531612793 | AA72: 0.189898356 | AB72: 1 | AG72: 1 | AR72: 1 | AU72: 12738480.99 | AV72: 2194187.252 | AX72: 0.189898356 | AZ72: 1 | BA72: 1
K73: 71 | L73: 16945583.76 | M73: 1500000 | N73: 8021380.175 | O73: 2924615.045 | R73: 4299153.304 | T73: 3684525.374 | W73: 34267637.6 | X73: 5990289.723 | Z73: 0.1523681338 | AA73: 0.1891441863 | AB73: 1 | AG73: 1 | AR73: 1 | AU73: 12551916.03 | AV73: 2194187.252 | AX73: 0.1891441863 | AZ73: 1 | BA73: 1
K74: 72 | L74: 16300629.82 | M74: 1500000 | N74: 7759701.502 | O74: 2875741.283 | R74: 3942914.612 | T74: 3523228.471 | W74: 32957302.73 | X74: 5990289.723 | Z74: 0.1502902948 | AA74: 0.1871484065 | AB74: 1 | AG74: 1 | AR74: 1 | AU74: 12071952.59 | AV74: 2194187.252 | AX74: 0.1871484065 | AZ74: 1 | BA74: 1
K75: 73 | L75: 16849244.36 | M75: 1500000 | N75: 8052083.393 | O75: 2814866.252 | R75: 3636938.875 | T75: 3650666.937 | V75: 1 | W75: 34053785.65 | X75: 5990289.723 | Z75: 0.152063219 | AA75: 0.188824013 | AB75: 1 | AG75: 1 | AR75: 1 | AU75: 12473584.06 | AV75: 2194187.252 | AX75: 0.188824013 | AZ75: 1 | BA75: 1
K76: 74 | L76: 14905653.29 | M76: 1500000 | N76: 7152297.602 | O76: 2740321.219 | R76: 2958528.985 | T76: 3327669.285 | V76: 1 | W76: 30096110.68 | X76: 5990289.723 | Z76: 0.1454757817 | AA76: 0.1824831697 | AB76: 1 | AG76: 1 | AR76: 1 | AU76: 11023924.63 | AV76: 2194187.252 | AX76: 0.1824831697 | AZ76: 1 | BA76: 1
K77: 75 | L77: 14349510.49 | M77: 1500000 | N77: 6944977.026 | O77: 2633714.966 | R77: 3290263.356 | T77: 3307478.577 | V77: 1 | W77: 28936538.64 | X77: 5990289.723 | Z77: 0.1434189868 | AA77: 0.1804574682 | AB77: 1 | AG77: 1 | AR77: 1 | AU77: 10599184.2 | AV77: 2194187.252 | AX77: 0.1804574682 | AZ77: 1 | BA77: 1
K78: 76 | L78: 15480832.07 | M78: 1500000 | N78: 7534764.54 | O78: 2548971.219 | R78: 3441684.872 | T78: 3621994.593 | V78: 1 | W78: 31195441.55 | X78: 5990289.723 | Z78: 0.1475175058 | AA78: 0.1843289027 | AB78: 1 | AG78: 1 | AR78: 1 | AU78: 11426599.27 | AV78: 2194187.252 | AX78: 0.1843289027 | AZ78: 1 | BA78: 1
K79: 77 | L79: 15068807.86 | M79: 1500000 | N79: 7374034.367 | O79: 2480540.057 | R79: 3240782.693 | T79: 3577826.221 | V79: 1 | W79: 30340877.24 | X79: 5990289.723 | Z79: 0.1460634662 | AA79: 0.1829002151 | AB79: 1 | AG79: 1 | AR79: 1 | AU79: 11113580.34 | AV79: 2194187.252 | AX79: 0.1829002151 | AZ79: 1 | BA79: 1
K80: 78 | L80: 14434752.13 | M80: 1500000 | N80: 7112847.743 | O80: 2399385.145 | R80: 3240782.693 | T80: 3534692.444 | V80: 1 | W80: 29036954.04 | X80: 5990289.723 | Z80: 0.1437397786 | AA80: 0.1806362523 | AB80: 1 | AG80: 1 | AR80: 1 | AU80: 10635965.43 | AV80: 2194187.252 | AX80: 0.1806362523 | AZ80: 1 | BA80: 1
K81: 79 | L81: 14520349.12 | M81: 1500000 | N81: 7204333.945 | O81: 2338452.924 | R81: 3346067.004 | T81: 3681801.554 | V81: 1 | W81: 29189754.81 | X81: 5990289.723 | Z81: 0.1440598513 | AA81: 0.1809070553 | AB81: 1 | AG81: 1 | AR81: 1 | AU81: 10691934.93 | AV81: 2194187.252 | AX81: 0.1809070553 | AZ81: 1 | BA81: 1
K82: 80 | L82: 13870042.21 | M82: 1500000 | N82: 6942274.217 | O82: 2247454.196 | R82: 3517193.39 | T82: 3651295.008 | V82: 1 | W82: 27875500.24 | X82: 5990289.723 | Z82: 0.1415752645 | AA82: 0.1785272308 | AB82: 1 | AG82: 1 | AR82: 1 | AU82: 10210535.74 | AV82: 2194187.252 | AX82: 0.1785272308 | AZ82: 1 | BA82: 1
K83: 81 | L83: 12548871.21 | M83: 1500000 | N83: 6316862.339 | O83: 2186412.042 | R83: 3002562.111 | T83: 3430079.873 | V83: 1 | W83: 25235427.12 | X83: 5990289.723 | Z83: 0.1361135678 | AA83: 0.1733652439 | AB83: 1 | AG83: 1 | AR83: 1 | AU83: 9243501.576 | AV83: 2194187.252 | AX83: 0.1733652439 | BA83: 1
K84: 82 | L84: 12242559.44 | M84: 1500000 | N84: 6209428.053 | O84: 2121333.686 | R84: 3030193.051 | T84: 3446162.458 | V84: 1 | W84: 24626648.45 | X84: 5990289.723 | Z84: 0.13475783 | AA84: 0.1720935844 | AB84: 1 | AG84: 1 | AR84: 1 | AU84: 9020511.627 | AV84: 2194187.252 | AX84: 0.1720935844 | BA84: 1
K85: 83 | L85: 13014969.57 | M85: 1500000 | N85: 6674607.435 | O85: 2060800.745 | R85: 3756322.261 | T85: 3771242.414 | V85: 1 | W85: 26183949.13 | X85: 5990289.723 | Z85: 0.1381089003 | AA85: 0.1752830871 | AB85: 1 | AG85: 1 | AR85: 1 | AU85: 9590936.342 | AV85: 2194187.252 | AX85: 0.1752830871 | BA85: 1
K86: 84 | L86: 11690536.8 | M86: 1500000 | N86: 6039265.977 | O86: 2036183.911 | R86: 3262163.565 | T86: 3474259.924 | V86: 1 | W86: 23550250.85 | X86: 5990289.723 | Z86: 0.1322185218 | AA86: 0.1697611793 | AB86: 1 | AG86: 1 | AR86: 1 | AU86: 8626237.227 | AV86: 2194187.252 | AX86: 0.1697611793 | BA86: 1
K87: 85 | L87: 11059804.05 | M87: 1500000 | N87: 5753035.884 | O87: 1990917.419 | R87: 2962514.071 | T87: 3383488.573 | V87: 1 | W87: 22308905.51 | X87: 5990289.723 | Z87: 0.1291517091 | AA87: 0.1669262668 | AB87: 1 | AG87: 1 | AR87: 1 | AU87: 8171544.006 | AV87: 2194187.252 | AX87: 0.1669262668 | BA87: 1
K88: 86 | L88: 12138786.32 | M88: 1500000 | N88: 6359209.524 | O88: 1932383.963 | R88: 3167611.199 | T88: 3857447.988 | V88: 1 | W88: 24503100.05 | X88: 5990289.723 | Z88: 0.1342901294 | AA88: 0.171831434 | AB88: 1 | AG88: 1 | AR88: 1 | AU88: 8975256.999 | AV88: 2194187.252 | AX88: 0.171831434 | BA88: 1
K89: 87 | L89: 12380759.15 | M89: 1500000 | N89: 6558426.043 | O89: 1871520.51 | R89: 3693162.944 | T89: 4084034.193 | V89: 1 | W89: 25006573.14 | X89: 5990289.723 | Z89: 0.135374025 | AA89: 0.1728910575 | AB89: 1 | AG89: 1 | AR89: 1 | AU89: 9159674.497 | AV89: 2194187.252 | AX89: 0.1728910575 | BA89: 1
K90: 88 | L90: 11957178.98 | M90: 1500000 | N90: 6403595.482 | O90: 1845669.376 | R90: 3850318.814 | T90: 4058398.106 | V90: 1 | W90: 24188914.19 | X90: 5990289.723 | Z90: 0.1334610452 | AA90: 0.1711584027 | AB90: 1 | AG90: 1 | AR90: 1 | AU90: 8860173.65 | AV90: 2194187.252 | AX90: 0.1711584027 | BA90: 1
K91: 89 | L91: 11710839.73 | M91: 1500000 | N91: 6341621.619 | O91: 1810473.513 | R91: 3978262.95 | T91: 4103151.001 | V91: 1 | W91: 23745729.97 | X91: 5990289.723 | Z91: 0.1323142144 | AA91: 0.1701930717 | AB91: 1 | AG91: 1 | AR91: 1 | AU91: 8697839.406 | AV91: 2194187.252 | AX91: 0.1701930717 | BA91: 1
K92: 90 | L92: 10780163.28 | M92: 1500000 | N92: 5911552.23 | O92: 1754996.122 | R92: 3965552.844 | T92: 3899737.326 | W92: 21923113.65 | X92: 5990289.723 | Z92: 0.1277301832 | AA92: 0.166010878 | AB92: 1 | AG92: 1 | AR92: 1 | AU92: 8030232.045 | AV92: 2194187.252 | AX92: 0.166010878 | BA92: 1
K93: 91 | L93: 11380527.06 | M93: 1500000 | N93: 6085368.412 | O93: 1865356.81 | R93: 3782581.462 | T93: 4157744.939 | V93: 1 | W93: 23229572.24 | X93: 5990289.723 | Z93: 0.1307343954 | AA93: 0.1690443442 | AB93: 1 | AG93: 1 | AR93: 1 | AU93: 8508775.642 | AV93: 2194187.252 | AX93: 0.1690443442 | BA93: 1
K94: 92 | L94: 11073292.61 | M94: 1500000 | N94: 5984472.289 | O94: 1845404.931 | R94: 3790246.267 | T94: 4052964.615 | V94: 1 | W94: 22668980.26 | X94: 5990289.723 | Z94: 0.1292192785 | AA94: 0.167765544 | AB94: 1 | AG94: 1 | AR94: 1 | AU94: 8303436.031 | AV94: 2194187.252 | AX94: 0.167765544 | BA94: 1
K95: 93 | L95: 11008501.88 | M95: 1500000 | N95: 6027193.083 | O95: 1830000 | R95: 4115938.75 | T95: 4030971.371 | W95: 22611500.72 | X95: 5990289.723 | Z95: 0.1288938902 | AA95: 0.1676325248 | AB95: 1 | AG95: 1 | AR95: 1 | AU95: 8282381.81 | AV95: 2194187.252 | AX95: 0.1676325248 | BA95: 1
K96: 94 | L96: 11628710.52 | M96: 1500000 | N96: 6204475.465 | O96: 1957968.348 | R96: 4419910.274 | T96: 4223928.922 | W96: 23984593.03 | X96: 5990289.723 | Z96: 0.1319259974 | AA96: 0.1707157128 | AB96: 1 | AG96: 1 | AR96: 1 | AU96: 8785332.714 | AV96: 2194187.252 | AX96: 0.1707157128 | BA96: 1
K97: 95 | L97: 11253006.99 | M97: 1500000 | N97: 5718261.205 | O97: 2258987.23 | R97: 4563383.802 | T97: 4059139.174 | W97: 23305118.78 | X97: 5990289.723 | Z97: 0.1301110331 | AA97: 0.1692141625 | AB97: 1 | AG97: 1 | AR97: 1 | AU97: 8536447.636 | AV97: 2194187.252 | AX97: 0.1692141625 | BA97: 1
K98: 96 | L98: 11525955.5 | M98: 1500000 | N98: 5254823.161 | O98: 2971254.423 | R98: 4638848.32 | T98: 4074071.173 | W98: 23983418.29 | X98: 5990289.723 | Z98: 0.1314360441 | AA98: 0.170713156 | AB98: 1 | AG98: 1 | AR98: 1 | AU98: 8784902.419 | AV98: 2194187.252 | AX98: 0.170713156 | BA98: 1
K99: 97 | L99: 11344189.14 | M99: 1500000 | N99: 4578235.896 | O99: 3512607.171 | R99: 4657403.713 | T99: 3939096.105 | W99: 23719048.85 | X99: 5990289.723 | Z99: 0.1305575445 | AA99: 0.1701343456 | AB99: 1 | AG99: 1 | AR99: 1 | AU99: 8688066.361 | AV99: 2194187.252 | AX99: 0.1701343456 | BA99: 1
S131: =IF(K131=0,"",IF(R131<lumpsum,1,"")) ->  | U131: =IF(K131=0,"",IF(T131<lumpsum,1,"")) ->  | AB131: =IF(K131=0,"",IF(W131>target1,1,"")) ->  | AR131: =IF(K131=0,"",IF(L131>targetp,1,"")) ->  | AS131: =IF(K131=0,"",IF(N131>targetp,1,"")) ->  | AZ131: =IF(K131=0,"",IF(AU131>target1,1,"")) -> 
P132: =IF(L132<M132,1,"") ->  | Q132: =IF(N132<O132,1,"") ->  | V132: =IF(K132=0,"",IF(T132>R132,1,"")) ->  | Y132: =IF(K132=0,"",IF(W132<X132,1,"")) ->  | AG132: =IF(K132=0,"",IF(W132>L132,1,"")) ->  | AT132: =IF(K132=0,"",IF(N132>L132,1,"")) ->  | AW132: =IF(K132=0,"",IF(AU132<AV132,1,"")) ->  | AY132: =IF(K132=0,"",IF(AU132>L132,1,"")) ->  | BA132: =IF(K132=0,"",IF(W132>AU132,1,"")) -> 
S195: =IF(K195=0,"",IF(R195<lumpsum,1,"")) ->  | U195: =IF(K195=0,"",IF(T195<lumpsum,1,"")) ->  | AB195: =IF(K195=0,"",IF(W195>target1,1,"")) ->  | AR195: =IF(K195=0,"",IF(L195>targetp,1,"")) ->  | AS195: =IF(K195=0,"",IF(N195>targetp,1,"")) ->  | AZ195: =IF(K195=0,"",IF(AU195>target1,1,"")) -> 
P196: =IF(L196<M196,1,"") ->  | Q196: =IF(N196<O196,1,"") ->  | V196: =IF(K196=0,"",IF(T196>R196,1,"")) ->  | Y196: =IF(K196=0,"",IF(W196<X196,1,"")) ->  | AG196: =IF(K196=0,"",IF(W196>L196,1,"")) ->  | AT196: =IF(K196=0,"",IF(N196>L196,1,"")) ->  | AW196: =IF(K196=0,"",IF(AU196<AV196,1,"")) ->  | AY196: =IF(K196=0,"",IF(AU196>L196,1,"")) ->  | BA196: =IF(K196=0,"",IF(W196>AU196,1,"")) -> 
S259: =IF(K259=0,"",IF(R259<lumpsum,1,"")) ->  | U259: =IF(K259=0,"",IF(T259<lumpsum,1,"")) ->  | AB259: =IF(K259=0,"",IF(W259>target1,1,"")) ->  | AR259: =IF(K259=0,"",IF(L259>targetp,1,"")) ->  | AS259: =IF(K259=0,"",IF(N259>targetp,1,"")) ->  | AZ259: =IF(K259=0,"",IF(AU259>target1,1,"")) -> 
P260: =IF(L260<M260,1,"") ->  | Q260: =IF(N260<O260,1,"") ->  | V260: =IF(K260=0,"",IF(T260>R260,1,"")) ->  | Y260: =IF(K260=0,"",IF(W260<X260,1,"")) ->  | AG260: =IF(K260=0,"",IF(W260>L260,1,"")) ->  | AT260: =IF(K260=0,"",IF(N260>L260,1,"")) ->  | AW260: =IF(K260=0,"",IF(AU260<AV260,1,"")) ->  | AY260: =IF(K260=0,"",IF(AU260>L260,1,"")) ->  | BA260: =IF(K260=0,"",IF(W260>AU260,1,"")) -> 
S323: =IF(K323=0,"",IF(R323<lumpsum,1,"")) ->  | U323: =IF(K323=0,"",IF(T323<lumpsum,1,"")) ->  | AB323: =IF(K323=0,"",IF(W323>target1,1,"")) ->  | AR323: =IF(K323=0,"",IF(L323>targetp,1,"")) ->  | AS323: =IF(K323=0,"",IF(N323>targetp,1,"")) ->  | AZ323: =IF(K323=0,"",IF(AU323>target1,1,"")) -> 
P324: =IF(L324<M324,1,"") ->  | Q324: =IF(N324<O324,1,"") ->  | V324: =IF(K324=0,"",IF(T324>R324,1,"")) ->  | Y324: =IF(K324=0,"",IF(W324<X324,1,"")) ->  | AG324: =IF(K324=0,"",IF(W324>L324,1,"")) ->  | AT324: =IF(K324=0,"",IF(N324>L324,1,"")) ->  | AW324: =IF(K324=0,"",IF(AU324<AV324,1,"")) ->  | AY324: =IF(K324=0,"",IF(AU324>L324,1,"")) ->  | BA324: =IF(K324=0,"",IF(W324>AU324,1,"")) -> 
S387: =IF(K387=0,"",IF(R387<lumpsum,1,"")) ->  | U387: =IF(K387=0,"",IF(T387<lumpsum,1,"")) ->  | AB387: =IF(K387=0,"",IF(W387>target1,1,"")) ->  | AR387: =IF(K387=0,"",IF(L387>targetp,1,"")) ->  | AS387: =IF(K387=0,"",IF(N387>targetp,1,"")) ->  | AZ387: =IF(K387=0,"",IF(AU387>target1,1,"")) -> 
P388: =IF(L388<M388,1,"") ->  | Q388: =IF(N388<O388,1,"") ->  | V388: =IF(K388=0,"",IF(T388>R388,1,"")) ->  | Y388: =IF(K388=0,"",IF(W388<X388,1,"")) ->  | AG388: =IF(K388=0,"",IF(W388>L388,1,"")) ->  | AT388: =IF(K388=0,"",IF(N388>L388,1,"")) ->  | AW388: =IF(K388=0,"",IF(AU388<AV388,1,"")) ->  | AY388: =IF(K388=0,"",IF(AU388>L388,1,"")) ->  | BA388: =IF(K388=0,"",IF(W388>AU388,1,"")) -> 
AK401: =AK400+1 -> 1 | AL401: -0.089 | AN401: =AN400*(1+AL401) -> 0
AK402: =AK401+1 -> 2 | AL402: -0.041 | AN402: 0
AK403: =AK402+1 -> 3 | AL403: 0.112 | AN403: 0
AK404: =AK403+1 -> 4 | AL404: 0.033 | AN404: 0
AK405: =AK404+1 -> 5 | AL405: -0.02 | AN405: 0
AK406: 6 | AL406: -0.005 | AN406: 0
AK407: 7 | AL407: -0.064 | AN407: 0
AK408: 8 | AL408: 0.075 | AN408: 0
AK409: 9 | AL409: -0.011 | AN409: 0
AK410: 10 | AL410: 0.011 | AN410: 0
AK411: 11 | AL411: 0.076 | AN411: 0
AK412: 12 | AL412: -0.014 | AN412: 0
AK413: 13 | AL413: 0.045 | AN413: 0
AK414: 14 | AL414: 0.004 | AN414: 0
AL415: 0.024 | AN415: 0

Sheet Results
A1: Results
A2: Number of trial periods | B2: =Input!AF5 -> 97 | C2: Represents all possible durations of | G2: =Input!B3 -> 25 | H2: years | I2: between | J2: =start -> 1980 | K2: and | L2: =end -> 2012
A3: SIP: Probability of loss | B3: =SUM(Input!P3:P400)/Input!AF5 -> 0 | C3: Probability of loss refers to number of times portfolio was lower than total investment
A4: VIP: Probability of loss | B4: =SUM(Input!Q3:Q400)/Input!AF5 -> 0 | C4: divided by number of trial periods
A5: Lumpsum Probability of loss | B5: =SUM(Input!S3:S400)/Input!AF5 -> 0
A6: STP Probability of loss | B6: =SUM(Input!U3:U400)/Input!AF5 -> 0
A7: Growth SIP-I Probability of loss | B7: =SUM(Input!Y3:Y400)/Input!AF5 -> 0
A8: Growth SIP-II Probability of loss | B8: =SUM(Input!AW3:AW400)/Input!AF5 -> 0
A10: Prob. of SIP outperforming target | B10: =SUM(Input!AR3:AR400)/Input!AF5 -> 1 | C10: Number of times portfolio outperformed target value divided by no of trial periods
A11: Prob. of VIP outperforming target | B11: =SUM(Input!AS3:AS400)/Input!AF5 -> 0.4742268041
A12: Prob. of GSIP-I outperforming target | B12: =SUM(Input!AB3:AB400)/Input!AF5 -> 1
A13: Prob. of GSIP-II outperforming target | B13: =SUM(Input!AZ3:AZ400)/Input!AF5 -> 0.7525773196
A15: Prob. of STP doing better than LS | B15: =SUM(Input!V3:V400)/Input!AF5 -> 0.2783505155 | C15: No of times STP portfolio did better than lump sum (LS) portfolio divided by no of trial periods
A16: Prob. of GSIP-I doing better than SIP | B16: =SUM(Input!AG3:AG400)/Input!AF5 -> 1 | C16: No of times growth-SIP portfolio did better than SIP portfolio divided by no of trial periods
A17: Prob. of GSIP-II doing better than SIP | B17: =SUM(Input!AY3:AY400)/Input!AF5 -> 0
A18: Prob. of GSIP-I doing better than GSIP-II | B18: =SUM(Input!BA3:BA400)/Input!AF5 -> 1
A19: Note: The other sheets show the calculations for each investment mode. They are only for reference and do not represent final results

Sheet Sensex Target Growth SIP
AI2: Return expected each year | AL2: =Input!B2 -> 0.1
AI3: Minimum investment | AL3: =Input!B8 -> 1000
AI4: Typical SIP amt | AL4: =Input!B14 -> 2762.720202
B5: Note: If you see cells showing "NA". Please scroll down/up until you see the values corresponding to the input investment year | AI5: Maximum investment | AL5: =Input!B9 -> 15000
L6: Growing Systematic investment plan
B7: Full | D7: NAV | E7: Portfolio | F7: Portfolio | G7: G-SIP | H7: Total | I7: Units | J7: Total | L7: Growth-SIP | M7: Total | N7: Units | O7: Total | P7: Portfolio | R7: Enter | S7: NAV | T7: Portfolio | U7: Portfolio | V7: VIP | W7: Total | X7: Units | Y7: Total | AA7: SIP | AB7: Total | AG7: Total Units | AI7: Portfolio | AL7: Total investment
A8: S.no | B8: NAV | C8: Month | D8: % change | E8: Target | F8: Actual | G8: investment | H8: investment | I8: purchased | J8: no of units | L8: investment | M8: investment | N8: purchased | O8: no of units | P8: Actual | Q8: Month | R8: NAV | S8: % change | T8: Target | U8: Actual | V8: investment | W8: investment | X8: purchased | Y8: no of units | AA8: investment | AB8: investment | AD8: Target | AE8: GSIP | AF8: VIP | AG8: GSIP | AI8: Target | AJ8: GSIP | AL8: GSIP
A10: 1 | B10: 9.715125456 | C10: =IF(AND(A10>=startm,A10<=endm),A10-startm,"NA") -> NA | D10: =IF(C10="NA","NA",IF(C10=0,0,(B10-B8)/B8)) -> NA | E10: =IF(C10="NA","NA",IF(C10=0,typical,(1+return/12)*typical*((1+return/12)^C10-1)/(return/12))) -> NA | L10: =IF(C10="NA","NA",IF(C10=0,typical,IF(L9="NA",typical,IF(INT(C10/12)-(C10/12)=0,L9*(1+gsip1),L9)))) -> NA | M10: =IF(C10="NA","NA",IF(M9="NA",L10,M9+L10)) -> NA | N10: =IF(C10="NA","NA",L10/B10) -> NA | O10: =IF(C10="NA","NA",IF(O9="NA",N10,O9+N10)) -> NA | P10: =IF(C10="NA","NA",O10*B10) -> NA | Q10: 0 | R10: 9.715125456 | S10: 0 | T10: =typical -> 2762.720202 | U10: =typical -> 2762.720202 | V10: =typical -> 2762.720202 | W10: =V10 -> 2762.720202 | X10: =V10/R10 -> 284.3730856 | Y10: =X10 -> 284.3730856 | AA10: =typical -> 2762.720202 | AB10: =AA10 -> 2762.720202 | AD10: =IF(A10=endm,E10,IF(C10="NA","NA",-typical)) -> NA | AE10: =IF(A10=endm,P10,IF(C10="NA","NA",-typical)) -> NA | AF10: =IF(A10=endm,F10,IF(C10="NA","NA",-G10)) -> NA | AG10: =IF(A10=endm,O10,0) -> 0 | AH10: =IF(A10=endm,J10,0) -> 0 | AI10: =IF(A10=endm,E10,0) -> 0 | AJ10: =IF(A10=endm,P10,0) -> 0 | AK10: =IF(A10=endm,F10,0) -> 0 | AL10: =IF(A10=endm,M10,0) -> 0 | AM10: =IF(A10=endm,H10,0) -> 0 | AO10: =IF(C10="NA","NA",INT(C10/12)-(C10/12)) -> NA
A11: =A10+1 -> 2 | B11: 10.08430022 | C11: NA | D11: =IF(C11="NA","NA",IF(C11=0,0,(B11-B10)/B10)) -> NA | E11: NA | L11: NA | M11: NA | N11: =IF(C11="NA","NA",L11/B11) -> NA | O11: NA | P11: =IF(C11="NA","NA",O11*B11) -> NA | Q11: =Q10+1 -> 1 | R11: 10.08430022 | S11: =(R11-R10)/R10 -> 0.038 | T11: =(1+return/12)*typical*((1+return/12)^Q11-1)/(return/12) -> 2785.742871 | U11: =U10*(1+S11) -> 2867.70357 | V11: =IF((U11-T11)>0,IF(typical-(U11-T11)<min,min,typical-(U11-T11)),IF((U11-T11)<0,IF(typical-(U11-T11)>max,max,typical-(U11-T11)),IF((T11-U11)=0,min,))) -> 2680.759503 | W11: =W10+V11 -> 5443.479706 | X11: 265.8349557 | Y11: =Y10+X11 -> 550.2080413 | AA11: 2762.720202 | AB11: =AB10+AA11 -> 5525.440405 | AD11: NA | AE11: NA | AF11: NA | AG11: 0 | AH11: 0 | AI11: 0 | AJ11: 0 | AK11: 0 | AL11: 0 | AM11: 0 | AO11: NA
A12: =A11+1 -> 3 | B12: 10.11455312 | C12: NA | D12: NA | E12: NA | L12: NA | M12: NA | N12: NA | O12: NA | P12: NA | Q12: =Q11+1 -> 2 | R12: 10.11455312 | S12: =(R12-R11)/R11 -> 0.003 | T12: 5594.700266 | U12: =(U11+V11)*(1+S12) -> 5565.108462 | V12: 2792.312006 | W12: 8235.791711 | X12: 276.0687468 | Y12: =Y11+X12 -> 826.2767881 | AA12: 2762.720202 | AB12: =AB11+AA12 -> 8288.160607 | AD12: NA | AE12: NA | AF12: NA | AG12: 0 | AH12: 0 | AI12: 0 | AJ12: 0 | AK12: 0 | AL12: 0 | AM12: 0 | AO12: NA
A13: 4 | B13: 10.01340759 | C13: NA | D13: NA | E13: NA | L13: NA | M13: NA | N13: NA | O13: NA | P13: NA | Q13: 3 | R13: 10.01340759 | S13: =(R13-R12)/R12 -> -0.01 | T13: 8427.065639 | U13: =(U12+V12)*(1+S13) -> 8273.846263 | V13: 2915.939578 | W13: 11151.73129 | X13: 291.203524 | Y13: 1117.480312 | AA13: 2762.720202 | AB13: 11050.88081 | AD13: NA | AE13: NA | AF13: NA | AG13: 0 | AH13: 0 | AI13: 0 | AJ13: 0 | AK13: 0 | AL13: 0 | AM13: 0 | AO13: NA
A14: 5 | B14: 9.913273516 | C14: NA | D14: NA | E14: NA | L14: NA | M14: NA | N14: NA | O14: NA | P14: NA | Q14: 4 | R14: 9.913273516 | S14: =(R14-R13)/R13 -> -0.01 | T14: 11283.03406 | U14: =(U13+V13)*(1+S14) -> 11077.88798 | V14: 2967.866276 | W14: 14119.59757 | X14: 299.3830717 | Y14: 1416.863384 | AA14: 2762.720202 | AB14: 13813.60101 | AD14: NA | AE14: NA | AF14: NA | AG14: 0 | AH14: 0 | AI14: 0 | AJ14: 0 | AK14: 0 | AL14: 0 | AM14: 0 | AO14: NA
A15: 6 | B15: 9.615875311 | C15: NA | D15: NA | E15: NA | L15: NA | M15: NA | N15: NA | O15: NA | P15: NA | Q15: 5 | R15: 9.615875311 | S15: -0.03 | T15: 14162.80221 | U15: 13624.38163 | V15: 3301.140782 | W15: 17420.73835 | X15: 343.3011219 | Y15: 1760.164506 | AA15: 2762.720202 | AB15: 16576.32121 | AD15: NA | AE15: NA | AF15: NA | AG15: 0 | AH15: 0 | AI15: 0 | AJ15: 0 | AK15: 0 | AL15: 0 | AM15: 0 | AO15: NA
A16: 7 | B16: 10.1255167 | C16: NA | D16: NA | E16: NA | L16: NA | M16: NA | N16: NA | O16: NA | P16: NA | Q16: 6 | R16: 10.1255167 | S16: 0.053 | T16: 17066.56843 | U16: 17822.5751 | V16: 2006.713535 | W16: 19427.45188 | X16: 198.1838156 | Y16: 1958.348321 | AA16: 2762.720202 | AB16: 19339.04142 | AD16: NA | AE16: NA | AF16: NA | AG16: 0 | AH16: 0 | AI16: 0 | AJ16: 0 | AK16: 0 | AL16: 0 | AM16: 0 | AO16: NA
A17: 8 | B17: 11.07731527 | C17: NA | D17: NA | E17: NA | L17: NA | M17: NA | N17: NA | O17: NA | P17: NA | Q17: 7 | R17: 11.07731527 | S17: 0.094 | T17: 19994.53271 | U17: 21693.24177 | V17: 1064.011143 | W17: 20491.46302 | X17: 96.05316058 | Y17: 2054.401482 | AA17: 2762.720202 | AB17: 22101.76162 | AD17: NA | AE17: NA | AF17: NA | AG17: 0 | AH17: 0 | AI17: 0 | AJ17: 0 | AK17: 0 | AL17: 0 | AM17: 0 | AO17: NA
A18: 9 | B18: 10.57883609 | C18: NA | D18: NA | E18: NA | L18: NA | M18: NA | N18: NA | O18: NA | P18: NA | Q18: 8 | R18: 10.57883609 | S18: -0.045 | T18: 22946.89668 | U18: 21733.17653 | V18: 3976.440358 | W18: 24467.90338 | X18: 375.8863759 | Y18: 2430.287858 | AA18: 2762.720202 | AB18: 24864.48182 | AD18: NA | AE18: NA | AF18: NA | AG18: 0 | AH18: 0 | AI18: 0 | AJ18: 0 | AK18: 0 | AL18: 0 | AM18: 0 | AO18: NA
A19: 10 | B19: 10.30378635 | C19: NA | D19: NA | E19: NA | L19: NA | M19: NA | N19: NA | O19: NA | P19: NA | Q19: 9 | R19: 10.30378635 | S19: -0.026 | T19: 25923.86369 | U19: 25041.16685 | V19: 3645.417049 | W19: 28113.32043 | X19: 353.7939284 | Y19: 2784.081786 | AA19: 2762.720202 | AB19: 27627.20202 | AD19: NA | AE19: NA | AF19: NA | AG19: 0 | AH19: 0 | AI19: 0 | AJ19: 0 | AK19: 0 | AL19: 0 | AM19: 0 | AO19: NA
A20: 11 | B20: 11.02505139 | C20: NA | D20: NA | E20: NA | L20: NA | M20: NA | N20: NA | O20: NA | P20: NA | Q20: 10 | R20: 11.02505139 | S20: 0.07 | T20: 28925.63876 | U20: 30694.64477 | V20: 1000 | W20: 29113.32043 | X20: 90.70252505 | Y20: 2874.784311 | AA20: 2762.720202 | AB20: 30389.92223 | AD20: NA | AE20: NA | AF20: NA | AG20: 0 | AH20: 0 | AI20: 0 | AJ20: 0 | AK20: 0 | AL20: 0 | AM20: 0 | AO20: NA
A21: 12 | B21: 11.66450437 | C21: NA | D21: NA | E21: NA | L21: NA | M21: NA | N21: NA | O21: NA | P21: NA | Q21: 11 | R21: 11.66450437 | S21: 0.058 | T21: 31952.42862 | U21: 33532.93417 | V21: 1182.214659 | W21: 30295.53509 | X21: 101.3514695 | Y21: 2976.135781 | AA21: 2762.720202 | AB21: 33152.64243 | AD21: NA | AE21: NA | AF21: NA | AG21: 0 | AH21: 0 | AI21: 0 | AJ21: 0 | AK21: 0 | AL21: 0 | AM21: 0 | AO21: NA
A22: 13 | B22: 11.53619482 | C22: NA | D22: NA | E22: NA | L22: NA | M22: =IF(C22="NA","NA",IF(M21="NA",L22,M21+L22)) -> NA | N22: NA | O22: =IF(C22="NA","NA",IF(O21="NA",N22,O21+N22)) -> NA | P22: NA | Q22: 12 | R22: 11.53619482 | S22: -0.011 | T22: 35004.44173 | U22: 34333.28219 | V22: 3433.879746 | W22: 33729.41484 | X22: 297.6613865 | Y22: 3273.797167 | AA22: 2762.720202 | AB22: 35915.36263 | AD22: NA | AE22: NA | AF22: NA | AG22: 0 | AH22: 0 | AI22: 0 | AJ22: 0 | AK22: 0 | AL22: 0 | AM22: 0 | AO22: NA
A23: 14 | B23: 12.4706266 | C23: NA | D23: NA | E23: NA | L23: NA | M23: =IF(C23="NA","NA",IF(M22="NA",L23,M22+L23)) -> NA | N23: NA | O23: =IF(C23="NA","NA",IF(O22="NA",N23,O22+N23)) -> NA | P23: NA | Q23: 13 | R23: 12.4706266 | S23: 0.081 | T23: 38081.88828 | U23: 40826.30205 | V23: 1000 | W23: 34729.41484 | X23: 80.18843252 | Y23: 3353.9856 | AA23: 2762.720202 | AB23: 38678.08283 | AD23: NA | AE23: NA | AF23: NA | AG23: 0 | AH23: 0 | AI23: 0 | AJ23: 0 | AK23: 0 | AL23: 0 | AM23: 0 | AO23: NA
A24: 15 | B24: 13.64286551 | C24: NA | D24: NA | E24: NA | L24: NA | M24: NA | N24: NA | O24: NA | P24: NA | Q24: 14 | R24: 13.64286551 | S24: 0.094 | T24: 41184.98022 | U24: 45757.97444 | V24: 1000 | W24: 35729.41484 | X24: 73.29838439 | Y24: 3427.283984 | AA24: 2762.720202 | AB24: 41440.80304 | AD24: NA | AE24: NA | AF24: NA | AG24: 0 | AH24: 0 | AI24: 0 | AJ24: 0 | AK24: 0 | AL24: 0 | AM24: 0 | AO24: NA
A25: 16 | B25: 14.65243755 | C25: NA | D25: NA | E25: NA | L25: NA | M25: NA | N25: NA | O25: NA | P25: NA | Q25: 15 | R25: 14.65243755 | S25: 0.074 | T25: 44313.93126 | U25: 50218.06455 | V25: 1000 | W25: 36729.41484 | X25: 68.24803016 | Y25: 3495.532014 | AA25: 2762.720202 | AB25: 44203.52324 | AD25: NA | AE25: NA | AF25: NA | AG25: 0 | AH25: 0 | AI25: 0 | AJ25: 0 | AK25: 0 | AL25: 0 | AM25: 0 | AO25: NA
A26: 17 | B26: 13.91981568 | C26: NA | D26: NA | E26: NA | L26: NA | M26: NA | N26: NA | O26: NA | P26: NA | Q26: 16 | R26: 13.91981568 | S26: -0.05 | T26: 47468.9569 | U26: 48657.16133 | V26: 1574.515772 | W26: 38303.93061 | X26: 113.113263 | Y26: 3608.645277 | AA26: 2762.720202 | AB26: 46966.24344 | AD26: NA | AE26: NA | AF26: NA | AG26: 0 | AH26: 0 | AI26: 0 | AJ26: 0 | AK26: 0 | AL26: 0 | AM26: 0 | AO26: NA
A27: 18 | B27: 16.63417973 | C27: NA | D27: NA | E27: NA | L27: NA | M27: NA | N27: NA | O27: NA | P27: NA | Q27: 17 | R27: 16.63417973 | S27: 0.195 | T27: 50650.27441 | U27: 60026.85413 | V27: 1000 | W27: 39303.93061 | X27: 60.11718138 | Y27: 3668.762459 | AA27: 2762.720202 | AB27: 49728.96364 | AD27: NA | AE27: NA | AF27: NA | AG27: 0 | AH27: 0 | AI27: 0 | AJ27: 0 | AK27: 0 | AL27: 0 | AM27: 0 | AO27: NA
A28: 19 | B28: 16.35139868 | C28: NA | D28: NA | E28: NA | L28: NA | M28: NA | N28: NA | O28: NA | P28: NA | Q28: 18 | R28: 16.35139868 | S28: -0.017 | T28: 53858.1029 | U28: 59989.39761 | V28: 1000 | W28: 40303.93061 | X28: 61.15684779 | Y28: 3729.919307 | AA28: 2762.720202 | AB28: 52491.68385 | AD28: NA | AE28: NA | AF28: NA | AG28: 0 | AH28: 0 | AI28: 0 | AJ28: 0 | AK28: 0 | AL28: 0 | AM28: 0 | AO28: NA
A29: 20 | B29: 15.20680077 | C29: NA | D29: NA | E29: NA | L29: NA | M29: NA | N29: NA | O29: NA | P29: NA | Q29: 19 | R29: 15.20680077 | S29: -0.07 | T29: 57092.66329 | U29: 56720.13978 | V29: 3135.243716 | W29: 43439.17433 | X29: 206.1737879 | Y29: 3936.093094 | AA29: 2762.720202 | AB29: 55254.40405 | AD29: NA | AE29: NA | AF29: NA | AG29: 0 | AH29: 0 | AI29: 0 | AJ29: 0 | AK29: 0 | AL29: 0 | AM29: 0 | AO29: NA
A30: 21 | B30: 16.14962242 | C30: NA | D30: NA | E30: NA | L30: NA | M30: NA | N30: NA | O30: NA | P30: NA | Q30: 20 | R30: 16.14962242 | S30: 0.062 | T30: 60354.17836 | U30: 63566.41727 | V30: 1000 | W30: 44439.17433 | X30: 61.92095234 | Y30: 3998.014047 | AA30: 2762.720202 | AB30: 58017.12425 | AD30: NA | AE30: NA | AF30: NA | AG30: 0 | AH30: 0 | AI30: 0 | AJ30: 0 | AK30: 0 | AL30: 0 | AM30: 0 | AO30: NA
A31: 22 | B31: 16.39186675 | C31: NA | D31: NA | E31: NA | L31: NA | M31: NA | N31: NA | O31: NA | P31: NA | Q31: 21 | R31: 16.39186675 | S31: 0.015 | T31: 63642.87271 | U31: 65534.91353 | V31: 1000 | W31: 45439.17433 | X31: 61.00586438 | Y31: 4059.019911 | AA31: 2762.720202 | AB31: 60779.84445 | AD31: NA | AE31: NA | AF31: NA | AG31: 0 | AH31: 0 | AI31: 0 | AJ31: 0 | AK31: 0 | AL31: 0 | AM31: 0 | AO31: NA
A32: 23 | B32: 16.88362276 | C32: NA | D32: NA | E32: NA | L32: NA | M32: NA | N32: NA | O32: NA | P32: NA | Q32: 22 | R32: 16.88362276 | S32: 0.03 | T32: 66958.97286 | U32: 68530.96094 | V32: 1190.732124 | W32: 46629.90645 | X32: 70.52586646 | Y32: 4129.545778 | AA32: 2762.720202 | AB32: 63542.56466 | AD32: NA | AE32: NA | AF32: NA | AG32: 0 | AH32: 0 | AI32: 0 | AJ32: 0 | AK32: 0 | AL32: 0 | AM32: 0 | AO32: NA
A33: 24 | B33: 17.91352374 | C33: NA | D33: NA | E33: NA | L33: NA | M33: NA | N33: NA | O33: NA | P33: NA | Q33: 23 | R33: 17.91352374 | S33: 0.061 | T33: 70302.70717 | U33: 73974.71634 | V33: 1000 | W33: 47629.90645 | X33: 55.82374603 | Y33: 4185.369524 | AA33: 2762.720202 | AB33: 66305.28486 | AD33: NA | AE33: NA | AF33: NA | AG33: 0 | AH33: 0 | AI33: 0 | AJ33: 0 | AK33: 0 | AL33: 0 | AM33: 0 | AO33: NA
A34: 25 | B34: 17.30446394 | C34: NA | D34: NA | E34: NA | L34: NA | M34: NA | N34: NA | O34: NA | P34: NA | Q34: 24 | R34: 17.30446394 | S34: -0.034 | T34: 73674.30593 | U34: 72425.57598 | V34: 4011.450154 | W34: 51641.3566 | X34: 231.8159158 | Y34: 4417.185439 | AA34: 2762.720202 | AB34: 69068.00506 | AD34: NA | AE34: NA | AF34: NA | AG34: 0 | AH34: 0 | AI34: 0 | AJ34: 0 | AK34: 0 | AL34: 0 | AM34: 0 | AO34: NA
A35: 26 | B35: 17.9447291 | C35: NA | D35: NA | E35: NA | L35: NA | M35: NA | N35: NA | O35: NA | P35: NA | Q35: 25 | R35: 17.9447291 | S35: 0.037 | T35: 77074.00135 | U35: 79265.1961 | V35: 1000 | W35: 52641.3566 | X35: 55.72667017 | Y35: 4472.91211 | AA35: 2762.720202 | AB35: 71830.72526 | AD35: NA | AE35: NA | AF35: NA | AG35: 0 | AH35: 0 | AI35: 0 | AJ35: 0 | AK35: 0 | AL35: 0 | AM35: 0 | AO35: =IF(C35="NA","NA",INT(C35/12)-(C35/12)) -> NA
A36: 27 | B36: 17.13721629 | C36: NA | D36: NA | E36: NA | L36: NA | M36: NA | N36: NA | O36: NA | P36: NA | Q36: 26 | R36: 17.13721629 | S36: -0.045 | T36: 80502.02757 | U36: 76653.26228 | V36: 6611.485493 | W36: 59252.8421 | X36: 385.7969334 | Y36: 4858.709043 | AA36: 2762.720202 | AB36: 74593.44547 | AD36: NA | AE36: NA | AF36: NA | AG36: 0 | AH36: 0 | AI36: 0 | AJ36: 0 | AK36: 0 | AL36: 0 | AM36: 0 | AO36: =IF(C36="NA","NA",INT(C36/12)-(C36/12)) -> NA
A37: 28 | B37: 17.78843051 | C37: NA | D37: NA | E37: NA | L37: NA | M37: NA | N37: NA | O37: NA | P37: NA | Q37: 27 | R37: 17.78843051 | S37: 0.038 | T37: 83958.62067 | U37: 86428.80819 | V37: 1000 | W37: 60252.8421 | X37: 56.21631427 | Y37: 4914.925357 | AA37: 2762.720202 | AB37: 77356.16567 | AD37: NA | AE37: NA | AF37: NA | AG37: 0 | AH37: 0 | AI37: 0 | AJ37: 0 | AK37: 0 | AL37: 0 | AM37: 0 | AO37: NA
A38: 29 | B38: 18.01968011 | C38: NA | D38: NA | E38: NA | L38: NA | M38: NA | N38: NA | O38: NA | P38: NA | Q38: 28 | R38: 18.01968011 | S38: 0.013 | T38: 87444.01871 | U38: 88565.38269 | V38: 1641.356222 | W38: 61894.19832 | X38: 91.08686791 | Y38: 5006.012225 | AA38: 2762.720202 | AB38: 80118.88587 | AD38: NA | AE38: NA | AF38: NA | AG38: 0 | AH38: 0 | AI38: 0 | AJ38: 0 | AK38: 0 | AL38: 0 | AM38: 0 | AO38: NA
A39: 30 | B39: 16.7583025 | C39: NA | D39: NA | E39: NA | L39: NA | M39: NA | N39: NA | O39: NA | P39: NA | Q39: 29 | R39: 16.7583025 | S39: -0.07 | T39: 90958.46174 | U39: 83892.26719 | V39: 9828.914751 | W39: 71723.11307 | X39: 586.5101642 | Y39: 5592.522389 | AA39: 2762.720202 | AB39: 82881.60607 | AD39: NA | AE39: NA | AF39: NA | AG39: 0 | AH39: 0 | AI39: 0 | AJ39: 0 | AK39: 0 | AL39: 0 | AM39: 0 | AO39: NA
A40: 31 | B40: 17.02643534 | C40: NA | D40: NA | E40: NA | L40: NA | M40: NA | N40: NA | O40: NA | P40: NA | Q40: 30 | R40: 17.02643534 | S40: 0.016 | T40: 94502.19179 | U40: 95220.72085 | V40: 2044.191141 | W40: 73767.30421 | X40: 120.0598422 | Y40: 5712.582232 | AA40: 2762.720202 | AB40: 85644.32628 | AD40: NA | AE40: NA | AF40: NA | AG40: 0 | AH40: 0 | AI40: 0 | AJ40: 0 | AK40: 0 | AL40: 0 | AM40: 0 | AO40: NA
A41: 32 | B41: 16.85617099 | C41: NA | D41: NA | E41: NA | L41: NA | M41: NA | N41: NA | O41: NA | P41: NA | Q41: 31 | R41: 16.85617099 | S41: -0.01 | T41: 98075.45293 | U41: 96292.26287 | V41: 4545.910256 | W41: 78313.21447 | X41: 269.6881907 | Y41: 5982.270422 | AA41: 2762.720202 | AB41: 88407.04648 | AD41: NA | AE41: NA | AF41: NA | AG41: 0 | AH41: 0 | AI41: 0 | AJ41: 0 | AK41: 0 | AL41: 0 | AM41: 0 | AO41: NA
A42: 33 | B42: 17.96867827 | C42: NA | D42: NA | E42: NA | L42: NA | M42: NA | N42: NA | O42: NA | P42: NA | Q42: 32 | R42: 17.96867827 | S42: 0.066 | T42: 101678.4912 | U42: 107493.4926 | V42: 1000 | W42: 79313.21447 | X42: 55.65239607 | Y42: 6037.922818 | AA42: 2762.720202 | AB42: 91169.76668 | AD42: NA | AE42: NA | AF42: NA | AG42: 0 | AH42: 0 | AI42: 0 | AJ42: 0 | AK42: 0 | AL42: 0 | AM42: 0 | AO42: NA
A43: 34 | B43: 17.48352396 | C43: NA | D43: NA | E43: NA | L43: NA | M43: NA | N43: NA | O43: NA | P43: NA | Q43: 33 | R43: 17.48352396 | S43: -0.027 | T43: 105311.5549 | U43: 105564.1683 | V43: 2510.106815 | W43: 81823.32128 | X43: 143.5698445 | Y43: 6181.492663 | AA43: 2762.720202 | AB43: 93932.48688 | AD43: NA | AE43: NA | AF43: NA | AG43: 0 | AH43: 0 | AI43: 0 | AJ43: 0 | AK43: 0 | AL43: 0 | AM43: 0 | AO43: NA
A44: 35 | B44: 17.93809558 | C44: NA | D44: NA | E44: NA | L44: NA | M44: NA | N44: NA | O44: NA | P44: NA | Q44: 34 | R44: 17.93809558 | S44: 0.026 | T44: 108974.894 | U44: 110884.2062 | V44: 1000 | W44: 82823.32128 | X44: 55.74727793 | Y44: 6237.239941 | AA44: 2762.720202 | AB44: 96695.20709 | AD44: NA | AE44: NA | AF44: NA | AG44: 0 | AH44: 0 | AI44: 0 | AJ44: 0 | AK44: 0 | AL44: 0 | AM44: 0 | AO44: NA
A45: 36 | B45: 18.54799083 | C45: NA | D45: NA | E45: NA | L45: NA | M45: NA | N45: NA | O45: NA | P45: NA | Q45: 35 | R45: 18.54799083 | S45: 0.034 | T45: 112668.761 | U45: 115688.2692 | V45: 1000 | W45: 83823.32128 | X45: 53.91419529 | Y45: 6291.154136 | AA45: 2762.720202 | AB45: 99457.92729 | AD45: NA | AE45: NA | AF45: NA | AG45: 0 | AH45: 0 | AI45: 0 | AJ45: 0 | AK45: 0 | AL45: 0 | AM45: 0 | AO45: NA
A46: 37 | B46: 17.43511138 | C46: NA | D46: NA | E46: NA | L46: NA | M46: NA | N46: NA | O46: NA | P46: NA | Q46: 36 | R46: 17.43511138 | S46: -0.06 | T46: 116393.4102 | U46: 109686.9731 | V46: 9469.157352 | W46: 93292.47863 | X46: 543.1085093 | Y46: 6834.262645 | AA46: 2762.720202 | AB46: 102220.6475 | AD46: NA | AE46: NA | AF46: NA | AG46: 0 | AH46: 0 | AI46: 0 | AJ46: 0 | AK46: 0 | AL46: 0 | AM46: 0 | AO46: NA
A47: 38 | B47: 17.20845493 | C47: NA | D47: NA | E47: NA | L47: NA | M47: NA | N47: NA | O47: NA | P47: NA | Q47: 37 | R47: 17.20845493 | S47: -0.013 | T47: 120149.0982 | U47: 117607.1007 | V47: 5304.717652 | W47: 98597.19628 | X47: 308.2622857 | Y47: 7142.524931 | AA47: 2762.720202 | AB47: 104983.3677 | AD47: NA | AE47: NA | AF47: NA | AG47: 0 | AH47: 0 | AI47: 0 | AJ47: 0 | AK47: 0 | AL47: 0 | AM47: 0 | AO47: NA
A48: 39 | B48: 16.64057592 | C48: NA | D48: NA | E48: NA | L48: NA | M48: NA | N48: NA | O48: NA | P48: NA | Q48: 38 | R48: 16.64057592 | S48: -0.033 | T48: 123936.0835 | U48: 118855.7284 | V48: 7843.075363 | W48: 106440.2716 | X48: 471.3223509 | Y48: 7613.847282 | AA48: 2762.720202 | AB48: 107746.0879 | AD48: NA | AE48: NA | AF48: NA | AG48: 0 | AH48: 0 | AI48: 0 | AJ48: 0 | AK48: 0 | AL48: 0 | AM48: 0 | AO48: NA
A49: 40 | B49: 16.85690341 | C49: NA | D49: NA | E49: NA | L49: NA | M49: NA | N49: NA | O49: NA | P49: NA | Q49: 39 | R49: 16.85690341 | S49: 0.013 | T49: 127754.6271 | U49: 128345.8882 | V49: 2171.459118 | W49: 108611.7308 | X49: 128.8172012 | Y49: 7742.664483 | AA49: 2762.720202 | AB49: 110508.8081 | AD49: NA | AE49: NA | AF49: NA | AG49: 0 | AH49: 0 | AI49: 0 | AJ49: 0 | AK49: 0 | AL49: 0 | AM49: 0 | AO49: NA
A50: 41 | B50: 18.69430588 | C50: NA | D50: NA | E50: NA | L50: NA | M50: NA | N50: NA | O50: NA | P50: NA | Q50: 40 | R50: 18.69430588 | S50: 0.109 | T50: 131604.9919 | U50: 144743.7382 | V50: 1000 | W50: 109611.7308 | X50: 53.49222413 | Y50: 7796.156707 | AA50: 2762.720202 | AB50: 113271.5283 | AD50: NA | AE50: NA | AF50: NA | AG50: 0 | AH50: 0 | AI50: 0 | AJ50: 0 | AK50: 0 | AL50: 0 | AM50: 0 | AO50: NA
A51: 42 | B51: 18.69430588 | C51: NA | D51: NA | E51: NA | L51: NA | M51: NA | N51: NA | O51: NA | P51: NA | Q51: 41 | R51: 18.69430588 | S51: 0 | T51: 135487.443 | U51: 145743.7382 | V51: 1000 | W51: 110611.7308 | X51: 53.49222413 | Y51: 7849.648931 | AA51: 2762.720202 | AB51: 116034.2485 | AD51: NA | AE51: NA | AF51: NA | AG51: 0 | AH51: 0 | AI51: 0 | AJ51: 0 | AK51: 0 | AL51: 0 | AM51: 0 | AO51: NA
A52: 43 | B52: 18.54475143 | C52: NA | D52: NA | E52: NA | L52: NA | M52: NA | N52: NA | O52: NA | P52: NA | Q52: 42 | R52: 18.54475143 | S52: -0.008 | T52: 139402.2479 | U52: 145569.7883 | V52: 1000 | W52: 111611.7308 | X52: 53.92361303 | Y52: 7903.572544 | AA52: 2762.720202 | AB52: 118796.9687 | AD52: NA | AE52: NA | AF52: NA | AG52: 0 | AH52: 0 | AI52: 0 | AJ52: 0 | AK52: 0 | AL52: 0 | AM52: 0 | AO52: NA
A53: 44 | B53: 18.7858332 | C53: NA | D53: NA | E53: NA | L53: NA | M53: NA | N53: NA | O53: NA | P53: NA | Q53: 43 | R53: 18.7858332 | S53: 0.013 | T53: 143349.6762 | U53: 148475.1955 | V53: 1000 | W53: 112611.7308 | X53: 53.2316022 | Y53: 7956.804147 | AA53: 2762.720202 | AB53: 121559.6889 | AD53: NA | AE53: NA | AF53: NA | AG53: 0 | AH53: 0 | AI53: 0 | AJ53: 0 | AK53: 0 | AL53: 0 | AM53: 0 | AO53: NA
A54: 45 | B54: 18.59797487 | C54: NA | D54: NA | E54: NA | L54: NA | M54: NA | N54: NA | O54: NA | P54: NA | Q54: 44 | R54: 18.59797487 | S54: -0.01 | T54: 147329.9997 | U54: 147980.4436 | V54: 2112.276327 | W54: 114724.0071 | X54: 113.5756093 | Y54: 8070.379756 | AA54: 2762.720202 | AB54: 124322.4091 | AD54: NA | AE54: NA | AF54: NA | AG54: 0 | AH54: 0 | AI54: 0 | AJ54: 0 | AK54: 0 | AL54: 0 | AM54: 0 | AO54: NA
A55: 46 | B55: 18.65376879 | C55: NA | D55: NA | E55: NA | L55: NA | M55: NA | N55: NA | O55: NA | P55: NA | Q55: 45 | R55: 18.65376879 | S55: 0.003 | T55: 151343.4926 | U55: 150542.998 | V55: 3563.214709 | W55: 118287.2218 | X55: 191.0184879 | Y55: 8261.398244 | AA55: 2762.720202 | AB55: 127085.1293 | AD55: NA | AE55: NA | AF55: NA | AG55: 0 | AH55: 0 | AI55: 0 | AJ55: 0 | AK55: 0 | AL55: 0 | AM55: 0 | AO55: NA
A56: 47 | B56: 18.91492156 | C56: NA | D56: NA | E56: NA | L56: NA | M56: NA | N56: NA | O56: NA | P56: NA | Q56: 46 | R56: 18.91492156 | S56: 0.014 | T56: 155390.4312 | U56: 156263.6997 | V56: 1889.451664 | W56: 120176.6735 | X56: 99.89212262 | Y56: 8361.290366 | AA56: 2762.720202 | AB56: 129847.8495 | AD56: NA | AE56: NA | AF56: NA | AG56: 0 | AH56: 0 | AI56: 0 | AJ56: 0 | AK56: 0 | AL56: 0 | AM56: 0 | AO56: NA
A57: 48 | B57: 19.9174124 | C57: NA | D57: NA | E57: NA | L57: NA | M57: NA | N57: NA | O57: NA | P57: NA | Q57: 47 | R57: 19.9174124 | S57: 0.053 | T57: 159471.0943 | U57: 166535.2684 | V57: 1000 | W57: 121176.6735 | X57: 50.20732513 | Y57: 8411.497692 | AA57: 2762.720202 | AB57: 132610.5697 | AD57: NA | AE57: NA | AF57: NA | AG57: 0 | AH57: 0 | AI57: 0 | AJ57: 0 | AK57: 0 | AL57: 0 | AM57: 0 | AO57: NA
A58: 49 | B58: 19.55889898 | C58: NA | D58: NA | E58: NA | L58: NA | M58: NA | N58: NA | O58: NA | P58: NA | Q58: 48 | R58: 19.55889898 | S58: -0.018 | T58: 163585.763 | U58: 164519.6336 | V58: 1828.849595 | W58: 123005.5231 | X58: 93.5047314 | Y58: 8505.002423 | AA58: 2762.720202 | AB58: 135373.2899 | AD58: NA | AE58: NA | AF58: NA | AG58: 0 | AH58: 0 | AI58: 0 | AJ58: 0 | AK58: 0 | AL58: 0 | AM58: 0 | AO58: NA
A59: 50 | B59: 19.71537017 | C59: NA | D59: NA | E59: NA | L59: NA | M59: NA | N59: NA | O59: NA | P59: NA | Q59: 49 | R59: 19.71537017 | S59: 0.008 | T59: 167734.7205 | U59: 167679.271 | V59: 2818.169697 | W59: 125823.6928 | X59: 142.9427737 | Y59: 8647.945197 | AA59: 2762.720202 | AB59: 138136.0101 | AD59: NA | AE59: NA | AF59: NA | AG59: 0 | AH59: 0 | AI59: 0 | AJ59: 0 | AK59: 0 | AL59: 0 | AM59: 0 | AO59: NA
A60: 51 | B60: 19.30134739 | C60: NA | D60: NA | E60: NA | L60: NA | M60: NA | N60: NA | O60: NA | P60: NA | Q60: 50 | R60: 19.30134739 | S60: -0.021 | T60: 171918.2528 | U60: 166916.9945 | V60: 7763.978464 | W60: 133587.6712 | X60: 402.2505945 | Y60: 9050.195791 | AA60: 2762.720202 | AB60: 140898.7303 | AD60: NA | AE60: NA | AF60: NA | AG60: 0 | AH60: 0 | AI60: 0 | AJ60: 0 | AK60: 0 | AL60: 0 | AM60: 0 | AO60: NA
A61: 52 | B61: 18.50999215 | C61: NA | D61: NA | E61: NA | L61: NA | M61: NA | N61: NA | O61: NA | P61: NA | Q61: 51 | R61: 18.50999215 | S61: -0.041 | T61: 176136.6477 | U61: 167519.0531 | V61: 11380.31487 | W61: 144967.9861 | X61: 614.8200807 | Y61: 9665.015872 | AA61: 2762.720202 | AB61: 143661.4505 | AD61: NA | AE61: NA | AF61: NA | AG61: 0 | AH61: 0 | AI61: 0 | AJ61: 0 | AK61: 0 | AL61: 0 | AM61: 0 | AO61: NA
A62: 53 | B62: 18.93572197 | C62: NA | D62: NA | E62: NA | L62: NA | M62: NA | N62: NA | O62: NA | P62: NA | Q62: 52 | R62: 18.93572197 | S62: 0.023 | T62: 180390.196 | U62: 183014.0534 | V62: 1000 | W62: 145967.9861 | X62: 52.81023885 | Y62: 9717.826111 | AA62: 2762.720202 | AB62: 146424.1707 | AD62: NA | AE62: NA | AF62: NA | AG62: 0 | AH62: 0 | AI62: 0 | AJ62: 0 | AK62: 0 | AL62: 0 | AM62: 0 | AO62: NA
A63: 54 | B63: 19.61740796 | C63: NA | D63: NA | E63: NA | L63: NA | M63: NA | N63: NA | O63: NA | P63: NA | Q63: 53 | R63: 19.61740796 | S63: 0.036 | T63: 184679.1905 | U63: 190638.5593 | V63: 1000 | W63: 146967.9861 | X63: 50.97513402 | Y63: 9768.801245 | AA63: 2762.720202 | AB63: 149186.8909 | AD63: NA | AE63: NA | AF63: NA | AG63: 0 | AH63: 0 | AI63: 0 | AJ63: 0 | AK63: 0 | AL63: 0 | AM63: 0 | AO63: NA
A64: 55 | B64: 19.9509039 | C64: NA | D64: NA | E64: NA | L64: NA | M64: NA | N64: NA | O64: NA | P64: NA | Q64: 54 | R64: 19.9509039 | S64: 0.017 | T64: 189003.9266 | U64: 194896.4148 | V64: 1000 | W64: 147967.9861 | X64: 50.1230423 | Y64: 9818.924287 | AA64: 2762.720202 | AB64: 151949.6111 | AD64: NA | AE64: NA | AF64: NA | AG64: 0 | AH64: 0 | AI64: 0 | AJ64: 0 | AK64: 0 | AL64: 0 | AM64: 0 | AO64: NA
A65: 56 | B65: 19.59178763 | C65: NA | D65: NA | E65: NA | L65: NA | M65: NA | N65: NA | O65: NA | P65: NA | Q65: 55 | R65: 19.59178763 | S65: -0.018 | T65: 193364.7022 | U65: 192370.2794 | V65: 3757.143064 | W65: 151725.1292 | X65: 191.7713246 | Y65: 10010.69561 | AA65: 2762.720202 | AB65: 154712.3313 | AD65: NA | AE65: NA | AF65: NA | AG65: 0 | AH65: 0 | AI65: 0 | AJ65: 0 | AK65: 0 | AL65: 0 | AM65: 0 | AO65: NA
A66: 57 | B66: 20.88484561 | C66: NA | D66: NA | E66: NA | L66: NA | M66: NA | N66: NA | O66: NA | P66: NA | Q66: 56 | R66: 20.88484561 | S66: 0.066 | T66: 197761.8176 | U66: 209071.8323 | V66: 1000 | W66: 152725.1292 | X66: 47.88160845 | Y66: 10058.57722 | AA66: 2762.720202 | AB66: 157475.0515 | AD66: NA | AE66: NA | AF66: NA | AG66: 0 | AH66: 0 | AI66: 0 | AJ66: 0 | AK66: 0 | AL66: 0 | AM66: 0 | AO66: NA
A67: 58 | B67: 21.05192438 | C67: NA | D67: NA | E67: NA | L67: NA | M67: NA | N67: NA | O67: NA | P67: NA | Q67: 57 | R67: 21.05192438 | S67: 0.008 | T67: 202195.5756 | U67: 211752.407 | V67: 1000 | W67: 153725.1292 | X67: 47.50159568 | Y67: 10106.07882 | AA67: 2762.720202 | AB67: 160237.7717 | AD67: NA | AE67: NA | AF67: NA | AG67: 0 | AH67: 0 | AI67: 0 | AJ67: 0 | AK67: 0 | AL67: 0 | AM67: 0 | AO67: NA
A68: 59 | B68: 20.39931472 | C68: NA | D68: NA | E68: NA | L68: NA | M68: NA | N68: NA | O68: NA | P68: NA | Q68: 58 | R68: 20.39931472 | S68: -0.031 | T68: 206666.2816 | U68: 206157.0823 | V68: 3271.919485 | W68: 156997.0486 | X68: 160.393598 | Y68: 10266.47241 | AA68: 2762.720202 | AB68: 163000.4919 | AD68: NA | AE68: NA | AF68: NA | AG68: 0 | AH68: 0 | AI68: 0 | AJ68: 0 | AK68: 0 | AL68: 0 | AM68: 0 | AO68: NA
A69: 60 | B69: 21.37848183 | C69: NA | D69: NA | E69: NA | L69: NA | M69: NA | N69: NA | O69: NA | P69: NA | Q69: 59 | R69: 21.37848183 | S69: 0.048 | T69: 211174.2435 | U69: 219481.5939 | V69: 1000 | W69: 157997.0486 | X69: 46.77600627 | Y69: 10313.24842 | AA69: 2762.720202 | AB69: 165763.2121 | AD69: NA | AE69: NA | AF69: NA | AG69: 0 | AH69: 0 | AI69: 0 | AJ69: 0 | AK69: 0 | AL69: 0 | AM69: 0 | AO69: NA
A70: 61 | B70: 22.61843377 | C70: NA | D70: NA | E70: NA | L70: NA | M70: NA | N70: NA | O70: NA | P70: NA | Q70: 60 | R70: 22.61843377 | S70: 0.058 | T70: 215719.7717 | U70: 233269.5264 | V70: 1000 | W70: 158997.0486 | X70: 44.21172616 | Y70: 10357.46015 | AA70: 2762.720202 | AB70: 168525.9323 | AD70: NA | AE70: NA | AF70: NA | AG70: 0 | AH70: 0 | AI70: 0 | AJ70: 0 | AK70: 0 | AL70: 0 | AM70: 0 | AO70: NA
A71: 62 | B71: 23.88506606 | C71: NA | D71: NA | E71: NA | L71: NA | M71: NA | N71: NA | O71: NA | P71: NA | Q71: 61 | R71: 23.88506606 | S71: 0.056 | T71: 220303.1794 | U71: 247388.6198 | V71: 1000 | W71: 159997.0486 | X71: 41.86716492 | Y71: 10399.32731 | AA71: 2762.720202 | AB71: 171288.6526 | AD71: NA | AE71: NA | AF71: NA | AG71: 0 | AH71: 0 | AI71: 0 | AJ71: 0 | AK71: 0 | AL71: 0 | AM71: 0 | AO71: NA
A72: 63 | B72: 27.82610196 | C72: NA | D72: NA | E72: NA | L72: NA | M72: NA | N72: NA | O72: NA | P72: NA | Q72: 62 | R72: 27.82610196 | S72: 0.165 | T72: 224924.7821 | U72: 289372.7421 | V72: 1000 | W72: 160997.0486 | X72: 35.93748062 | Y72: 10435.26479 | AA72: 2762.720202 | AB72: 174051.3728 | AD72: NA | AE72: NA | AF72: NA | AG72: 0 | AH72: 0 | AI72: 0 | AJ72: 0 | AK72: 0 | AL72: 0 | AM72: 0 | AO72: NA
A73: 64 | B73: 30.44175555 | C73: NA | D73: NA | E73: NA | L73: NA | M73: NA | N73: NA | O73: NA | P73: NA | Q73: 63 | R73: 30.44175555 | S73: 0.094 | T73: 229584.8981 | U73: 317667.7799 | V73: 1000 | W73: 161997.0486 | X73: 32.84961665 | Y73: 10468.11441 | AA73: 2762.720202 | AB73: 176814.093 | AD73: NA | AE73: NA | AF73: NA | AG73: 0 | AH73: 0 | AI73: 0 | AJ73: 0 | AK73: 0 | AL73: 0 | AM73: 0 | AO73: NA
A74: 65 | B74: 31.41589173 | C74: =IF(AND(A74>=startm,A74<=endm),A74-startm,"NA") -> NA | D74: NA | E74: =IF(C74="NA","NA",IF(C74=0,typical,(1+return/12)*typical*((1+return/12)^C74-1)/(return/12))) -> NA | L74: =IF(C74="NA","NA",IF(C74=0,typical,IF(L73="NA",typical,IF(INT(C74/12)-(C74/12)=0,L73*(1+gsip1),L73)))) -> NA | M74: NA | N74: NA | O74: NA | P74: NA | Q74: 64 | R74: 31.41589173 | S74: 0.032 | T74: 234283.8485 | U74: 328865.1488 | V74: 1000 | W74: 162997.0486 | X74: =V74/R74 -> 31.83102389 | Y74: 10499.94543 | AA74: =typical -> 2762.720202 | AB74: 179576.8132 | AD74: =IF(A74=endm,E74,IF(C74="NA","NA",-typical)) -> NA | AE74: =IF(A74=endm,P74,IF(C74="NA","NA",-typical)) -> NA | AF74: =IF(A74=endm,F74,IF(C74="NA","NA",-G74)) -> NA | AG74: =IF(A74=endm,O74,0) -> 0 | AH74: =IF(A74=endm,J74,0) -> 0 | AI74: =IF(A74=endm,E74,0) -> 0 | AJ74: =IF(A74=endm,P74,0) -> 0 | AK74: =IF(A74=endm,F74,0) -> 0 | AL74: =IF(A74=endm,M74,0) -> 0 | AM74: =IF(A74=endm,H74,0) -> 0 | AO74: NA
A75: 66 | B75: 37.6048224 | C75: NA | D75: =IF(C75="NA","NA",IF(C75=0,0,(B75-B74)/B74)) -> NA | E75: NA | L75: NA | M75: NA | N75: =IF(C75="NA","NA",L75/B75) -> NA | O75: NA | P75: =IF(C75="NA","NA",O75*B75) -> NA | Q75: 65 | R75: 37.6048224 | S75: 0.197 | T75: =(1+return/12)*typical*((1+return/12)^Q75-1)/(return/12) -> 239021.9568 | U75: 394848.5831 | V75: =IF((U75-T75)>0,IF(typical-(U75-T75)<min,min,typical-(U75-T75)),IF((U75-T75)<0,IF(typical-(U75-T75)>max,max,typical-(U75-T75)),IF((T75-U75)=0,min,))) -> 1000 | W75: =W74+V75 -> 163997.0486 | X75: 26.59233408 | Y75: 10526.53777 | AA75: 2762.720202 | AB75: 182339.5334 | AD75: NA | AE75: NA | AF75: NA | AG75: 0 | AH75: 0 | AI75: 0 | AJ75: 0 | AK75: 0 | AL75: 0 | AM75: 0 | AO75: NA
A76: =A75+1 -> 67 | B76: 40.50039372 | C76: NA | D76: NA | E76: NA | L76: NA | M76: NA | N76: NA | O76: NA | P76: NA | Q76: =Q75+1 -> 66 | R76: 40.50039372 | S76: 0.077 | T76: 243799.5493 | U76: 426328.924 | V76: 1000 | W76: 164997.0486 | X76: 24.69111799 | Y76: =Y75+X76 -> 10551.22888 | AA76: 2762.720202 | AB76: =AB75+AA76 -> 185102.2536 | AD76: NA | AE76: NA | AF76: NA | AG76: 0 | AH76: 0 | AI76: 0 | AJ76: 0 | AK76: 0 | AL76: 0 | AM76: 0 | AO76: NA
A77: 68 | B77: 36.81485789 | C77: NA | D77: NA | E77: NA | L77: NA | M77: NA | N77: NA | O77: NA | P77: NA | Q77: 67 | R77: 36.81485789 | S77: -0.091 | T77: 248616.9551 | U77: 388441.992 | V77: 1000 | W77: 165997.0486 | X77: 27.16294608 | Y77: 10578.39183 | AA77: 2762.720202 | AB77: 187864.9738 | AD77: NA | AE77: NA | AF77: NA | AG77: 0 | AH77: 0 | AI77: 0 | AJ77: 0 | AK77: 0 | AL77: 0 | AM77: 0 | AO77: NA
A78: 69 | B78: 34.20100298 | C78: NA | D78: NA | E78: NA | L78: NA | M78: NA | N78: NA | O78: NA | P78: NA | Q78: 68 | R78: 34.20100298 | S78: =(R78-R77)/R77 -> -0.071 | T78: 253474.5059 | U78: =(U77+V77)*(1+S78) -> 361791.6105 | V78: 1000 | W78: 166997.0486 | X78: 29.23890859 | Y78: 10607.63074 | AA78: 2762.720202 | AB78: 190627.694 | AD78: NA | AE78: NA | AF78: NA | AG78: 0 | AH78: 0 | AI78: 0 | AJ78: 0 | AK78: 0 | AL78: 0 | AM78: 0 | AO78: NA
A79: 70 | B79: 37.45009826 | C79: NA | D79: NA | E79: NA | L79: NA | M79: NA | N79: NA | O79: NA | P79: NA | Q79: 69 | R79: 37.45009826 | S79: 0.095 | T79: 258372.5363 | U79: 397256.8135 | V79: 1000 | W79: 167997.0486 | X79: 26.70219963 | Y79: 10634.33294 | AA79: 2762.720202 | AB79: 193390.4142 | AD79: NA | AE79: NA | AF79: NA | AG79: 0 | AH79: 0 | AI79: 0 | AJ79: 0 | AK79: 0 | AL79: 0 | AM79: 0 | AO79: NA
A80: 71 | B80: 39.02300239 | C80: NA | D80: NA | E80: NA | L80: NA | M80: NA | N80: NA | O80: NA | P80: NA | Q80: 70 | R80: 39.02300239 | S80: 0.042 | T80: 263311.3836 | U80: 414983.5997 | V80: 1000 | W80: 168997.0486 | X80: 25.62591135 | Y80: 10659.95885 | AA80: 2762.720202 | AB80: 196153.1344 | AD80: NA | AE80: NA | AF80: NA | AG80: 0 | AH80: 0 | AI80: 0 | AJ80: 0 | AK80: 0 | AL80: 0 | AM80: 0 | AO80: NA
A81: 72 | B81: 41.44242854 | C81: NA | D81: NA | E81: NA | L81: NA | M81: NA | N81: NA | O81: NA | P81: NA | Q81: 71 | R81: 41.44242854 | S81: 0.062 | T81: 268291.388 | U81: 441774.5829 | V81: 1000 | W81: 169997.0486 | X81: 24.12986003 | Y81: 10684.08871 | AA81: 2762.720202 | AB81: 198915.8546 | AD81: NA | AE81: NA | AF81: NA | AG81: 0 | AH81: 0 | AI81: 0 | AJ81: 0 | AK81: 0 | AL81: 0 | AM81: 0 | AO81: NA
A82: 73 | B82: 46.99571396 | C82: NA | D82: NA | E82: NA | L82: NA | M82: NA | N82: NA | O82: NA | P82: NA | Q82: 72 | R82: 46.99571396 | S82: 0.134 | T82: 273312.8925 | U82: 502106.377 | V82: 1000 | W82: 170997.0486 | X82: 21.27853618 | Y82: 10705.36725 | AA82: 2762.720202 | AB82: 201678.5748 | AD82: NA | AE82: NA | AF82: NA | AG82: 0 | AH82: 0 | AI82: 0 | AJ82: 0 | AK82: 0 | AL82: 0 | AM82: 0 | AO82: NA
A83: 74 | B83: 51.64828965 | C83: NA | D83: NA | E83: NA | L83: NA | M83: NA | N83: NA | O83: NA | P83: NA | Q83: 73 | R83: 51.64828965 | S83: 0.099 | T83: 278376.2428 | U83: 552913.9083 | V83: 1000 | W83: 171997.0486 | X83: 19.36172537 | Y83: 10724.72897 | AA83: 2762.720202 | AB83: 204441.295 | AD83: NA | AE83: NA | AF83: NA | AG83: 0 | AH83: 0 | AI83: 0 | AJ83: 0 | AK83: 0 | AL83: 0 | AM83: 0 | AO83: NA
A84: 75 | B84: 45.14060515 | C84: NA | D84: NA | E84: NA | L84: NA | M84: NA | N84: NA | O84: NA | P84: NA | Q84: 74 | R84: 45.14060515 | S84: -0.126 | T84: 283481.7877 | U84: 484120.7559 | V84: 1000 | W84: 172997.0486 | X84: 22.15300386 | Y84: 10746.88198 | AA84: 2762.720202 | AB84: 207204.0152 | AD84: NA | AE84: NA | AF84: NA | AG84: 0 | AH84: 0 | AI84: 0 | AJ84: 0 | AK84: 0 | AL84: 0 | AM84: 0 | AO84: NA
A85: 76 | B85: 47.08165117 | C85: NA | D85: NA | E85: NA | L85: NA | M85: NA | N85: NA | O85: NA | P85: NA | Q85: 75 | R85: 47.08165117 | S85: 0.043 | T85: 288629.8788 | U85: 505980.9484 | V85: 1000 | W85: 173997.0486 | X85: 21.23969689 | Y85: 10768.12167 | AA85: 2762.720202 | AB85: 209966.7354 | AD85: NA | AE85: NA | AF85: NA | AG85: 0 | AH85: 0 | AI85: 0 | AJ85: 0 | AK85: 0 | AL85: 0 | AM85: 0 | AO85: NA
A86: 77 | B86: 49.20032548 | C86: NA | D86: NA | E86: NA | L86: NA | M86: NA | N86: NA | O86: NA | P86: NA | Q86: 76 | R86: 49.20032548 | S86: 0.045 | T86: 293820.8706 | U86: 529795.091 | V86: 1000 | W86: 174997.0486 | X86: 20.32506879 | Y86: 10788.44674 | AA86: 2762.720202 | AB86: 212729.4556 | AD86: NA | AE86: NA | AF86: NA | AG86: 0 | AH86: 0 | AI86: 0 | AJ86: 0 | AK86: 0 | AL86: 0 | AM86: 0 | AO86: NA
A87: 78 | B87: 47.62591506 | C87: NA | D87: NA | E87: NA | L87: NA | M87: =IF(C87="NA","NA",IF(M86="NA",L87,M86+L87)) -> NA | N87: NA | O87: =IF(C87="NA","NA",IF(O86="NA",N87,O86+N87)) -> NA | P87: NA | Q87: 77 | R87: 47.62591506 | S87: -0.032 | T87: 299055.1208 | U87: 513809.6481 | V87: 1000 | W87: 175997.0486 | X87: 20.9969719 | Y87: 10809.44371 | AA87: 2762.720202 | AB87: 215492.1758 | AD87: NA | AE87: NA | AF87: NA | AG87: 0 | AH87: 0 | AI87: 0 | AJ87: 0 | AK87: 0 | AL87: 0 | AM87: 0 | AO87: NA
A88: 79 | B88: 46.91152633 | C88: NA | D88: NA | E88: NA | L88: NA | M88: NA | N88: NA | O88: NA | P88: NA | Q88: 78 | R88: 46.91152633 | S88: -0.015 | T88: 304332.9897 | U88: 507087.5034 | V88: 1000 | W88: 176997.0486 | X88: 21.31672274 | Y88: 10830.76044 | AA88: 2762.720202 | AB88: 218254.896 | AD88: NA | AE88: NA | AF88: NA | AG88: 0 | AH88: 0 | AI88: 0 | AJ88: 0 | AK88: 0 | AL88: 0 | AM88: 0 | AO88: NA
A89: 80 | B89: 43.1116927 | C89: NA | D89: NA | E89: NA | L89: NA | M89: NA | N89: NA | O89: NA | P89: NA | Q89: 79 | R89: 43.1116927 | S89: -0.081 | T89: 309654.8408 | U89: 466932.4156 | V89: 1000 | W89: 177997.0486 | X89: 23.19556337 | Y89: 10853.956 | AA89: 2762.720202 | AB89: 221017.6162 | AD89: NA | AE89: NA | AF89: NA | AG89: 0 | AH89: 0 | AI89: 0 | AJ89: 0 | AK89: 0 | AL89: 0 | AM89: 0 | AO89: NA
A90: 81 | B90: 46.25884627 | C90: NA | D90: NA | E90: NA | L90: NA | M90: NA | N90: NA | O90: NA | P90: NA | Q90: 80 | R90: 46.25884627 | S90: 0.073 | T90: 315021.0406 | U90: 502091.482 | V90: 1000 | W90: 178997.0486 | X90: 21.61748683 | Y90: 10875.57349 | AA90: 2762.720202 | AB90: 223780.3364 | AD90: NA | AE90: NA | AF90: NA | AG90: 0 | AH90: 0 | AI90: 0 | AJ90: 0 | AK90: 0 | AL90: 0 | AM90: 0 | AO90: NA
A91: 82 | B91: 45.24115165 | C91: NA | D91: NA | E91: NA | L91: NA | M91: NA | N91: NA | O91: NA | P91: NA | Q91: 81 | R91: 45.24115165 | S91: -0.022 | T91: 320431.9589 | U91: 492023.4694 | V91: 1000 | W91: 179997.0486 | X91: 22.10376977 | Y91: 10897.67726 | AA91: 2762.720202 | AB91: 226543.0566 | AD91: NA | AE91: NA | AF91: NA | AG91: 0 | AH91: 0 | AI91: 0 | AJ91: 0 | AK91: 0 | AL91: 0 | AM91: 0 | AO91: NA
A92: 83 | B92: 39.26931963 | C92: NA | D92: NA | E92: NA | L92: NA | M92: NA | N92: NA | O92: NA | P92: NA | Q92: 82 | R92: 39.26931963 | S92: -0.132 | T92: 325887.9681 | U92: 427944.3714 | V92: 1000 | W92: 180997.0486 | X92: 25.46517254 | Y92: 10923.14243 | AA92: 2762.720202 | AB92: 229305.7768 | AD92: NA | AE92: NA | AF92: NA | AG92: 0 | AH92: 0 | AI92: 0 | AJ92: 0 | AK92: 0 | AL92: 0 | AM92: 0 | AO92: NA
A93: 84 | B93: 41.19351629 | C93: NA | D93: NA | E93: NA | L93: NA | M93: NA | N93: NA | O93: NA | P93: NA | Q93: 83 | R93: 41.19351629 | S93: 0.049 | T93: 331389.444 | U93: 449962.6456 | V93: 1000 | W93: 181997.0486 | X93: 24.27566496 | Y93: 10947.41809 | AA93: 2762.720202 | AB93: 232068.497 | AD93: NA | AE93: NA | AF93: NA | AG93: 0 | AH93: 0 | AI93: 0 | AJ93: 0 | AK93: 0 | AL93: 0 | AM93: 0 | AO93: NA
A94: 85 | B94: 43.50035321 | C94: NA | D94: NA | E94: NA | L94: NA | M94: NA | N94: NA | O94: NA | P94: NA | Q94: 84 | R94: 43.50035321 | S94: 0.056 | T94: 336936.7656 | U94: 476216.5538 | V94: 1000 | W94: 182997.0486 | X94: 22.98831909 | Y94: 10970.40641 | AA94: 2762.720202 | AB94: 234831.2172 | AD94: NA | AE94: NA | AF94: NA | AG94: 0 | AH94: 0 | AI94: 0 | AJ94: 0 | AK94: 0 | AL94: 0 | AM94: 0 | AO94: NA
A95: 86 | B95: 45.24036734 | C95: NA | D95: NA | E95: NA | L95: NA | M95: NA | N95: NA | O95: NA | P95: NA | Q95: 85 | R95: 45.24036734 | S95: 0.04 | T95: 342530.3148 | U95: 496305.2159 | V95: 1000 | W95: 183997.0486 | X95: 22.10415297 | Y95: 10992.51057 | AA95: 2762.720202 | AB95: 237593.9374 | AD95: NA | AE95: NA | AF95: NA | AG95: 0 | AH95: 0 | AI95: 0 | AJ95: 0 | AK95: 0 | AL95: 0 | AM95: 0 | AO95: NA
A96: 87 | B96: 40.08296546 | C96: NA | D96: NA | E96: NA | L96: NA | M96: NA | N96: NA | O96: NA | P96: NA | Q96: 86 | R96: 40.08296546 | S96: -0.114 | T96: 348170.477 | U96: 440612.4213 | V96: 1000 | W96: 184997.0486 | X96: 24.94825392 | Y96: 11017.45882 | AA96: 2762.720202 | AB96: 240356.6576 | AD96: NA | AE96: NA | AF96: NA | AG96: 0 | AH96: 0 | AI96: 0 | AJ96: 0 | AK96: 0 | AL96: 0 | AM96: 0 | AO96: NA
A97: 88 | B97: 37.67798753 | C97: NA | D97: NA | E97: NA | L97: NA | M97: NA | N97: NA | O97: NA | P97: NA | Q97: 87 | R97: 37.67798753 | S97: -0.06 | T97: 353857.6405 | U97: 415115.676 | V97: 1000 | W97: 185997.0486 | X97: 26.54069566 | Y97: 11043.99951 | AA97: 2762.720202 | AB97: 243119.3778 | AD97: NA | AE97: NA | AF97: NA | AG97: 0 | AH97: 0 | AI97: 0 | AJ97: 0 | AK97: 0 | AL97: 0 | AM97: 0 | AO97: NA
A98: 89 | B98: 36.28390199 | C98: NA | D98: NA | E98: NA | L98: NA | M98: NA | N98: NA | O98: NA | P98: NA | Q98: 88 | R98: 36.28390199 | S98: -0.037 | T98: 359592.197 | U98: 400719.396 | V98: 1000 | W98: 186997.0486 | X98: 27.56043163 | Y98: 11071.55995 | AA98: 2762.720202 | AB98: 245882.098 | AD98: NA | AE98: NA | AF98: NA | AG98: 0 | AH98: 0 | AI98: 0 | AJ98: 0 | AK98: 0 | AL98: 0 | AM98: 0 | AO98: NA
A99: 90 | B99: 34.07058397 | C99: NA | D99: NA | E99: NA | L99: NA | M99: NA | N99: NA | O99: NA | P99: NA | Q99: 89 | R99: 34.07058397 | S99: -0.061 | T99: 365374.5415 | U99: 377214.5129 | V99: 1000 | W99: 187997.0486 | X99: 29.3508324 | Y99: 11100.91078 | AA99: 2762.720202 | AB99: 248644.8182 | AD99: NA | AE99: NA | AF99: NA | AG99: 0 | AH99: 0 | AI99: 0 | AJ99: 0 | AK99: 0 | AL99: 0 | AM99: 0 | AO99: NA
A100: 91 | B100: 38.39754814 | C100: NA | D100: NA | E100: NA | L100: NA | M100: NA | N100: NA | O100: NA | P100: NA | Q100: 90 | R100: 38.39754814 | S100: 0.127 | T100: 371205.0723 | U100: 426247.756 | V100: 1000 | W100: 188997.0486 | X100: 26.04332955 | Y100: 11126.95411 | AA100: 2762.720202 | AB100: 251407.5384 | AD100: NA | AE100: NA | AF100: NA | AG100: 0 | AH100: 0 | AI100: 0 | AJ100: 0 | AK100: 0 | AL100: 0 | AM100: 0 | AO100: =IF(C100="NA","NA",INT(C100/12)-(C100/12)) -> NA
A101: 92 | B101: 37.89838001 | C101: NA | D101: NA | E101: NA | L101: NA | M101: NA | N101: NA | O101: NA | P101: NA | Q101: 91 | R101: 37.89838001 | S101: -0.013 | T101: 377084.1907 | U101: 421693.5352 | V101: 1000 | W101: 189997.0486 | X101: 26.38635213 | Y101: 11153.34046 | AA101: 2762.720202 | AB101: 254170.2586 | AD101: NA | AE101: NA | AF101: NA | AG101: 0 | AH101: 0 | AI101: 0 | AJ101: 0 | AK101: 0 | AL101: 0 | AM101: 0 | AO101: NA
A102: 93 | B102: 35.28339179 | C102: NA | D102: NA | E102: NA | L102: NA | M102: NA | N102: NA | O102: NA | P102: NA | Q102: 92 | R102: 35.28339179 | S102: -0.069 | T102: 383012.3019 | U102: 393527.6812 | V102: 1000 | W102: 190997.0486 | X102: 28.34194643 | Y102: 11181.68241 | AA102: 2762.720202 | AB102: 256932.9788 | AD102: NA | AE102: NA | AF102: NA | AG102: 0 | AH102: 0 | AI102: 0 | AJ102: 0 | AK102: 0 | AL102: 0 | AM102: 0 | AO102: NA
A103: 94 | B103: 35.35395857 | C103: NA | D103: NA | E103: NA | L103: NA | M103: NA | N103: NA | O103: NA | P103: NA | Q103: 93 | R103: 35.35395857 | S103: 0.002 | T103: 388989.8139 | U103: 395316.7366 | V103: 1000 | W103: 191997.0486 | X103: 28.28537568 | Y103: 11209.96778 | AA103: 2762.720202 | AB103: 259695.699 | AD103: NA | AE103: NA | AF103: NA | AG103: 0 | AH103: 0 | AI103: 0 | AJ103: 0 | AK103: 0 | AL103: 0 | AM103: 0 | AO103: NA
A104: 95 | B104: 33.76303044 | C104: NA | D104: NA | E104: NA | L104: NA | M104: NA | N104: NA | O104: NA | P104: NA | Q104: 94 | R104: 33.76303044 | S104: -0.045 | T104: 395017.1386 | U104: 378482.4834 | V104: 15000 | W104: 206997.0486 | X104: 444.2729164 | Y104: 11654.2407 | AA104: 2762.720202 | AB104: 262458.4192 | AD104: NA | AE104: NA | AF104: NA | AG104: 0 | AH104: 0 | AI104: 0 | AJ104: 0 | AK104: 0 | AL104: 0 | AM104: 0 | AO104: NA
A105: 96 | B105: 34.70839529 | C105: NA | D105: NA | E105: NA | L105: NA | M105: NA | N105: NA | O105: NA | P105: NA | Q105: 95 | R105: 34.70839529 | S105: 0.028 | T105: 401094.6909 | U105: 404499.993 | V105: 1000 | W105: 207997.0486 | X105: 28.81147318 | Y105: 11683.05217 | AA105: 2762.720202 | AB105: 265221.1394 | AD105: NA | AE105: NA | AF105: NA | AG105: 0 | AH105: 0 | AI105: 0 | AJ105: 0 | AK105: 0 | AL105: 0 | AM105: 0 | AO105: NA
A106: 97 | B106: 34.70839529 | C106: 0 | D106: 0 | E106: 2762.720202 | L106: 2762.720202 | M106: 2762.720202 | N106: 79.59803902 | O106: 79.59803902 | P106: 2762.720202 | Q106: 96 | R106: 34.70839529 | S106: 0 | T106: 407222.8895 | U106: 405499.993 | V106: 4485.616766 | W106: 212482.6654 | X106: 129.2372271 | Y106: 11812.2894 | AA106: 2762.720202 | AB106: 267983.8596 | AD106: -2762.720202 | AE106: -2762.720202 | AF106: 0 | AG106: 0 | AH106: 0 | AI106: 0 | AJ106: 0 | AK106: 0 | AL106: 0 | AM106: 0 | AO106: 0
A107: 98 | B107: 32.20939083 | C107: 1 | D107: -0.072 | E107: 2785.742871 | L107: 2762.720202 | M107: 5525.440405 | N107: 85.77374894 | O107: 165.371788 | P107: 5326.52455 | Q107: 97 | R107: 32.20939083 | S107: -0.072 | T107: 413402.1565 | U107: 380466.6458 | V107: 15000 | W107: 227482.6654 | X107: 465.7026915 | Y107: 12277.99209 | AA107: 2762.720202 | AB107: 270746.5798 | AD107: -2762.720202 | AE107: -2762.720202 | AF107: 0 | AG107: 0 | AH107: 0 | AI107: 0 | AJ107: 0 | AK107: 0 | AL107: 0 | AM107: 0 | AO107: -0.08333333333
A108: 99 | B108: 31.30752789 | C108: 2 | D108: -0.028 | E108: 5594.700266 | L108: 2762.720202 | M108: 8288.160607 | N108: 88.24459768 | O108: 253.6163856 | P108: 7940.102065 | Q108: 98 | R108: 31.30752789 | S108: -0.028 | T108: 419632.9173 | U108: 384393.5798 | V108: 15000 | W108: 242482.6654 | X108: 479.1179954 | Y108: 12757.11009 | AA108: 2762.720202 | AB108: 273509.3 | AD108: -2762.720202 | AE108: -2762.720202 | AF108: 0 | AG108: 0 | AH108: 0 | AI108: 0 | AJ108: 0 | AK108: 0 | AL108: 0 | AM108: 0 | AO108: -0.1666666667
A109: 100 | B109: 37.06811302 | C109: 3 | D109: 0.184 | E109: 8427.065639 | L109: 2762.720202 | M109: 11050.88081 | N109: 74.5309102 | O109: 328.1472958 | P109: 12163.80105 | Q109: 99 | R109: 37.06811302 | S109: 0.184 | T109: 425915.6012 | U109: 472881.9984 | V109: 1000 | W109: 243482.6654 | X109: 26.9773646 | Y109: 12784.08745 | AA109: 2762.720202 | AB109: 276272.0202 | AD109: -2762.720202 | AE109: -2762.720202 | AF109: 0 | AG109: 0 | AH109: 0 | AI109: 0 | AJ109: 0 | AK109: 0 | AL109: 0 | AM109: 0 | AO109: -0.25
A110: 101 | B110: 45.59377901 | C110: 4 | D110: 0.23 | E110: 11283.03406 | L110: 2762.720202 | M110: 13813.60101 | N110: 60.59423593 | O110: 388.7415318 | P110: 17724.19549 | Q110: 100 | R110: 45.59377901 | S110: 0.23 | T110: 432250.6407 | U110: 582874.8581 | V110: 1000 | W110: 244482.6654 | X110: 21.93281675 | Y110: 12806.02027 | AA110: 2762.720202 | AB110: 279034.7404 | AD110: -2762.720202 | AE110: -2762.720202 | AF110: 0 | AG110: 0 | AH110: 0 | AI110: 0 | AJ110: 0 | AK110: 0 | AL110: 0 | AM110: 0 | AO110: -0.3333333333
A111: 102 | B111: 45.86734168 | C111: 5 | D111: 0.006 | E111: 14162.80221 | L111: 2762.720202 | M111: 16576.32121 | N111: 60.2328389 | O111: 448.9743707 | P111: 20593.26087 | Q111: 101 | R111: 45.86734168 | S111: 0.006 | T111: 438638.4723 | U111: 587378.1072 | V111: 1000 | W111: 245482.6654 | X111: 21.80200472 | Y111: 12827.82227 | AA111: 2762.720202 | AB111: 281797.4607 | AD111: -2762.720202 | AE111: -2762.720202 | AF111: 0 | AG111: 0 | AH111: 0 | AI111: 0 | AJ111: 0 | AK111: 0 | AL111: 0 | AM111: 0 | AO111: -0.4166666667
A112: 103 | B112: 47.4268313 | C112: 6 | D112: 0.034 | E112: 17066.56843 | L112: 2762.720202 | M112: 19339.04142 | N112: 58.25226199 | O112: 507.2266327 | P112: 24056.15194 | Q112: 102 | R112: 47.4268313 | S112: 0.034 | T112: 445079.5358 | U112: 608382.9629 | V112: 1000 | W112: 246482.6654 | X112: 21.08511095 | Y112: 12848.90738 | AA112: 2762.720202 | AB112: 284560.1809 | AD112: -2762.720202 | AE112: -2762.720202 | AF112: 0 | AG112: 0 | AH112: 0 | AI112: 0 | AJ112: 0 | AK112: 0 | AL112: 0 | AM112: 0 | AO112: -0.5
A113: 104 | B113: 46.668002 | C113: 7 | D113: -0.016 | E113: 19994.53271 | L113: 2762.720202 | M113: 22101.76162 | N113: 59.19945325 | O113: 566.4260859 | P113: 26433.97371 | Q113: 103 | R113: 46.668002 | S113: -0.016 | T113: 451574.2748 | U113: 599632.8355 | V113: 1000 | W113: 247482.6654 | X113: 21.42795828 | Y113: 12870.33534 | AA113: 2762.720202 | AB113: 287322.9011 | AD113: -2762.720202 | AE113: -2762.720202 | AF113: 0 | AG113: 0 | AH113: 0 | AI113: 0 | AJ113: 0 | AK113: 0 | AL113: 0 | AM113: 0 | AO113: -0.5833333333
A114: 105 | B114: 52.08149023 | C114: 8 | D114: 0.116 | E114: 22946.89668 | L114: 2762.720202 | M114: 24864.48182 | N114: 53.04610506 | O114: 619.472191 | P114: 32263.03486 | Q114: 104 | R114: 52.08149023 | S114: 0.116 | T114: 458123.1366 | U114: 670306.2444 | V114: 1000 | W114: 248482.6654 | X114: 19.20067946 | Y114: 12889.53602 | AA114: 2762.720202 | AB114: 290085.6213 | AD114: -2762.720202 | AE114: -2762.720202 | AF114: 0 | AG114: 0 | AH114: 0 | AI114: 0 | AJ114: 0 | AK114: 0 | AL114: 0 | AM114: 0 | AO114: -0.6666666667
A115: 106 | B115: 51.40443086 | C115: 9 | D115: -0.013 | E115: 25923.86369 | L115: 2762.720202 | M115: 27627.20202 | N115: 53.74478729 | O115: 673.2169783 | P115: 34606.33561 | Q115: 105 | R115: 51.40443086 | S115: -0.013 | T115: 464726.5723 | U115: 662579.2632 | V115: 1000 | W115: 249482.6654 | X115: 19.45357595 | Y115: 12908.9896 | AA115: 2762.720202 | AB115: 292848.3415 | AD115: -2762.720202 | AE115: -2762.720202 | AF115: 0 | AG115: 0 | AH115: 0 | AI115: 0 | AJ115: 0 | AK115: 0 | AL115: 0 | AM115: 0 | AO115: -0.75
A116: 107 | B116: 55.56818976 | C116: 10 | D116: 0.081 | E116: 28925.63876 | L116: 2762.720202 | M116: 30389.92223 | N116: 49.71765707 | O116: 722.9346353 | P116: 40172.169 | Q116: 106 | R116: 55.56818976 | S116: 0.081 | T116: 471385.0366 | U116: 717329.1835 | V116: 1000 | W116: 250482.6654 | X116: 17.99590745 | Y116: 12926.9855 | AA116: 2762.720202 | AB116: 295611.0617 | AD116: -2762.720202 | AE116: -2762.720202 | AF116: 0 | AG116: 0 | AH116: 0 | AI116: 0 | AJ116: 0 | AK116: 0 | AL116: 0 | AM116: 0 | AO116: -0.8333333333
A117: 108 | B117: 52.34523475 | C117: 11 | D117: -0.058 | E117: 31952.42862 | L117: 2762.720202 | M117: 33152.64243 | N117: 52.77882916 | O117: 775.7134645 | P117: 40604.9034 | Q117: 107 | R117: 52.34523475 | S117: -0.058 | T117: 478098.9881 | U117: 676666.0909 | V117: 1000 | W117: 251482.6654 | X117: 19.10393572 | Y117: 12946.08944 | AA117: 2762.720202 | AB117: 298373.7819 | AD117: -2762.720202 | AE117: -2762.720202 | AF117: 0 | AG117: 0 | AH117: 0 | AI117: 0 | AJ117: 0 | AK117: 0 | AL117: 0 | AM117: 0 | AO117: -0.9166666667
A118: 109 | B118: 53.33979421 | C118: 12 | D118: 0.019 | E118: 35004.44173 | L118: 3041.754943 | M118: 36194.39737 | N118: 57.02599696 | O118: 832.7394615 | P118: 44418.15151 | Q118: 108 | R118: 53.33979421 | S118: 0.019 | T118: 484868.8892 | U118: 690541.7466 | V118: 1000 | W118: 252482.6654 | X118: 18.74772887 | Y118: 12964.83717 | AA118: 2762.720202 | AB118: 301136.5021 | AD118: -2762.720202 | AE118: -2762.720202 | AF118: 0 | AG118: 0 | AH118: 0 | AI118: 0 | AJ118: 0 | AK118: 0 | AL118: 0 | AM118: 0 | AO118: 0
A119: 110 | B119: 52.16631874 | C119: 13 | D119: -0.022 | E119: 38081.88828 | L119: 3041.754943 | M119: 39236.15232 | N119: 58.30879035 | O119: 891.0482518 | P119: 46482.70712 | Q119: 109 | R119: 52.16631874 | S119: -0.022 | T119: 491695.2061 | U119: 676327.8282 | V119: 1000 | W119: 253482.6654 | X119: 19.16945692 | Y119: 12984.00663 | AA119: 2762.720202 | AB119: 303899.2223 | AD119: -2762.720202 | AE119: -2762.720202 | AF119: 0 | AG119: 0 | AH119: 0 | AI119: 0 | AJ119: 0 | AK119: 0 | AL119: 0 | AM119: 0 | AO119: -0.08333333333
A120: 111 | B120: 56.07879265 | C120: 14 | D120: 0.075 | E120: 41184.98022 | L120: 3041.754943 | M120: 42277.90726 | N120: 54.24073521 | O120: 945.288987 | P120: 53010.66509 | Q120: 110 | R120: 56.07879265 | S120: 0.075 | T120: 498578.409 | U120: 728127.4153 | V120: 1000 | W120: 254482.6654 | X120: 17.83205295 | Y120: 13001.83868 | AA120: 2762.720202 | AB120: 306661.9425 | AD120: -2762.720202 | AE120: -2762.720202 | AF120: 0 | AG120: 0 | AH120: 0 | AI120: 0 | AJ120: 0 | AK120: 0 | AL120: 0 | AM120: 0 | AO120: -0.1666666667
A121: 112 | B121: 61.35019915 | C121: 15 | D121: 0.094 | E121: 44313.93126 | L121: 3041.754943 | M121: 45319.6622 | N121: 49.58019672 | O121: 994.8691837 | P121: 61035.42256 | Q121: 111 | R121: 61.35019915 | S121: 0.094 | T121: 505518.972 | U121: 797665.3923 | V121: 1000 | W121: 255482.6654 | X121: 16.29986559 | Y121: 13018.13854 | AA121: 2762.720202 | AB121: 309424.6627 | AD121: -2762.720202 | AE121: -2762.720202 | AF121: 0 | AG121: 0 | AH121: 0 | AI121: 0 | AJ121: 0 | AK121: 0 | AL121: 0 | AM121: 0 | AO121: -0.25
A122: 113 | B122: 54.35627645 | C122: 16 | D122: -0.114 | E122: 47468.9569 | L122: 3041.754943 | M122: 48361.41714 | N122: 55.95958998 | O122: 1050.828774 | P122: 57119.13933 | Q122: 112 | R122: 54.35627645 | S122: -0.114 | T122: 512517.373 | U122: 707617.5376 | V122: 1000 | W122: 256482.6654 | X122: 18.39713949 | Y122: 13036.53568 | AA122: 2762.720202 | AB122: 312187.3829 | AD122: -2762.720202 | AE122: -2762.720202 | AF122: 0 | AG122: 0 | AH122: 0 | AI122: 0 | AJ122: 0 | AK122: 0 | AL122: 0 | AM122: 0 | AO122: -0.3333333333
A123: 114 | B123: 62.29229281 | C123: 17 | D123: 0.146 | E123: 50650.27441 | L123: 3041.754943 | M123: 51403.17209 | N123: 48.83035775 | O123: 1099.659131 | P123: 68500.28861 | Q123: 113 | R123: 62.29229281 | S123: 0.146 | T123: 519574.0939 | U123: 812075.6981 | V123: 1000 | W123: 257482.6654 | X123: 16.05335034 | Y123: 13052.58903 | AA123: 2762.720202 | AB123: 314950.1031 | AD123: -2762.720202 | AE123: -2762.720202 | AF123: 0 | AG123: 0 | AH123: 0 | AI123: 0 | AJ123: 0 | AK123: 0 | AL123: 0 | AM123: 0 | AO123: -0.4166666667
A124: 115 | B124: 56.3122327 | C124: 18 | D124: -0.096 | E124: 53858.1029 | L124: 3041.754943 | M124: 54444.92703 | N124: 54.01588246 | O124: 1153.675014 | P124: 64966.01585 | Q124: 114 | R124: 56.3122327 | S124: -0.096 | T124: 526689.6209 | U124: 735020.4311 | V124: 1000 | W124: 258482.6654 | X124: 17.75813091 | Y124: 13070.34717 | AA124: 2762.720202 | AB124: 317712.8233 | AD124: -2762.720202 | AE124: -2762.720202 | AF124: 0 | AG124: 0 | AH124: 0 | AI124: 0 | AJ124: 0 | AK124: 0 | AL124: 0 | AM124: 0 | AO124: -0.5
A125: 116 | B125: 57.66372629 | C125: 19 | D125: 0.024 | E125: 57092.66329 | L125: 3041.754943 | M125: 57486.68197 | N125: 52.74988522 | O125: 1206.424899 | P125: 69566.95517 | Q125: 115 | R125: 57.66372629 | S125: 0.024 | T125: 533864.444 | U125: 753684.9214 | V125: 1000 | W125: 259482.6654 | X125: 17.34192471 | Y125: 13087.68909 | AA125: 2762.720202 | AB125: 320475.5435 | AD125: -2762.720202 | AE125: -2762.720202 | AF125: 0 | AG125: 0 | AH125: 0 | AI125: 0 | AJ125: 0 | AK125: 0 | AL125: 0 | AM125: 0 | AO125: -0.5833333333
A126: 117 | B126: 58.81700081 | C126: 20 | D126: 0.02 | E126: 60354.17836 | L126: 3041.754943 | M126: 60528.43692 | N126: 51.71557374 | O126: 1258.140473 | P126: 74000.04922 | Q126: 116 | R126: 58.81700081 | S126: 0.02 | T126: 541099.0572 | U126: 769778.6199 | V126: 1000 | W126: 260482.6654 | X126: 17.00188697 | Y126: 13104.69098 | AA126: 2762.720202 | AB126: 323238.2637 | AD126: -2762.720202 | AE126: -2762.720202 | AF126: 0 | AG126: 0 | AH126: 0 | AI126: 0 | AJ126: 0 | AK126: 0 | AL126: 0 | AM126: 0 | AO126: -0.6666666667
A127: 118 | B127: 58.69936681 | C127: 21 | D127: -0.002 | E127: 63642.87271 | L127: 3041.754943 | M127: 63570.19186 | N127: 51.81921217 | O127: 1309.959685 | P127: 76893.80406 | Q127: 117 | R127: 58.69936681 | S127: -0.002 | T127: 548393.9589 | U127: 769237.0626 | V127: 1000 | W127: 261482.6654 | X127: 17.03595889 | Y127: 13121.72694 | AA127: 2762.720202 | AB127: 326000.9839 | AD127: -2762.720202 | AE127: -2762.720202 | AF127: 0 | AG127: 0 | AH127: 0 | AI127: 0 | AJ127: 0 | AK127: 0 | AL127: 0 | AM127: 0 | AO127: -0.75
A128: 119 | B128: 54.23821493 | C128: 22 | D128: -0.076 | E128: 66958.97286 | L128: 3041.754943 | M128: 66611.9468 | N128: 56.08139845 | O128: 1366.041084 | P128: 74091.6299 | Q128: 118 | R128: 54.23821493 | S128: -0.076 | T128: 555749.6514 | U128: 711699.0459 | V128: 1000 | W128: 262482.6654 | X128: 18.43718495 | Y128: 13140.16412 | AA128: 2762.720202 | AB128: 328763.7041 | AD128: -2762.720202 | AE128: -2762.720202 | AF128: 0 | AG128: 0 | AH128: 0 | AI128: 0 | AJ128: 0 | AK128: 0 | AL128: 0 | AM128: 0 | AO128: -0.8333333333
A129: 120 | B129: 61.23494466 | C129: 23 | D129: 0.129 | E129: 70302.70717 | L129: 3041.754943 | M129: 69653.70174 | N129: 49.67351501 | O129: 1415.714599 | P129: 86691.2051 | Q129: 119 | R129: 61.23494466 | S129: 0.129 | T129: 563166.6414 | U129: 804637.2228 | V129: 1000 | W129: 263482.6654 | X129: 16.33054468 | Y129: 13156.49467 | AA129: 2762.720202 | AB129: 331526.4243 | AD129: -2762.720202 | AE129: -2762.720202 | AF129: 0 | AG129: 0 | AH129: 0 | AI129: 0 | AJ129: 0 | AK129: 0 | AL129: 0 | AM129: 0 | AO129: -0.9166666667
A130: 121 | B130: 53.76428141 | C130: 24 | D130: -0.122 | E130: 73674.30593 | L130: 3348.972192 | M130: 73002.67394 | N130: 62.28990892 | O130: 1478.004507 | P130: 79463.85027 | Q130: 120 | R130: 53.76428141 | S130: -0.122 | T130: 570645.4396 | U130: 707349.4816 | V130: 1000 | W130: 264482.6654 | X130: 18.59970921 | Y130: 13175.09437 | AA130: 2762.720202 | AB130: 334289.1445 | AD130: -2762.720202 | AE130: -2762.720202 | AF130: 0 | AG130: 0 | AH130: 0 | AI130: 0 | AJ130: 0 | AK130: 0 | AL130: 0 | AM130: 0 | AO130: 0
A131: 122 | B131: 53.2266386 | C131: 25 | D131: -0.01 | E131: 77074.00135 | L131: 3348.972192 | M131: 76351.64613 | N131: 62.91909992 | O131: 1540.923607 | P131: 82018.18396 | Q131: 121 | R131: 53.2266386 | S131: -0.01 | T131: 578186.5611 | U131: 701265.9868 | V131: 1000 | W131: 265482.6654 | X131: 18.78758506 | Y131: 13193.88196 | AA131: 2762.720202 | AB131: 337051.8647 | AD131: -2762.720202 | AE131: -2762.720202 | AF131: 0 | AG131: 0 | AH131: 0 | AI131: 0 | AJ131: 0 | AK131: 0 | AL131: 0 | AM131: 0 | AO131: -0.08333333333
A132: 123 | B132: 61.47676758 | C132: 26 | D132: 0.155 | E132: 80502.02757 | L132: 3348.972192 | M132: 79700.61832 | N132: 54.47541118 | O132: 1595.399019 | P132: 98079.97466 | Q132: 122 | R132: 61.47676758 | S132: 0.155 | T132: 585790.5253 | U132: 811117.2147 | V132: 1000 | W132: 266482.6654 | X132: 16.26630741 | Y132: 13210.14827 | AA132: 2762.720202 | AB132: 339814.5849 | AD132: -2762.720202 | AE132: -2762.720202 | AF132: 0 | AG132: 0 | AH132: 0 | AI132: 0 | AJ132: 0 | AK132: 0 | AL132: 0 | AM132: 0 | AO132: -0.1666666667
A133: 124 | B133: 62.5833494 | C133: 27 | D133: 0.018 | E133: 83958.62067 | L133: 3348.972192 | M133: 83049.59051 | N133: 53.51219173 | O133: 1648.91121 | P133: 103194.3864 | Q133: 123 | R133: 62.5833494 | S133: 0.018 | T133: 593457.8559 | U133: 826735.3246 | V133: 1000 | W133: 267482.6654 | X133: 15.97869097 | Y133: 13226.12696 | AA133: 2762.720202 | AB133: 342577.3051 | AD133: -2762.720202 | AE133: -2762.720202 | AF133: 0 | AG133: 0 | AH133: 0 | AI133: 0 | AJ133: 0 | AK133: 0 | AL133: 0 | AM133: 0 | AO133: -0.25
A134: 125 | B134: 63.02143284 | C134: 28 | D134: 0.007 | E134: 87444.01871 | L134: 3348.972192 | M134: 86398.56271 | N134: 53.14021026 | O134: 1702.051421 | P134: 107265.7193 | Q134: 124 | R134: 63.02143284 | S134: 0.007 | T134: 601189.0809 | U134: 833529.4719 | V134: 1000 | W134: 268482.6654 | X134: 15.86761765 | Y134: 13241.99458 | AA134: 2762.720202 | AB134: 345340.0253 | AD134: -2762.720202 | AE134: -2762.720202 | AF134: 0 | AG134: 0 | AH134: 0 | AI134: 0 | AJ134: 0 | AK134: 0 | AL134: 0 | AM134: 0 | AO134: -0.3333333333
A135: 126 | B135: 66.92876168 | C135: 29 | D135: 0.062 | E135: 90958.46174 | L135: 3348.972192 | M135: 89747.5349 | N135: 50.03786277 | O135: 1752.089283 | P135: 117265.1661 | Q135: 125 | R135: 66.92876168 | S135: 0.062 | T135: 608984.7328 | U135: 886270.2991 | V135: 1000 | W135: 269482.6654 | X135: 14.94125956 | Y135: 13256.93584 | AA135: 2762.720202 | AB135: 348102.7455 | AD135: -2762.720202 | AE135: -2762.720202 | AF135: 0 | AG135: 0 | AH135: 0 | AI135: 0 | AJ135: 0 | AK135: 0 | AL135: 0 | AM135: 0 | AO135: -0.4166666667
A136: 127 | B136: 86.47196009 | C136: 30 | D136: 0.292 | E136: 94502.19179 | L136: 3348.972192 | M136: 93096.50709 | N136: 38.72899595 | O136: 1790.818279 | P136: 154855.5668 | Q136: 126 | R136: 86.47196009 | S136: 0.292 | T136: 616845.3485 | U136: 1146353.226 | V136: 1000 | W136: 270482.6654 | X136: 11.56444238 | Y136: 13268.50028 | AA136: 2762.720202 | AB136: 350865.4657 | AD136: -2762.720202 | AE136: -2762.720202 | AF136: 0 | AG136: 0 | AH136: 0 | AI136: 0 | AJ136: 0 | AK136: 0 | AL136: 0 | AM136: 0 | AO136: -0.5
A137: 128 | B137: 98.1456747 | C137: 31 | D137: 0.135 | E137: 98075.45293 | L137: 3348.972192 | M137: 96445.47928 | N137: 34.12246339 | O137: 1824.940743 | P137: 179110.0405 | Q137: 127 | R137: 98.1456747 | S137: 0.135 | T137: 624771.4692 | U137: 1302245.912 | V137: 1000 | W137: 271482.6654 | X137: 10.18893602 | Y137: 13278.68921 | AA137: 2762.720202 | AB137: 353628.1859 | AD137: -2762.720202 | AE137: -2762.720202 | AF137: 0 | AG137: 0 | AH137: 0 | AI137: 0 | AJ137: 0 | AK137: 0 | AL137: 0 | AM137: 0 | AO137: -0.5833333333
A138: 129 | B138: 111.6897778 | C138: =IF(AND(A138>=startm,A138<=endm),A138-startm,"NA") -> 32 | D138: 0.138 | E138: =IF(C138="NA","NA",IF(C138=0,typical,(1+return/12)*typical*((1+return/12)^C138-1)/(return/12))) -> 101678.4912 | L138: =IF(C138="NA","NA",IF(C138=0,typical,IF(L137="NA",typical,IF(INT(C138/12)-(C138/12)=0,L137*(1+gsip1),L137)))) -> 3348.972192 | M138: 99794.45147 | N138: 29.98458998 | O138: 1854.925333 | P138: 207176.1983 | Q138: 128 | R138: 111.6897778 | S138: 0.138 | T138: 632763.641 | U138: 1483093.848 | V138: 1000 | W138: 272482.6654 | X138: =V138/R138 -> 8.953370842 | Y138: 13287.64258 | AA138: =typical -> 2762.720202 | AB138: 356390.9061 | AD138: =IF(A138=endm,E138,IF(C138="NA","NA",-typical)) -> -2762.720202 | AE138: =IF(A138=endm,P138,IF(C138="NA","NA",-typical)) -> -2762.720202 | AF138: =IF(A138=endm,F138,IF(C138="NA","NA",-G138)) -> 0 | AG138: =IF(A138=endm,O138,0) -> 0 | AH138: =IF(A138=endm,J138,0) -> 0 | AI138: =IF(A138=endm,E138,0) -> 0 | AJ138: =IF(A138=endm,P138,0) -> 0 | AK138: =IF(A138=endm,F138,0) -> 0 | AL138: =IF(A138=endm,M138,0) -> 0 | AM138: =IF(A138=endm,H138,0) -> 0 | AO138: -0.6666666667
A139: 130 | B139: 101.8610774 | C139: 33 | D139: =IF(C139="NA","NA",IF(C139=0,0,(B139-B138)/B138)) -> -0.088 | E139: 105311.5549 | L139: 3348.972192 | M139: 103143.4237 | N139: =IF(C139="NA","NA",L139/B139) -> 32.87783989 | O139: 1887.803172 | P139: =IF(C139="NA","NA",O139*B139) -> 192293.665 | Q139: 129 | R139: 101.8610774 | S139: -0.088 | T139: =(1+return/12)*typical*((1+return/12)^Q139-1)/(return/12) -> 640822.4142 | U139: 1353493.589 | V139: =IF((U139-T139)>0,IF(typical-(U139-T139)<min,min,typical-(U139-T139)),IF((U139-T139)<0,IF(typical-(U139-T139)>max,max,typical-(U139-T139)),IF((T139-U139)=0,min,))) -> 1000 | W139: =W138+V139 -> 273482.6654 | X139: 9.81729259 | Y139: 13297.45988 | AA139: 2762.720202 | AB139: 359153.6263 | AD139: -2762.720202 | AE139: -2762.720202 | AF139: 0 | AG139: 0 | AH139: 0 | AI139: 0 | AJ139: 0 | AK139: 0 | AL139: 0 | AM139: 0 | AO139: -0.75
A140: =A139+1 -> 131 | B140: 94.11963548 | C140: 34 | D140: -0.076 | E140: 108974.894 | L140: 3348.972192 | M140: 106492.3959 | N140: 35.5820778 | O140: 1923.38525 | P140: 181028.3187 | Q140: =Q139+1 -> 130 | R140: 94.11963548 | S140: -0.076 | T140: 648948.3439 | U140: 1251552.077 | V140: 1000 | W140: 274482.6654 | X140: 10.62477553 | Y140: =Y139+X140 -> 13308.08465 | AA140: 2762.720202 | AB140: =AB139+AA140 -> 361916.3465 | AD140: -2762.720202 | AE140: -2762.720202 | AF140: 0 | AG140: 0 | AH140: 0 | AI140: 0 | AJ140: 0 | AK140: 0 | AL140: 0 | AM140: 0 | AO140: -0.8333333333
A141: 132 | B141: 82.44880068 | C141: 35 | D141: -0.124 | E141: 112668.761 | L141: 3348.972192 | M141: 109841.3681 | N141: 40.61881027 | O141: 1964.004061 | P141: 161929.7793 | Q141: 131 | R141: 82.44880068 | S141: -0.124 | T141: 657141.9896 | U141: 1097235.619 | V141: 1000 | W141: 275482.6654 | X141: 12.12873919 | Y141: 13320.21339 | AA141: 2762.720202 | AB141: 364679.0667 | AD141: -2762.720202 | AE141: -2762.720202 | AF141: 0 | AG141: 0 | AH141: 0 | AI141: 0 | AJ141: 0 | AK141: 0 | AL141: 0 | AM141: 0 | AO141: -0.9166666667
A142: 133 | B142: 77.25452624 | C142: 36 | D142: -0.063 | E142: 116393.4102 | L142: 3687.218384 | M142: 113528.5864 | N142: 47.72818582 | O142: 2011.732246 | P142: 155415.4216 | Q142: 132 | R142: 77.25452624 | S142: =(R142-R141)/R141 -> -0.063 | T142: 665403.9157 | U142: =(U141+V141)*(1+S142) -> 1029046.775 | V142: 1000 | W142: 276482.6654 | X142: 12.94422539 | Y142: 13333.15762 | AA142: 2762.720202 | AB142: 367441.7869 | AD142: -2762.720202 | AE142: -2762.720202 | AF142: 0 | AG142: 0 | AH142: 0 | AI142: 0 | AJ142: 0 | AK142: 0 | AL142: 0 | AM142: 0 | AO142: 0
A143: 134 | B143: 95.95012159 | C143: 37 | D143: 0.242 | E143: 120149.0982 | L143: 3687.218384 | M143: 117215.8048 | N143: 38.428491 | O143: 2050.160737 | P143: 196713.172 | Q143: 133 | R143: 95.95012159 | S143: 0.242 | T143: 673734.6912 | U143: 1279318.095 | V143: 1000 | W143: 277482.6654 | X143: 10.42208163 | Y143: 13343.5797 | AA143: 2762.720202 | AB143: 370204.5071 | AD143: -2762.720202 | AE143: -2762.720202 | AF143: 0 | AG143: 0 | AH143: 0 | AI143: 0 | AJ143: 0 | AK143: 0 | AL143: 0 | AM143: 0 | AO143: -0.08333333333
A144: 135 | B144: 91.82426636 | C144: 38 | D144: -0.043 | E144: 123936.0835 | L144: 3687.218384 | M144: 120903.0232 | N144: 40.155163 | O144: 2090.3159 | P144: 191941.724 | Q144: 134 | R144: 91.82426636 | S144: -0.043 | T144: 682134.8899 | U144: 1225264.417 | V144: 1000 | W144: 278482.6654 | X144: 10.89036743 | Y144: 13354.47007 | AA144: 2762.720202 | AB144: 372967.2273 | AD144: -2762.720202 | AE144: -2762.720202 | AF144: 0 | AG144: 0 | AH144: 0 | AI144: 0 | AJ144: 0 | AK144: 0 | AL144: 0 | AM144: 0 | AO144: -0.1666666667
A145: 136 | B145: 97.05824954 | C145: 39 | D145: 0.057 | E145: 127754.6271 | L145: 3687.218384 | M145: 124590.2416 | N145: 37.9897474 | O145: 2128.305648 | P145: 206569.6207 | Q145: 135 | R145: 97.05824954 | S145: 0.057 | T145: 690605.0902 | U145: 1296161.488 | V145: 1000 | W145: 279482.6654 | X145: 10.30309123 | Y145: 13364.77316 | AA145: 2762.720202 | AB145: 375729.9475 | AD145: -2762.720202 | AE145: -2762.720202 | AF145: 0 | AG145: 0 | AH145: 0 | AI145: 0 | AJ145: 0 | AK145: 0 | AL145: 0 | AM145: 0 | AO145: -0.25
A146: 137 | B146: 102.687628 | C146: 40 | D146: 0.058 | E146: 131604.9919 | L146: 3687.218384 | M146: 128277.46 | N146: 35.90713365 | O146: 2164.212781 | P146: 222237.8771 | Q146: 136 | R146: 102.687628 | S146: 0.058 | T146: 699145.8754 | U146: 1372396.855 | V146: 1000 | W146: 280482.6654 | X146: 9.738271487 | Y146: 13374.51143 | AA146: 2762.720202 | AB146: 378492.6677 | AD146: -2762.720202 | AE146: -2762.720202 | AF146: 0 | AG146: 0 | AH146: 0 | AI146: 0 | AJ146: 0 | AK146: 0 | AL146: 0 | AM146: 0 | AO146: -0.3333333333
A147: 138 | B147: 99.70968681 | C147: 41 | D147: -0.029 | E147: 135487.443 | L147: 3687.218384 | M147: 131964.6784 | N147: 36.97954032 | O147: 2201.192322 | P147: 219480.197 | Q147: 137 | R147: 99.70968681 | S147: -0.029 | T147: 707757.8339 | U147: 1333568.346 | V147: 1000 | W147: 281482.6654 | X147: 10.02911585 | Y147: 13384.54054 | AA147: 2762.720202 | AB147: 381255.3879 | AD147: -2762.720202 | AE147: -2762.720202 | AF147: 0 | AG147: 0 | AH147: 0 | AI147: 0 | AJ147: 0 | AK147: 0 | AL147: 0 | AM147: 0 | AO147: -0.4166666667
A148: 139 | B148: 128.2266572 | C148: 42 | D148: 0.286 | E148: 139402.2479 | L148: 3687.218384 | M148: 135651.8967 | N148: 28.75547459 | O148: 2229.947796 | P148: 285938.7517 | Q148: 138 | R148: 128.2266572 | S148: 0.286 | T148: 716441.5588 | U148: 1716254.893 | V148: 1000 | W148: 282482.6654 | X148: 7.798690394 | Y148: 13392.33924 | AA148: 2762.720202 | AB148: 384018.1081 | AD148: -2762.720202 | AE148: -2762.720202 | AF148: 0 | AG148: 0 | AH148: 0 | AI148: 0 | AJ148: 0 | AK148: 0 | AL148: 0 | AM148: 0 | AO148: -0.5
A149: 140 | B149: 141.049323 | C149: 43 | D149: 0.1 | E149: 143349.6762 | L149: 3687.218384 | M149: 139339.1151 | N149: 26.14134053 | O149: 2256.089137 | P149: 318219.8453 | Q149: 139 | R149: 141.049323 | S149: 0.1 | T149: 725197.648 | U149: 1888980.382 | V149: 1000 | W149: 283482.6654 | X149: 7.08971854 | Y149: 13399.42895 | AA149: 2762.720202 | AB149: 386780.8283 | AD149: -2762.720202 | AE149: -2762.720202 | AF149: 0 | AG149: 0 | AH149: 0 | AI149: 0 | AJ149: 0 | AK149: 0 | AL149: 0 | AM149: 0 | AO149: -0.5833333333
A150: 141 | B150: 148.1017891 | C150: 44 | D150: 0.05 | E150: 147329.9997 | L150: 3687.218384 | M150: 143026.3335 | N150: 24.89651479 | O150: 2280.985652 | P150: 337818.0559 | Q150: 140 | R150: 148.1017891 | S150: 0.05 | T150: 734026.7046 | U150: 1984479.401 | V150: 1000 | W150: 284482.6654 | X150: 6.752112895 | Y150: 13406.18107 | AA150: 2762.720202 | AB150: 389543.5485 | AD150: -2762.720202 | AE150: -2762.720202 | AF150: 0 | AG150: 0 | AH150: 0 | AI150: 0 | AJ150: 0 | AK150: 0 | AL150: 0 | AM150: 0 | AO150: -0.6666666667
A151: 142 | B151: 148.3979927 | C151: 45 | D151: 0.002 | E151: 151343.4926 | L151: 3687.218384 | M151: =IF(C151="NA","NA",IF(M150="NA",L151,M150+L151)) -> 146713.5519 | N151: 24.84682115 | O151: =IF(C151="NA","NA",IF(O150="NA",N151,O150+N151)) -> 2305.832473 | P151: 342180.9104 | Q151: 141 | R151: 148.3979927 | S151: 0.002 | T151: 742929.3366 | U151: 1989450.36 | V151: 1000 | W151: 285482.6654 | X151: 6.738635624 | Y151: 13412.9197 | AA151: 2762.720202 | AB151: 392306.2687 | AD151: -2762.720202 | AE151: -2762.720202 | AF151: 0 | AG151: 0 | AH151: 0 | AI151: 0 | AJ151: 0 | AK151: 0 | AL151: 0 | AM151: 0 | AO151: -0.75
A152: 143 | B152: 149.4367786 | C152: 46 | D152: 0.007 | E152: 155390.4312 | L152: 3687.218384 | M152: 150400.7703 | N152: 24.67410244 | O152: 2330.506575 | P152: 348263.3952 | Q152: 142 | R152: 149.4367786 | S152: 0.007 | T152: 751906.1573 | U152: 2004383.512 | V152: 1000 | W152: 286482.6654 | X152: 6.691793072 | Y152: 13419.6115 | AA152: 2762.720202 | AB152: 395068.989 | AD152: -2762.720202 | AE152: -2762.720202 | AF152: 0 | AG152: 0 | AH152: 0 | AI152: 0 | AJ152: 0 | AK152: 0 | AL152: 0 | AM152: 0 | AO152: -0.8333333333
A153: 144 | B153: 149.885089 | C153: 47 | D153: 0.003 | E153: 159471.0943 | L153: 3687.218384 | M153: 154087.9887 | N153: 24.60030153 | O153: 2355.106877 | P153: 352995.4038 | Q153: 143 | R153: 149.885089 | S153: 0.003 | T153: 760957.7848 | U153: 2011399.663 | V153: 1000 | W153: 287482.6654 | X153: 6.671777739 | Y153: 13426.28327 | AA153: 2762.720202 | AB153: 397831.7092 | AD153: -2762.720202 | AE153: -2762.720202 | AF153: 0 | AG153: 0 | AH153: 0 | AI153: 0 | AJ153: 0 | AK153: 0 | AL153: 0 | AM153: 0 | AO153: -0.9166666667
A154: 145 | B154: 180.7614173 | C154: 48 | D154: 0.206 | E154: 163585.763 | L154: 4059.62744 | M154: 158147.6161 | N154: 22.45848423 | O154: 2377.565361 | P154: 429772.0844 | Q154: 144 | R154: 180.7614173 | S154: 0.206 | T154: 770084.8426 | U154: 2426953.993 | V154: 1000 | W154: 288482.6654 | X154: 5.532154013 | Y154: 13431.81543 | AA154: 2762.720202 | AB154: 400594.4294 | AD154: -2762.720202 | AE154: -2762.720202 | AF154: 0 | AG154: 0 | AH154: 0 | AI154: 0 | AJ154: 0 | AK154: 0 | AL154: 0 | AM154: 0 | AO154: 0
A155: 146 | B155: 236.9782181 | C155: 49 | D155: 0.311 | E155: 167734.7205 | L155: 4059.62744 | M155: 162207.2435 | N155: 17.13080414 | O155: 2394.696165 | P155: 567490.83 | Q155: 145 | R155: 236.9782181 | S155: 0.311 | T155: 779287.9591 | U155: 3183047.685 | V155: 1000 | W155: 289482.6654 | X155: 4.219797111 | Y155: 13436.03522 | AA155: 2762.720202 | AB155: 403357.1496 | AD155: -2762.720202 | AE155: -2762.720202 | AF155: 0 | AG155: 0 | AH155: 0 | AI155: 0 | AJ155: 0 | AK155: 0 | AL155: 0 | AM155: 0 | AO155: -0.08333333333
A156: 147 | B156: 336.5090697 | C156: 50 | D156: 0.42 | E156: 171918.2528 | L156: 4059.62744 | M156: 166266.871 | N156: 12.06394658 | O156: 2406.760112 | P156: 809896.6061 | Q156: 146 | R156: 336.5090697 | S156: 0.42 | T156: 788567.7683 | U156: 4521347.713 | V156: 1000 | W156: 290482.6654 | X156: 2.971688106 | Y156: 13439.00691 | AA156: 2762.720202 | AB156: 406119.8698 | AD156: -2762.720202 | AE156: -2762.720202 | AF156: 0 | AG156: 0 | AH156: 0 | AI156: 0 | AJ156: 0 | AK156: 0 | AL156: 0 | AM156: 0 | AO156: -0.1666666667
A157: 148 | B157: 305.2137262 | C157: 51 | D157: -0.093 | E157: 176136.6477 | L157: 4059.62744 | M157: 170326.4984 | N157: 13.30093339 | O157: 2420.061045 | P157: 738635.8492 | Q157: 147 | R157: 305.2137262 | S157: -0.093 | T157: 797924.9093 | U157: 4101769.376 | V157: 1000 | W157: 291482.6654 | X157: 3.27639262 | Y157: 13442.28331 | AA157: 2762.720202 | AB157: 408882.59 | AD157: -2762.720202 | AE157: -2762.720202 | AF157: 0 | AG157: 0 | AH157: 0 | AI157: 0 | AJ157: 0 | AK157: 0 | AL157: 0 | AM157: 0 | AO157: -0.25
A158: 149 | B158: 235.9302103 | C158: 52 | D158: -0.227 | E158: 180390.196 | L158: 4059.62744 | M158: 174386.1259 | N158: 17.20689959 | O158: 2437.267945 | P158: 575025.1389 | Q158: 148 | R158: 235.9302103 | S158: -0.227 | T158: 807360.0264 | U158: 3171440.728 | V158: 1000 | W158: 292482.6654 | X158: 4.238541552 | Y158: 13446.52185 | AA158: 2762.720202 | AB158: 411645.3102 | AD158: -2762.720202 | AE158: -2762.720202 | AF158: 0 | AG158: 0 | AH158: 0 | AI158: 0 | AJ158: 0 | AK158: 0 | AL158: 0 | AM158: 0 | AO158: -0.3333333333
A159: 150 | B159: 241.8284656 | C159: 53 | D159: 0.025 | E159: 184679.1905 | L159: 4059.62744 | M159: 178445.7533 | N159: 16.78721912 | O159: 2454.055164 | P159: 593460.3948 | Q159: 149 | R159: 241.8284656 | S159: 0.025 | T159: 816873.7695 | U159: 3251751.746 | V159: 1000 | W159: 293482.6654 | X159: 4.13516249 | Y159: 13450.65701 | AA159: 2762.720202 | AB159: 414408.0304 | AD159: -2762.720202 | AE159: -2762.720202 | AF159: 0 | AG159: 0 | AH159: 0 | AI159: 0 | AJ159: 0 | AK159: 0 | AL159: 0 | AM159: 0 | AO159: -0.4166666667
A160: 151 | B160: 214.0181921 | C160: 54 | D160: -0.115 | E160: 189003.9266 | L160: 4059.62744 | M160: 182505.3807 | N160: 18.96860917 | O160: 2473.023773 | P160: 529272.0768 | Q160: 150 | R160: 214.0181921 | S160: -0.115 | T160: 826466.7938 | U160: 2878685.295 | V160: 1000 | W160: 294482.6654 | X160: 4.672499989 | Y160: 13455.32951 | AA160: 2762.720202 | AB160: 417170.7506 | AD160: -2762.720202 | AE160: -2762.720202 | AF160: 0 | AG160: 0 | AH160: 0 | AI160: 0 | AJ160: 0 | AK160: 0 | AL160: 0 | AM160: 0 | AO160: -0.5
A161: 152 | B161: 237.9882296 | C161: 55 | D161: 0.112 | E161: 193364.7022 | L161: 4059.62744 | M161: 186565.0082 | N161: 17.05810177 | O161: 2490.081875 | P161: 592610.1769 | Q161: 151 | R161: 237.9882296 | S161: 0.112 | T161: 836139.7599 | U161: 3202210.048 | V161: 1000 | W161: 295482.6654 | X161: 4.201888479 | Y161: 13459.5314 | AA161: 2762.720202 | AB161: 419933.4708 | AD161: -2762.720202 | AE161: -2762.720202 | AF161: 0 | AG161: 0 | AH161: 0 | AI161: 0 | AJ161: 0 | AK161: 0 | AL161: 0 | AM161: 0 | AO161: -0.5833333333
A162: 153 | B162: 258.6932055 | C162: 56 | D162: 0.087 | E162: 197761.8176 | L162: 4059.62744 | M162: 190624.6356 | N162: 15.69282592 | O162: 2505.774701 | P162: 648226.8897 | Q162: 152 | R162: 258.6932055 | S162: 0.087 | T162: 845893.3341 | U162: 3481889.322 | V162: 1000 | W162: 296482.6654 | X162: 3.865582778 | Y162: 13463.39698 | AA162: 2762.720202 | AB162: 422696.191 | AD162: -2762.720202 | AE162: -2762.720202 | AF162: 0 | AG162: 0 | AH162: 0 | AI162: 0 | AJ162: 0 | AK162: 0 | AL162: 0 | AM162: 0 | AO162: -0.6666666667
A163: 154 | B163: 222.4761568 | C163: 57 | D163: -0.14 | E163: 202195.5756 | L163: 4059.62744 | M163: 194684.2631 | N163: 18.247472 | O163: 2524.022173 | P163: 561534.7526 | Q163: 153 | R163: 222.4761568 | S163: -0.14 | T163: 855728.1881 | U163: 2995284.817 | V163: 1000 | W163: 297482.6654 | X163: 4.494863695 | Y163: 13467.89184 | AA163: 2762.720202 | AB163: 425458.9112 | AD163: -2762.720202 | AE163: -2762.720202 | AF163: 0 | AG163: 0 | AH163: 0 | AI163: 0 | AJ163: 0 | AK163: 0 | AL163: 0 | AM163: 0 | AO163: -0.75
A164: 155 | B164: 197.7813034 | C164: 58 | D164: -0.111 | E164: 206666.2816 | L164: 4059.62744 | M164: 198743.8905 | N164: 20.52584027 | O164: 2544.548013 | P164: 503264.0225 | Q164: 154 | R164: 197.7813034 | S164: -0.111 | T164: 865644.9992 | U164: 2663697.202 | V164: 1000 | W164: 298482.6654 | X164: 5.056089646 | Y164: 13472.94793 | AA164: 2762.720202 | AB164: 428221.6314 | AD164: -2762.720202 | AE164: -2762.720202 | AF164: 0 | AG164: 0 | AH164: 0 | AI164: 0 | AJ164: 0 | AK164: 0 | AL164: 0 | AM164: 0 | AO164: =IF(C164="NA","NA",INT(C164/12)-(C164/12)) -> -0.8333333333
A165: 156 | B165: 205.4947742 | C165: 59 | D165: 0.039 | E165: 211174.2435 | L165: 4059.62744 | M165: 202803.5179 | N165: 19.75538043 | O165: 2564.303393 | P165: 526950.9468 | Q165: 155 | R165: 205.4947742 | S165: 0.039 | T165: 875644.4504 | U165: 2768620.393 | V165: 1000 | W165: 299482.6654 | X165: 4.866303797 | Y165: 13477.81424 | AA165: 2762.720202 | AB165: 430984.3516 | AD165: -2762.720202 | AE165: -2762.720202 | AF165: 0 | AG165: 0 | AH165: 0 | AI165: 0 | AJ165: 0 | AK165: 0 | AL165: 0 | AM165: 0 | AO165: -0.9166666667
A166: 157 | B166: 210.6321435 | C166: 60 | D166: 0.025 | E166: 215719.7717 | L166: 4469.649812 | M166: 207273.1677 | N166: 21.22016961 | O166: 2585.523563 | P166: 544594.3703 | Q166: 156 | R166: 210.6321435 | S166: 0.025 | T166: 885727.2304 | U166: 2838860.903 | V166: 1000 | W166: 300482.6654 | X166: 4.747613461 | Y166: 13482.56185 | AA166: 2762.720202 | AB166: 433747.0718 | AD166: -2762.720202 | AE166: -2762.720202 | AF166: 0 | AG166: 0 | AH166: 0 | AI166: 0 | AJ166: 0 | AK166: 0 | AL166: 0 | AM166: 0 | AO166: 0
A167: 158 | B167: 208.31519 | C167: 61 | D167: -0.011 | E167: 220303.1794 | L167: 4469.649812 | M167: 211742.8176 | N167: 21.45618768 | O167: 2606.979751 | P167: 543073.482 | Q167: 157 | R167: 208.31519 | S167: -0.011 | T167: 895894.0335 | U167: 2808622.433 | V167: 1000 | W167: 301482.6654 | X167: 4.80041806 | Y167: 13487.36227 | AA167: 2762.720202 | AB167: 436509.792 | AD167: -2762.720202 | AE167: -2762.720202 | AF167: 0 | AG167: 0 | AH167: 0 | AI167: 0 | AJ167: 0 | AK167: 0 | AL167: 0 | AM167: 0 | AO167: -0.08333333333
A168: 159 | B168: 179.1510634 | C168: 62 | D168: -0.14 | E168: 224924.7821 | L168: 4469.649812 | M168: 216212.4674 | N168: 24.94905544 | O168: 2631.928806 | P168: 471512.8443 | Q168: 158 | R168: 179.1510634 | S168: -0.14 | T168: 906145.56 | U168: 2416275.293 | V168: 1000 | W168: 302482.6654 | X168: 5.581881465 | Y168: 13492.94415 | AA168: 2762.720202 | AB168: 439272.5122 | AD168: -2762.720202 | AE168: -2762.720202 | AF168: 0 | AG168: 0 | AH168: 0 | AI168: 0 | AJ168: 0 | AK168: 0 | AL168: 0 | AM168: 0 | AO168: -0.1666666667
A169: 160 | B169: 166.78964 | C169: 63 | D169: -0.069 | E169: 229584.8981 | L169: 4469.649812 | M169: 220682.1172 | N169: 26.79812614 | O169: 2658.726932 | P169: 443448.1079 | Q169: 159 | R169: 166.78964 | S169: -0.069 | T169: 916482.5158 | U169: 2250483.297 | V169: 1000 | W169: 303482.6654 | X169: 5.995576224 | Y169: 13498.93973 | AA169: 2762.720202 | AB169: 442035.2324 | AD169: -2762.720202 | AE169: -2762.720202 | AF169: 0 | AG169: 0 | AH169: 0 | AI169: 0 | AJ169: 0 | AK169: 0 | AL169: 0 | AM169: 0 | AO169: -0.25
A170: 161 | B170: 172.2936981 | C170: 64 | D170: 0.033 | E170: 234283.8485 | L170: 4469.649812 | M170: 225151.767 | N170: 25.94203886 | O170: 2684.668971 | P170: 462551.5453 | Q170: 160 | R170: 172.2936981 | S170: 0.033 | T170: 926905.613 | U170: 2325782.246 | V170: 1000 | W170: 304482.6654 | X170: 5.804042811 | Y170: 13504.74377 | AA170: 2762.720202 | AB170: 444797.9526 | AD170: -2762.720202 | AE170: -2762.720202 | AF170: 0 | AG170: 0 | AH170: 0 | AI170: 0 | AJ170: 0 | AK170: 0 | AL170: 0 | AM170: 0 | AO170: -0.3333333333
A171: 162 | B171: 175.0503973 | C171: 65 | D171: 0.016 | E171: 239021.9568 | L171: 4469.649812 | M171: 229621.4168 | N171: 25.53350281 | O171: 2710.202474 | P171: 474422.0198 | Q171: 161 | R171: 175.0503973 | S171: 0.016 | T171: 937415.5693 | U171: 2364010.762 | V171: 1000 | W171: 305482.6654 | X171: 5.712640562 | Y171: 13510.45641 | AA171: 2762.720202 | AB171: 447560.6728 | AD171: -2762.720202 | AE171: -2762.720202 | AF171: 0 | AG171: 0 | AH171: 0 | AI171: 0 | AJ171: 0 | AK171: 0 | AL171: 0 | AM171: 0 | AO171: -0.4166666667
A172: 163 | B172: 182.9276652 | C172: 66 | D172: 0.045 | E172: 243799.5493 | L172: 4469.649812 | M172: 234091.0666 | N172: 24.43397398 | O172: 2734.636448 | P172: 500240.6605 | Q172: 162 | R172: 182.9276652 | S172: 0.045 | T172: 948013.1086 | U172: 2471436.246 | V172: 1000 | W172: 306482.6654 | X172: 5.466641686 | Y172: 13515.92305 | AA172: 2762.720202 | AB172: 450323.393 | AD172: -2762.720202 | AE172: -2762.720202 | AF172: 0 | AG172: 0 | AH172: 0 | AI172: 0 | AJ172: 0 | AK172: 0 | AL172: 0 | AM172: 0 | AO172: -0.5
A173: 164 | B173: 206.8911893 | C173: 67 | D173: 0.131 | E173: 248616.9551 | L173: 4469.649812 | M173: 238560.7164 | N173: 21.60386736 | O173: 2756.240315 | P173: 570241.8368 | Q173: 163 | R173: 206.8911893 | S173: 0.131 | T173: 958698.9607 | U173: 2796325.395 | V173: 1000 | W173: 307482.6654 | X173: 4.833458609 | Y173: 13520.75651 | AA173: 2762.720202 | AB173: 453086.1132 | AD173: -2762.720202 | AE173: -2762.720202 | AF173: 0 | AG173: 0 | AH173: 0 | AI173: 0 | AJ173: 0 | AK173: 0 | AL173: 0 | AM173: 0 | AO173: -0.5833333333
A174: 165 | B174: 212.8910338 | C174: 68 | D174: 0.029 | E174: 253474.5059 | L174: 4469.649812 | M174: 243030.3662 | N174: 20.99501201 | O174: 2777.235327 | P174: 591248.4999 | Q174: 164 | R174: 212.8910338 | S174: 0.029 | T174: 969473.8616 | U174: 2878447.831 | V174: 1000 | W174: 308482.6654 | X174: 4.697238687 | Y174: 13525.45375 | AA174: 2762.720202 | AB174: 455848.8334 | AD174: -2762.720202 | AE174: -2762.720202 | AF174: 0 | AG174: 0 | AH174: 0 | AI174: 0 | AJ174: 0 | AK174: 0 | AL174: 0 | AM174: 0 | AO174: -0.6666666667
A175: 166 | B175: 210.1234504 | C175: 69 | D175: -0.013 | E175: 258372.5363 | L175: 4469.649812 | M175: 247500.0161 | N175: 21.27154206 | O175: 2798.506869 | P175: 588031.9192 | Q175: 165 | R175: 210.1234504 | S175: -0.013 | T175: 980338.5533 | U175: 2842015.009 | V175: 1000 | W175: 309482.6654 | X175: 4.759107079 | Y175: 13530.21286 | AA175: 2762.720202 | AB175: 458611.5536 | AD175: -2762.720202 | AE175: -2762.720202 | AF175: 0 | AG175: 0 | AH175: 0 | AI175: 0 | AJ175: 0 | AK175: 0 | AL175: 0 | AM175: 0 | AO175: -0.75
A176: 167 | B176: 254.0392515 | C176: 70 | D176: 0.209 | E176: 263311.3836 | L176: 4469.649812 | M176: 251969.6659 | N176: 17.59432759 | O176: 2816.101197 | P176: 715400.2402 | Q176: 166 | R176: 254.0392515 | S176: 0.209 | T176: 991293.7841 | U176: 3437205.146 | V176: 1000 | W176: 310482.6654 | X176: 3.936399569 | Y176: 13534.14926 | AA176: 2762.720202 | AB176: 461374.2738 | AD176: -2762.720202 | AE176: -2762.720202 | AF176: 0 | AG176: 0 | AH176: 0 | AI176: 0 | AJ176: 0 | AK176: 0 | AL176: 0 | AM176: 0 | AO176: -0.8333333333
A177: 168 | B177: 262.9306253 | C177: 71 | D177: 0.035 | E177: 268291.388 | L177: 4469.649812 | M177: 256439.3157 | N177: 16.99935033 | O177: 2833.100547 | P177: 744908.8984 | Q177: 167 | R177: 262.9306253 | S177: 0.035 | T177: 1002340.309 | U177: 3558542.326 | V177: 1000 | W177: 311482.6654 | X177: 3.803284608 | Y177: 13537.95254 | AA177: 2762.720202 | AB177: 464136.994 | AD177: -2762.720202 | AE177: -2762.720202 | AF177: 0 | AG177: 0 | AH177: 0 | AI177: 0 | AJ177: 0 | AK177: 0 | AL177: 0 | AM177: 0 | AO177: -0.9166666667
A178: 169 | B178: 313.9391666 | C178: 72 | D178: 0.194 | E178: 273312.8925 | L178: 4921.084443 | M178: 261360.4001 | N178: 15.67528033 | O178: 2848.775828 | P178: 894342.3091 | Q178: 168 | R178: 313.9391666 | S178: 0.194 | T178: 1013478.887 | U178: 4250093.538 | V178: 1000 | W178: 312482.6654 | X178: 3.185330492 | Y178: 13541.13787 | AA178: 2762.720202 | AB178: 466899.7142 | AD178: -2762.720202 | AE178: -2762.720202 | AF178: 0 | AG178: 0 | AH178: 0 | AI178: 0 | AJ178: 0 | AK178: 0 | AL178: 0 | AM178: 0 | AO178: 0
A179: 170 | B179: 339.9961174 | C179: 73 | D179: 0.083 | E179: 278376.2428 | L179: 4921.084443 | M179: 266281.4846 | N179: 14.47394306 | O179: 2863.249771 | P179: 973493.8052 | Q179: 169 | R179: 339.9961174 | S179: 0.083 | T179: 1024710.288 | U179: 4603934.301 | V179: 1000 | W179: 313482.6654 | X179: 2.941210057 | Y179: 13544.07908 | AA179: 2762.720202 | AB179: 469662.4344 | AD179: -2762.720202 | AE179: -2762.720202 | AF179: 0 | AG179: 0 | AH179: 0 | AI179: 0 | AJ179: 0 | AK179: 0 | AL179: 0 | AM179: 0 | AO179: -0.08333333333
A180: 171 | B180: 296.4766144 | C180: 74 | D180: -0.128 | E180: 283481.7877 | L180: 4921.084443 | M180: 271202.569 | N180: 16.59855855 | O180: 2879.848329 | P180: 853807.6826 | Q180: 170 | R180: 296.4766144 | S180: -0.128 | T180: 1036035.283 | U180: 4015502.711 | V180: 1000 | W180: 314482.6654 | X180: 3.372947313 | Y180: 13547.45203 | AA180: 2762.720202 | AB180: 472425.1546 | AD180: -2762.720202 | AE180: -2762.720202 | AF180: 0 | AG180: 0 | AH180: 0 | AI180: 0 | AJ180: 0 | AK180: 0 | AL180: 0 | AM180: 0 | AO180: -0.1666666667
A181: 172 | B181: 289.9541289 | C181: 75 | D181: -0.022 | E181: 288629.8788 | L181: 4921.084443 | M181: 276123.6534 | N181: 16.97194126 | O181: 2896.82027 | P181: 839944.998 | Q181: 171 | R181: 289.9541289 | S181: -0.022 | T181: 1047454.653 | U181: 3928139.651 | V181: 1000 | W181: 315482.6654 | X181: 3.448821384 | Y181: 13550.90085 | AA181: 2762.720202 | AB181: 475187.8748 | AD181: -2762.720202 | AE181: -2762.720202 | AF181: 0 | AG181: 0 | AH181: 0 | AI181: 0 | AJ181: 0 | AK181: 0 | AL181: 0 | AM181: 0 | AO181: -0.25
A182: 173 | B182: 299.232661 | C182: 76 | D182: 0.032 | E182: 293820.8706 | L182: 4921.084443 | M182: 281044.7379 | N182: 16.44567951 | O182: 2913.26595 | P182: 871744.3224 | Q182: 172 | R182: 299.232661 | S182: 0.032 | T182: 1058969.185 | U182: 4054872.12 | V182: 1000 | W182: 316482.6654 | X182: 3.341881186 | Y182: 13554.24273 | AA182: 2762.720202 | AB182: 477950.595 | AD182: -2762.720202 | AE182: -2762.720202 | AF182: 0 | AG182: 0 | AH182: 0 | AI182: 0 | AJ182: 0 | AK182: 0 | AL182: 0 | AM182: 0 | AO182: -0.3333333333
A183: 174 | B183: 314.7927594 | C183: 77 | D183: 0.052 | E183: 299055.1208 | L183: 4921.084443 | M183: 285965.8223 | N183: 15.6327752 | O183: 2928.898725 | P183: 921996.1116 | Q183: 173 | R183: 314.7927594 | S183: 0.052 | T183: 1070579.671 | U183: 4266777.47 | V183: 1000 | W183: 317482.6654 | X183: 3.176693143 | Y183: 13557.41942 | AA183: 2762.720202 | AB183: 480713.3152 | AD183: -2762.720202 | AE183: -2762.720202 | AF183: 0 | AG183: 0 | AH183: 0 | AI183: 0 | AJ183: 0 | AK183: 0 | AL183: 0 | AM183: 0 | AO183: -0.4166666667
A184: 175 | B184: 322.0329928 | C184: 78 | D184: 0.023 | E184: 304332.9897 | L184: 4921.084443 | M184: 290886.9068 | N184: 15.28130518 | O184: 2944.18003 | P184: 948123.1066 | Q184: 174 | R184: 322.0329928 | S184: 0.023 | T184: 1082286.911 | U184: 4365936.352 | V184: 1000 | W184: 318482.6654 | X184: 3.105271889 | Y184: 13560.5247 | AA184: 2762.720202 | AB184: 483476.0354 | AD184: -2762.720202 | AE184: -2762.720202 | AF184: 0 | AG184: 0 | AH184: 0 | AI184: 0 | AJ184: 0 | AK184: 0 | AL184: 0 | AM184: 0 | AO184: -0.5
A185: 176 | B185: 345.8634343 | C185: 79 | D185: 0.074 | E185: 309654.8408 | L185: 4921.084443 | M185: 295807.9912 | N185: 14.22840334 | O185: 2958.408434 | P185: 1023205.301 | Q185: 175 | R185: 345.8634343 | S185: 0.074 | T185: 1094091.711 | U185: 4690089.642 | V185: 1000 | W185: 319482.6654 | X185: 2.891314608 | Y185: 13563.41601 | AA185: 2762.720202 | AB185: 486238.7556 | AD185: -2762.720202 | AE185: -2762.720202 | AF185: 0 | AG185: 0 | AH185: 0 | AI185: 0 | AJ185: 0 | AK185: 0 | AL185: 0 | AM185: 0 | AO185: -0.5833333333
A186: 177 | B186: 325.1116282 | C186: 80 | D186: -0.06 | E186: 315021.0406 | L186: 4921.084443 | M186: 300729.0757 | N186: 15.13659929 | O186: 2973.545033 | P186: 966734.0673 | Q186: 176 | R186: 325.1116282 | S186: -0.06 | T186: 1105994.885 | U186: 4409624.264 | V186: 1000 | W186: 320482.6654 | X186: 3.075866604 | Y186: 13566.49188 | AA186: 2762.720202 | AB186: 489001.4758 | AD186: -2762.720202 | AE186: -2762.720202 | AF186: 0 | AG186: 0 | AH186: 0 | AI186: 0 | AJ186: 0 | AK186: 0 | AL186: 0 | AM186: 0 | AO186: -0.6666666667
A187: 178 | B187: 319.2596189 | C187: 81 | D187: -0.018 | E187: 320431.9589 | L187: 4921.084443 | M187: 305650.1601 | N187: 15.41405224 | O187: 2988.959085 | P187: 954253.9386 | Q187: 177 | R187: 319.2596189 | S187: -0.018 | T187: 1117997.252 | U187: 4331233.027 | V187: 1000 | W187: 321482.6654 | X187: 3.132247051 | Y187: 13569.62412 | AA187: 2762.720202 | AB187: 491764.196 | AD187: -2762.720202 | AE187: -2762.720202 | AF187: 0 | AG187: 0 | AH187: 0 | AI187: 0 | AJ187: 0 | AK187: 0 | AL187: 0 | AM187: 0 | AO187: -0.75
A188: 179 | B188: 313.8322054 | C188: 82 | D188: -0.017 | E188: 325887.9681 | L188: 4921.084443 | M188: 310571.2445 | N188: 15.68062282 | O188: 3004.639708 | P188: 942952.706 | Q188: 178 | R188: 313.8322054 | S188: -0.017 | T188: 1130099.639 | U188: 4258585.065 | V188: 1000 | W188: 322482.6654 | X188: 3.186416125 | Y188: 13572.81054 | AA188: 2762.720202 | AB188: 494526.9162 | AD188: -2762.720202 | AE188: -2762.720202 | AF188: 0 | AG188: 0 | AH188: 0 | AI188: 0 | AJ188: 0 | AK188: 0 | AL188: 0 | AM188: 0 | AO188: -0.8333333333
A189: 180 | B189: 297.8267629 | C189: 83 | D189: -0.051 | E189: 331389.444 | L189: 4921.084443 | M189: 315492.329 | N189: 16.52331172 | O189: 3021.16302 | P189: 899783.2025 | Q189: 179 | R189: 297.8267629 | S189: -0.051 | T189: 1142302.879 | U189: 4042346.227 | V189: 1000 | W189: 323482.6654 | X189: 3.357656613 | Y189: 13576.1682 | AA189: 2762.720202 | AB189: 497289.6364 | AD189: -2762.720202 | AE189: -2762.720202 | AF189: 0 | AG189: 0 | AH189: 0 | AI189: 0 | AJ189: 0 | AK189: 0 | AL189: 0 | AM189: 0 | AO189: -0.9166666667
A190: 181 | B190: 274.2984487 | C190: 84 | D190: -0.079 | E190: 336936.7656 | L190: 5418.113971 | M190: 320910.443 | N190: 19.75262346 | O190: 3040.915643 | P190: 834118.4434 | Q190: 180 | R190: 274.2984487 | S190: -0.079 | T190: 1154607.812 | U190: 3723921.875 | V190: 1000 | W190: 324482.6654 | X190: 3.645664075 | Y190: 13579.81386 | AA190: 2762.720202 | AB190: 500052.3566 | AD190: -2762.720202 | AE190: -2762.720202 | AF190: 0 | AG190: 0 | AH190: 0 | AI190: 0 | AJ190: 0 | AK190: 0 | AL190: 0 | AM190: 0 | AO190: 0
A191: 182 | B191: 259.7606309 | C191: 85 | D191: -0.053 | E191: 342530.3148 | L191: 5418.113971 | M191: 326328.5569 | N191: 20.85810291 | O191: 3061.773746 | P191: 795328.2799 | Q191: 181 | R191: 259.7606309 | S191: -0.053 | T191: 1167015.287 | U191: 3527501.016 | V191: 1000 | W191: 325482.6654 | X191: 3.849698072 | Y191: 13583.66356 | AA191: 2762.720202 | AB191: 502815.0768 | AD191: -2762.720202 | AE191: -2762.720202 | AF191: 0 | AG191: 0 | AH191: 0 | AI191: 0 | AJ191: 0 | AK191: 0 | AL191: 0 | AM191: 0 | AO191: -0.08333333333
A192: 183 | B192: 253.5263757 | C192: 86 | D192: -0.024 | E192: 348170.477 | L192: 5418.113971 | M192: 331746.6709 | N192: 21.37100708 | O192: 3083.144753 | P192: 781658.5152 | Q192: 182 | R192: 253.5263757 | S192: -0.024 | T192: 1179526.157 | U192: 3443816.991 | V192: 1000 | W192: 326482.6654 | X192: 3.944362779 | Y192: 13587.60792 | AA192: 2762.720202 | AB192: 505577.797 | AD192: -2762.720202 | AE192: -2762.720202 | AF192: 0 | AG192: 0 | AH192: 0 | AI192: 0 | AJ192: 0 | AK192: 0 | AL192: 0 | AM192: 0 | AO192: -0.1666666667
A193: 184 | B193: 241.1035833 | C193: 87 | D193: -0.049 | E193: 353857.6405 | L193: 5418.113971 | M193: 337164.7849 | N193: 22.47214204 | O193: 3105.616895 | P193: 748775.3619 | Q193: 183 | R193: 241.1035833 | S193: -0.049 | T193: 1192141.285 | U193: 3276020.959 | V193: 1000 | W193: 327482.6654 | X193: 4.147594931 | Y193: 13591.75552 | AA193: 2762.720202 | AB193: 508340.5173 | AD193: -2762.720202 | AE193: -2762.720202 | AF193: 0 | AG193: 0 | AH193: 0 | AI193: 0 | AJ193: 0 | AK193: 0 | AL193: 0 | AM193: 0 | AO193: -0.25
A194: 185 | B194: 255.3286947 | C194: 88 | D194: 0.059 | E194: 359592.197 | L194: 5418.113971 | M194: 342582.8988 | N194: 21.22015301 | O194: 3126.837048 | P194: 798371.2222 | Q194: 184 | R194: 255.3286947 | S194: 0.059 | T194: 1204861.538 | U194: 3470365.195 | V194: 1000 | W194: 328482.6654 | X194: 3.916520237 | Y194: 13595.67204 | AA194: 2762.720202 | AB194: 511103.2375 | AD194: -2762.720202 | AE194: -2762.720202 | AF194: 0 | AG194: 0 | AH194: 0 | AI194: 0 | AJ194: 0 | AK194: 0 | AL194: 0 | AM194: 0 | AO194: -0.3333333333
A195: 186 | B195: 246.1368617 | C195: 89 | D195: -0.036 | E195: 365374.5415 | L195: 5418.113971 | M195: 348001.0128 | N195: 22.01260686 | O195: 3148.849655 | P195: 775047.9722 | Q195: 185 | R195: 246.1368617 | S195: -0.036 | T195: 1217687.794 | U195: 3346396.048 | V195: 1000 | W195: 329482.6654 | X195: 4.062780329 | Y195: 13599.73482 | AA195: 2762.720202 | AB195: 513865.9577 | AD195: -2762.720202 | AE195: -2762.720202 | AF195: 0 | AG195: 0 | AH195: 0 | AI195: 0 | AJ195: 0 | AK195: 0 | AL195: 0 | AM195: 0 | AO195: -0.4166666667
A196: 187 | B196: 254.505515 | C196: 90 | D196: 0.034 | E196: 371205.0723 | L196: 5418.113971 | M196: 353419.1268 | N196: 21.28878807 | O196: 3170.138443 | P196: 806817.7172 | Q196: 186 | R196: 254.505515 | S196: 0.034 | T196: 1230620.935 | U196: 3461207.514 | V196: 1000 | W196: 330482.6654 | X196: 3.929187939 | Y196: 13603.66401 | AA196: 2762.720202 | AB196: 516628.6779 | AD196: -2762.720202 | AE196: -2762.720202 | AF196: 0 | AG196: 0 | AH196: 0 | AI196: 0 | AJ196: 0 | AK196: 0 | AL196: 0 | AM196: 0 | AO196: -0.5
A197: 188 | B197: 248.6518882 | C197: 91 | D197: -0.023 | E197: 377084.1907 | L197: 5418.113971 | M197: 358837.2408 | N197: 21.78995708 | O197: 3191.9284 | P197: 793679.0237 | Q197: 187 | R197: 248.6518882 | S197: -0.023 | T197: 1243661.852 | U197: 3382576.741 | V197: 1000 | W197: 331482.6654 | X197: 4.021686734 | Y197: 13607.68569 | AA197: 2762.720202 | AB197: 519391.3981 | AD197: -2762.720202 | AE197: -2762.720202 | AF197: 0 | AG197: 0 | AH197: 0 | AI197: 0 | AJ197: 0 | AK197: 0 | AL197: 0 | AM197: 0 | AO197: -0.5833333333
A198: 189 | B198: 258.8466156 | C198: 92 | D198: 0.041 | E198: 383012.3019 | L198: 5418.113971 | M198: 364255.3547 | N198: 20.93175512 | O198: 3212.860155 | P198: 831637.9776 | Q198: 188 | R198: 258.8466156 | S198: 0.041 | T198: 1256811.444 | U198: 3522303.388 | V198: 1000 | W198: 332482.6654 | X198: 3.863291771 | Y198: 13611.54898 | AA198: 2762.720202 | AB198: 522154.1183 | AD198: -2762.720202 | AE198: -2762.720202 | AF198: 0 | AG198: 0 | AH198: 0 | AI198: 0 | AJ198: 0 | AK198: 0 | AL198: 0 | AM198: 0 | AO198: -0.6666666667
A199: 190 | B199: 258.8466156 | C199: 93 | D199: 0 | E199: 388989.8139 | L199: 5418.113971 | M199: 369673.4687 | N199: 20.93175512 | O199: 3233.791911 | P199: 837056.0916 | Q199: 189 | R199: 258.8466156 | S199: 0 | T199: 1270070.615 | U199: 3523303.388 | V199: 1000 | W199: 333482.6654 | X199: 3.863291771 | Y199: 13615.41228 | AA199: 2762.720202 | AB199: 524916.8385 | AD199: -2762.720202 | AE199: -2762.720202 | AF199: 0 | AG199: 0 | AH199: 0 | AI199: 0 | AJ199: 0 | AK199: 0 | AL199: 0 | AM199: 0 | AO199: -0.75
A200: 191 | B200: 225.7142488 | C200: 94 | D200: -0.128 | E200: 395017.1386 | L200: 5418.113971 | M200: 375091.5827 | N200: 24.00430633 | O200: 3257.796217 | P200: 735331.0259 | Q200: 190 | R200: 225.7142488 | S200: -0.128 | T200: 1283440.28 | U200: 3073192.554 | V200: 1000 | W200: 334482.6654 | X200: 4.430380471 | Y200: 13619.84266 | AA200: 2762.720202 | AB200: 527679.5587 | AD200: -2762.720202 | AE200: -2762.720202 | AF200: 0 | AG200: 0 | AH200: 0 | AI200: 0 | AJ200: 0 | AK200: 0 | AL200: 0 | AM200: 0 | AO200: -0.8333333333
A201: 192 | B201: 237.9028182 | C201: 95 | D201: 0.054 | E201: 401094.6909 | L201: 5418.113971 | M201: 380509.6966 | N201: 22.77448418 | O201: 3280.570701 | P201: 780457.0152 | Q201: 191 | R201: 237.9028182 | S201: 0.054 | T201: 1296921.359 | U201: 3240198.952 | V201: 1000 | W201: 335482.6654 | X201: 4.203397032 | Y201: 13624.04605 | AA201: 2762.720202 | AB201: 530442.2789 | AD201: -2762.720202 | AE201: -2762.720202 | AF201: 0 | AG201: 0 | AH201: 0 | AI201: 0 | AJ201: 0 | AK201: 0 | AL201: 0 | AM201: 0 | AO201: -0.9166666667
A202: 193 | B202: 224.3423576 | C202: =IF(AND(A202>=startm,A202<=endm),A202-startm,"NA") -> 96 | D202: -0.057 | E202: =IF(C202="NA","NA",IF(C202=0,typical,(1+return/12)*typical*((1+return/12)^C202-1)/(return/12))) -> 407222.8895 | L202: =IF(C202="NA","NA",IF(C202=0,typical,IF(L201="NA",typical,IF(INT(C202/12)-(C202/12)=0,L201*(1+gsip1),L201)))) -> 5965.343483 | M202: 386475.0401 | N202: 26.59035746 | O202: 3307.161059 | P202: 741936.3088 | Q202: 192 | R202: 224.3423576 | S202: -0.057 | T202: 1310514.78 | U202: 3056450.612 | V202: 1000 | W202: 336482.6654 | X202: =V202/R202 -> 4.457472992 | Y202: 13628.50353 | AA202: =typical -> 2762.720202 | AB202: 533204.9991 | AD202: =IF(A202=endm,E202,IF(C202="NA","NA",-typical)) -> -2762.720202 | AE202: =IF(A202=endm,P202,IF(C202="NA","NA",-typical)) -> -2762.720202 | AF202: =IF(A202=endm,F202,IF(C202="NA","NA",-G202)) -> 0 | AG202: =IF(A202=endm,O202,0) -> 0 | AH202: =IF(A202=endm,J202,0) -> 0 | AI202: =IF(A202=endm,E202,0) -> 0 | AJ202: =IF(A202=endm,P202,0) -> 0 | AK202: =IF(A202=endm,F202,0) -> 0 | AL202: =IF(A202=endm,M202,0) -> 0 | AM202: =IF(A202=endm,H202,0) -> 0 | AO202: 0
... 203 more rows

Sheet Sensex Growth SIP
AI2: Return expected each year | AL2: =Input!B2 -> 0.1
AI3: Minimum investment | AL3: =Input!B8 -> 1000
AI4: Typical SIP amt | AL4: =Input!B7 -> 7542.425752
B5: Note: If you see cells showing "NA". Please scroll down/up until you see the values corresponding to the input investment year | AI5: Maximum investment | AL5: =Input!B9 -> 15000
L6: Growing Systematic investment plan
B7: Full | D7: NAV | E7: Portfolio | F7: Portfolio | G7: G-SIP | H7: Total | I7: Units | J7: Total | L7: Growth-SIP | M7: Total | N7: Units | O7: Total | P7: Portfolio | R7: Enter | S7: NAV | T7: Portfolio | U7: Portfolio | V7: VIP | W7: Total | X7: Units | Y7: Total | AA7: SIP | AB7: Total | AG7: Total Units | AI7: Portfolio | AL7: Total investment
A8: S.no | B8: NAV | C8: Month | D8: % change | E8: Target | F8: Actual | G8: investment | H8: investment | I8: purchased | J8: no of units | L8: investment | M8: investment | N8: purchased | O8: no of units | P8: Actual | Q8: Month | R8: NAV | S8: % change | T8: Target | U8: Actual | V8: investment | W8: investment | X8: purchased | Y8: no of units | AA8: investment | AB8: investment | AD8: Target | AE8: GSIP | AF8: VIP | AG8: GSIP | AI8: Target | AJ8: GSIP | AL8: GSIP
A10: 1 | B10: 9.715125456 | C10: =IF(AND(A10>=startm,A10<=endm),A10-startm,"NA") -> NA | D10: =IF(C10="NA","NA",IF(C10=0,0,(B10-B8)/B8)) -> NA | E10: =IF(C10="NA","NA",IF(C10=0,typical,(1+return/12)*typical*((1+return/12)^C10-1)/(return/12))) -> NA | L10: =IF(C10="NA","NA",IF(C10=0,typical,IF(L9="NA",typical,IF(INT(C10/12)-(C10/12)=0,L9*(1+gsip1),L9)))) -> NA | M10: =IF(C10="NA","NA",IF(M9="NA",L10,M9+L10)) -> NA | N10: =IF(C10="NA","NA",L10/B10) -> NA | O10: =IF(C10="NA","NA",IF(O9="NA",N10,O9+N10)) -> NA | P10: =IF(C10="NA","NA",O10*B10) -> NA | Q10: 0 | R10: 9.715125456 | S10: 0 | T10: =typical -> 7542.425752 | U10: =typical -> 7542.425752 | V10: =typical -> 7542.425752 | W10: =V10 -> 7542.425752 | X10: =V10/R10 -> 776.3590688 | Y10: =X10 -> 776.3590688 | AA10: =typical -> 7542.425752 | AB10: =AA10 -> 7542.425752 | AD10: =IF(A10=endm,E10,IF(C10="NA","NA",-typical)) -> NA | AE10: =IF(A10=endm,P10,IF(C10="NA","NA",-typical)) -> NA | AF10: =IF(A10=endm,F10,IF(C10="NA","NA",-G10)) -> NA | AG10: =IF(A10=endm,O10,0) -> 0 | AH10: =IF(A10=endm,J10,0) -> 0 | AI10: =IF(A10=endm,E10,0) -> 0 | AJ10: =IF(A10=endm,P10,0) -> 0 | AK10: =IF(A10=endm,F10,0) -> 0 | AL10: =IF(A10=endm,M10,0) -> 0 | AM10: =IF(A10=endm,H10,0) -> 0 | AO10: =IF(C10="NA","NA",INT(C10/12)-(C10/12)) -> NA
A11: =A10+1 -> 2 | B11: 10.08430022 | C11: NA | D11: =IF(C11="NA","NA",IF(C11=0,0,(B11-B10)/B10)) -> NA | E11: NA | L11: NA | M11: NA | N11: =IF(C11="NA","NA",L11/B11) -> NA | O11: NA | P11: =IF(C11="NA","NA",O11*B11) -> NA | Q11: =Q10+1 -> 1 | R11: 10.08430022 | S11: =(R11-R10)/R10 -> 0.038 | T11: =(1+return/12)*typical*((1+return/12)^Q11-1)/(return/12) -> 7605.2793 | U11: =U10*(1+S11) -> 7829.03793 | V11: =IF((U11-T11)>0,IF(typical-(U11-T11)<min,min,typical-(U11-T11)),IF((U11-T11)<0,IF(typical-(U11-T11)>max,max,typical-(U11-T11)),IF((T11-U11)=0,min,))) -> 7318.667121 | W11: =W10+V11 -> 14861.09287 | X11: 725.7486349 | Y11: =Y10+X11 -> 1502.107704 | AA11: 7542.425752 | AB11: =AB10+AA11 -> 15084.8515 | AD11: NA | AE11: NA | AF11: NA | AG11: 0 | AH11: 0 | AI11: 0 | AJ11: 0 | AK11: 0 | AL11: 0 | AM11: 0 | AO11: NA
A12: =A11+1 -> 3 | B12: 10.11455312 | C12: NA | D12: NA | E12: NA | L12: NA | M12: NA | N12: NA | O12: NA | P12: NA | Q12: =Q11+1 -> 2 | R12: 10.11455312 | S12: =(R12-R11)/R11 -> 0.003 | T12: 15273.93593 | U12: =(U11+V11)*(1+S12) -> 15193.14817 | V12: 7623.213512 | W12: 22484.30638 | X12: 753.6876241 | Y12: =Y11+X12 -> 2255.795328 | AA12: 7542.425752 | AB12: =AB11+AA12 -> 22627.27726 | AD12: NA | AE12: NA | AF12: NA | AG12: 0 | AH12: 0 | AI12: 0 | AJ12: 0 | AK12: 0 | AL12: 0 | AM12: 0 | AO12: NA
A13: 4 | B13: 10.01340759 | C13: NA | D13: NA | E13: NA | L13: NA | M13: NA | N13: NA | O13: NA | P13: NA | Q13: 3 | R13: 10.01340759 | S13: =(R13-R12)/R12 -> -0.01 | T13: 23006.49803 | U13: =(U12+V12)*(1+S13) -> 22588.19806 | V13: 7960.725716 | W13: 30445.0321 | X13: 795.0066591 | Y13: 3050.801987 | AA13: 7542.425752 | AB13: 30169.70301 | AD13: NA | AE13: NA | AF13: NA | AG13: 0 | AH13: 0 | AI13: 0 | AJ13: 0 | AK13: 0 | AL13: 0 | AM13: 0 | AO13: NA
A14: 5 | B14: 9.913273516 | C14: NA | D14: NA | E14: NA | L14: NA | M14: NA | N14: NA | O14: NA | P14: NA | Q14: 4 | R14: 9.913273516 | S14: =(R14-R13)/R13 -> -0.01 | T14: 30803.49814 | U14: =(U13+V13)*(1+S14) -> 30243.43454 | V14: 8102.489354 | W14: 38547.52146 | X14: 817.3374154 | Y14: 3868.139402 | AA14: 7542.425752 | AB14: 37712.12876 | AD14: NA | AE14: NA | AF14: NA | AG14: 0 | AH14: 0 | AI14: 0 | AJ14: 0 | AK14: 0 | AL14: 0 | AM14: 0 | AO14: NA
A15: 6 | B15: 9.615875311 | C15: NA | D15: NA | E15: NA | L15: NA | M15: NA | N15: NA | O15: NA | P15: NA | Q15: 5 | R15: 9.615875311 | S15: -0.03 | T15: 38665.47326 | U15: 37195.54618 | V15: 9012.352834 | W15: 47559.87429 | X15: 937.2368654 | Y15: 4805.376268 | AA15: 7542.425752 | AB15: 45254.55451 | AD15: NA | AE15: NA | AF15: NA | AG15: 0 | AH15: 0 | AI15: 0 | AJ15: 0 | AK15: 0 | AL15: 0 | AM15: 0 | AO15: NA
A16: 7 | B16: 10.1255167 | C16: NA | D16: NA | E16: NA | L16: NA | M16: NA | N16: NA | O16: NA | P16: NA | Q16: 6 | R16: 10.1255167 | S16: 0.053 | T16: 46592.96484 | U16: 48656.91766 | V16: 5478.472929 | W16: 53038.34722 | X16: 541.0561347 | Y16: 5346.432402 | AA16: 7542.425752 | AB16: 52796.98026 | AD16: NA | AE16: NA | AF16: NA | AG16: 0 | AH16: 0 | AI16: 0 | AJ16: 0 | AK16: 0 | AL16: 0 | AM16: 0 | AO16: NA
A17: 8 | B17: 11.07731527 | C17: NA | D17: NA | E17: NA | L17: NA | M17: NA | N17: NA | O17: NA | P17: NA | Q17: 7 | R17: 11.07731527 | S17: 0.094 | T17: 54586.51884 | U17: 59224.1173 | V17: 2904.827291 | W17: 55943.17451 | X17: 262.232068 | Y17: 5608.66447 | AA17: 7542.425752 | AB17: 60339.40601 | AD17: NA | AE17: NA | AF17: NA | AG17: 0 | AH17: 0 | AI17: 0 | AJ17: 0 | AK17: 0 | AL17: 0 | AM17: 0 | AO17: NA
A18: 9 | B18: 10.57883609 | C18: NA | D18: NA | E18: NA | L18: NA | M18: NA | N18: NA | O18: NA | P18: NA | Q18: 8 | R18: 10.57883609 | S18: -0.045 | T18: 62646.6858 | U18: 59333.14209 | V18: 10855.96946 | W18: 66799.14397 | X18: 1026.196963 | Y18: 6634.861433 | AA18: 7542.425752 | AB18: 67881.83177 | AD18: NA | AE18: NA | AF18: NA | AG18: 0 | AH18: 0 | AI18: 0 | AJ18: 0 | AK18: 0 | AL18: 0 | AM18: 0 | AO18: NA
A19: 10 | B19: 10.30378635 | C19: NA | D19: NA | E19: NA | L19: NA | M19: NA | N19: NA | O19: NA | P19: NA | Q19: 9 | R19: 10.30378635 | S19: -0.026 | T19: 70774.02082 | U19: 68364.19465 | V19: 9952.251915 | W19: 76751.39589 | X19: 965.8829851 | Y19: 7600.744419 | AA19: 7542.425752 | AB19: 75424.25752 | AD19: NA | AE19: NA | AF19: NA | AG19: 0 | AH19: 0 | AI19: 0 | AJ19: 0 | AK19: 0 | AL19: 0 | AM19: 0 | AO19: NA
A20: 11 | B20: 11.02505139 | C20: NA | D20: NA | E20: NA | L20: NA | M20: NA | N20: NA | O20: NA | P20: NA | Q20: 10 | R20: 11.02505139 | S20: 0.07 | T20: 78969.08362 | U20: 83798.59783 | V20: 2712.911547 | W20: 79464.30744 | X20: 246.0679275 | Y20: 7846.812346 | AA20: 7542.425752 | AB20: 82966.68327 | AD20: NA | AE20: NA | AF20: NA | AG20: 0 | AH20: 0 | AI20: 0 | AJ20: 0 | AK20: 0 | AL20: 0 | AM20: 0 | AO20: NA
A21: 12 | B21: 11.66450437 | C21: NA | D21: NA | E21: NA | L21: NA | M21: NA | N21: NA | O21: NA | P21: NA | Q21: 11 | R21: 11.66450437 | S21: 0.058 | T21: 87232.43862 | U21: 91529.17692 | V21: 3245.687453 | W21: 82709.99489 | X21: 278.253353 | Y21: 8125.065699 | AA21: 7542.425752 | AB21: 90509.10902 | AD21: NA | AE21: NA | AF21: NA | AG21: 0 | AH21: 0 | AI21: 0 | AJ21: 0 | AK21: 0 | AL21: 0 | AM21: 0 | AO21: NA
A22: 13 | B22: 11.53619482 | C22: NA | D22: NA | E22: NA | L22: NA | M22: =IF(C22="NA","NA",IF(M21="NA",L22,M21+L22)) -> NA | N22: NA | O22: =IF(C22="NA","NA",IF(O21="NA",N22,O21+N22)) -> NA | P22: NA | Q22: 12 | R22: 11.53619482 | S22: -0.011 | T22: 95564.65491 | U22: 93732.34086 | V22: 9374.739796 | W22: 92084.73468 | X22: 812.6370904 | Y22: 8937.70279 | AA22: 7542.425752 | AB22: 98051.53477 | AD22: NA | AE22: NA | AF22: NA | AG22: 0 | AH22: 0 | AI22: 0 | AJ22: 0 | AK22: 0 | AL22: 0 | AM22: 0 | AO22: NA
A23: 14 | B23: 12.4706266 | C23: NA | D23: NA | E23: NA | L23: NA | M23: =IF(C23="NA","NA",IF(M22="NA",L23,M22+L23)) -> NA | N23: NA | O23: =IF(C23="NA","NA",IF(O22="NA",N23,O22+N23)) -> NA | P23: NA | Q23: 13 | R23: 12.4706266 | S23: 0.081 | T23: 103966.3063 | U23: 111458.7542 | V23: 1000 | W23: 93084.73468 | X23: 80.18843252 | Y23: 9017.891222 | AA23: 7542.425752 | AB23: 105593.9605 | AD23: NA | AE23: NA | AF23: NA | AG23: 0 | AH23: 0 | AI23: 0 | AJ23: 0 | AK23: 0 | AL23: 0 | AM23: 0 | AO23: NA
A24: 15 | B24: 13.64286551 | C24: NA | D24: NA | E24: NA | L24: NA | M24: NA | N24: NA | O24: NA | P24: NA | Q24: 14 | R24: 13.64286551 | S24: 0.094 | T24: 112437.9715 | U24: 123029.8771 | V24: 1000 | W24: 94084.73468 | X24: 73.29838439 | Y24: 9091.189607 | AA24: 7542.425752 | AB24: 113136.3863 | AD24: NA | AE24: NA | AF24: NA | AG24: 0 | AH24: 0 | AI24: 0 | AJ24: 0 | AK24: 0 | AL24: 0 | AM24: 0 | AO24: NA
A25: 16 | B25: 14.65243755 | C25: NA | D25: NA | E25: NA | L25: NA | M25: NA | N25: NA | O25: NA | P25: NA | Q25: 15 | R25: 14.65243755 | S25: 0.074 | T25: 120980.2339 | U25: 133208.088 | V25: 1000 | W25: 95084.73468 | X25: 68.24803016 | Y25: 9159.437637 | AA25: 7542.425752 | AB25: 120678.812 | AD25: NA | AE25: NA | AF25: NA | AG25: 0 | AH25: 0 | AI25: 0 | AJ25: 0 | AK25: 0 | AL25: 0 | AM25: 0 | AO25: NA
A26: 17 | B26: 13.91981568 | C26: NA | D26: NA | E26: NA | L26: NA | M26: NA | N26: NA | O26: NA | P26: NA | Q26: 16 | R26: 13.91981568 | S26: -0.05 | T26: 129593.6818 | U26: 127497.6836 | V26: 9638.423989 | W26: 104723.1587 | X26: 692.4246853 | Y26: 9851.862322 | AA26: 7542.425752 | AB26: 128221.2378 | AD26: NA | AE26: NA | AF26: NA | AG26: 0 | AH26: 0 | AI26: 0 | AJ26: 0 | AK26: 0 | AL26: 0 | AM26: 0 | AO26: NA
A27: 18 | B27: 16.63417973 | C27: NA | D27: NA | E27: NA | L27: NA | M27: NA | N27: NA | O27: NA | P27: NA | Q27: 17 | R27: 16.63417973 | S27: 0.195 | T27: 138278.9085 | U27: 163877.6486 | V27: 1000 | W27: 105723.1587 | X27: 60.11718138 | Y27: 9911.979503 | AA27: 7542.425752 | AB27: 135763.6635 | AD27: NA | AE27: NA | AF27: NA | AG27: 0 | AH27: 0 | AI27: 0 | AJ27: 0 | AK27: 0 | AL27: 0 | AM27: 0 | AO27: NA
A28: 19 | B28: 16.35139868 | C28: NA | D28: NA | E28: NA | L28: NA | M28: NA | N28: NA | O28: NA | P28: NA | Q28: 18 | R28: 16.35139868 | S28: -0.017 | T28: 147036.512 | U28: 162074.7285 | V28: 1000 | W28: 106723.1587 | X28: 61.15684779 | Y28: 9973.136351 | AA28: 7542.425752 | AB28: 143306.0893 | AD28: NA | AE28: NA | AF28: NA | AG28: 0 | AH28: 0 | AI28: 0 | AJ28: 0 | AK28: 0 | AL28: 0 | AM28: 0 | AO28: NA
A29: 20 | B29: 15.20680077 | C29: NA | D29: NA | E29: NA | L29: NA | M29: NA | N29: NA | O29: NA | P29: NA | Q29: 19 | R29: 15.20680077 | S29: -0.07 | T29: 155867.0956 | U29: 151659.4975 | V29: 11750.0238 | W29: 118473.1825 | X29: 772.6821687 | Y29: 10745.81852 | AA29: 7542.425752 | AB29: 150848.515 | AD29: NA | AE29: NA | AF29: NA | AG29: 0 | AH29: 0 | AI29: 0 | AJ29: 0 | AK29: 0 | AL29: 0 | AM29: 0 | AO29: NA
A30: 21 | B30: 16.14962242 | C30: NA | D30: NA | E30: NA | L30: NA | M30: NA | N30: NA | O30: NA | P30: NA | Q30: 20 | R30: 16.14962242 | S30: 0.062 | T30: 164771.2673 | U30: 173540.9117 | V30: 1000 | W30: 119473.1825 | X30: 61.92095234 | Y30: 10807.73947 | AA30: 7542.425752 | AB30: 158390.9408 | AD30: NA | AE30: NA | AF30: NA | AG30: 0 | AH30: 0 | AI30: 0 | AJ30: 0 | AK30: 0 | AL30: 0 | AM30: 0 | AO30: NA
A31: 22 | B31: 16.39186675 | C31: NA | D31: NA | E31: NA | L31: NA | M31: NA | N31: NA | O31: NA | P31: NA | Q31: 21 | R31: 16.39186675 | S31: 0.015 | T31: 173749.6405 | U31: 177159.0253 | V31: 4133.04096 | W31: 123606.2234 | X31: 252.1397363 | Y31: 11059.87921 | AA31: 7542.425752 | AB31: 165933.3665 | AD31: NA | AE31: NA | AF31: NA | AG31: 0 | AH31: 0 | AI31: 0 | AJ31: 0 | AK31: 0 | AL31: 0 | AM31: 0 | AO31: NA
A32: 23 | B32: 16.88362276 | C32: NA | D32: NA | E32: NA | L32: NA | M32: NA | N32: NA | O32: NA | P32: NA | Q32: 22 | R32: 16.88362276 | S32: 0.03 | T32: 182802.8335 | U32: 186730.8283 | V32: 3614.430982 | W32: 127220.6544 | X32: 214.0791129 | Y32: 11273.95832 | AA32: 7542.425752 | AB32: 173475.7923 | AD32: NA | AE32: NA | AF32: NA | AG32: 0 | AH32: 0 | AI32: 0 | AJ32: 0 | AK32: 0 | AL32: 0 | AM32: 0 | AO32: NA
A33: 24 | B33: 17.91352374 | C33: NA | D33: NA | E33: NA | L33: NA | M33: NA | N33: NA | O33: NA | P33: NA | Q33: 23 | R33: 17.91352374 | S33: 0.061 | T33: 191931.4698 | U33: 201956.3201 | V33: 1000 | W33: 128220.6544 | X33: 55.82374603 | Y33: 11329.78207 | AA33: 7542.425752 | AB33: 181018.218 | AD33: NA | AE33: NA | AF33: NA | AG33: 0 | AH33: 0 | AI33: 0 | AJ33: 0 | AK33: 0 | AL33: 0 | AM33: 0 | AO33: NA
A34: 25 | B34: 17.30446394 | C34: NA | D34: NA | E34: NA | L34: NA | M34: NA | N34: NA | O34: NA | P34: NA | Q34: 24 | R34: 17.30446394 | S34: -0.034 | T34: 201136.178 | U34: 196055.8052 | V34: 12622.79853 | W34: 140843.4529 | X34: 729.4533118 | Y34: 12059.23538 | AA34: 7542.425752 | AB34: 188560.6438 | AD34: NA | AE34: NA | AF34: NA | AG34: 0 | AH34: 0 | AI34: 0 | AJ34: 0 | AK34: 0 | AL34: 0 | AM34: 0 | AO34: NA
A35: 26 | B35: 17.9447291 | C35: NA | D35: NA | E35: NA | L35: NA | M35: NA | N35: NA | O35: NA | P35: NA | Q35: 25 | R35: 17.9447291 | S35: 0.037 | T35: 210417.5921 | U35: 216399.7121 | V35: 1560.305779 | W35: 142403.7587 | X35: 86.95064549 | Y35: 12146.18602 | AA35: 7542.425752 | AB35: 196103.0695 | AD35: NA | AE35: NA | AF35: NA | AG35: 0 | AH35: 0 | AI35: 0 | AJ35: 0 | AK35: 0 | AL35: 0 | AM35: 0 | AO35: =IF(C35="NA","NA",INT(C35/12)-(C35/12)) -> NA
A36: 27 | B36: 17.13721629 | C36: NA | D36: NA | E36: NA | L36: NA | M36: NA | N36: NA | O36: NA | P36: NA | Q36: 26 | R36: 17.13721629 | S36: -0.045 | T36: 219776.3513 | U36: 208151.817 | V36: 15000 | W36: 157403.7587 | X36: 875.2880132 | Y36: 13021.47404 | AA36: 7542.425752 | AB36: 203645.4953 | AD36: NA | AE36: NA | AF36: NA | AG36: 0 | AH36: 0 | AI36: 0 | AJ36: 0 | AK36: 0 | AL36: 0 | AM36: 0 | AO36: =IF(C36="NA","NA",INT(C36/12)-(C36/12)) -> NA
A37: 28 | B37: 17.78843051 | C37: NA | D37: NA | E37: NA | L37: NA | M37: NA | N37: NA | O37: NA | P37: NA | Q37: 27 | R37: 17.78843051 | S37: 0.038 | T37: 229213.1002 | U37: 231631.5861 | V37: 5123.939883 | W37: 162527.6986 | X37: 288.0490148 | Y37: 13309.52305 | AA37: 7542.425752 | AB37: 211187.921 | AD37: NA | AE37: NA | AF37: NA | AG37: 0 | AH37: 0 | AI37: 0 | AJ37: 0 | AK37: 0 | AL37: 0 | AM37: 0 | AO37: NA
A38: 29 | B38: 18.01968011 | C38: NA | D38: NA | E38: NA | L38: NA | M38: NA | N38: NA | O38: NA | P38: NA | Q38: 28 | R38: 18.01968011 | S38: 0.013 | T38: 238728.4887 | U38: 239833.3478 | V38: 6437.566631 | W38: 168965.2652 | X38: 357.2519929 | Y38: 13666.77505 | AA38: 7542.425752 | AB38: 218730.3468 | AD38: NA | AE38: NA | AF38: NA | AG38: 0 | AH38: 0 | AI38: 0 | AJ38: 0 | AK38: 0 | AL38: 0 | AM38: 0 | AO38: NA
A39: 30 | B39: 16.7583025 | C39: NA | D39: NA | E39: NA | L39: NA | M39: NA | N39: NA | O39: NA | P39: NA | Q39: 29 | R39: 16.7583025 | S39: -0.07 | T39: 248323.1721 | U39: 229031.9504 | V39: 15000 | W39: 183965.2652 | X39: 895.0787229 | Y39: 14561.85377 | AA39: 7542.425752 | AB39: 226272.7726 | AD39: NA | AE39: NA | AF39: NA | AG39: 0 | AH39: 0 | AI39: 0 | AJ39: 0 | AK39: 0 | AL39: 0 | AM39: 0 | AO39: NA
A40: 31 | B40: 17.02643534 | C40: NA | D40: NA | E40: NA | L40: NA | M40: NA | N40: NA | O40: NA | P40: NA | Q40: 30 | R40: 17.02643534 | S40: 0.016 | T40: 257997.8111 | U40: 247936.4616 | V40: 15000 | W40: 198965.2652 | X40: 880.982995 | Y40: 15442.83676 | AA40: 7542.425752 | AB40: 233815.1983 | AD40: NA | AE40: NA | AF40: NA | AG40: 0 | AH40: 0 | AI40: 0 | AJ40: 0 | AK40: 0 | AL40: 0 | AM40: 0 | AO40: NA
A41: 32 | B41: 16.85617099 | C41: NA | D41: NA | E41: NA | L41: NA | M41: NA | N41: NA | O41: NA | P41: NA | Q41: 31 | R41: 16.85617099 | S41: -0.01 | T41: 267753.0722 | U41: 260307.097 | V41: 14988.40092 | W41: 213953.6661 | X41: 889.1936923 | Y41: 16332.03046 | AA41: 7542.425752 | AB41: 241357.6241 | AD41: NA | AE41: NA | AF41: NA | AG41: 0 | AH41: 0 | AI41: 0 | AJ41: 0 | AK41: 0 | AL41: 0 | AM41: 0 | AO41: NA
A42: 33 | B42: 17.96867827 | C42: NA | D42: NA | E42: NA | L42: NA | M42: NA | N42: NA | O42: NA | P42: NA | Q42: 32 | R42: 17.96867827 | S42: 0.066 | T42: 277589.6271 | U42: 293465.0008 | V42: 1000 | W42: 214953.6661 | X42: 55.65239607 | Y42: 16387.68285 | AA42: 7542.425752 | AB42: 248900.0498 | AD42: NA | AE42: NA | AF42: NA | AG42: 0 | AH42: 0 | AI42: 0 | AJ42: 0 | AK42: 0 | AL42: 0 | AM42: 0 | AO42: NA
A43: 34 | B43: 17.48352396 | C43: NA | D43: NA | E43: NA | L43: NA | M43: NA | N43: NA | O43: NA | P43: NA | Q43: 33 | R43: 17.48352396 | S43: -0.027 | T43: 287508.1533 | U43: 286514.4458 | V43: 8536.133251 | W43: 223489.7994 | X43: 488.2387139 | Y43: 16875.92157 | AA43: 7542.425752 | AB43: 256442.4756 | AD43: NA | AE43: NA | AF43: NA | AG43: 0 | AH43: 0 | AI43: 0 | AJ43: 0 | AK43: 0 | AL43: 0 | AM43: 0 | AO43: NA
A44: 35 | B44: 17.93809558 | C44: NA | D44: NA | E44: NA | L44: NA | M44: NA | N44: NA | O44: NA | P44: NA | Q44: 34 | R44: 17.93809558 | S44: 0.026 | T44: 297509.3338 | U44: 302721.8941 | V44: 2329.865522 | W44: 225819.6649 | X44: 129.8836608 | Y44: 17005.80523 | AA44: 7542.425752 | AB44: 263984.9013 | AD44: NA | AE44: NA | AF44: NA | AG44: 0 | AH44: 0 | AI44: 0 | AJ44: 0 | AK44: 0 | AL44: 0 | AM44: 0 | AO44: NA
A45: 36 | B45: 18.54799083 | C45: NA | D45: NA | E45: NA | L45: NA | M45: NA | N45: NA | O45: NA | P45: NA | Q45: 35 | R45: 18.54799083 | S45: 0.034 | T45: 307593.8576 | U45: 315423.5194 | V45: 1000 | W45: 226819.6649 | X45: 53.91419529 | Y45: 17059.71942 | AA45: 7542.425752 | AB45: 271527.3271 | AD45: NA | AE45: NA | AF45: NA | AG45: 0 | AH45: 0 | AI45: 0 | AJ45: 0 | AK45: 0 | AL45: 0 | AM45: 0 | AO45: NA
A46: 37 | B46: 17.43511138 | C46: NA | D46: NA | E46: NA | L46: NA | M46: NA | N46: NA | O46: NA | P46: NA | Q46: 36 | R46: 17.43511138 | S46: -0.06 | T46: 317762.419 | U46: 297438.1083 | V46: 15000 | W46: 241819.6649 | X46: 860.3329036 | Y46: 17920.05233 | AA46: 7542.425752 | AB46: 279069.7528 | AD46: NA | AE46: NA | AF46: NA | AG46: 0 | AH46: 0 | AI46: 0 | AJ46: 0 | AK46: 0 | AL46: 0 | AM46: 0 | AO46: NA
A47: 38 | B47: 17.20845493 | C47: NA | D47: NA | E47: NA | L47: NA | M47: NA | N47: NA | O47: NA | P47: NA | Q47: 37 | R47: 17.20845493 | S47: -0.013 | T47: 328015.7185 | U47: 308376.4129 | V47: 15000 | W47: 256819.6649 | X47: 871.6645427 | Y47: 18791.71687 | AA47: 7542.425752 | AB47: 286612.1786 | AD47: NA | AE47: NA | AF47: NA | AG47: 0 | AH47: 0 | AI47: 0 | AJ47: 0 | AK47: 0 | AL47: 0 | AM47: 0 | AO47: NA
A48: 39 | B48: 16.64057592 | C48: NA | D48: NA | E48: NA | L48: NA | M48: NA | N48: NA | O48: NA | P48: NA | Q48: 38 | R48: 16.64057592 | S48: -0.033 | T48: 338354.4621 | U48: 312704.9912 | V48: 15000 | W48: 271819.6649 | X48: 901.4111093 | Y48: 19693.12798 | AA48: 7542.425752 | AB48: 294154.6043 | AD48: NA | AE48: NA | AF48: NA | AG48: 0 | AH48: 0 | AI48: 0 | AJ48: 0 | AK48: 0 | AL48: 0 | AM48: 0 | AO48: NA
A49: 40 | B49: 16.85690341 | C49: NA | D49: NA | E49: NA | L49: NA | M49: NA | N49: NA | O49: NA | P49: NA | Q49: 39 | R49: 16.85690341 | S49: 0.013 | T49: 348779.3619 | U49: 331965.1561 | V49: 15000 | W49: 286819.6649 | X49: 889.8431484 | Y49: 20582.97113 | AA49: 7542.425752 | AB49: 301697.0301 | AD49: NA | AE49: NA | AF49: NA | AG49: 0 | AH49: 0 | AI49: 0 | AJ49: 0 | AK49: 0 | AL49: 0 | AM49: 0 | AO49: NA
A50: 41 | B50: 18.69430588 | C50: NA | D50: NA | E50: NA | L50: NA | M50: NA | N50: NA | O50: NA | P50: NA | Q50: 40 | R50: 18.69430588 | S50: 0.109 | T50: 359291.1359 | U50: 384784.3581 | V50: 1000 | W50: 287819.6649 | X50: 53.49222413 | Y50: 20636.46335 | AA50: 7542.425752 | AB50: 309239.4558 | AD50: NA | AE50: NA | AF50: NA | AG50: 0 | AH50: 0 | AI50: 0 | AJ50: 0 | AK50: 0 | AL50: 0 | AM50: 0 | AO50: NA
A51: 42 | B51: 18.69430588 | C51: NA | D51: NA | E51: NA | L51: NA | M51: NA | N51: NA | O51: NA | P51: NA | Q51: 41 | R51: 18.69430588 | S51: 0 | T51: 369890.508 | U51: 385784.3581 | V51: 1000 | W51: 288819.6649 | X51: 53.49222413 | Y51: 20689.95557 | AA51: 7542.425752 | AB51: 316781.8816 | AD51: NA | AE51: NA | AF51: NA | AG51: 0 | AH51: 0 | AI51: 0 | AJ51: 0 | AK51: 0 | AL51: 0 | AM51: 0 | AO51: NA
A52: 43 | B52: 18.54475143 | C52: NA | D52: NA | E52: NA | L52: NA | M52: NA | N52: NA | O52: NA | P52: NA | Q52: 42 | R52: 18.54475143 | S52: -0.008 | T52: 380578.2082 | U52: 383690.0833 | V52: 4430.550706 | W52: 293250.2156 | X52: 238.9113018 | Y52: 20928.86688 | AA52: 7542.425752 | AB52: 324324.3073 | AD52: NA | AE52: NA | AF52: NA | AG52: 0 | AH52: 0 | AI52: 0 | AJ52: 0 | AK52: 0 | AL52: 0 | AM52: 0 | AO52: NA
A53: 44 | B53: 18.7858332 | C53: NA | D53: NA | E53: NA | L53: NA | M53: NA | N53: NA | O53: NA | P53: NA | Q53: 43 | R53: 18.7858332 | S53: 0.013 | T53: 391354.9726 | U53: 393166.2022 | V53: 5731.196127 | W53: 298981.4118 | X53: 305.0807524 | Y53: 21233.94763 | AA53: 7542.425752 | AB53: 331866.7331 | AD53: NA | AE53: NA | AF53: NA | AG53: 0 | AH53: 0 | AI53: 0 | AJ53: 0 | AK53: 0 | AL53: 0 | AM53: 0 | AO53: NA
A54: 45 | B54: 18.59797487 | C54: NA | D54: NA | E54: NA | L54: NA | M54: NA | N54: NA | O54: NA | P54: NA | Q54: 44 | R54: 18.59797487 | S54: -0.01 | T54: 402221.5433 | U54: 394908.4244 | V54: 14855.54472 | W54: 313836.9565 | X54: 798.7721688 | Y54: 22032.7198 | AA54: 7542.425752 | AB54: 339409.1588 | AD54: NA | AE54: NA | AF54: NA | AG54: 0 | AH54: 0 | AI54: 0 | AJ54: 0 | AK54: 0 | AL54: 0 | AM54: 0 | AO54: NA
A55: 46 | B55: 18.65376879 | C55: NA | D55: NA | E55: NA | L55: NA | M55: NA | N55: NA | O55: NA | P55: NA | Q55: 45 | R55: 18.65376879 | S55: 0.003 | T55: 413178.6688 | U55: 410993.261 | V55: 9727.833587 | W55: 323564.7901 | X55: 521.4942725 | Y55: 22554.21407 | AA55: 7542.425752 | AB55: 346951.5846 | AD55: NA | AE55: NA | AF55: NA | AG55: 0 | AH55: 0 | AI55: 0 | AJ55: 0 | AK55: 0 | AL55: 0 | AM55: 0 | AO55: NA
A56: 47 | B56: 18.91492156 | C56: NA | D56: NA | E56: NA | L56: NA | M56: NA | N56: NA | O56: NA | P56: NA | Q56: 46 | R56: 18.91492156 | S56: 0.014 | T56: 424227.1037 | U56: 426611.1899 | V56: 5158.339549 | W56: 328723.1296 | X56: 272.7127117 | Y56: 22826.92678 | AA56: 7542.425752 | AB56: 354494.0103 | AD56: NA | AE56: NA | AF56: NA | AG56: 0 | AH56: 0 | AI56: 0 | AJ56: 0 | AK56: 0 | AL56: 0 | AM56: 0 | AO56: NA
A57: 48 | B57: 19.9174124 | C57: NA | D57: NA | E57: NA | L57: NA | M57: NA | N57: NA | O57: NA | P57: NA | Q57: 47 | R57: 19.9174124 | S57: 0.053 | T57: 435367.6089 | U57: 454653.3145 | V57: 1000 | W57: 329723.1296 | X57: 50.20732513 | Y57: 22877.13411 | AA57: 7542.425752 | AB57: 362036.4361 | AD57: NA | AE57: NA | AF57: NA | AG57: 0 | AH57: 0 | AI57: 0 | AJ57: 0 | AK57: 0 | AL57: 0 | AM57: 0 | AO57: NA
A58: 49 | B58: 19.55889898 | C58: NA | D58: NA | E58: NA | L58: NA | M58: NA | N58: NA | O58: NA | P58: NA | Q58: 48 | R58: 19.55889898 | S58: -0.018 | T58: 446600.9516 | U58: 447451.5548 | V58: 6691.822471 | W58: 336414.9521 | X58: 342.136972 | Y58: 23219.27108 | AA58: 7542.425752 | AB58: 369578.8618 | AD58: NA | AE58: NA | AF58: NA | AG58: 0 | AH58: 0 | AI58: 0 | AJ58: 0 | AK58: 0 | AL58: 0 | AM58: 0 | AO58: NA
A59: 50 | B59: 19.71537017 | C59: NA | D59: NA | E59: NA | L59: NA | M59: NA | N59: NA | O59: NA | P59: NA | Q59: 49 | R59: 19.71537017 | S59: 0.008 | T59: 457927.9055 | U59: 457776.5243 | V59: 7693.806878 | W59: 344108.759 | X59: 390.2440995 | Y59: 23609.51518 | AA59: 7542.425752 | AB59: 377121.2876 | AD59: NA | AE59: NA | AF59: NA | AG59: 0 | AH59: 0 | AI59: 0 | AJ59: 0 | AK59: 0 | AL59: 0 | AM59: 0 | AO59: NA
A60: 51 | B60: 19.30134739 | C60: NA | D60: NA | E60: NA | L60: NA | M60: NA | N60: NA | O60: NA | P60: NA | Q60: 50 | R60: 19.30134739 | S60: -0.021 | T60: 469349.2506 | U60: 455695.4543 | V60: 15000 | W60: 359108.759 | X60: 777.1478174 | Y60: 24386.663 | AA60: 7542.425752 | AB60: 384663.7133 | AD60: NA | AE60: NA | AF60: NA | AG60: 0 | AH60: 0 | AI60: 0 | AJ60: 0 | AK60: 0 | AL60: 0 | AM60: 0 | AO60: NA
A61: 52 | B61: 18.50999215 | C61: NA | D61: NA | E61: NA | L61: NA | M61: NA | N61: NA | O61: NA | P61: NA | Q61: 51 | R61: 18.50999215 | S61: -0.041 | T61: 480865.7737 | U61: 451396.9406 | V61: 15000 | W61: 374108.759 | X61: 810.3731151 | Y61: 25197.03611 | AA61: 7542.425752 | AB61: 392206.1391 | AD61: NA | AE61: NA | AF61: NA | AG61: 0 | AH61: 0 | AI61: 0 | AJ61: 0 | AK61: 0 | AL61: 0 | AM61: 0 | AO61: NA
A62: 53 | B62: 18.93572197 | C62: NA | D62: NA | E62: NA | L62: NA | M62: NA | N62: NA | O62: NA | P62: NA | Q62: 52 | R62: 18.93572197 | S62: 0.023 | T62: 492478.2678 | U62: 477124.0703 | V62: 15000 | W62: 389108.759 | X62: 792.1535827 | Y62: 25989.18969 | AA62: 7542.425752 | AB62: 399748.5648 | AD62: NA | AE62: NA | AF62: NA | AG62: 0 | AH62: 0 | AI62: 0 | AJ62: 0 | AK62: 0 | AL62: 0 | AM62: 0 | AO62: NA
A63: 54 | B63: 19.61740796 | C63: NA | D63: NA | E63: NA | L63: NA | M63: NA | N63: NA | O63: NA | P63: NA | Q63: 53 | R63: 19.61740796 | S63: 0.036 | T63: 504187.5326 | U63: 509840.5368 | V63: 1889.421594 | W63: 390998.1806 | X63: 96.313519 | Y63: 26085.50321 | AA63: 7542.425752 | AB63: 407290.9906 | AD63: NA | AE63: NA | AF63: NA | AG63: 0 | AH63: 0 | AI63: 0 | AJ63: 0 | AK63: 0 | AL63: 0 | AM63: 0 | AO63: NA
A64: 55 | B64: 19.9509039 | C64: NA | D64: NA | E64: NA | L64: NA | M64: NA | N64: NA | O64: NA | P64: NA | Q64: 54 | R64: 19.9509039 | S64: 0.017 | T64: 515994.3747 | U64: 520429.3677 | V64: 3107.432779 | W64: 394105.6133 | X64: 155.7539846 | Y64: 26241.2572 | AA64: 7542.425752 | AB64: 414833.4163 | AD64: NA | AE64: NA | AF64: NA | AG64: 0 | AH64: 0 | AI64: 0 | AJ64: 0 | AK64: 0 | AL64: 0 | AM64: 0 | AO64: NA
A65: 56 | B65: 19.59178763 | C65: NA | D65: NA | E65: NA | L65: NA | M65: NA | N65: NA | O65: NA | P65: NA | Q65: 55 | R65: 19.59178763 | S65: -0.018 | T65: 527899.6071 | U65: 514113.1381 | V65: 15000 | W65: 409105.6133 | X65: 765.6269191 | Y65: 27006.88412 | AA65: 7542.425752 | AB65: 422375.8421 | AD65: NA | AE65: NA | AF65: NA | AG65: 0 | AH65: 0 | AI65: 0 | AJ65: 0 | AK65: 0 | AL65: 0 | AM65: 0 | AO65: NA
A66: 57 | B66: 20.88484561 | C66: NA | D66: NA | E66: NA | L66: NA | M66: NA | N66: NA | O66: NA | P66: NA | Q66: 56 | R66: 20.88484561 | S66: 0.066 | T66: 539904.0498 | U66: 564034.6052 | V66: 1000 | W66: 410105.6133 | X66: 47.88160845 | Y66: 27054.76572 | AA66: 7542.425752 | AB66: 429918.2679 | AD66: NA | AE66: NA | AF66: NA | AG66: 0 | AH66: 0 | AI66: 0 | AJ66: 0 | AK66: 0 | AL66: 0 | AM66: 0 | AO66: NA
A67: 58 | B67: 21.05192438 | C67: NA | D67: NA | E67: NA | L67: NA | M67: NA | N67: NA | O67: NA | P67: NA | Q67: 57 | R67: 21.05192438 | S67: 0.008 | T67: 552008.5295 | U67: 569554.882 | V67: 1000 | W67: 411105.6133 | X67: 47.50159568 | Y67: 27102.26732 | AA67: 7542.425752 | AB67: 437460.6936 | AD67: NA | AE67: NA | AF67: NA | AG67: 0 | AH67: 0 | AI67: 0 | AJ67: 0 | AK67: 0 | AL67: 0 | AM67: 0 | AO67: NA
A68: 59 | B68: 20.39931472 | C68: NA | D68: NA | E68: NA | L68: NA | M68: NA | N68: NA | O68: NA | P68: NA | Q68: 58 | R68: 20.39931472 | S68: -0.031 | T68: 564213.8799 | U68: 552867.6807 | V68: 15000 | W68: 426105.6133 | X68: 735.3188186 | Y68: 27837.58614 | AA68: 7542.425752 | AB68: 445003.1194 | AD68: NA | AE68: NA | AF68: NA | AG68: 0 | AH68: 0 | AI68: 0 | AJ68: 0 | AK68: 0 | AL68: 0 | AM68: 0 | AO68: NA
A69: 60 | B69: 21.37848183 | C69: NA | D69: NA | E69: NA | L69: NA | M69: NA | N69: NA | O69: NA | P69: NA | Q69: 59 | R69: 21.37848183 | S69: 0.048 | T69: 576520.9416 | U69: 595125.3293 | V69: 1000 | W69: 427105.6133 | X69: 46.77600627 | Y69: 27884.36214 | AA69: 7542.425752 | AB69: 452545.5451 | AD69: NA | AE69: NA | AF69: NA | AG69: 0 | AH69: 0 | AI69: 0 | AJ69: 0 | AK69: 0 | AL69: 0 | AM69: 0 | AO69: NA
A70: 61 | B70: 22.61843377 | C70: NA | D70: NA | E70: NA | L70: NA | M70: NA | N70: NA | O70: NA | P70: NA | Q70: 60 | R70: 22.61843377 | S70: 0.058 | T70: 588930.562 | U70: 630700.5984 | V70: 1000 | W70: 428105.6133 | X70: 44.21172616 | Y70: 27928.57387 | AA70: 7542.425752 | AB70: 460087.9709 | AD70: NA | AE70: NA | AF70: NA | AG70: 0 | AH70: 0 | AI70: 0 | AJ70: 0 | AK70: 0 | AL70: 0 | AM70: 0 | AO70: NA
A71: 62 | B71: 23.88506606 | C71: NA | D71: NA | E71: NA | L71: NA | M71: NA | N71: NA | O71: NA | P71: NA | Q71: 61 | R71: 23.88506606 | S71: 0.056 | T71: 601443.596 | U71: 667075.832 | V71: 1000 | W71: 429105.6133 | X71: 41.86716492 | Y71: 27970.44104 | AA71: 7542.425752 | AB71: 467630.3966 | AD71: NA | AE71: NA | AF71: NA | AG71: 0 | AH71: 0 | AI71: 0 | AJ71: 0 | AK71: 0 | AL71: 0 | AM71: 0 | AO71: NA
A72: 63 | B72: 27.82610196 | C72: NA | D72: NA | E72: NA | L72: NA | M72: NA | N72: NA | O72: NA | P72: NA | Q72: 62 | R72: 27.82610196 | S72: 0.165 | T72: 614060.9053 | U72: 778308.3442 | V72: 1000 | W72: 430105.6133 | X72: 35.93748062 | Y72: 28006.37852 | AA72: 7542.425752 | AB72: 475172.8224 | AD72: NA | AE72: NA | AF72: NA | AG72: 0 | AH72: 0 | AI72: 0 | AJ72: 0 | AK72: 0 | AL72: 0 | AM72: 0 | AO72: NA
A73: 64 | B73: 30.44175555 | C73: NA | D73: NA | E73: NA | L73: NA | M73: NA | N73: NA | O73: NA | P73: NA | Q73: 63 | R73: 30.44175555 | S73: 0.094 | T73: 626783.3588 | U73: 852563.3286 | V73: 1000 | W73: 431105.6133 | X73: 32.84961665 | Y73: 28039.22813 | AA73: 7542.425752 | AB73: 482715.2481 | AD73: NA | AE73: NA | AF73: NA | AG73: 0 | AH73: 0 | AI73: 0 | AJ73: 0 | AK73: 0 | AL73: 0 | AM73: 0 | AO73: NA
A74: 65 | B74: 31.41589173 | C74: =IF(AND(A74>=startm,A74<=endm),A74-startm,"NA") -> NA | D74: NA | E74: =IF(C74="NA","NA",IF(C74=0,typical,(1+return/12)*typical*((1+return/12)^C74-1)/(return/12))) -> NA | L74: =IF(C74="NA","NA",IF(C74=0,typical,IF(L73="NA",typical,IF(INT(C74/12)-(C74/12)=0,L73*(1+gsip1),L73)))) -> NA | M74: NA | N74: NA | O74: NA | P74: NA | Q74: 64 | R74: 31.41589173 | S74: 0.032 | T74: 639611.8327 | U74: 880877.3551 | V74: 1000 | W74: 432105.6133 | X74: =V74/R74 -> 31.83102389 | Y74: 28071.05916 | AA74: =typical -> 7542.425752 | AB74: 490257.6739 | AD74: =IF(A74=endm,E74,IF(C74="NA","NA",-typical)) -> NA | AE74: =IF(A74=endm,P74,IF(C74="NA","NA",-typical)) -> NA | AF74: =IF(A74=endm,F74,IF(C74="NA","NA",-G74)) -> NA | AG74: =IF(A74=endm,O74,0) -> 0 | AH74: =IF(A74=endm,J74,0) -> 0 | AI74: =IF(A74=endm,E74,0) -> 0 | AJ74: =IF(A74=endm,P74,0) -> 0 | AK74: =IF(A74=endm,F74,0) -> 0 | AL74: =IF(A74=endm,M74,0) -> 0 | AM74: =IF(A74=endm,H74,0) -> 0 | AO74: NA
A75: 66 | B75: 37.6048224 | C75: NA | D75: =IF(C75="NA","NA",IF(C75=0,0,(B75-B74)/B74)) -> NA | E75: NA | L75: NA | M75: NA | N75: =IF(C75="NA","NA",L75/B75) -> NA | O75: NA | P75: =IF(C75="NA","NA",O75*B75) -> NA | Q75: 65 | R75: 37.6048224 | S75: 0.197 | T75: =(1+return/12)*typical*((1+return/12)^Q75-1)/(return/12) -> 652547.2107 | U75: 1055607.194 | V75: =IF((U75-T75)>0,IF(typical-(U75-T75)<min,min,typical-(U75-T75)),IF((U75-T75)<0,IF(typical-(U75-T75)>max,max,typical-(U75-T75)),IF((T75-U75)=0,min,))) -> 1000 | W75: =W74+V75 -> 433105.6133 | X75: 26.59233408 | Y75: 28097.65149 | AA75: 7542.425752 | AB75: 497800.0996 | AD75: NA | AE75: NA | AF75: NA | AG75: 0 | AH75: 0 | AI75: 0 | AJ75: 0 | AK75: 0 | AL75: 0 | AM75: 0 | AO75: NA
A76: =A75+1 -> 67 | B76: 40.50039372 | C76: NA | D76: NA | E76: NA | L76: NA | M76: NA | N76: NA | O76: NA | P76: NA | Q76: =Q75+1 -> 66 | R76: 40.50039372 | S76: 0.077 | T76: 665590.3834 | U76: 1137965.948 | V76: 1000 | W76: 434105.6133 | X76: 24.69111799 | Y76: =Y75+X76 -> 28122.34261 | AA76: 7542.425752 | AB76: =AB75+AA76 -> 505342.5254 | AD76: NA | AE76: NA | AF76: NA | AG76: 0 | AH76: 0 | AI76: 0 | AJ76: 0 | AK76: 0 | AL76: 0 | AM76: 0 | AO76: NA
A77: 68 | B77: 36.81485789 | C77: NA | D77: NA | E77: NA | L77: NA | M77: NA | N77: NA | O77: NA | P77: NA | Q77: 67 | R77: 36.81485789 | S77: -0.091 | T77: 678742.2492 | U77: 1035320.047 | V77: 1000 | W77: 435105.6133 | X77: 27.16294608 | Y77: 28149.50556 | AA77: 7542.425752 | AB77: 512884.9511 | AD77: NA | AE77: NA | AF77: NA | AG77: 0 | AH77: 0 | AI77: 0 | AJ77: 0 | AK77: 0 | AL77: 0 | AM77: 0 | AO77: NA
A78: 69 | B78: 34.20100298 | C78: NA | D78: NA | E78: NA | L78: NA | M78: NA | N78: NA | O78: NA | P78: NA | Q78: 68 | R78: 34.20100298 | S78: =(R78-R77)/R77 -> -0.071 | T78: 692003.7139 | U78: =(U77+V77)*(1+S78) -> 962741.3234 | V78: 1000 | W78: 436105.6133 | X78: 29.23890859 | Y78: 28178.74446 | AA78: 7542.425752 | AB78: 520427.3769 | AD78: NA | AE78: NA | AF78: NA | AG78: 0 | AH78: 0 | AI78: 0 | AJ78: 0 | AK78: 0 | AL78: 0 | AM78: 0 | AO78: NA
A79: 70 | B79: 37.45009826 | C79: NA | D79: NA | E79: NA | L79: NA | M79: NA | N79: NA | O79: NA | P79: NA | Q79: 69 | R79: 37.45009826 | S79: 0.095 | T79: 705375.6908 | U79: 1055296.749 | V79: 1000 | W79: 437105.6133 | X79: 26.70219963 | Y79: 28205.44666 | AA79: 7542.425752 | AB79: 527969.8026 | AD79: NA | AE79: NA | AF79: NA | AG79: 0 | AH79: 0 | AI79: 0 | AJ79: 0 | AK79: 0 | AL79: 0 | AM79: 0 | AO79: NA
A80: 71 | B80: 39.02300239 | C80: NA | D80: NA | E80: NA | L80: NA | M80: NA | N80: NA | O80: NA | P80: NA | Q80: 70 | R80: 39.02300239 | S80: 0.042 | T80: 718859.1009 | U80: 1100661.213 | V80: 1000 | W80: 438105.6133 | X80: 25.62591135 | Y80: 28231.07257 | AA80: 7542.425752 | AB80: 535512.2284 | AD80: NA | AE80: NA | AF80: NA | AG80: 0 | AH80: 0 | AI80: 0 | AJ80: 0 | AK80: 0 | AL80: 0 | AM80: 0 | AO80: NA
A81: 72 | B81: 41.44242854 | C81: NA | D81: NA | E81: NA | L81: NA | M81: NA | N81: NA | O81: NA | P81: NA | Q81: 71 | R81: 41.44242854 | S81: 0.062 | T81: 732454.8727 | U81: 1169964.208 | V81: 1000 | W81: 439105.6133 | X81: 24.12986003 | Y81: 28255.20243 | AA81: 7542.425752 | AB81: 543054.6541 | AD81: NA | AE81: NA | AF81: NA | AG81: 0 | AH81: 0 | AI81: 0 | AJ81: 0 | AK81: 0 | AL81: 0 | AM81: 0 | AO81: NA
A82: 73 | B82: 46.99571396 | C82: NA | D82: NA | E82: NA | L82: NA | M82: NA | N82: NA | O82: NA | P82: NA | Q82: 72 | R82: 46.99571396 | S82: 0.134 | T82: 746163.9426 | U82: 1327873.412 | V82: 1000 | W82: 440105.6133 | X82: 21.27853618 | Y82: 28276.48097 | AA82: 7542.425752 | AB82: 550597.0799 | AD82: NA | AE82: NA | AF82: NA | AG82: 0 | AH82: 0 | AI82: 0 | AJ82: 0 | AK82: 0 | AL82: 0 | AM82: 0 | AO82: NA
A83: 74 | B83: 51.64828965 | C83: NA | D83: NA | E83: NA | L83: NA | M83: NA | N83: NA | O83: NA | P83: NA | Q83: 73 | R83: 51.64828965 | S83: 0.099 | T83: 759987.2548 | U83: 1460431.879 | V83: 1000 | W83: 441105.6133 | X83: 19.36172537 | Y83: 28295.8427 | AA83: 7542.425752 | AB83: 558139.5056 | AD83: NA | AE83: NA | AF83: NA | AG83: 0 | AH83: 0 | AI83: 0 | AJ83: 0 | AK83: 0 | AL83: 0 | AM83: 0 | AO83: NA
A84: 75 | B84: 45.14060515 | C84: NA | D84: NA | E84: NA | L84: NA | M84: NA | N84: NA | O84: NA | P84: NA | Q84: 74 | R84: 45.14060515 | S84: -0.126 | T84: 773925.7612 | U84: 1277291.463 | V84: 1000 | W84: 442105.6133 | X84: 22.15300386 | Y84: 28317.9957 | AA84: 7542.425752 | AB84: 565681.9314 | AD84: NA | AE84: NA | AF84: NA | AG84: 0 | AH84: 0 | AI84: 0 | AJ84: 0 | AK84: 0 | AL84: 0 | AM84: 0 | AO84: NA
A85: 76 | B85: 47.08165117 | C85: NA | D85: NA | E85: NA | L85: NA | M85: NA | N85: NA | O85: NA | P85: NA | Q85: 75 | R85: 47.08165117 | S85: 0.043 | T85: 787980.4218 | U85: 1333257.995 | V85: 1000 | W85: 443105.6133 | X85: 21.23969689 | Y85: 28339.2354 | AA85: 7542.425752 | AB85: 573224.3571 | AD85: NA | AE85: NA | AF85: NA | AG85: 0 | AH85: 0 | AI85: 0 | AJ85: 0 | AK85: 0 | AL85: 0 | AM85: 0 | AO85: NA
A86: 77 | B86: 49.20032548 | C86: NA | D86: NA | E86: NA | L86: NA | M86: NA | N86: NA | O86: NA | P86: NA | Q86: 76 | R86: 49.20032548 | S86: 0.045 | T86: 802152.2046 | U86: 1394299.605 | V86: 1000 | W86: 444105.6133 | X86: 20.32506879 | Y86: 28359.56047 | AA86: 7542.425752 | AB86: 580766.7829 | AD86: NA | AE86: NA | AF86: NA | AG86: 0 | AH86: 0 | AI86: 0 | AJ86: 0 | AK86: 0 | AL86: 0 | AM86: 0 | AO86: NA
A87: 78 | B87: 47.62591506 | C87: NA | D87: NA | E87: NA | L87: NA | M87: =IF(C87="NA","NA",IF(M86="NA",L87,M86+L87)) -> NA | N87: NA | O87: =IF(C87="NA","NA",IF(O86="NA",N87,O86+N87)) -> NA | P87: NA | Q87: 77 | R87: 47.62591506 | S87: -0.032 | T87: 816442.0856 | U87: 1350650.018 | V87: 1000 | W87: 445105.6133 | X87: 20.9969719 | Y87: 28380.55744 | AA87: 7542.425752 | AB87: 588309.2086 | AD87: NA | AE87: NA | AF87: NA | AG87: 0 | AH87: 0 | AI87: 0 | AJ87: 0 | AK87: 0 | AL87: 0 | AM87: 0 | AO87: NA
A88: 79 | B88: 46.91152633 | C88: NA | D88: NA | E88: NA | L88: NA | M88: NA | N88: NA | O88: NA | P88: NA | Q88: 78 | R88: 46.91152633 | S88: -0.015 | T88: 830851.049 | U88: 1331375.268 | V88: 1000 | W88: 446105.6133 | X88: 21.31672274 | Y88: 28401.87416 | AA88: 7542.425752 | AB88: 595851.6344 | AD88: NA | AE88: NA | AF88: NA | AG88: 0 | AH88: 0 | AI88: 0 | AJ88: 0 | AK88: 0 | AL88: 0 | AM88: 0 | AO88: NA
A89: 80 | B89: 43.1116927 | C89: NA | D89: NA | E89: NA | L89: NA | M89: NA | N89: NA | O89: NA | P89: NA | Q89: 79 | R89: 43.1116927 | S89: -0.081 | T89: 845380.087 | U89: 1224452.871 | V89: 1000 | W89: 447105.6133 | X89: 23.19556337 | Y89: 28425.06972 | AA89: 7542.425752 | AB89: 603394.0601 | AD89: NA | AE89: NA | AF89: NA | AG89: 0 | AH89: 0 | AI89: 0 | AJ89: 0 | AK89: 0 | AL89: 0 | AM89: 0 | AO89: NA
A90: 81 | B90: 46.25884627 | C90: NA | D90: NA | E90: NA | L90: NA | M90: NA | N90: NA | O90: NA | P90: NA | Q90: 80 | R90: 46.25884627 | S90: 0.073 | T90: 860030.2004 | U90: 1314910.931 | V90: 1000 | W90: 448105.6133 | X90: 21.61748683 | Y90: 28446.68721 | AA90: 7542.425752 | AB90: 610936.4859 | AD90: NA | AE90: NA | AF90: NA | AG90: 0 | AH90: 0 | AI90: 0 | AJ90: 0 | AK90: 0 | AL90: 0 | AM90: 0 | AO90: NA
A91: 82 | B91: 45.24115165 | C91: NA | D91: NA | E91: NA | L91: NA | M91: NA | N91: NA | O91: NA | P91: NA | Q91: 81 | R91: 45.24115165 | S91: -0.022 | T91: 874802.398 | U91: 1286960.89 | V91: 1000 | W91: 449105.6133 | X91: 22.10376977 | Y91: 28468.79098 | AA91: 7542.425752 | AB91: 618478.9116 | AD91: NA | AE91: NA | AF91: NA | AG91: 0 | AH91: 0 | AI91: 0 | AJ91: 0 | AK91: 0 | AL91: 0 | AM91: 0 | AO91: NA
A92: 83 | B92: 39.26931963 | C92: NA | D92: NA | E92: NA | L92: NA | M92: NA | N92: NA | O92: NA | P92: NA | Q92: 82 | R92: 39.26931963 | S92: -0.132 | T92: 889697.6973 | U92: 1117950.053 | V92: 1000 | W92: 450105.6133 | X92: 25.46517254 | Y92: 28494.25615 | AA92: 7542.425752 | AB92: 626021.3374 | AD92: NA | AE92: NA | AF92: NA | AG92: 0 | AH92: 0 | AI92: 0 | AJ92: 0 | AK92: 0 | AL92: 0 | AM92: 0 | AO92: NA
A93: 84 | B93: 41.19351629 | C93: NA | D93: NA | E93: NA | L93: NA | M93: NA | N93: NA | O93: NA | P93: NA | Q93: 83 | R93: 41.19351629 | S93: 0.049 | T93: 904717.1241 | U93: 1173778.605 | V93: 1000 | W93: 451105.6133 | X93: 24.27566496 | Y93: 28518.53182 | AA93: 7542.425752 | AB93: 633563.7631 | AD93: NA | AE93: NA | AF93: NA | AG93: 0 | AH93: 0 | AI93: 0 | AJ93: 0 | AK93: 0 | AL93: 0 | AM93: 0 | AO93: NA
A94: 85 | B94: 43.50035321 | C94: NA | D94: NA | E94: NA | L94: NA | M94: NA | N94: NA | O94: NA | P94: NA | Q94: 84 | R94: 43.50035321 | S94: 0.056 | T94: 919861.7127 | U94: 1240566.207 | V94: 1000 | W94: 452105.6133 | X94: 22.98831909 | Y94: 28541.52014 | AA94: 7542.425752 | AB94: 641106.1889 | AD94: NA | AE94: NA | AF94: NA | AG94: 0 | AH94: 0 | AI94: 0 | AJ94: 0 | AK94: 0 | AL94: 0 | AM94: 0 | AO94: NA
A95: 86 | B95: 45.24036734 | C95: NA | D95: NA | E95: NA | L95: NA | M95: NA | N95: NA | O95: NA | P95: NA | Q95: 85 | R95: 45.24036734 | S95: 0.04 | T95: 935132.5063 | U95: 1291228.855 | V95: 1000 | W95: 453105.6133 | X95: 22.10415297 | Y95: 28563.62429 | AA95: 7542.425752 | AB95: 648648.6147 | AD95: NA | AE95: NA | AF95: NA | AG95: 0 | AH95: 0 | AI95: 0 | AJ95: 0 | AK95: 0 | AL95: 0 | AM95: 0 | AO95: NA
A96: 87 | B96: 40.08296546 | C96: NA | D96: NA | E96: NA | L96: NA | M96: NA | N96: NA | O96: NA | P96: NA | Q96: 86 | R96: 40.08296546 | S96: -0.114 | T96: 950530.5565 | U96: 1144914.766 | V96: 1000 | W96: 454105.6133 | X96: 24.94825392 | Y96: 28588.57254 | AA96: 7542.425752 | AB96: 656191.0404 | AD96: NA | AE96: NA | AF96: NA | AG96: 0 | AH96: 0 | AI96: 0 | AJ96: 0 | AK96: 0 | AL96: 0 | AM96: 0 | AO96: NA
A97: 88 | B97: 37.67798753 | C97: NA | D97: NA | E97: NA | L97: NA | M97: NA | N97: NA | O97: NA | P97: NA | Q97: 87 | R97: 37.67798753 | S97: -0.06 | T97: 966056.9238 | U97: 1077159.88 | V97: 1000 | W97: 455105.6133 | X97: 26.54069566 | Y97: 28615.11324 | AA97: 7542.425752 | AB97: 663733.4662 | AD97: NA | AE97: NA | AF97: NA | AG97: 0 | AH97: 0 | AI97: 0 | AJ97: 0 | AK97: 0 | AL97: 0 | AM97: 0 | AO97: NA
A98: 89 | B98: 36.28390199 | C98: NA | D98: NA | E98: NA | L98: NA | M98: NA | N98: NA | O98: NA | P98: NA | Q98: 88 | R98: 36.28390199 | S98: -0.037 | T98: 981712.6774 | U98: 1038267.964 | V98: 1000 | W98: 456105.6133 | X98: 27.56043163 | Y98: 28642.67367 | AA98: 7542.425752 | AB98: 671275.8919 | AD98: NA | AE98: NA | AF98: NA | AG98: 0 | AH98: 0 | AI98: 0 | AJ98: 0 | AK98: 0 | AL98: 0 | AM98: 0 | AO98: NA
A99: 90 | B99: 34.07058397 | C99: NA | D99: NA | E99: NA | L99: NA | M99: NA | N99: NA | O99: NA | P99: NA | Q99: 89 | R99: 34.07058397 | S99: -0.061 | T99: 997498.8957 | U99: 975872.6185 | V99: 15000 | W99: 471105.6133 | X99: 440.262486 | Y99: 29082.93616 | AA99: 7542.425752 | AB99: 678818.3177 | AD99: NA | AE99: NA | AF99: NA | AG99: 0 | AH99: 0 | AI99: 0 | AJ99: 0 | AK99: 0 | AL99: 0 | AM99: 0 | AO99: NA
A100: 91 | B100: 38.39754814 | C100: NA | D100: NA | E100: NA | L100: NA | M100: NA | N100: NA | O100: NA | P100: NA | Q100: 90 | R100: 38.39754814 | S100: 0.127 | T100: 1013416.666 | U100: 1116713.441 | V100: 1000 | W100: 472105.6133 | X100: 26.04332955 | Y100: 29108.97949 | AA100: 7542.425752 | AB100: 686360.7434 | AD100: NA | AE100: NA | AF100: NA | AG100: 0 | AH100: 0 | AI100: 0 | AJ100: 0 | AK100: 0 | AL100: 0 | AM100: 0 | AO100: =IF(C100="NA","NA",INT(C100/12)-(C100/12)) -> NA
A101: 92 | B101: 37.89838001 | C101: NA | D101: NA | E101: NA | L101: NA | M101: NA | N101: NA | O101: NA | P101: NA | Q101: 91 | R101: 37.89838001 | S101: -0.013 | T101: 1029467.084 | U101: 1103183.166 | V101: 1000 | W101: 473105.6133 | X101: 26.38635213 | Y101: 29135.36584 | AA101: 7542.425752 | AB101: 693903.1692 | AD101: NA | AE101: NA | AF101: NA | AG101: 0 | AH101: 0 | AI101: 0 | AJ101: 0 | AK101: 0 | AL101: 0 | AM101: 0 | AO101: NA
A102: 93 | B102: 35.28339179 | C102: NA | D102: NA | E102: NA | L102: NA | M102: NA | N102: NA | O102: NA | P102: NA | Q102: 92 | R102: 35.28339179 | S102: -0.069 | T102: 1045651.256 | U102: 1027994.528 | V102: 15000 | W102: 488105.6133 | X102: 425.1291965 | Y102: 29560.49504 | AA102: 7542.425752 | AB102: 701445.5949 | AD102: NA | AE102: NA | AF102: NA | AG102: 0 | AH102: 0 | AI102: 0 | AJ102: 0 | AK102: 0 | AL102: 0 | AM102: 0 | AO102: NA
A103: 94 | B103: 35.35395857 | C103: NA | D103: NA | E103: NA | L103: NA | M103: NA | N103: NA | O103: NA | P103: NA | Q103: 93 | R103: 35.35395857 | S103: 0.002 | T103: 1061970.295 | U103: 1045080.517 | V103: 15000 | W103: 503105.6133 | X103: 424.2806352 | Y103: 29984.77567 | AA103: 7542.425752 | AB103: 708988.0207 | AD103: NA | AE103: NA | AF103: NA | AG103: 0 | AH103: 0 | AI103: 0 | AJ103: 0 | AK103: 0 | AL103: 0 | AM103: 0 | AO103: NA
A104: 95 | B104: 33.76303044 | C104: NA | D104: NA | E104: NA | L104: NA | M104: NA | N104: NA | O104: NA | P104: NA | Q104: 94 | R104: 33.76303044 | S104: -0.045 | T104: 1078425.327 | U104: 1012376.894 | V104: 15000 | W104: 518105.6133 | X104: 444.2729164 | Y104: 30429.04859 | AA104: 7542.425752 | AB104: 716530.4464 | AD104: NA | AE104: NA | AF104: NA | AG104: 0 | AH104: 0 | AI104: 0 | AJ104: 0 | AK104: 0 | AL104: 0 | AM104: 0 | AO104: NA
A105: 96 | B105: 34.70839529 | C105: NA | D105: NA | E105: NA | L105: NA | M105: NA | N105: NA | O105: NA | P105: NA | Q105: 95 | R105: 34.70839529 | S105: 0.028 | T105: 1095017.484 | U105: 1056143.447 | V105: 15000 | W105: 533105.6133 | X105: 432.1720977 | Y105: 30861.22068 | AA105: 7542.425752 | AB105: 724072.8722 | AD105: NA | AE105: NA | AF105: NA | AG105: 0 | AH105: 0 | AI105: 0 | AJ105: 0 | AK105: 0 | AL105: 0 | AM105: 0 | AO105: NA
A106: 97 | B106: 34.70839529 | C106: 0 | D106: 0 | E106: 7542.425752 | L106: 7542.425752 | M106: 7542.425752 | N106: 217.3083973 | O106: 217.3083973 | P106: 7542.425752 | Q106: 96 | R106: 34.70839529 | S106: 0 | T106: 1111747.909 | U106: 1071143.447 | V106: 15000 | W106: 548105.6133 | X106: 432.1720977 | Y106: 31293.39278 | AA106: 7542.425752 | AB106: 731615.2979 | AD106: -7542.425752 | AE106: -7542.425752 | AF106: 0 | AG106: 0 | AH106: 0 | AI106: 0 | AJ106: 0 | AK106: 0 | AL106: 0 | AM106: 0 | AO106: 0
A107: 98 | B107: 32.20939083 | C107: 1 | D107: -0.072 | E107: 7605.2793 | L107: 7542.425752 | M107: 15084.8515 | N107: 234.1685315 | O107: 451.4769288 | P107: 14541.79685 | Q107: 97 | R107: 32.20939083 | S107: -0.072 | T107: 1128617.754 | U107: 1007941.118 | V107: 15000 | W107: 563105.6133 | X107: 465.7026915 | Y107: 31759.09547 | AA107: 7542.425752 | AB107: 739157.7237 | AD107: -7542.425752 | AE107: -7542.425752 | AF107: 0 | AG107: 0 | AH107: 0 | AI107: 0 | AJ107: 0 | AK107: 0 | AL107: 0 | AM107: 0 | AO107: -0.08333333333
A108: 99 | B108: 31.30752789 | C108: 2 | D108: -0.028 | E108: 15273.93593 | L108: 7542.425752 | M108: 22627.27726 | N108: 240.9141271 | O108: 692.3910559 | P108: 21677.05229 | Q108: 98 | R108: 31.30752789 | S108: -0.028 | T108: 1145628.182 | U108: 994298.7672 | V108: 15000 | W108: 578105.6133 | X108: 479.1179954 | Y108: 32238.21347 | AA108: 7542.425752 | AB108: 746700.1494 | AD108: -7542.425752 | AE108: -7542.425752 | AF108: 0 | AG108: 0 | AH108: 0 | AI108: 0 | AJ108: 0 | AK108: 0 | AL108: 0 | AM108: 0 | AO108: -0.1666666667
A109: 100 | B109: 37.06811302 | C109: 3 | D109: 0.184 | E109: 23006.49803 | L109: 7542.425752 | M109: 30169.70301 | N109: 203.4747695 | O109: 895.8658254 | P109: 33208.05566 | Q109: 99 | R109: 37.06811302 | S109: 0.184 | T109: 1162780.362 | U109: 1195009.74 | V109: 1000 | W109: 579105.6133 | X109: 26.9773646 | Y109: 32265.19083 | AA109: 7542.425752 | AB109: 754242.5752 | AD109: -7542.425752 | AE109: -7542.425752 | AF109: 0 | AG109: 0 | AH109: 0 | AI109: 0 | AJ109: 0 | AK109: 0 | AL109: 0 | AM109: 0 | AO109: -0.25
A110: 101 | B110: 45.59377901 | C110: 4 | D110: 0.23 | E110: 30803.49814 | L110: 7542.425752 | M110: 37712.12876 | N110: 165.4266419 | O110: 1061.292467 | P110: 48388.33422 | Q110: 100 | R110: 45.59377901 | S110: 0.23 | T110: 1180075.478 | U110: 1471091.981 | V110: 1000 | W110: 580105.6133 | X110: 21.93281675 | Y110: 32287.12365 | AA110: 7542.425752 | AB110: 761785.0009 | AD110: -7542.425752 | AE110: -7542.425752 | AF110: 0 | AG110: 0 | AH110: 0 | AI110: 0 | AJ110: 0 | AK110: 0 | AL110: 0 | AM110: 0 | AO110: -0.3333333333
A111: 102 | B111: 45.86734168 | C111: 5 | D111: 0.006 | E111: 38665.47326 | L111: 7542.425752 | M111: 45254.55451 | N111: 164.4400019 | O111: 1225.732469 | P111: 56221.08997 | Q111: 101 | R111: 45.86734168 | S111: 0.006 | T111: 1197514.72 | U111: 1480924.532 | V111: 1000 | W111: 581105.6133 | X111: 21.80200472 | Y111: 32308.92566 | AA111: 7542.425752 | AB111: 769327.4267 | AD111: -7542.425752 | AE111: -7542.425752 | AF111: 0 | AG111: 0 | AH111: 0 | AI111: 0 | AJ111: 0 | AK111: 0 | AL111: 0 | AM111: 0 | AO111: -0.4166666667
A112: 103 | B112: 47.4268313 | C112: 6 | D112: 0.034 | E112: 46592.96484 | L112: 7542.425752 | M112: 52796.98026 | N112: 159.0328838 | O112: 1384.765353 | P112: 65675.03278 | Q112: 102 | R112: 47.4268313 | S112: 0.034 | T112: 1215099.288 | U112: 1532309.967 | V112: 1000 | W112: 582105.6133 | X112: 21.08511095 | Y112: 32330.01077 | AA112: 7542.425752 | AB112: 776869.8524 | AD112: -7542.425752 | AE112: -7542.425752 | AF112: 0 | AG112: 0 | AH112: 0 | AI112: 0 | AJ112: 0 | AK112: 0 | AL112: 0 | AM112: 0 | AO112: -0.5
A113: 104 | B113: 46.668002 | C113: 7 | D113: -0.016 | E113: 54586.51884 | L113: 7542.425752 | M113: 60339.40601 | N113: 161.6187844 | O113: 1546.384137 | P113: 72166.65801 | Q113: 103 | R113: 46.668002 | S113: -0.016 | T113: 1232830.395 | U113: 1508777.007 | V113: 1000 | W113: 583105.6133 | X113: 21.42795828 | Y113: 32351.43872 | AA113: 7542.425752 | AB113: 784412.2782 | AD113: -7542.425752 | AE113: -7542.425752 | AF113: 0 | AG113: 0 | AH113: 0 | AI113: 0 | AJ113: 0 | AK113: 0 | AL113: 0 | AM113: 0 | AO113: -0.5833333333
A114: 105 | B114: 52.08149023 | C114: 8 | D114: 0.116 | E114: 62646.6858 | L114: 7542.425752 | M114: 67881.83177 | N114: 144.8196992 | O114: 1691.203837 | P114: 88080.41609 | Q114: 104 | R114: 52.08149023 | S114: 0.116 | T114: 1250709.261 | U114: 1684911.14 | V114: 1000 | W114: 584105.6133 | X114: 19.20067946 | Y114: 32370.6394 | AA114: 7542.425752 | AB114: 791954.7039 | AD114: -7542.425752 | AE114: -7542.425752 | AF114: 0 | AG114: 0 | AH114: 0 | AI114: 0 | AJ114: 0 | AK114: 0 | AL114: 0 | AM114: 0 | AO114: -0.6666666667
A115: 106 | B115: 51.40443086 | C115: 9 | D115: -0.013 | E115: 70774.02082 | L115: 7542.425752 | M115: 75424.25752 | N115: 146.7271522 | O115: 1837.930989 | P115: 94477.79644 | Q115: 105 | R115: 51.40443086 | S115: -0.013 | T115: 1268737.118 | U115: 1663994.295 | V115: 1000 | W115: 585105.6133 | X115: 19.45357595 | Y115: 32390.09298 | AA115: 7542.425752 | AB115: 799497.1297 | AD115: -7542.425752 | AE115: -7542.425752 | AF115: 0 | AG115: 0 | AH115: 0 | AI115: 0 | AJ115: 0 | AK115: 0 | AL115: 0 | AM115: 0 | AO115: -0.75
A116: 107 | B116: 55.56818976 | C116: 10 | D116: 0.081 | E116: 78969.08362 | L116: 7542.425752 | M116: 82966.68327 | N116: 135.7327958 | O116: 1973.663785 | P116: 109672.9237 | Q116: 106 | R116: 55.56818976 | S116: 0.081 | T116: 1286915.206 | U116: 1799858.833 | V116: 1000 | W116: 586105.6133 | X116: 17.99590745 | Y116: 32408.08889 | AA116: 7542.425752 | AB116: 807039.5554 | AD116: -7542.425752 | AE116: -7542.425752 | AF116: 0 | AG116: 0 | AH116: 0 | AI116: 0 | AJ116: 0 | AK116: 0 | AL116: 0 | AM116: 0 | AO116: -0.8333333333
A117: 108 | B117: 52.34523475 | C117: 11 | D117: -0.058 | E117: 87232.43862 | L117: 7542.425752 | M117: 90509.10902 | N117: 144.0900167 | O117: 2117.753801 | P117: 110854.3199 | Q117: 107 | R117: 52.34523475 | S117: -0.058 | T117: 1305244.779 | U117: 1696409.021 | V117: 1000 | W117: 587105.6133 | X117: 19.10393572 | Y117: 32427.19282 | AA117: 7542.425752 | AB117: 814581.9812 | AD117: -7542.425752 | AE117: -7542.425752 | AF117: 0 | AG117: 0 | AH117: 0 | AI117: 0 | AJ117: 0 | AK117: 0 | AL117: 0 | AM117: 0 | AO117: -0.9166666667
A118: 109 | B118: 53.33979421 | C118: 12 | D118: 0.019 | E118: 95564.65491 | L118: 8304.210753 | M118: 98813.31977 | N118: 155.6850917 | O118: 2273.438893 | P118: 121264.7627 | Q118: 108 | R118: 53.33979421 | S118: 0.019 | T118: 1323727.098 | U118: 1729659.792 | V118: 1000 | W118: 588105.6133 | X118: 18.74772887 | Y118: 32445.94055 | AA118: 7542.425752 | AB118: 822124.4069 | AD118: -7542.425752 | AE118: -7542.425752 | AF118: 0 | AG118: 0 | AH118: 0 | AI118: 0 | AJ118: 0 | AK118: 0 | AL118: 0 | AM118: 0 | AO118: 0
A119: 110 | B119: 52.16631874 | C119: 13 | D119: -0.022 | E119: 103966.3063 | L119: 8304.210753 | M119: 107117.5305 | N119: 159.1872103 | O119: 2432.626103 | P119: 126901.1487 | Q119: 109 | R119: 52.16631874 | S119: -0.022 | T119: 1342363.436 | U119: 1692585.277 | V119: 1000 | W119: 589105.6133 | X119: 19.16945692 | Y119: 32465.11001 | AA119: 7542.425752 | AB119: 829666.8327 | AD119: -7542.425752 | AE119: -7542.425752 | AF119: 0 | AG119: 0 | AH119: 0 | AI119: 0 | AJ119: 0 | AK119: 0 | AL119: 0 | AM119: 0 | AO119: -0.08333333333
A120: 111 | B120: 56.07879265 | C120: 14 | D120: 0.075 | E120: 112437.9715 | L120: 8304.210753 | M120: 115421.7413 | N120: 148.0811259 | O120: 2580.707229 | P120: 144722.9456 | Q120: 110 | R120: 56.07879265 | S120: 0.075 | T120: 1361155.078 | U120: 1820604.172 | V120: 1000 | W120: 590105.6133 | X120: 17.83205295 | Y120: 32482.94206 | AA120: 7542.425752 | AB120: 837209.2584 | AD120: -7542.425752 | AE120: -7542.425752 | AF120: 0 | AG120: 0 | AH120: 0 | AI120: 0 | AJ120: 0 | AK120: 0 | AL120: 0 | AM120: 0 | AO120: -0.1666666667
A121: 112 | B121: 61.35019915 | C121: 15 | D121: 0.094 | E121: 120980.2339 | L121: 8304.210753 | M121: 123725.952 | N121: 135.3575191 | O121: 2716.064748 | P121: 166631.1132 | Q121: 111 | R121: 61.35019915 | S121: 0.094 | T121: 1380103.316 | U121: 1992834.965 | V121: 1000 | W121: 591105.6133 | X121: 16.29986559 | Y121: 32499.24193 | AA121: 7542.425752 | AB121: 844751.6842 | AD121: -7542.425752 | AE121: -7542.425752 | AF121: 0 | AG121: 0 | AH121: 0 | AI121: 0 | AJ121: 0 | AK121: 0 | AL121: 0 | AM121: 0 | AO121: -0.25
A122: 113 | B122: 54.35627645 | C122: 16 | D122: -0.114 | E122: 129593.6818 | L122: 8304.210753 | M122: 132030.1628 | N122: 152.7737236 | O122: 2868.838472 | P122: 155939.3771 | Q122: 112 | R122: 54.35627645 | S122: -0.114 | T122: 1399209.456 | U122: 1766537.779 | V122: 1000 | W122: 592105.6133 | X122: 18.39713949 | Y122: 32517.63907 | AA122: 7542.425752 | AB122: 852294.11 | AD122: -7542.425752 | AE122: -7542.425752 | AF122: 0 | AG122: 0 | AH122: 0 | AI122: 0 | AJ122: 0 | AK122: 0 | AL122: 0 | AM122: 0 | AO122: -0.3333333333
A123: 114 | B123: 62.29229281 | C123: 17 | D123: 0.146 | E123: 138278.9085 | L123: 8304.210753 | M123: 140334.3735 | N123: 133.3104045 | O123: 3002.148876 | P123: 187010.7369 | Q123: 113 | R123: 62.29229281 | S123: 0.146 | T123: 1418474.814 | U123: 2025598.294 | V123: 1000 | W123: 593105.6133 | X123: 16.05335034 | Y123: 32533.69242 | AA123: 7542.425752 | AB123: 859836.5357 | AD123: -7542.425752 | AE123: -7542.425752 | AF123: 0 | AG123: 0 | AH123: 0 | AI123: 0 | AJ123: 0 | AK123: 0 | AL123: 0 | AM123: 0 | AO123: -0.4166666667
A124: 115 | B124: 56.3122327 | C124: 18 | D124: -0.096 | E124: 147036.512 | L124: 8304.210753 | M124: 148638.5843 | N124: 147.4672616 | O124: 3149.616138 | P124: 177361.9169 | Q124: 114 | R124: 56.3122327 | S124: -0.096 | T124: 1437900.717 | U124: 1832044.858 | V124: 1000 | W124: 594105.6133 | X124: 17.75813091 | Y124: 32551.45055 | AA124: 7542.425752 | AB124: 867378.9615 | AD124: -7542.425752 | AE124: -7542.425752 | AF124: 0 | AG124: 0 | AH124: 0 | AI124: 0 | AJ124: 0 | AK124: 0 | AL124: 0 | AM124: 0 | AO124: -0.5
A125: 116 | B125: 57.66372629 | C125: 19 | D125: 0.024 | E125: 155867.0956 | L125: 8304.210753 | M125: 156942.795 | N125: 144.0109977 | O125: 3293.627136 | P125: 189922.8136 | Q125: 115 | R125: 57.66372629 | S125: 0.024 | T125: 1457488.502 | U125: 1877037.935 | V125: 1000 | W125: 595105.6133 | X125: 17.34192471 | Y125: 32568.79247 | AA125: 7542.425752 | AB125: 874921.3872 | AD125: -7542.425752 | AE125: -7542.425752 | AF125: 0 | AG125: 0 | AH125: 0 | AI125: 0 | AJ125: 0 | AK125: 0 | AL125: 0 | AM125: 0 | AO125: -0.5833333333
A126: 117 | B126: 58.81700081 | C126: 20 | D126: 0.02 | E126: 164771.2673 | L126: 8304.210753 | M126: 165247.0058 | N126: 141.1872526 | O126: 3434.814388 | P126: 202025.4807 | Q126: 116 | R126: 58.81700081 | S126: 0.02 | T126: 1477239.519 | U126: 1915598.693 | V126: 1000 | W126: 596105.6133 | X126: 17.00188697 | Y126: 32585.79436 | AA126: 7542.425752 | AB126: 882463.813 | AD126: -7542.425752 | AE126: -7542.425752 | AF126: 0 | AG126: 0 | AH126: 0 | AI126: 0 | AJ126: 0 | AK126: 0 | AL126: 0 | AM126: 0 | AO126: -0.6666666667
A127: 118 | B127: 58.69936681 | C127: 21 | D127: -0.002 | E127: 173749.6405 | L127: 8304.210753 | M127: 173551.2165 | N127: 141.470193 | O127: 3576.284581 | P127: 209925.6405 | Q127: 117 | R127: 58.69936681 | S127: -0.002 | T127: 1497155.128 | U127: 1912765.496 | V127: 1000 | W127: 597105.6133 | X127: 17.03595889 | Y127: 32602.83032 | AA127: 7542.425752 | AB127: 890006.2387 | AD127: -7542.425752 | AE127: -7542.425752 | AF127: 0 | AG127: 0 | AH127: 0 | AI127: 0 | AJ127: 0 | AK127: 0 | AL127: 0 | AM127: 0 | AO127: -0.75
A128: 119 | B128: 54.23821493 | C128: 22 | D128: -0.076 | E128: 182802.8335 | L128: 8304.210753 | M128: 181855.4273 | N128: 153.1062695 | O128: 3729.390851 | P128: 202275.5025 | Q128: 118 | R128: 54.23821493 | S128: -0.076 | T128: 1517236.7 | U128: 1768319.318 | V128: 1000 | W128: 598105.6133 | X128: 18.43718495 | Y128: 32621.2675 | AA128: 7542.425752 | AB128: 897548.6645 | AD128: -7542.425752 | AE128: -7542.425752 | AF128: 0 | AG128: 0 | AH128: 0 | AI128: 0 | AJ128: 0 | AK128: 0 | AL128: 0 | AM128: 0 | AO128: -0.8333333333
A129: 120 | B129: 61.23494466 | C129: 23 | D129: 0.129 | E129: 191931.4698 | L129: 8304.210753 | M129: 190159.6381 | N129: 135.6122848 | O129: 3865.003136 | P129: 236673.2531 | Q129: 119 | R129: 61.23494466 | S129: 0.129 | T129: 1537485.618 | U129: 1997561.51 | V129: 1000 | W129: 599105.6133 | X129: 16.33054468 | Y129: 32637.59805 | AA129: 7542.425752 | AB129: 905091.0902 | AD129: -7542.425752 | AE129: -7542.425752 | AF129: 0 | AG129: 0 | AH129: 0 | AI129: 0 | AJ129: 0 | AK129: 0 | AL129: 0 | AM129: 0 | AO129: -0.9166666667
A130: 121 | B130: 53.76428141 | C130: 24 | D130: -0.122 | E130: 201136.178 | L130: 9142.936039 | M130: 199302.5741 | N130: 170.0559516 | O130: 4035.059087 | P130: 216942.0523 | Q130: 120 | R130: 53.76428141 | S130: -0.122 | T130: 1557903.278 | U130: 1754737.006 | V130: 1000 | W130: 600105.6133 | X130: 18.59970921 | Y130: 32656.19776 | AA130: 7542.425752 | AB130: 912633.516 | AD130: -7542.425752 | AE130: -7542.425752 | AF130: 0 | AG130: 0 | AH130: 0 | AI130: 0 | AJ130: 0 | AK130: 0 | AL130: 0 | AM130: 0 | AO130: 0
A131: 122 | B131: 53.2266386 | C131: 25 | D131: -0.01 | E131: 210417.5921 | L131: 9142.936039 | M131: 208445.5101 | N131: 171.7736885 | O131: 4206.832776 | P131: 223915.5678 | Q131: 121 | R131: 53.2266386 | S131: -0.01 | T131: 1578491.084 | U131: 1738179.636 | V131: 1000 | W131: 601105.6133 | X131: 18.78758506 | Y131: 32674.98534 | AA131: 7542.425752 | AB131: 920175.9417 | AD131: -7542.425752 | AE131: -7542.425752 | AF131: 0 | AG131: 0 | AH131: 0 | AI131: 0 | AJ131: 0 | AK131: 0 | AL131: 0 | AM131: 0 | AO131: -0.08333333333
A132: 123 | B132: 61.47676758 | C132: 26 | D132: 0.155 | E132: 219776.3513 | L132: 9142.936039 | M132: 217588.4462 | N132: 148.7218082 | O132: 4355.554584 | P132: 267765.4168 | Q132: 122 | R132: 61.47676758 | S132: 0.155 | T132: 1599250.456 | U132: 2008752.48 | V132: 1000 | W132: 602105.6133 | X132: 16.26630741 | Y132: 32691.25165 | AA132: 7542.425752 | AB132: 927718.3675 | AD132: -7542.425752 | AE132: -7542.425752 | AF132: 0 | AG132: 0 | AH132: 0 | AI132: 0 | AJ132: 0 | AK132: 0 | AL132: 0 | AM132: 0 | AO132: -0.1666666667
A133: 124 | B133: 62.5833494 | C133: 27 | D133: 0.018 | E133: 229213.1002 | L133: 9142.936039 | M133: 226731.3822 | N133: 146.0921495 | O133: 4501.646733 | P133: 281728.1304 | Q133: 123 | R133: 62.5833494 | S133: 0.018 | T133: 1620182.822 | U133: 2045928.024 | V133: 1000 | W133: 603105.6133 | X133: 15.97869097 | Y133: 32707.23034 | AA133: 7542.425752 | AB133: 935260.7932 | AD133: -7542.425752 | AE133: -7542.425752 | AF133: 0 | AG133: 0 | AH133: 0 | AI133: 0 | AJ133: 0 | AK133: 0 | AL133: 0 | AM133: 0 | AO133: -0.25
A134: 125 | B134: 63.02143284 | C134: 28 | D134: 0.007 | E134: 238728.4887 | L134: 9142.936039 | M134: 235874.3182 | N134: 145.0766132 | O134: 4646.723347 | P134: 292843.1633 | Q134: 124 | R134: 63.02143284 | S134: 0.007 | T134: 1641289.625 | U134: 2061256.52 | V134: 1000 | W134: 604105.6133 | X134: 15.86761765 | Y134: 32723.09796 | AA134: 7542.425752 | AB134: 942803.219 | AD134: -7542.425752 | AE134: -7542.425752 | AF134: 0 | AG134: 0 | AH134: 0 | AI134: 0 | AJ134: 0 | AK134: 0 | AL134: 0 | AM134: 0 | AO134: -0.3333333333
A135: 126 | B135: 66.92876168 | C135: 29 | D135: 0.062 | E135: 248323.1721 | L135: 9142.936039 | M135: 245017.2543 | N135: 136.6069805 | O135: 4783.330327 | P135: 320142.3755 | Q135: 125 | R135: 66.92876168 | S135: 0.062 | T135: 1662572.318 | U135: 2190116.425 | V135: 1000 | W135: 605105.6133 | X135: 14.94125956 | Y135: 32738.03922 | AA135: 7542.425752 | AB135: 950345.6447 | AD135: -7542.425752 | AE135: -7542.425752 | AF135: 0 | AG135: 0 | AH135: 0 | AI135: 0 | AJ135: 0 | AK135: 0 | AL135: 0 | AM135: 0 | AO135: -0.4166666667
A136: 127 | B136: 86.47196009 | C136: 30 | D136: 0.292 | E136: 257997.8111 | L136: 9142.936039 | M136: 254160.1903 | N136: 105.732957 | O136: 4889.063284 | P136: 422766.8852 | Q136: 126 | R136: 86.47196009 | S136: 0.292 | T136: 1684032.367 | U136: 2830922.421 | V136: 1000 | W136: 606105.6133 | X136: 11.56444238 | Y136: 32749.60366 | AA136: 7542.425752 | AB136: 957888.0705 | AD136: -7542.425752 | AE136: -7542.425752 | AF136: 0 | AG136: 0 | AH136: 0 | AI136: 0 | AJ136: 0 | AK136: 0 | AL136: 0 | AM136: 0 | AO136: -0.5
A137: 128 | B137: 98.1456747 | C137: 31 | D137: 0.135 | E137: 267753.0722 | L137: 9142.936039 | M137: 263303.1264 | N137: 93.15679032 | O137: 4982.220074 | P137: 488983.3507 | Q137: 127 | R137: 98.1456747 | S137: 0.135 | T137: 1705671.249 | U137: 3214231.947 | V137: 1000 | W137: 607105.6133 | X137: 10.18893602 | Y137: 32759.7926 | AA137: 7542.425752 | AB137: 965430.4962 | AD137: -7542.425752 | AE137: -7542.425752 | AF137: 0 | AG137: 0 | AH137: 0 | AI137: 0 | AJ137: 0 | AK137: 0 | AL137: 0 | AM137: 0 | AO137: -0.5833333333
A138: 129 | B138: 111.6897778 | C138: =IF(AND(A138>=startm,A138<=endm),A138-startm,"NA") -> 32 | D138: 0.138 | E138: =IF(C138="NA","NA",IF(C138=0,typical,(1+return/12)*typical*((1+return/12)^C138-1)/(return/12))) -> 277589.6271 | L138: =IF(C138="NA","NA",IF(C138=0,typical,IF(L137="NA",typical,IF(INT(C138/12)-(C138/12)=0,L137*(1+gsip1),L137)))) -> 9142.936039 | M138: 272446.0624 | N138: 81.86009694 | O138: 5064.080171 | P138: 565605.9892 | Q138: 128 | R138: 111.6897778 | S138: 0.138 | T138: 1727490.455 | U138: 3658933.956 | V138: 1000 | W138: 608105.6133 | X138: =V138/R138 -> 8.953370842 | Y138: 32768.74597 | AA138: =typical -> 7542.425752 | AB138: 972972.922 | AD138: =IF(A138=endm,E138,IF(C138="NA","NA",-typical)) -> -7542.425752 | AE138: =IF(A138=endm,P138,IF(C138="NA","NA",-typical)) -> -7542.425752 | AF138: =IF(A138=endm,F138,IF(C138="NA","NA",-G138)) -> 0 | AG138: =IF(A138=endm,O138,0) -> 0 | AH138: =IF(A138=endm,J138,0) -> 0 | AI138: =IF(A138=endm,E138,0) -> 0 | AJ138: =IF(A138=endm,P138,0) -> 0 | AK138: =IF(A138=endm,F138,0) -> 0 | AL138: =IF(A138=endm,M138,0) -> 0 | AM138: =IF(A138=endm,H138,0) -> 0 | AO138: -0.6666666667
A139: 130 | B139: 101.8610774 | C139: 33 | D139: =IF(C139="NA","NA",IF(C139=0,0,(B139-B138)/B138)) -> -0.088 | E139: 287508.1533 | L139: 9142.936039 | M139: 281588.9984 | N139: =IF(C139="NA","NA",L139/B139) -> 89.75887822 | O139: 5153.83905 | P139: =IF(C139="NA","NA",O139*B139) -> 524975.5981 | Q139: 129 | R139: 101.8610774 | S139: -0.088 | T139: =(1+return/12)*typical*((1+return/12)^Q139-1)/(return/12) -> 1749491.489 | U139: 3337859.768 | V139: =IF((U139-T139)>0,IF(typical-(U139-T139)<min,min,typical-(U139-T139)),IF((U139-T139)<0,IF(typical-(U139-T139)>max,max,typical-(U139-T139)),IF((T139-U139)=0,min,))) -> 1000 | W139: =W138+V139 -> 609105.6133 | X139: 9.81729259 | Y139: 32778.56326 | AA139: 7542.425752 | AB139: 980515.3477 | AD139: -7542.425752 | AE139: -7542.425752 | AF139: 0 | AG139: 0 | AH139: 0 | AI139: 0 | AJ139: 0 | AK139: 0 | AL139: 0 | AM139: 0 | AO139: -0.75
A140: =A139+1 -> 131 | B140: 94.11963548 | C140: 34 | D140: -0.076 | E140: 297509.3338 | L140: 9142.936039 | M140: 290731.9345 | N140: 97.1416431 | O140: 5250.980693 | P140: 494220.3887 | Q140: =Q139+1 -> 130 | R140: 94.11963548 | S140: -0.076 | T140: 1771675.864 | U140: 3085106.426 | V140: 1000 | W140: 610105.6133 | X140: 10.62477553 | Y140: =Y139+X140 -> 32789.18804 | AA140: 7542.425752 | AB140: =AB139+AA140 -> 988057.7735 | AD140: -7542.425752 | AE140: -7542.425752 | AF140: 0 | AG140: 0 | AH140: 0 | AI140: 0 | AJ140: 0 | AK140: 0 | AL140: 0 | AM140: 0 | AO140: -0.8333333333
A141: 132 | B141: 82.44880068 | C141: 35 | D141: -0.124 | E141: 307593.8576 | L141: 9142.936039 | M141: 299874.8705 | N141: 110.8922866 | O141: 5361.872979 | P141: 442079.9966 | Q141: 131 | R141: 82.44880068 | S141: -0.124 | T141: 1794045.108 | U141: 2703429.229 | V141: 1000 | W141: 611105.6133 | X141: 12.12873919 | Y141: 32801.31677 | AA141: 7542.425752 | AB141: 995600.1992 | AD141: -7542.425752 | AE141: -7542.425752 | AF141: 0 | AG141: 0 | AH141: 0 | AI141: 0 | AJ141: 0 | AK141: 0 | AL141: 0 | AM141: 0 | AO141: -0.9166666667
A142: 133 | B142: 77.25452624 | C142: 36 | D142: -0.063 | E142: 317762.419 | L142: 10066.37258 | M142: 309941.2431 | N142: 130.3013955 | O142: 5492.174375 | P142: 424295.3294 | Q142: 132 | R142: 77.25452624 | S142: =(R142-R141)/R141 -> -0.063 | T142: 1816600.764 | U142: =(U141+V141)*(1+S142) -> 2534050.187 | V142: 1000 | W142: 612105.6133 | X142: 12.94422539 | Y142: 32814.261 | AA142: 7542.425752 | AB142: 1003142.625 | AD142: -7542.425752 | AE142: -7542.425752 | AF142: 0 | AG142: 0 | AH142: 0 | AI142: 0 | AJ142: 0 | AK142: 0 | AL142: 0 | AM142: 0 | AO142: 0
A143: 134 | B143: 95.95012159 | C143: 37 | D143: 0.242 | E143: 328015.7185 | L143: 10066.37258 | M143: 320007.6157 | N143: 104.9125568 | O143: 5597.086932 | P143: 537041.1716 | Q143: 133 | R143: 95.95012159 | S143: 0.242 | T143: 1839344.383 | U143: 3148532.333 | V143: 1000 | W143: 613105.6133 | X143: 10.42208163 | Y143: 32824.68308 | AA143: 7542.425752 | AB143: 1010685.051 | AD143: -7542.425752 | AE143: -7542.425752 | AF143: 0 | AG143: 0 | AH143: 0 | AI143: 0 | AJ143: 0 | AK143: 0 | AL143: 0 | AM143: 0 | AO143: -0.08333333333
A144: 135 | B144: 91.82426636 | C144: 38 | D144: -0.043 | E144: 338354.4621 | L144: 10066.37258 | M144: 330073.9883 | N144: 109.6264961 | O144: 5706.713428 | P144: 524014.7738 | Q144: 134 | R144: 91.82426636 | S144: -0.043 | T144: 1862277.532 | U144: 3014102.443 | V144: 1000 | W144: 614105.6133 | X144: 10.89036743 | Y144: 32835.57345 | AA144: 7542.425752 | AB144: 1018227.476 | AD144: -7542.425752 | AE144: -7542.425752 | AF144: 0 | AG144: 0 | AH144: 0 | AI144: 0 | AJ144: 0 | AK144: 0 | AL144: 0 | AM144: 0 | AO144: -0.1666666667
A145: 136 | B145: 97.05824954 | C145: 39 | D145: 0.057 | E145: 348779.3619 | L145: 10066.37258 | M145: 340140.3608 | N145: 103.7147551 | O145: 5810.428183 | P145: 563949.9885 | Q145: 135 | R145: 97.05824954 | S145: 0.057 | T145: 1885401.79 | U145: 3186963.282 | V145: 1000 | W145: 615105.6133 | X145: 10.30309123 | Y145: 32845.87654 | AA145: 7542.425752 | AB145: 1025769.902 | AD145: -7542.425752 | AE145: -7542.425752 | AF145: 0 | AG145: 0 | AH145: 0 | AI145: 0 | AJ145: 0 | AK145: 0 | AL145: 0 | AM145: 0 | AO145: -0.25
A146: 137 | B146: 102.687628 | C146: 40 | D146: 0.058 | E146: 359291.1359 | L146: 10066.37258 | M146: 350206.7334 | N146: 98.02906906 | O146: 5908.457252 | P146: 606725.4604 | Q146: 136 | R146: 102.687628 | S146: 0.058 | T146: 1908718.751 | U146: 3372865.152 | V146: 1000 | W146: 616105.6133 | X146: 9.738271487 | Y146: 32855.61481 | AA146: 7542.425752 | AB146: 1033312.328 | AD146: -7542.425752 | AE146: -7542.425752 | AF146: 0 | AG146: 0 | AH146: 0 | AI146: 0 | AJ146: 0 | AK146: 0 | AL146: 0 | AM146: 0 | AO146: -0.3333333333
A147: 138 | B147: 99.70968681 | C147: 41 | D147: -0.029 | E147: 369890.508 | L147: 10066.37258 | M147: 360273.106 | N147: 100.9568167 | O147: 6009.414069 | P147: 599196.7947 | Q147: 137 | R147: 99.70968681 | S147: -0.029 | T147: 1932230.02 | U147: 3276023.063 | V147: 1000 | W147: 617105.6133 | X147: 10.02911585 | Y147: 32865.64393 | AA147: 7542.425752 | AB147: 1040854.754 | AD147: -7542.425752 | AE147: -7542.425752 | AF147: 0 | AG147: 0 | AH147: 0 | AI147: 0 | AJ147: 0 | AK147: 0 | AL147: 0 | AM147: 0 | AO147: -0.4166666667
A148: 139 | B148: 128.2266572 | C148: 42 | D148: 0.286 | E148: 380578.2082 | L148: 10066.37258 | M148: 370339.4786 | N148: 78.50452313 | O148: 6087.918592 | P148: 780633.4505 | Q148: 138 | R148: 128.2266572 | S148: 0.286 | T148: 1955937.216 | U148: 4214251.659 | V148: 1000 | W148: 618105.6133 | X148: 7.798690394 | Y148: 32873.44262 | AA148: 7542.425752 | AB148: 1048397.179 | AD148: -7542.425752 | AE148: -7542.425752 | AF148: 0 | AG148: 0 | AH148: 0 | AI148: 0 | AJ148: 0 | AK148: 0 | AL148: 0 | AM148: 0 | AO148: -0.5
A149: 140 | B149: 141.049323 | C149: 43 | D149: 0.1 | E149: 391354.9726 | L149: 10066.37258 | M149: 380405.8511 | N149: 71.3677483 | O149: 6159.28634 | P149: 868763.1682 | Q149: 139 | R149: 141.049323 | S149: 0.1 | T149: 1979841.972 | U149: 4636776.825 | V149: 1000 | W149: 619105.6133 | X149: 7.08971854 | Y149: 32880.53234 | AA149: 7542.425752 | AB149: 1055939.605 | AD149: -7542.425752 | AE149: -7542.425752 | AF149: 0 | AG149: 0 | AH149: 0 | AI149: 0 | AJ149: 0 | AK149: 0 | AL149: 0 | AM149: 0 | AO149: -0.5833333333
A150: 141 | B150: 148.1017891 | C150: 44 | D150: 0.05 | E150: 402221.5433 | L150: 10066.37258 | M150: 390472.2237 | N150: 67.9692841 | O150: 6227.255624 | P150: 922267.6991 | Q150: 140 | R150: 148.1017891 | S150: 0.05 | T150: 2003945.935 | U150: 4869665.666 | V150: 1000 | W150: 620105.6133 | X150: 6.752112895 | Y150: 32887.28445 | AA150: 7542.425752 | AB150: 1063482.031 | AD150: -7542.425752 | AE150: -7542.425752 | AF150: 0 | AG150: 0 | AH150: 0 | AI150: 0 | AJ150: 0 | AK150: 0 | AL150: 0 | AM150: 0 | AO150: -0.6666666667
A151: 142 | B151: 148.3979927 | C151: 45 | D151: 0.002 | E151: 413178.6688 | L151: 10066.37258 | M151: =IF(C151="NA","NA",IF(M150="NA",L151,M150+L151)) -> 400538.5963 | N151: 67.83361686 | O151: =IF(C151="NA","NA",IF(O150="NA",N151,O150+N151)) -> 6295.089241 | P151: 934178.6071 | Q151: 141 | R151: 148.3979927 | S151: 0.002 | T151: 2028250.764 | U151: 4880406.997 | V151: 1000 | W151: 621105.6133 | X151: 6.738635624 | Y151: 32894.02309 | AA151: 7542.425752 | AB151: 1071024.457 | AD151: -7542.425752 | AE151: -7542.425752 | AF151: 0 | AG151: 0 | AH151: 0 | AI151: 0 | AJ151: 0 | AK151: 0 | AL151: 0 | AM151: 0 | AO151: -0.75
A152: 143 | B152: 149.4367786 | C152: 46 | D152: 0.007 | E152: 424227.1037 | L152: 10066.37258 | M152: 410604.9689 | N152: 67.36208229 | O152: 6362.451323 | P152: 950784.2299 | Q152: 142 | R152: 149.4367786 | S152: 0.007 | T152: 2052758.133 | U152: 4915576.846 | V152: 1000 | W152: 622105.6133 | X152: 6.691793072 | Y152: 32900.71488 | AA152: 7542.425752 | AB152: 1078566.883 | AD152: -7542.425752 | AE152: -7542.425752 | AF152: 0 | AG152: 0 | AH152: 0 | AI152: 0 | AJ152: 0 | AK152: 0 | AL152: 0 | AM152: 0 | AO152: -0.8333333333
A153: 144 | B153: 149.885089 | C153: 47 | D153: 0.003 | E153: 435367.6089 | L153: 10066.37258 | M153: 420671.3415 | N153: 67.16060048 | O153: 6429.611924 | P153: 963702.9552 | Q153: 143 | R153: 149.885089 | S153: 0.003 | T153: 2077469.73 | U153: 4931326.577 | V153: 1000 | W153: 623105.6133 | X153: 6.671777739 | Y153: 32907.38666 | AA153: 7542.425752 | AB153: 1086109.308 | AD153: -7542.425752 | AE153: -7542.425752 | AF153: 0 | AG153: 0 | AH153: 0 | AI153: 0 | AJ153: 0 | AK153: 0 | AL153: 0 | AM153: 0 | AO153: -0.9166666667
A154: 145 | B154: 180.7614173 | C154: 48 | D154: 0.206 | E154: 446600.9516 | L154: 11083.07621 | M154: 431754.4177 | N154: 61.31328452 | O154: 6490.925208 | P154: 1173308.84 | Q154: 144 | R154: 180.7614173 | S154: 0.206 | T154: 2102387.257 | U154: 5948385.851 | V154: 1000 | W154: 624105.6133 | X154: 5.532154013 | Y154: 32912.91881 | AA154: 7542.425752 | AB154: 1093651.734 | AD154: -7542.425752 | AE154: -7542.425752 | AF154: 0 | AG154: 0 | AH154: 0 | AI154: 0 | AJ154: 0 | AK154: 0 | AL154: 0 | AM154: 0 | AO154: 0
A155: 146 | B155: 236.9782181 | C155: 49 | D155: 0.311 | E155: 457927.9055 | L155: 11083.07621 | M155: 442837.4939 | N155: 46.76833297 | O155: 6537.693541 | P155: 1549290.966 | Q155: 145 | R155: 236.9782181 | S155: 0.311 | T155: 2127512.43 | U155: 7799644.851 | V155: 1000 | W155: 625105.6133 | X155: 4.219797111 | Y155: 32917.13861 | AA155: 7542.425752 | AB155: 1101194.16 | AD155: -7542.425752 | AE155: -7542.425752 | AF155: 0 | AG155: 0 | AH155: 0 | AI155: 0 | AJ155: 0 | AK155: 0 | AL155: 0 | AM155: 0 | AO155: -0.08333333333
A156: 147 | B156: 336.5090697 | C156: 50 | D156: 0.42 | E156: 469349.2506 | L156: 11083.07621 | M156: 453920.5701 | N156: 32.93544575 | O156: 6570.628987 | P156: 2211076.248 | Q156: 146 | R156: 336.5090697 | S156: 0.42 | T156: 2152846.979 | U156: 11076915.69 | V156: 1000 | W156: 626105.6133 | X156: 2.971688106 | Y156: 32920.1103 | AA156: 7542.425752 | AB156: 1108736.586 | AD156: -7542.425752 | AE156: -7542.425752 | AF156: 0 | AG156: 0 | AH156: 0 | AI156: 0 | AJ156: 0 | AK156: 0 | AL156: 0 | AM156: 0 | AO156: -0.1666666667
A157: 148 | B157: 305.2137262 | C157: 51 | D157: -0.093 | E157: 480865.7737 | L157: 11083.07621 | M157: 465003.6463 | N157: 36.3125091 | O157: 6606.941496 | P157: 2016529.233 | Q157: 147 | R157: 305.2137262 | S157: -0.093 | T157: 2178392.65 | U157: 10047669.53 | V157: 1000 | W157: 627105.6133 | X157: 3.27639262 | Y157: 32923.38669 | AA157: 7542.425752 | AB157: 1116279.011 | AD157: -7542.425752 | AE157: -7542.425752 | AF157: 0 | AG157: 0 | AH157: 0 | AI157: 0 | AJ157: 0 | AK157: 0 | AL157: 0 | AM157: 0 | AO157: -0.25
A158: 149 | B158: 235.9302103 | C158: 52 | D158: -0.227 | E158: 492478.2678 | L158: 11083.07621 | M158: 476086.7225 | N158: 46.97607904 | O158: 6653.917575 | P158: 1569860.173 | Q158: 148 | R158: 235.9302103 | S158: -0.227 | T158: 2204151.202 | U158: 7767621.546 | V158: 1000 | W158: 628105.6133 | X158: 4.238541552 | Y158: 32927.62523 | AA158: 7542.425752 | AB158: 1123821.437 | AD158: -7542.425752 | AE158: -7542.425752 | AF158: 0 | AG158: 0 | AH158: 0 | AI158: 0 | AJ158: 0 | AK158: 0 | AL158: 0 | AM158: 0 | AO158: -0.3333333333
A159: 150 | B159: 241.8284656 | C159: 53 | D159: 0.025 | E159: 504187.5326 | L159: 11083.07621 | M159: 487169.7987 | N159: 45.83032102 | O159: 6699.747896 | P159: 1620189.754 | Q159: 149 | R159: 241.8284656 | S159: 0.025 | T159: 2230124.408 | U159: 7962837.085 | V159: 1000 | W159: 629105.6133 | X159: 4.13516249 | Y159: 32931.76039 | AA159: 7542.425752 | AB159: 1131363.863 | AD159: -7542.425752 | AE159: -7542.425752 | AF159: 0 | AG159: 0 | AH159: 0 | AI159: 0 | AJ159: 0 | AK159: 0 | AL159: 0 | AM159: 0 | AO159: -0.4166666667
A160: 151 | B160: 214.0181921 | C160: 54 | D160: -0.115 | E160: 515994.3747 | L160: 11083.07621 | M160: 498252.8749 | N160: 51.78567346 | O160: 6751.53357 | P160: 1444951.008 | Q160: 150 | R160: 214.0181921 | S160: -0.115 | T160: 2256314.057 | U160: 7047995.82 | V160: 1000 | W160: 630105.6133 | X160: 4.672499989 | Y160: 32936.43289 | AA160: 7542.425752 | AB160: 1138906.289 | AD160: -7542.425752 | AE160: -7542.425752 | AF160: 0 | AG160: 0 | AH160: 0 | AI160: 0 | AJ160: 0 | AK160: 0 | AL160: 0 | AM160: 0 | AO160: -0.5
A161: 152 | B161: 237.9882296 | C161: 55 | D161: 0.112 | E161: 527899.6071 | L161: 11083.07621 | M161: 509335.9511 | N161: 46.56985024 | O161: 6798.10342 | P161: 1617868.597 | Q161: 151 | R161: 237.9882296 | S161: 0.112 | T161: 2282721.953 | U161: 7838483.352 | V161: 1000 | W161: 631105.6133 | X161: 4.201888479 | Y161: 32940.63478 | AA161: 7542.425752 | AB161: 1146448.714 | AD161: -7542.425752 | AE161: -7542.425752 | AF161: 0 | AG161: 0 | AH161: 0 | AI161: 0 | AJ161: 0 | AK161: 0 | AL161: 0 | AM161: 0 | AO161: -0.5833333333
A162: 153 | B162: 258.6932055 | C162: 56 | D162: 0.087 | E162: 539904.0498 | L162: 11083.07621 | M162: 520419.0273 | N162: 42.84254852 | O162: 6840.945968 | P162: 1769706.241 | Q162: 152 | R162: 258.6932055 | S162: 0.087 | T162: 2309349.916 | U162: 8521518.404 | V162: 1000 | W162: 632105.6133 | X162: 3.865582778 | Y162: 32944.50036 | AA162: 7542.425752 | AB162: 1153991.14 | AD162: -7542.425752 | AE162: -7542.425752 | AF162: 0 | AG162: 0 | AH162: 0 | AI162: 0 | AJ162: 0 | AK162: 0 | AL162: 0 | AM162: 0 | AO162: -0.6666666667
A163: 154 | B163: 222.4761568 | C163: 57 | D163: -0.14 | E163: 552008.5295 | L163: 11083.07621 | M163: 531502.1036 | N163: 49.81691688 | O163: 6890.762885 | P163: 1533030.444 | Q163: 153 | R163: 222.4761568 | S163: -0.14 | T163: 2336199.778 | U163: 7329365.827 | V163: 1000 | W163: 633105.6133 | X163: 4.494863695 | Y163: 32948.99523 | AA163: 7542.425752 | AB163: 1161533.566 | AD163: -7542.425752 | AE163: -7542.425752 | AF163: 0 | AG163: 0 | AH163: 0 | AI163: 0 | AJ163: 0 | AK163: 0 | AL163: 0 | AM163: 0 | AO163: -0.75
A164: 155 | B164: 197.7813034 | C164: 58 | D164: -0.111 | E164: 564213.8799 | L164: 11083.07621 | M164: 542585.1798 | N164: 56.03702686 | O164: 6946.799912 | P164: 1373947.141 | Q164: 154 | R164: 197.7813034 | S164: -0.111 | T164: 2363273.388 | U164: 6516695.22 | V164: 1000 | W164: 634105.6133 | X164: 5.056089646 | Y164: 32954.05132 | AA164: 7542.425752 | AB164: 1169075.992 | AD164: -7542.425752 | AE164: -7542.425752 | AF164: 0 | AG164: 0 | AH164: 0 | AI164: 0 | AJ164: 0 | AK164: 0 | AL164: 0 | AM164: 0 | AO164: =IF(C164="NA","NA",INT(C164/12)-(C164/12)) -> -0.8333333333
A165: 156 | B165: 205.4947742 | C165: 59 | D165: 0.039 | E165: 576520.9416 | L165: 11083.07621 | M165: 553668.256 | N165: 53.93361584 | O165: 7000.733528 | P165: 1438614.156 | Q165: 155 | R165: 205.4947742 | S165: 0.039 | T165: 2390572.613 | U165: 6771885.334 | V165: 1000 | W165: 635105.6133 | X165: 4.866303797 | Y165: 32958.91762 | AA165: 7542.425752 | AB165: 1176618.417 | AD165: -7542.425752 | AE165: -7542.425752 | AF165: 0 | AG165: 0 | AH165: 0 | AI165: 0 | AJ165: 0 | AK165: 0 | AL165: 0 | AM165: 0 | AO165: -0.9166666667
A166: 157 | B166: 210.6321435 | C166: 60 | D166: 0.025 | E166: 588930.562 | L166: 12202.46691 | M166: 565870.7229 | N166: 57.93259614 | O166: 7058.666124 | P166: 1486781.976 | Q166: 156 | R166: 210.6321435 | S166: 0.025 | T166: 2418099.33 | U166: 6942207.467 | V166: 1000 | W166: 636105.6133 | X166: 4.747613461 | Y166: 32963.66523 | AA166: 7542.425752 | AB166: 1184160.843 | AD166: -7542.425752 | AE166: -7542.425752 | AF166: 0 | AG166: 0 | AH166: 0 | AI166: 0 | AJ166: 0 | AK166: 0 | AL166: 0 | AM166: 0 | AO166: 0
A167: 158 | B167: 208.31519 | C167: 61 | D167: -0.011 | E167: 601443.596 | L167: 12202.46691 | M167: 578073.1898 | N167: 58.57694251 | O167: 7117.243067 | P167: 1482629.841 | Q167: 157 | R167: 208.31519 | S167: -0.011 | T167: 2445855.437 | U167: 6866832.185 | V167: 1000 | W167: 637105.6133 | X167: 4.80041806 | Y167: 32968.46565 | AA167: 7542.425752 | AB167: 1191703.269 | AD167: -7542.425752 | AE167: -7542.425752 | AF167: 0 | AG167: 0 | AH167: 0 | AI167: 0 | AJ167: 0 | AK167: 0 | AL167: 0 | AM167: 0 | AO167: -0.08333333333
A168: 159 | B168: 179.1510634 | C168: 62 | D168: -0.14 | E168: 614060.9053 | L168: 12202.46691 | M168: 590275.6567 | N168: 68.11272385 | O168: 7185.35579 | P168: 1287264.131 | Q168: 158 | R168: 179.1510634 | S168: -0.14 | T168: 2473842.845 | U168: 5906335.679 | V168: 1000 | W168: 638105.6133 | X168: 5.581881465 | Y168: 32974.04753 | AA168: 7542.425752 | AB168: 1199245.695 | AD168: -7542.425752 | AE168: -7542.425752 | AF168: 0 | AG168: 0 | AH168: 0 | AI168: 0 | AJ168: 0 | AK168: 0 | AL168: 0 | AM168: 0 | AO168: -0.1666666667
A169: 160 | B169: 166.78964 | C169: 63 | D169: -0.069 | E169: 626783.3588 | L169: 12202.46691 | M169: 602478.1236 | N169: 73.16082046 | O169: 7258.516611 | P169: 1210645.372 | Q169: 159 | R169: 166.78964 | S169: -0.069 | T169: 2502063.482 | U169: 5499729.517 | V169: 1000 | W169: 639105.6133 | X169: 5.995576224 | Y169: 32980.04311 | AA169: 7542.425752 | AB169: 1206788.12 | AD169: -7542.425752 | AE169: -7542.425752 | AF169: 0 | AG169: 0 | AH169: 0 | AI169: 0 | AJ169: 0 | AK169: 0 | AL169: 0 | AM169: 0 | AO169: -0.25
A170: 161 | B170: 172.2936981 | C170: 64 | D170: 0.033 | E170: 639611.8327 | L170: 12202.46691 | M170: 614680.5905 | N170: 70.82364033 | O170: 7329.340251 | P170: 1262799.137 | Q170: 160 | R170: 172.2936981 | S170: 0.033 | T170: 2530519.29 | U170: 5682253.591 | V170: 1000 | W170: 640105.6133 | X170: 5.804042811 | Y170: 32985.84715 | AA170: 7542.425752 | AB170: 1214330.546 | AD170: -7542.425752 | AE170: -7542.425752 | AF170: 0 | AG170: 0 | AH170: 0 | AI170: 0 | AJ170: 0 | AK170: 0 | AL170: 0 | AM170: 0 | AO170: -0.3333333333
A171: 162 | B171: 175.0503973 | C171: 65 | D171: 0.016 | E171: 652547.2107 | L171: 12202.46691 | M171: 626883.0574 | N171: 69.70830741 | O171: 7399.048559 | P171: 1295206.39 | Q171: 161 | R171: 175.0503973 | S171: 0.016 | T171: 2559212.23 | U171: 5774185.649 | V171: 1000 | W171: 641105.6133 | X171: 5.712640562 | Y171: 32991.55979 | AA171: 7542.425752 | AB171: 1221872.972 | AD171: -7542.425752 | AE171: -7542.425752 | AF171: 0 | AG171: 0 | AH171: 0 | AI171: 0 | AJ171: 0 | AK171: 0 | AL171: 0 | AM171: 0 | AO171: -0.4166666667
A172: 163 | B172: 182.9276652 | C172: 66 | D172: 0.045 | E172: 665590.3834 | L172: 12202.46691 | M172: 639085.5243 | N172: 66.70651427 | O172: 7465.755073 | P172: 1365693.144 | Q172: 162 | R172: 182.9276652 | S172: 0.045 | T172: 2588144.278 | U172: 6035069.003 | V172: 1000 | W172: 642105.6133 | X172: 5.466641686 | Y172: 32997.02643 | AA172: 7542.425752 | AB172: 1229415.398 | AD172: -7542.425752 | AE172: -7542.425752 | AF172: 0 | AG172: 0 | AH172: 0 | AI172: 0 | AJ172: 0 | AK172: 0 | AL172: 0 | AM172: 0 | AO172: -0.5
A173: 164 | B173: 206.8911893 | C173: 67 | D173: 0.131 | E173: 678742.2492 | L173: 12202.46691 | M173: 651287.9912 | N173: 58.98011871 | O173: 7524.735192 | P173: 1556801.413 | Q173: 163 | R173: 206.8911893 | S173: 0.131 | T173: 2617317.426 | U173: 6826794.043 | V173: 1000 | W173: 643105.6133 | X173: 4.833458609 | Y173: 33001.85989 | AA173: 7542.425752 | AB173: 1236957.823 | AD173: -7542.425752 | AE173: -7542.425752 | AF173: 0 | AG173: 0 | AH173: 0 | AI173: 0 | AJ173: 0 | AK173: 0 | AL173: 0 | AM173: 0 | AO173: -0.5833333333
A174: 165 | B174: 212.8910338 | C174: 68 | D174: 0.029 | E174: 692003.7139 | L174: 12202.46691 | M174: 663490.4581 | N174: 57.31789963 | O174: 7582.053091 | P174: 1614151.121 | Q174: 164 | R174: 212.8910338 | S174: 0.029 | T174: 2646733.684 | U174: 7025800.07 | V174: 1000 | W174: 644105.6133 | X174: 4.697238687 | Y174: 33006.55713 | AA174: 7542.425752 | AB174: 1244500.249 | AD174: -7542.425752 | AE174: -7542.425752 | AF174: 0 | AG174: 0 | AH174: 0 | AI174: 0 | AJ174: 0 | AK174: 0 | AL174: 0 | AM174: 0 | AO174: -0.6666666667
A175: 166 | B175: 210.1234504 | C175: 69 | D175: -0.013 | E175: 705375.6908 | L175: 12202.46691 | M175: 675692.925 | N175: 58.07284663 | O175: 7640.125938 | P175: 1605369.623 | Q175: 165 | R175: 210.1234504 | S175: -0.013 | T175: 2676395.077 | U175: 6935451.669 | V175: 1000 | W175: 645105.6133 | X175: 4.759107079 | Y175: 33011.31624 | AA175: 7542.425752 | AB175: 1252042.675 | AD175: -7542.425752 | AE175: -7542.425752 | AF175: 0 | AG175: 0 | AH175: 0 | AI175: 0 | AJ175: 0 | AK175: 0 | AL175: 0 | AM175: 0 | AO175: -0.75
A176: 167 | B176: 254.0392515 | C176: 70 | D176: 0.209 | E176: 718859.1009 | L176: 12202.46691 | M176: 687895.3919 | N176: 48.03378547 | O176: 7688.159723 | P176: 1953094.341 | Q176: 166 | R176: 254.0392515 | S176: 0.209 | T176: 2706303.649 | U176: 8386170.068 | V176: 1000 | W176: 646105.6133 | X176: 3.936399569 | Y176: 33015.25264 | AA176: 7542.425752 | AB176: 1259585.101 | AD176: -7542.425752 | AE176: -7542.425752 | AF176: 0 | AG176: 0 | AH176: 0 | AI176: 0 | AJ176: 0 | AK176: 0 | AL176: 0 | AM176: 0 | AO176: -0.8333333333
A177: 168 | B177: 262.9306253 | C177: 71 | D177: 0.035 | E177: 732454.8727 | L177: 12202.46691 | M177: 700097.8588 | N177: 46.40945456 | O177: 7734.569178 | P177: 2033655.11 | Q177: 167 | R177: 262.9306253 | S177: 0.035 | T177: 2736461.459 | U177: 8680721.02 | V177: 1000 | W177: 647105.6133 | X177: 3.803284608 | Y177: 33019.05592 | AA177: 7542.425752 | AB177: 1267127.526 | AD177: -7542.425752 | AE177: -7542.425752 | AF177: 0 | AG177: 0 | AH177: 0 | AI177: 0 | AJ177: 0 | AK177: 0 | AL177: 0 | AM177: 0 | AO177: -0.9166666667
A178: 169 | B178: 313.9391666 | C178: 72 | D178: 0.194 | E178: 746163.9426 | L178: 13434.91606 | M178: 713532.7749 | N178: 42.7946478 | O178: 7777.363826 | P178: 2441619.118 | Q178: 168 | R178: 313.9391666 | S178: 0.194 | T178: 2766870.583 | U178: 10365974.9 | V178: 1000 | W178: 648105.6133 | X178: 3.185330492 | Y178: 33022.24125 | AA178: 7542.425752 | AB178: 1274669.952 | AD178: -7542.425752 | AE178: -7542.425752 | AF178: 0 | AG178: 0 | AH178: 0 | AI178: 0 | AJ178: 0 | AK178: 0 | AL178: 0 | AM178: 0 | AO178: 0
A179: 170 | B179: 339.9961174 | C179: 73 | D179: 0.083 | E179: 759987.2548 | L179: 13434.91606 | M179: 726967.691 | N179: 39.51491025 | O179: 7816.878736 | P179: 2657708.421 | Q179: 169 | R179: 339.9961174 | S179: 0.083 | T179: 2797533.118 | U179: 11227433.81 | V179: 1000 | W179: 649105.6133 | X179: 2.941210057 | Y179: 33025.18246 | AA179: 7542.425752 | AB179: 1282212.378 | AD179: -7542.425752 | AE179: -7542.425752 | AF179: 0 | AG179: 0 | AH179: 0 | AI179: 0 | AJ179: 0 | AK179: 0 | AL179: 0 | AM179: 0 | AO179: -0.08333333333
A180: 171 | B180: 296.4766144 | C180: 74 | D180: -0.128 | E180: 773925.7612 | L180: 13434.91606 | M180: 740402.607 | N180: 45.31526404 | O180: 7862.194 | P180: 2330956.659 | Q180: 170 | R180: 296.4766144 | S180: -0.128 | T180: 2828451.173 | U180: 9791194.286 | V180: 1000 | W180: 650105.6133 | X180: 3.372947313 | Y180: 33028.55541 | AA180: 7542.425752 | AB180: 1289754.804 | AD180: -7542.425752 | AE180: -7542.425752 | AF180: 0 | AG180: 0 | AH180: 0 | AI180: 0 | AJ180: 0 | AK180: 0 | AL180: 0 | AM180: 0 | AO180: -0.1666666667
A181: 172 | B181: 289.9541289 | C181: 75 | D181: -0.022 | E181: 787980.4218 | L181: 13434.91606 | M181: 753837.5231 | N181: 46.33462581 | O181: 7908.528626 | P181: 2293110.528 | Q181: 171 | R181: 289.9541289 | S181: -0.022 | T181: 2859626.879 | U181: 9576766.012 | V181: 1000 | W181: 651105.6133 | X181: 3.448821384 | Y181: 33032.00423 | AA181: 7542.425752 | AB181: 1297297.229 | AD181: -7542.425752 | AE181: -7542.425752 | AF181: 0 | AG181: 0 | AH181: 0 | AI181: 0 | AJ181: 0 | AK181: 0 | AL181: 0 | AM181: 0 | AO181: -0.25
A182: 173 | B182: 299.232661 | C182: 76 | D182: 0.032 | E182: 802152.2046 | L182: 13434.91606 | M182: 767272.4392 | N182: 44.89789323 | O182: 7953.426519 | P182: 2379924.981 | Q182: 172 | R182: 299.232661 | S182: 0.032 | T182: 2891062.382 | U182: 9884254.524 | V182: 1000 | W182: 652105.6133 | X182: 3.341881186 | Y182: 33035.34611 | AA182: 7542.425752 | AB182: 1304839.655 | AD182: -7542.425752 | AE182: -7542.425752 | AF182: 0 | AG182: 0 | AH182: 0 | AI182: 0 | AJ182: 0 | AK182: 0 | AL182: 0 | AM182: 0 | AO182: -0.3333333333
A183: 174 | B183: 314.7927594 | C183: 77 | D183: 0.052 | E183: 816442.0856 | L183: 13434.91606 | M183: 780707.3552 | N183: 42.67860573 | O183: 7996.105125 | P183: 2517115.996 | Q183: 173 | R183: 314.7927594 | S183: 0.052 | T183: 2922759.848 | U183: 10399287.76 | V183: 1000 | W183: 653105.6133 | X183: 3.176693143 | Y183: 33038.52281 | AA183: 7542.425752 | AB183: 1312382.081 | AD183: -7542.425752 | AE183: -7542.425752 | AF183: 0 | AG183: 0 | AH183: 0 | AI183: 0 | AJ183: 0 | AK183: 0 | AL183: 0 | AM183: 0 | AO183: -0.4166666667
A184: 175 | B184: 322.0329928 | C184: 78 | D184: 0.023 | E184: 830851.049 | L184: 13434.91606 | M184: 794142.2713 | N184: 41.71906719 | O184: 8037.824192 | P184: 2588444.58 | Q184: 174 | R184: 322.0329928 | S184: 0.023 | T184: 2954721.459 | U184: 10639494.38 | V184: 1000 | W184: 654105.6133 | X184: 3.105271889 | Y184: 33041.62808 | AA184: 7542.425752 | AB184: 1319924.507 | AD184: -7542.425752 | AE184: -7542.425752 | AF184: 0 | AG184: 0 | AH184: 0 | AI184: 0 | AJ184: 0 | AK184: 0 | AL184: 0 | AM184: 0 | AO184: -0.5
A185: 176 | B185: 345.8634343 | C185: 79 | D185: 0.074 | E185: 845380.087 | L185: 13434.91606 | M185: 807577.1874 | N185: 38.84456907 | O185: 8076.668761 | P185: 2793424.395 | Q185: 175 | R185: 345.8634343 | S185: 0.074 | T185: 2986949.417 | U185: 11427890.96 | V185: 1000 | W185: 655105.6133 | X185: 2.891314608 | Y185: 33044.51939 | AA185: 7542.425752 | AB185: 1327466.932 | AD185: -7542.425752 | AE185: -7542.425752 | AF185: 0 | AG185: 0 | AH185: 0 | AI185: 0 | AJ185: 0 | AK185: 0 | AL185: 0 | AM185: 0 | AO185: -0.5833333333
A186: 177 | B186: 325.1116282 | C186: 80 | D186: -0.06 | E186: 860030.2004 | L186: 13434.91606 | M186: 821012.1034 | N186: 41.32400965 | O186: 8117.992771 | P186: 2639253.848 | Q186: 176 | R186: 325.1116282 | S186: -0.06 | T186: 3019445.942 | U186: 10743157.5 | V186: 1000 | W186: 656105.6133 | X186: 3.075866604 | Y186: 33047.59526 | AA186: 7542.425752 | AB186: 1335009.358 | AD186: -7542.425752 | AE186: -7542.425752 | AF186: 0 | AG186: 0 | AH186: 0 | AI186: 0 | AJ186: 0 | AK186: 0 | AL186: 0 | AM186: 0 | AO186: -0.6666666667
A187: 178 | B187: 319.2596189 | C187: 81 | D187: -0.018 | E187: 874802.398 | L187: 13434.91606 | M187: 834447.0195 | N187: 42.08147623 | O187: 8160.074247 | P187: 2605182.195 | Q187: 177 | R187: 319.2596189 | S187: -0.018 | T187: 3052213.27 | U187: 10550762.67 | V187: 1000 | W187: 657105.6133 | X187: 3.132247051 | Y187: 33050.72751 | AA187: 7542.425752 | AB187: 1342551.784 | AD187: -7542.425752 | AE187: -7542.425752 | AF187: 0 | AG187: 0 | AH187: 0 | AI187: 0 | AJ187: 0 | AK187: 0 | AL187: 0 | AM187: 0 | AO187: -0.75
A188: 179 | B188: 313.8322054 | C188: 82 | D188: -0.017 | E188: 889697.6973 | L188: 13434.91606 | M188: 847881.9355 | N188: 42.80923319 | O188: 8202.88348 | P188: 2574329.013 | Q188: 178 | R188: 313.8322054 | S188: -0.017 | T188: 3085253.66 | U188: 10372382.7 | V188: 1000 | W188: 658105.6133 | X188: 3.186416125 | Y188: 33053.91392 | AA188: 7542.425752 | AB188: 1350094.21 | AD188: -7542.425752 | AE188: -7542.425752 | AF188: 0 | AG188: 0 | AH188: 0 | AI188: 0 | AJ188: 0 | AK188: 0 | AL188: 0 | AM188: 0 | AO188: -0.8333333333
A189: 180 | B189: 297.8267629 | C189: 83 | D189: -0.051 | E189: 904717.1241 | L189: 13434.91606 | M189: 861316.8516 | N189: 45.10983476 | O189: 8247.993315 | P189: 2456473.15 | Q189: 179 | R189: 297.8267629 | S189: -0.051 | T189: 3118569.387 | U189: 9844340.186 | V189: 1000 | W189: 659105.6133 | X189: 3.357656613 | Y189: 33057.27158 | AA189: 7542.425752 | AB189: 1357636.635 | AD189: -7542.425752 | AE189: -7542.425752 | AF189: 0 | AG189: 0 | AH189: 0 | AI189: 0 | AJ189: 0 | AK189: 0 | AL189: 0 | AM189: 0 | AO189: -0.9166666667
A190: 181 | B190: 274.2984487 | C190: 84 | D190: -0.079 | E190: 919861.7127 | L190: 14791.84259 | M190: 876108.6942 | N190: 53.92608911 | O190: 8301.919404 | P190: 2277203.613 | Q190: 180 | R190: 274.2984487 | S190: -0.079 | T190: 3152162.744 | U190: 9067558.311 | V190: 1000 | W190: 660105.6133 | X190: 3.645664075 | Y190: 33060.91724 | AA190: 7542.425752 | AB190: 1365179.061 | AD190: -7542.425752 | AE190: -7542.425752 | AF190: 0 | AG190: 0 | AH190: 0 | AI190: 0 | AJ190: 0 | AK190: 0 | AL190: 0 | AM190: 0 | AO190: 0
A191: 182 | B191: 259.7606309 | C191: 85 | D191: -0.053 | E191: 935132.5063 | L191: 14791.84259 | M191: 890900.5368 | N191: 56.94412789 | O191: 8358.863532 | P191: 2171303.664 | Q191: 181 | R191: 259.7606309 | S191: -0.053 | T191: 3186036.047 | U191: 8587924.721 | V191: 1000 | W191: 661105.6133 | X191: 3.849698072 | Y191: 33064.76694 | AA191: 7542.425752 | AB191: 1372721.487 | AD191: -7542.425752 | AE191: -7542.425752 | AF191: 0 | AG191: 0 | AH191: 0 | AI191: 0 | AJ191: 0 | AK191: 0 | AL191: 0 | AM191: 0 | AO191: -0.08333333333
A192: 183 | B192: 253.5263757 | C192: 86 | D192: -0.024 | E192: 950530.5565 | L192: 14791.84259 | M192: 905692.3794 | N192: 58.34439333 | O192: 8417.207925 | P192: 2133984.219 | Q192: 182 | R192: 253.5263757 | S192: -0.024 | T192: 3220191.626 | U192: 8382790.527 | V192: 1000 | W192: 662105.6133 | X192: 3.944362779 | Y192: 33068.7113 | AA192: 7542.425752 | AB192: 1380263.913 | AD192: -7542.425752 | AE192: -7542.425752 | AF192: 0 | AG192: 0 | AH192: 0 | AI192: 0 | AJ192: 0 | AK192: 0 | AL192: 0 | AM192: 0 | AO192: -0.1666666667
A193: 184 | B193: 241.1035833 | C193: 87 | D193: -0.049 | E193: 966056.9238 | L193: 14791.84259 | M193: 920484.222 | N193: 61.35057133 | O193: 8478.558497 | P193: 2044210.835 | Q193: 183 | R193: 241.1035833 | S193: -0.049 | T193: 3254631.836 | U193: 7972984.792 | V193: 1000 | W193: 663105.6133 | X193: 4.147594931 | Y193: 33072.8589 | AA193: 7542.425752 | AB193: 1387806.338 | AD193: -7542.425752 | AE193: -7542.425752 | AF193: 0 | AG193: 0 | AH193: 0 | AI193: 0 | AJ193: 0 | AK193: 0 | AL193: 0 | AM193: 0 | AO193: -0.25
A194: 185 | B194: 255.3286947 | C194: 88 | D194: 0.059 | E194: 981712.6774 | L194: 14791.84259 | M194: 935276.0645 | N194: 57.93255083 | O194: 8536.491047 | P194: 2179611.117 | Q194: 184 | R194: 255.3286947 | S194: 0.059 | T194: 3289359.047 | U194: 8444449.894 | V194: 1000 | W194: 664105.6133 | X194: 3.916520237 | Y194: 33076.77542 | AA194: 7542.425752 | AB194: 1395348.764 | AD194: -7542.425752 | AE194: -7542.425752 | AF194: 0 | AG194: 0 | AH194: 0 | AI194: 0 | AJ194: 0 | AK194: 0 | AL194: 0 | AM194: 0 | AO194: -0.3333333333
A195: 186 | B195: 246.1368617 | C195: 89 | D195: -0.036 | E195: 997498.8957 | L195: 14791.84259 | M195: 950067.9071 | N195: 60.09600708 | O195: 8596.587054 | P195: 2115936.959 | Q195: 185 | R195: 246.1368617 | S195: -0.036 | T195: 3324375.652 | U195: 8141413.698 | V195: 1000 | W195: 665105.6133 | X195: 4.062780329 | Y195: 33080.8382 | AA195: 7542.425752 | AB195: 1402891.19 | AD195: -7542.425752 | AE195: -7542.425752 | AF195: 0 | AG195: 0 | AH195: 0 | AI195: 0 | AJ195: 0 | AK195: 0 | AL195: 0 | AM195: 0 | AO195: -0.4166666667
A196: 187 | B196: 254.505515 | C196: 90 | D196: 0.034 | E196: 1013416.666 | L196: 14791.84259 | M196: 964859.7497 | N196: 58.11992948 | O196: 8654.706984 | P196: 2202670.658 | Q196: 186 | R196: 254.505515 | S196: 0.034 | T196: 3359684.061 | U196: 8419255.764 | V196: 1000 | W196: 666105.6133 | X196: 3.929187939 | Y196: 33084.76739 | AA196: 7542.425752 | AB196: 1410433.616 | AD196: -7542.425752 | AE196: -7542.425752 | AF196: 0 | AG196: 0 | AH196: 0 | AI196: 0 | AJ196: 0 | AK196: 0 | AL196: 0 | AM196: 0 | AO196: -0.5
A197: 188 | B197: 248.6518882 | C197: 91 | D197: -0.023 | E197: 1029467.084 | L197: 14791.84259 | M197: 979651.5923 | N197: 59.48815709 | O197: 8714.195141 | P197: 2166801.076 | Q197: 187 | R197: 248.6518882 | S197: -0.023 | T197: 3395286.708 | U197: 8226589.881 | V197: 1000 | W197: 667105.6133 | X197: 4.021686734 | Y197: 33088.78907 | AA197: 7542.425752 | AB197: 1417976.041 | AD197: -7542.425752 | AE197: -7542.425752 | AF197: 0 | AG197: 0 | AH197: 0 | AI197: 0 | AJ197: 0 | AK197: 0 | AL197: 0 | AM197: 0 | AO197: -0.5833333333
A198: 189 | B198: 258.8466156 | C198: 92 | D198: 0.041 | E198: 1045651.256 | L198: 14791.84259 | M198: 994443.4349 | N198: 57.14520374 | O198: 8771.340345 | P198: 2270431.763 | Q198: 188 | R198: 258.8466156 | S198: 0.041 | T198: 3431186.043 | U198: 8564921.066 | V198: 1000 | W198: 668105.6133 | X198: 3.863291771 | Y198: 33092.65237 | AA198: 7542.425752 | AB198: 1425518.467 | AD198: -7542.425752 | AE198: -7542.425752 | AF198: 0 | AG198: 0 | AH198: 0 | AI198: 0 | AJ198: 0 | AK198: 0 | AL198: 0 | AM198: 0 | AO198: -0.6666666667
A199: 190 | B199: 258.8466156 | C199: 93 | D199: 0 | E199: 1061970.295 | L199: 14791.84259 | M199: 1009235.277 | N199: 57.14520374 | O199: 8828.485548 | P199: 2285223.605 | Q199: 189 | R199: 258.8466156 | S199: 0 | T199: 3467384.539 | U199: 8565921.066 | V199: 1000 | W199: 669105.6133 | X199: 3.863291771 | Y199: 33096.51566 | AA199: 7542.425752 | AB199: 1433060.893 | AD199: -7542.425752 | AE199: -7542.425752 | AF199: 0 | AG199: 0 | AH199: 0 | AI199: 0 | AJ199: 0 | AK199: 0 | AL199: 0 | AM199: 0 | AO199: -0.75
A200: 191 | B200: 225.7142488 | C200: 94 | D200: -0.128 | E200: 1078425.327 | L200: 14791.84259 | M200: 1024027.12 | N200: 65.53349053 | O200: 8894.019039 | P200: 2007506.826 | Q200: 190 | R200: 225.7142488 | S200: -0.128 | T200: 3503884.69 | U200: 7470355.17 | V200: 1000 | W200: 670105.6133 | X200: 4.430380471 | Y200: 33100.94604 | AA200: 7542.425752 | AB200: 1440603.319 | AD200: -7542.425752 | AE200: -7542.425752 | AF200: 0 | AG200: 0 | AH200: 0 | AI200: 0 | AJ200: 0 | AK200: 0 | AL200: 0 | AM200: 0 | AO200: -0.8333333333
A201: 192 | B201: 237.9028182 | C201: 95 | D201: 0.054 | E201: 1095017.484 | L201: 14791.84259 | M201: 1038818.963 | N201: 62.17598722 | O201: 8956.195026 | P201: 2130704.037 | Q201: 191 | R201: 237.9028182 | S201: 0.054 | T201: 3540689.008 | U201: 7874808.349 | V201: 1000 | W201: 671105.6133 | X201: 4.203397032 | Y201: 33105.14944 | AA201: 7542.425752 | AB201: 1448145.744 | AD201: -7542.425752 | AE201: -7542.425752 | AF201: 0 | AG201: 0 | AH201: 0 | AI201: 0 | AJ201: 0 | AK201: 0 | AL201: 0 | AM201: 0 | AO201: -0.9166666667
A202: 193 | B202: 224.3423576 | C202: =IF(AND(A202>=startm,A202<=endm),A202-startm,"NA") -> 96 | D202: -0.057 | E202: =IF(C202="NA","NA",IF(C202=0,typical,(1+return/12)*typical*((1+return/12)^C202-1)/(return/12))) -> 1111747.909 | L202: =IF(C202="NA","NA",IF(C202=0,typical,IF(L201="NA",typical,IF(INT(C202/12)-(C202/12)=0,L201*(1+gsip1),L201)))) -> 16285.81869 | M202: 1055104.781 | N202: 72.59359695 | O202: 9028.788623 | P202: 2025539.726 | Q202: 192 | R202: 224.3423576 | S202: -0.057 | T202: 3577800.029 | U202: 7426887.273 | V202: 1000 | W202: 672105.6133 | X202: =V202/R202 -> 4.457472992 | Y202: 33109.60691 | AA202: =typical -> 7542.425752 | AB202: 1455688.17 | AD202: =IF(A202=endm,E202,IF(C202="NA","NA",-typical)) -> -7542.425752 | AE202: =IF(A202=endm,P202,IF(C202="NA","NA",-typical)) -> -7542.425752 | AF202: =IF(A202=endm,F202,IF(C202="NA","NA",-G202)) -> 0 | AG202: =IF(A202=endm,O202,0) -> 0 | AH202: =IF(A202=endm,J202,0) -> 0 | AI202: =IF(A202=endm,E202,0) -> 0 | AJ202: =IF(A202=endm,P202,0) -> 0 | AK202: =IF(A202=endm,F202,0) -> 0 | AL202: =IF(A202=endm,M202,0) -> 0 | AM202: =IF(A202=endm,H202,0) -> 0 | AO202: 0
... 203 more rows

Sheet Sensex VIP & SIP
AI2: Return expected each year | AL2: =Input!B2 -> 0.1
AI3: Minimum investment | AL3: =Input!B8 -> 1000
AI4: Typical SIP amt | AL4: =Input!B7 -> 7542.425752
B5: Note: If you see cells showing "NA". Please scroll down/up until you see the values corresponding to the input investment year | AI5: Maximum investment | AL5: =Input!B9 -> 15000
F6: Value-averaging investment plan | L6: Systematic investment plan
B7: Full | D7: NAV | E7: Portfolio | F7: Portfolio | G7: VIP | H7: Total | I7: Units | J7: Total | L7: SIP | M7: Total | N7: Units | O7: Total | P7: Portfolio | R7: Enter | S7: NAV | T7: Portfolio | U7: Portfolio | V7: VIP | W7: Total | X7: Units | Y7: Total | AA7: SIP | AB7: Total | AG7: Total Units | AI7: Portfolio | AL7: Total investment
A8: S.no | B8: NAV | C8: Month | D8: % change | E8: Target | F8: Actual | G8: investment | H8: investment | I8: purchased | J8: no of units | L8: investment | M8: investment | N8: purchased | O8: no of units | P8: Actual | Q8: Month | R8: NAV | S8: % change | T8: Target | U8: Actual | V8: investment | W8: investment | X8: purchased | Y8: no of units | AA8: investment | AB8: investment | AD8: Target | AE8: SIP | AF8: VIP | AG8: SIP | AH8: VIP | AI8: Target | AJ8: SIP | AK8: VIP | AL8: SIP | AM8: VIP
A10: 1 | B10: 9.715125456 | C10: =IF(AND(A10>=startm,A10<=endm),A10-startm,"NA") -> NA | D10: =IF(C10="NA","NA",IF(C10=0,0,(B10-B8)/B8)) -> NA | E10: =IF(C10="NA","NA",IF(C10=0,typical,(1+return/12)*typical*((1+return/12)^C10-1)/(return/12))) -> NA | F10: =IF(C10="NA","NA",IF(C10=0,typical,(F8+IF(V8=typical,0,V8)*(1+D10)))) -> NA | G10: =IF(C10="NA","NA",IF(C10=0,typical,IF((F10-E10)>0,IF(typical-(F10-E10)<min,min,typical-(F10-E10)),IF((F10-E10)<0,IF(typical-(F10-E10)>max,max,typical-(F10-E10)),IF((E10-F10)=0,min,))))) -> NA | H10: =IF(C10="NA","NA",IF(H9="NA",G10,H9+G10)) -> NA | I10: =IF(C10="NA","NA",G10/B10) -> NA | J10: =IF(C10="NA","NA",IF(J9="NA",I10,J9+I10)) -> NA | L10: =IF(C10="NA","NA",typical) -> NA | M10: =IF(C10="NA","NA",IF(M9="NA",L10,M9+L10)) -> NA | N10: =IF(C10="NA","NA",L10/B10) -> NA | O10: =IF(C10="NA","NA",IF(O9="NA",N10,O9+N10)) -> NA | P10: =IF(C10="NA","NA",O10*B10) -> NA | Q10: 0 | R10: 9.715125456 | S10: 0 | T10: =typical -> 7542.425752 | U10: =typical -> 7542.425752 | V10: =typical -> 7542.425752 | W10: =V10 -> 7542.425752 | X10: =V10/R10 -> 776.3590688 | Y10: =X10 -> 776.3590688 | AA10: =typical -> 7542.425752 | AB10: =AA10 -> 7542.425752 | AD10: =IF(A10=endm,E10,IF(C10="NA","NA",-typical)) -> NA | AE10: =IF(A10=endm,P10,IF(C10="NA","NA",-typical)) -> NA | AF10: =IF(A10=endm,F10,IF(C10="NA","NA",-G10)) -> NA | AG10: =IF(A10=endm,O10,0) -> 0 | AH10: =IF(A10=endm,J10,0) -> 0 | AI10: =IF(A10=endm,E10,0) -> 0 | AJ10: =IF(A10=endm,P10,0) -> 0 | AK10: =IF(A10=endm,F10,0) -> 0 | AL10: =IF(A10=endm,M10,0) -> 0 | AM10: =IF(A10=endm,H10,0) -> 0
A11: =A10+1 -> 2 | B11: 10.08430022 | C11: NA | D11: =IF(C11="NA","NA",IF(C11=0,0,(B11-B10)/B10)) -> NA | E11: NA | F11: =IF(C11="NA","NA",IF(C11=0,typical,(F10+IF(V10=typical,0,V10))*(1+D11))) -> NA | G11: NA | H11: NA | I11: =IF(C11="NA","NA",G11/B11) -> NA | J11: NA | L11: NA | M11: NA | N11: =IF(C11="NA","NA",L11/B11) -> NA | O11: NA | P11: =IF(C11="NA","NA",O11*B11) -> NA | Q11: =Q10+1 -> 1 | R11: 10.08430022 | S11: =(R11-R10)/R10 -> 0.038 | T11: =(1+return/12)*typical*((1+return/12)^Q11-1)/(return/12) -> 7605.2793 | U11: =U10*(1+S11) -> 7829.03793 | V11: =IF((U11-T11)>0,IF(typical-(U11-T11)<min,min,typical-(U11-T11)),IF((U11-T11)<0,IF(typical-(U11-T11)>max,max,typical-(U11-T11)),IF((T11-U11)=0,min,))) -> 7318.667121 | W11: =W10+V11 -> 14861.09287 | X11: 725.7486349 | Y11: =Y10+X11 -> 1502.107704 | AA11: 7542.425752 | AB11: =AB10+AA11 -> 15084.8515 | AD11: NA | AE11: NA | AF11: NA | AG11: 0 | AH11: 0 | AI11: 0 | AJ11: 0 | AK11: 0 | AL11: 0 | AM11: 0
A12: =A11+1 -> 3 | B12: 10.11455312 | C12: NA | D12: NA | E12: NA | F12: NA | G12: NA | H12: NA | I12: NA | J12: NA | L12: NA | M12: NA | N12: NA | O12: NA | P12: NA | Q12: =Q11+1 -> 2 | R12: 10.11455312 | S12: =(R12-R11)/R11 -> 0.003 | T12: 15273.93593 | U12: =(U11+V11)*(1+S12) -> 15193.14817 | V12: 7623.213512 | W12: 22484.30638 | X12: 753.6876241 | Y12: =Y11+X12 -> 2255.795328 | AA12: 7542.425752 | AB12: =AB11+AA12 -> 22627.27726 | AD12: NA | AE12: NA | AF12: NA | AG12: 0 | AH12: 0 | AI12: 0 | AJ12: 0 | AK12: 0 | AL12: 0 | AM12: 0
A13: 4 | B13: 10.01340759 | C13: NA | D13: NA | E13: NA | F13: NA | G13: NA | H13: NA | I13: NA | J13: NA | L13: NA | M13: NA | N13: NA | O13: NA | P13: NA | Q13: 3 | R13: 10.01340759 | S13: =(R13-R12)/R12 -> -0.01 | T13: 23006.49803 | U13: =(U12+V12)*(1+S13) -> 22588.19806 | V13: 7960.725716 | W13: 30445.0321 | X13: 795.0066591 | Y13: 3050.801987 | AA13: 7542.425752 | AB13: 30169.70301 | AD13: NA | AE13: NA | AF13: NA | AG13: 0 | AH13: 0 | AI13: 0 | AJ13: 0 | AK13: 0 | AL13: 0 | AM13: 0
A14: 5 | B14: 9.913273516 | C14: NA | D14: NA | E14: NA | F14: NA | G14: NA | H14: NA | I14: NA | J14: NA | L14: NA | M14: NA | N14: NA | O14: NA | P14: NA | Q14: 4 | R14: 9.913273516 | S14: =(R14-R13)/R13 -> -0.01 | T14: 30803.49814 | U14: =(U13+V13)*(1+S14) -> 30243.43454 | V14: 8102.489354 | W14: 38547.52146 | X14: 817.3374154 | Y14: 3868.139402 | AA14: 7542.425752 | AB14: 37712.12876 | AD14: NA | AE14: NA | AF14: NA | AG14: 0 | AH14: 0 | AI14: 0 | AJ14: 0 | AK14: 0 | AL14: 0 | AM14: 0
A15: 6 | B15: 9.615875311 | C15: NA | D15: NA | E15: NA | F15: NA | G15: NA | H15: NA | I15: NA | J15: NA | L15: NA | M15: NA | N15: NA | O15: NA | P15: NA | Q15: 5 | R15: 9.615875311 | S15: -0.03 | T15: 38665.47326 | U15: 37195.54618 | V15: 9012.352834 | W15: 47559.87429 | X15: 937.2368654 | Y15: 4805.376268 | AA15: 7542.425752 | AB15: 45254.55451 | AD15: NA | AE15: NA | AF15: NA | AG15: 0 | AH15: 0 | AI15: 0 | AJ15: 0 | AK15: 0 | AL15: 0 | AM15: 0
A16: 7 | B16: 10.1255167 | C16: NA | D16: NA | E16: NA | F16: NA | G16: NA | H16: NA | I16: NA | J16: NA | L16: NA | M16: NA | N16: NA | O16: NA | P16: NA | Q16: 6 | R16: 10.1255167 | S16: 0.053 | T16: 46592.96484 | U16: 48656.91766 | V16: 5478.472929 | W16: 53038.34722 | X16: 541.0561347 | Y16: 5346.432402 | AA16: 7542.425752 | AB16: 52796.98026 | AD16: NA | AE16: NA | AF16: NA | AG16: 0 | AH16: 0 | AI16: 0 | AJ16: 0 | AK16: 0 | AL16: 0 | AM16: 0
A17: 8 | B17: 11.07731527 | C17: NA | D17: NA | E17: NA | F17: NA | G17: NA | H17: NA | I17: NA | J17: NA | L17: NA | M17: NA | N17: NA | O17: NA | P17: NA | Q17: 7 | R17: 11.07731527 | S17: 0.094 | T17: 54586.51884 | U17: 59224.1173 | V17: 2904.827291 | W17: 55943.17451 | X17: 262.232068 | Y17: 5608.66447 | AA17: 7542.425752 | AB17: 60339.40601 | AD17: NA | AE17: NA | AF17: NA | AG17: 0 | AH17: 0 | AI17: 0 | AJ17: 0 | AK17: 0 | AL17: 0 | AM17: 0
A18: 9 | B18: 10.57883609 | C18: NA | D18: NA | E18: NA | F18: NA | G18: NA | H18: NA | I18: NA | J18: NA | L18: NA | M18: NA | N18: NA | O18: NA | P18: NA | Q18: 8 | R18: 10.57883609 | S18: -0.045 | T18: 62646.6858 | U18: 59333.14209 | V18: 10855.96946 | W18: 66799.14397 | X18: 1026.196963 | Y18: 6634.861433 | AA18: 7542.425752 | AB18: 67881.83177 | AD18: NA | AE18: NA | AF18: NA | AG18: 0 | AH18: 0 | AI18: 0 | AJ18: 0 | AK18: 0 | AL18: 0 | AM18: 0
A19: 10 | B19: 10.30378635 | C19: NA | D19: NA | E19: NA | F19: NA | G19: NA | H19: NA | I19: NA | J19: NA | L19: NA | M19: NA | N19: NA | O19: NA | P19: NA | Q19: 9 | R19: 10.30378635 | S19: -0.026 | T19: 70774.02082 | U19: 68364.19465 | V19: 9952.251915 | W19: 76751.39589 | X19: 965.8829851 | Y19: 7600.744419 | AA19: 7542.425752 | AB19: 75424.25752 | AD19: NA | AE19: NA | AF19: NA | AG19: 0 | AH19: 0 | AI19: 0 | AJ19: 0 | AK19: 0 | AL19: 0 | AM19: 0
A20: 11 | B20: 11.02505139 | C20: NA | D20: NA | E20: NA | F20: NA | G20: NA | H20: NA | I20: NA | J20: NA | L20: NA | M20: NA | N20: NA | O20: NA | P20: NA | Q20: 10 | R20: 11.02505139 | S20: 0.07 | T20: 78969.08362 | U20: 83798.59783 | V20: 2712.911547 | W20: 79464.30744 | X20: 246.0679275 | Y20: 7846.812346 | AA20: 7542.425752 | AB20: 82966.68327 | AD20: NA | AE20: NA | AF20: NA | AG20: 0 | AH20: 0 | AI20: 0 | AJ20: 0 | AK20: 0 | AL20: 0 | AM20: 0
A21: 12 | B21: 11.66450437 | C21: NA | D21: NA | E21: NA | F21: NA | G21: NA | H21: NA | I21: NA | J21: NA | L21: NA | M21: NA | N21: NA | O21: NA | P21: NA | Q21: 11 | R21: 11.66450437 | S21: 0.058 | T21: 87232.43862 | U21: 91529.17692 | V21: 3245.687453 | W21: 82709.99489 | X21: 278.253353 | Y21: 8125.065699 | AA21: 7542.425752 | AB21: 90509.10902 | AD21: NA | AE21: NA | AF21: NA | AG21: 0 | AH21: 0 | AI21: 0 | AJ21: 0 | AK21: 0 | AL21: 0 | AM21: 0
A22: 13 | B22: 11.53619482 | C22: NA | D22: NA | E22: NA | F22: NA | G22: NA | H22: =IF(C22="NA","NA",IF(H21="NA",G22,H21+G22)) -> NA | I22: NA | J22: =IF(C22="NA","NA",IF(J21="NA",I22,J21+I22)) -> NA | L22: NA | M22: =IF(C22="NA","NA",IF(M21="NA",L22,M21+L22)) -> NA | N22: NA | O22: =IF(C22="NA","NA",IF(O21="NA",N22,O21+N22)) -> NA | P22: NA | Q22: 12 | R22: 11.53619482 | S22: -0.011 | T22: 95564.65491 | U22: 93732.34086 | V22: 9374.739796 | W22: 92084.73468 | X22: 812.6370904 | Y22: 8937.70279 | AA22: 7542.425752 | AB22: 98051.53477 | AD22: NA | AE22: NA | AF22: NA | AG22: 0 | AH22: 0 | AI22: 0 | AJ22: 0 | AK22: 0 | AL22: 0 | AM22: 0
A23: 14 | B23: 12.4706266 | C23: NA | D23: NA | E23: NA | F23: NA | G23: NA | H23: =IF(C23="NA","NA",IF(H22="NA",G23,H22+G23)) -> NA | I23: NA | J23: =IF(C23="NA","NA",IF(J22="NA",I23,J22+I23)) -> NA | L23: NA | M23: =IF(C23="NA","NA",IF(M22="NA",L23,M22+L23)) -> NA | N23: NA | O23: =IF(C23="NA","NA",IF(O22="NA",N23,O22+N23)) -> NA | P23: NA | Q23: 13 | R23: 12.4706266 | S23: 0.081 | T23: 103966.3063 | U23: 111458.7542 | V23: 1000 | W23: 93084.73468 | X23: 80.18843252 | Y23: 9017.891222 | AA23: 7542.425752 | AB23: 105593.9605 | AD23: NA | AE23: NA | AF23: NA | AG23: 0 | AH23: 0 | AI23: 0 | AJ23: 0 | AK23: 0 | AL23: 0 | AM23: 0
A24: 15 | B24: 13.64286551 | C24: NA | D24: NA | E24: NA | F24: NA | G24: NA | H24: NA | I24: NA | J24: NA | L24: NA | M24: NA | N24: NA | O24: NA | P24: NA | Q24: 14 | R24: 13.64286551 | S24: 0.094 | T24: 112437.9715 | U24: 123029.8771 | V24: 1000 | W24: 94084.73468 | X24: 73.29838439 | Y24: 9091.189607 | AA24: 7542.425752 | AB24: 113136.3863 | AD24: NA | AE24: NA | AF24: NA | AG24: 0 | AH24: 0 | AI24: 0 | AJ24: 0 | AK24: 0 | AL24: 0 | AM24: 0
A25: 16 | B25: 14.65243755 | C25: NA | D25: NA | E25: NA | F25: NA | G25: NA | H25: NA | I25: NA | J25: NA | L25: NA | M25: NA | N25: NA | O25: NA | P25: NA | Q25: 15 | R25: 14.65243755 | S25: 0.074 | T25: 120980.2339 | U25: 133208.088 | V25: 1000 | W25: 95084.73468 | X25: 68.24803016 | Y25: 9159.437637 | AA25: 7542.425752 | AB25: 120678.812 | AD25: NA | AE25: NA | AF25: NA | AG25: 0 | AH25: 0 | AI25: 0 | AJ25: 0 | AK25: 0 | AL25: 0 | AM25: 0
A26: 17 | B26: 13.91981568 | C26: NA | D26: NA | E26: NA | F26: NA | G26: NA | H26: NA | I26: NA | J26: NA | L26: NA | M26: NA | N26: NA | O26: NA | P26: NA | Q26: 16 | R26: 13.91981568 | S26: -0.05 | T26: 129593.6818 | U26: 127497.6836 | V26: 9638.423989 | W26: 104723.1587 | X26: 692.4246853 | Y26: 9851.862322 | AA26: 7542.425752 | AB26: 128221.2378 | AD26: NA | AE26: NA | AF26: NA | AG26: 0 | AH26: 0 | AI26: 0 | AJ26: 0 | AK26: 0 | AL26: 0 | AM26: 0
A27: 18 | B27: 16.63417973 | C27: NA | D27: NA | E27: NA | F27: NA | G27: NA | H27: NA | I27: NA | J27: NA | L27: NA | M27: NA | N27: NA | O27: NA | P27: NA | Q27: 17 | R27: 16.63417973 | S27: 0.195 | T27: 138278.9085 | U27: 163877.6486 | V27: 1000 | W27: 105723.1587 | X27: 60.11718138 | Y27: 9911.979503 | AA27: 7542.425752 | AB27: 135763.6635 | AD27: NA | AE27: NA | AF27: NA | AG27: 0 | AH27: 0 | AI27: 0 | AJ27: 0 | AK27: 0 | AL27: 0 | AM27: 0
A28: 19 | B28: 16.35139868 | C28: NA | D28: NA | E28: NA | F28: NA | G28: NA | H28: NA | I28: NA | J28: NA | L28: NA | M28: NA | N28: NA | O28: NA | P28: NA | Q28: 18 | R28: 16.35139868 | S28: -0.017 | T28: 147036.512 | U28: 162074.7285 | V28: 1000 | W28: 106723.1587 | X28: 61.15684779 | Y28: 9973.136351 | AA28: 7542.425752 | AB28: 143306.0893 | AD28: NA | AE28: NA | AF28: NA | AG28: 0 | AH28: 0 | AI28: 0 | AJ28: 0 | AK28: 0 | AL28: 0 | AM28: 0
A29: 20 | B29: 15.20680077 | C29: NA | D29: NA | E29: NA | F29: NA | G29: NA | H29: NA | I29: NA | J29: NA | L29: NA | M29: NA | N29: NA | O29: NA | P29: NA | Q29: 19 | R29: 15.20680077 | S29: -0.07 | T29: 155867.0956 | U29: 151659.4975 | V29: 11750.0238 | W29: 118473.1825 | X29: 772.6821687 | Y29: 10745.81852 | AA29: 7542.425752 | AB29: 150848.515 | AD29: NA | AE29: NA | AF29: NA | AG29: 0 | AH29: 0 | AI29: 0 | AJ29: 0 | AK29: 0 | AL29: 0 | AM29: 0
A30: 21 | B30: 16.14962242 | C30: NA | D30: NA | E30: NA | F30: NA | G30: NA | H30: NA | I30: NA | J30: NA | L30: NA | M30: NA | N30: NA | O30: NA | P30: NA | Q30: 20 | R30: 16.14962242 | S30: 0.062 | T30: 164771.2673 | U30: 173540.9117 | V30: 1000 | W30: 119473.1825 | X30: 61.92095234 | Y30: 10807.73947 | AA30: 7542.425752 | AB30: 158390.9408 | AD30: NA | AE30: NA | AF30: NA | AG30: 0 | AH30: 0 | AI30: 0 | AJ30: 0 | AK30: 0 | AL30: 0 | AM30: 0
A31: 22 | B31: 16.39186675 | C31: NA | D31: NA | E31: NA | F31: NA | G31: NA | H31: NA | I31: NA | J31: NA | L31: NA | M31: NA | N31: NA | O31: NA | P31: NA | Q31: 21 | R31: 16.39186675 | S31: 0.015 | T31: 173749.6405 | U31: 177159.0253 | V31: 4133.04096 | W31: 123606.2234 | X31: 252.1397363 | Y31: 11059.87921 | AA31: 7542.425752 | AB31: 165933.3665 | AD31: NA | AE31: NA | AF31: NA | AG31: 0 | AH31: 0 | AI31: 0 | AJ31: 0 | AK31: 0 | AL31: 0 | AM31: 0
A32: 23 | B32: 16.88362276 | C32: NA | D32: NA | E32: NA | F32: NA | G32: NA | H32: NA | I32: NA | J32: NA | L32: NA | M32: NA | N32: NA | O32: NA | P32: NA | Q32: 22 | R32: 16.88362276 | S32: 0.03 | T32: 182802.8335 | U32: 186730.8283 | V32: 3614.430982 | W32: 127220.6544 | X32: 214.0791129 | Y32: 11273.95832 | AA32: 7542.425752 | AB32: 173475.7923 | AD32: NA | AE32: NA | AF32: NA | AG32: 0 | AH32: 0 | AI32: 0 | AJ32: 0 | AK32: 0 | AL32: 0 | AM32: 0
A33: 24 | B33: 17.91352374 | C33: NA | D33: NA | E33: NA | F33: NA | G33: NA | H33: NA | I33: NA | J33: NA | L33: NA | M33: NA | N33: NA | O33: NA | P33: NA | Q33: 23 | R33: 17.91352374 | S33: 0.061 | T33: 191931.4698 | U33: 201956.3201 | V33: 1000 | W33: 128220.6544 | X33: 55.82374603 | Y33: 11329.78207 | AA33: 7542.425752 | AB33: 181018.218 | AD33: NA | AE33: NA | AF33: NA | AG33: 0 | AH33: 0 | AI33: 0 | AJ33: 0 | AK33: 0 | AL33: 0 | AM33: 0
A34: 25 | B34: 17.30446394 | C34: NA | D34: NA | E34: NA | F34: NA | G34: NA | H34: NA | I34: NA | J34: NA | L34: NA | M34: NA | N34: NA | O34: NA | P34: NA | Q34: 24 | R34: 17.30446394 | S34: -0.034 | T34: 201136.178 | U34: 196055.8052 | V34: 12622.79853 | W34: 140843.4529 | X34: 729.4533118 | Y34: 12059.23538 | AA34: 7542.425752 | AB34: 188560.6438 | AD34: NA | AE34: NA | AF34: NA | AG34: 0 | AH34: 0 | AI34: 0 | AJ34: 0 | AK34: 0 | AL34: 0 | AM34: 0
A35: 26 | B35: 17.9447291 | C35: NA | D35: NA | E35: NA | F35: NA | G35: NA | H35: NA | I35: NA | J35: NA | L35: NA | M35: NA | N35: NA | O35: NA | P35: NA | Q35: 25 | R35: 17.9447291 | S35: 0.037 | T35: 210417.5921 | U35: 216399.7121 | V35: 1560.305779 | W35: 142403.7587 | X35: 86.95064549 | Y35: 12146.18602 | AA35: 7542.425752 | AB35: 196103.0695 | AD35: NA | AE35: NA | AF35: NA | AG35: 0 | AH35: 0 | AI35: 0 | AJ35: 0 | AK35: 0 | AL35: 0 | AM35: 0
A36: 27 | B36: 17.13721629 | C36: NA | D36: NA | E36: NA | F36: NA | G36: NA | H36: NA | I36: NA | J36: NA | L36: NA | M36: NA | N36: NA | O36: NA | P36: NA | Q36: 26 | R36: 17.13721629 | S36: -0.045 | T36: 219776.3513 | U36: 208151.817 | V36: 15000 | W36: 157403.7587 | X36: 875.2880132 | Y36: 13021.47404 | AA36: 7542.425752 | AB36: 203645.4953 | AD36: NA | AE36: NA | AF36: NA | AG36: 0 | AH36: 0 | AI36: 0 | AJ36: 0 | AK36: 0 | AL36: 0 | AM36: 0
A37: 28 | B37: 17.78843051 | C37: NA | D37: NA | E37: NA | F37: NA | G37: NA | H37: NA | I37: NA | J37: NA | L37: NA | M37: NA | N37: NA | O37: NA | P37: NA | Q37: 27 | R37: 17.78843051 | S37: 0.038 | T37: 229213.1002 | U37: 231631.5861 | V37: 5123.939883 | W37: 162527.6986 | X37: 288.0490148 | Y37: 13309.52305 | AA37: 7542.425752 | AB37: 211187.921 | AD37: NA | AE37: NA | AF37: NA | AG37: 0 | AH37: 0 | AI37: 0 | AJ37: 0 | AK37: 0 | AL37: 0 | AM37: 0
A38: 29 | B38: 18.01968011 | C38: NA | D38: NA | E38: NA | F38: NA | G38: NA | H38: NA | I38: NA | J38: NA | L38: NA | M38: NA | N38: NA | O38: NA | P38: NA | Q38: 28 | R38: 18.01968011 | S38: 0.013 | T38: 238728.4887 | U38: 239833.3478 | V38: 6437.566631 | W38: 168965.2652 | X38: 357.2519929 | Y38: 13666.77505 | AA38: 7542.425752 | AB38: 218730.3468 | AD38: NA | AE38: NA | AF38: NA | AG38: 0 | AH38: 0 | AI38: 0 | AJ38: 0 | AK38: 0 | AL38: 0 | AM38: 0
A39: 30 | B39: 16.7583025 | C39: NA | D39: NA | E39: NA | F39: NA | G39: NA | H39: NA | I39: NA | J39: NA | L39: NA | M39: NA | N39: NA | O39: NA | P39: NA | Q39: 29 | R39: 16.7583025 | S39: -0.07 | T39: 248323.1721 | U39: 229031.9504 | V39: 15000 | W39: 183965.2652 | X39: 895.0787229 | Y39: 14561.85377 | AA39: 7542.425752 | AB39: 226272.7726 | AD39: NA | AE39: NA | AF39: NA | AG39: 0 | AH39: 0 | AI39: 0 | AJ39: 0 | AK39: 0 | AL39: 0 | AM39: 0
A40: 31 | B40: 17.02643534 | C40: NA | D40: NA | E40: NA | F40: NA | G40: NA | H40: NA | I40: NA | J40: NA | L40: NA | M40: NA | N40: NA | O40: NA | P40: NA | Q40: 30 | R40: 17.02643534 | S40: 0.016 | T40: 257997.8111 | U40: 247936.4616 | V40: 15000 | W40: 198965.2652 | X40: 880.982995 | Y40: 15442.83676 | AA40: 7542.425752 | AB40: 233815.1983 | AD40: NA | AE40: NA | AF40: NA | AG40: 0 | AH40: 0 | AI40: 0 | AJ40: 0 | AK40: 0 | AL40: 0 | AM40: 0
A41: 32 | B41: 16.85617099 | C41: NA | D41: NA | E41: NA | F41: NA | G41: NA | H41: NA | I41: NA | J41: NA | L41: NA | M41: NA | N41: NA | O41: NA | P41: NA | Q41: 31 | R41: 16.85617099 | S41: -0.01 | T41: 267753.0722 | U41: 260307.097 | V41: 14988.40092 | W41: 213953.6661 | X41: 889.1936923 | Y41: 16332.03046 | AA41: 7542.425752 | AB41: 241357.6241 | AD41: NA | AE41: NA | AF41: NA | AG41: 0 | AH41: 0 | AI41: 0 | AJ41: 0 | AK41: 0 | AL41: 0 | AM41: 0
A42: 33 | B42: 17.96867827 | C42: NA | D42: NA | E42: NA | F42: NA | G42: NA | H42: NA | I42: NA | J42: NA | L42: NA | M42: NA | N42: NA | O42: NA | P42: NA | Q42: 32 | R42: 17.96867827 | S42: 0.066 | T42: 277589.6271 | U42: 293465.0008 | V42: 1000 | W42: 214953.6661 | X42: 55.65239607 | Y42: 16387.68285 | AA42: 7542.425752 | AB42: 248900.0498 | AD42: NA | AE42: NA | AF42: NA | AG42: 0 | AH42: 0 | AI42: 0 | AJ42: 0 | AK42: 0 | AL42: 0 | AM42: 0
A43: 34 | B43: 17.48352396 | C43: NA | D43: NA | E43: NA | F43: NA | G43: NA | H43: NA | I43: NA | J43: NA | L43: NA | M43: NA | N43: NA | O43: NA | P43: NA | Q43: 33 | R43: 17.48352396 | S43: -0.027 | T43: 287508.1533 | U43: 286514.4458 | V43: 8536.133251 | W43: 223489.7994 | X43: 488.2387139 | Y43: 16875.92157 | AA43: 7542.425752 | AB43: 256442.4756 | AD43: NA | AE43: NA | AF43: NA | AG43: 0 | AH43: 0 | AI43: 0 | AJ43: 0 | AK43: 0 | AL43: 0 | AM43: 0
A44: 35 | B44: 17.93809558 | C44: NA | D44: NA | E44: NA | F44: NA | G44: NA | H44: NA | I44: NA | J44: NA | L44: NA | M44: NA | N44: NA | O44: NA | P44: NA | Q44: 34 | R44: 17.93809558 | S44: 0.026 | T44: 297509.3338 | U44: 302721.8941 | V44: 2329.865522 | W44: 225819.6649 | X44: 129.8836608 | Y44: 17005.80523 | AA44: 7542.425752 | AB44: 263984.9013 | AD44: NA | AE44: NA | AF44: NA | AG44: 0 | AH44: 0 | AI44: 0 | AJ44: 0 | AK44: 0 | AL44: 0 | AM44: 0
A45: 36 | B45: 18.54799083 | C45: NA | D45: NA | E45: NA | F45: NA | G45: NA | H45: NA | I45: NA | J45: NA | L45: NA | M45: NA | N45: NA | O45: NA | P45: NA | Q45: 35 | R45: 18.54799083 | S45: 0.034 | T45: 307593.8576 | U45: 315423.5194 | V45: 1000 | W45: 226819.6649 | X45: 53.91419529 | Y45: 17059.71942 | AA45: 7542.425752 | AB45: 271527.3271 | AD45: NA | AE45: NA | AF45: NA | AG45: 0 | AH45: 0 | AI45: 0 | AJ45: 0 | AK45: 0 | AL45: 0 | AM45: 0
A46: 37 | B46: 17.43511138 | C46: NA | D46: NA | E46: NA | F46: NA | G46: NA | H46: NA | I46: NA | J46: NA | L46: NA | M46: NA | N46: NA | O46: NA | P46: NA | Q46: 36 | R46: 17.43511138 | S46: -0.06 | T46: 317762.419 | U46: 297438.1083 | V46: 15000 | W46: 241819.6649 | X46: 860.3329036 | Y46: 17920.05233 | AA46: 7542.425752 | AB46: 279069.7528 | AD46: NA | AE46: NA | AF46: NA | AG46: 0 | AH46: 0 | AI46: 0 | AJ46: 0 | AK46: 0 | AL46: 0 | AM46: 0
A47: 38 | B47: 17.20845493 | C47: NA | D47: NA | E47: NA | F47: NA | G47: NA | H47: NA | I47: NA | J47: NA | L47: NA | M47: NA | N47: NA | O47: NA | P47: NA | Q47: 37 | R47: 17.20845493 | S47: -0.013 | T47: 328015.7185 | U47: =(U46+V46)*(1+S47) -> 308376.4129 | V47: 15000 | W47: 256819.6649 | X47: 871.6645427 | Y47: =Y46+X47 -> 18791.71687 | AA47: 7542.425752 | AB47: =AB46+AA47 -> 286612.1786 | AD47: NA | AE47: NA | AF47: NA | AG47: 0 | AH47: 0 | AI47: 0 | AJ47: 0 | AK47: 0 | AL47: 0 | AM47: 0
A48: 39 | B48: 16.64057592 | C48: NA | D48: NA | E48: NA | F48: NA | G48: NA | H48: NA | I48: NA | J48: NA | L48: NA | M48: NA | N48: NA | O48: NA | P48: NA | Q48: 38 | R48: 16.64057592 | S48: -0.033 | T48: 338354.4621 | U48: 312704.9912 | V48: 15000 | W48: 271819.6649 | X48: 901.4111093 | Y48: 19693.12798 | AA48: 7542.425752 | AB48: 294154.6043 | AD48: NA | AE48: NA | AF48: NA | AG48: 0 | AH48: 0 | AI48: 0 | AJ48: 0 | AK48: 0 | AL48: 0 | AM48: 0
A49: 40 | B49: 16.85690341 | C49: NA | D49: NA | E49: NA | F49: NA | G49: NA | H49: NA | I49: NA | J49: NA | L49: NA | M49: NA | N49: NA | O49: NA | P49: NA | Q49: 39 | R49: 16.85690341 | S49: 0.013 | T49: 348779.3619 | U49: 331965.1561 | V49: 15000 | W49: 286819.6649 | X49: 889.8431484 | Y49: 20582.97113 | AA49: 7542.425752 | AB49: 301697.0301 | AD49: NA | AE49: NA | AF49: NA | AG49: 0 | AH49: 0 | AI49: 0 | AJ49: 0 | AK49: 0 | AL49: 0 | AM49: 0
A50: 41 | B50: 18.69430588 | C50: NA | D50: NA | E50: NA | F50: NA | G50: NA | H50: NA | I50: NA | J50: NA | L50: NA | M50: NA | N50: NA | O50: NA | P50: NA | Q50: 40 | R50: 18.69430588 | S50: 0.109 | T50: 359291.1359 | U50: 384784.3581 | V50: 1000 | W50: 287819.6649 | X50: 53.49222413 | Y50: 20636.46335 | AA50: 7542.425752 | AB50: 309239.4558 | AD50: NA | AE50: NA | AF50: NA | AG50: 0 | AH50: 0 | AI50: 0 | AJ50: 0 | AK50: 0 | AL50: 0 | AM50: 0
A51: 42 | B51: 18.69430588 | C51: NA | D51: NA | E51: NA | F51: NA | G51: NA | H51: NA | I51: NA | J51: NA | L51: NA | M51: NA | N51: NA | O51: NA | P51: NA | Q51: 41 | R51: 18.69430588 | S51: 0 | T51: 369890.508 | U51: 385784.3581 | V51: 1000 | W51: 288819.6649 | X51: 53.49222413 | Y51: 20689.95557 | AA51: 7542.425752 | AB51: 316781.8816 | AD51: NA | AE51: NA | AF51: NA | AG51: 0 | AH51: 0 | AI51: 0 | AJ51: 0 | AK51: 0 | AL51: 0 | AM51: 0
A52: 43 | B52: 18.54475143 | C52: NA | D52: NA | E52: NA | F52: NA | G52: NA | H52: NA | I52: NA | J52: NA | L52: NA | M52: NA | N52: NA | O52: NA | P52: NA | Q52: 42 | R52: 18.54475143 | S52: -0.008 | T52: 380578.2082 | U52: 383690.0833 | V52: 4430.550706 | W52: 293250.2156 | X52: 238.9113018 | Y52: 20928.86688 | AA52: 7542.425752 | AB52: 324324.3073 | AD52: NA | AE52: NA | AF52: NA | AG52: 0 | AH52: 0 | AI52: 0 | AJ52: 0 | AK52: 0 | AL52: 0 | AM52: 0
A53: 44 | B53: 18.7858332 | C53: NA | D53: NA | E53: NA | F53: NA | G53: NA | H53: NA | I53: NA | J53: NA | L53: NA | M53: NA | N53: NA | O53: NA | P53: NA | Q53: 43 | R53: 18.7858332 | S53: 0.013 | T53: 391354.9726 | U53: 393166.2022 | V53: 5731.196127 | W53: 298981.4118 | X53: 305.0807524 | Y53: 21233.94763 | AA53: 7542.425752 | AB53: 331866.7331 | AD53: NA | AE53: NA | AF53: NA | AG53: 0 | AH53: 0 | AI53: 0 | AJ53: 0 | AK53: 0 | AL53: 0 | AM53: 0
A54: 45 | B54: 18.59797487 | C54: NA | D54: NA | E54: NA | F54: NA | G54: NA | H54: NA | I54: NA | J54: NA | L54: NA | M54: NA | N54: NA | O54: NA | P54: NA | Q54: 44 | R54: 18.59797487 | S54: -0.01 | T54: 402221.5433 | U54: 394908.4244 | V54: 14855.54472 | W54: 313836.9565 | X54: 798.7721688 | Y54: 22032.7198 | AA54: 7542.425752 | AB54: 339409.1588 | AD54: NA | AE54: NA | AF54: NA | AG54: 0 | AH54: 0 | AI54: 0 | AJ54: 0 | AK54: 0 | AL54: 0 | AM54: 0
A55: 46 | B55: 18.65376879 | C55: NA | D55: NA | E55: NA | F55: NA | G55: NA | H55: NA | I55: NA | J55: NA | L55: NA | M55: NA | N55: NA | O55: NA | P55: NA | Q55: 45 | R55: 18.65376879 | S55: 0.003 | T55: 413178.6688 | U55: 410993.261 | V55: 9727.833587 | W55: 323564.7901 | X55: 521.4942725 | Y55: 22554.21407 | AA55: 7542.425752 | AB55: 346951.5846 | AD55: NA | AE55: NA | AF55: NA | AG55: 0 | AH55: 0 | AI55: 0 | AJ55: 0 | AK55: 0 | AL55: 0 | AM55: 0
A56: 47 | B56: 18.91492156 | C56: NA | D56: NA | E56: NA | F56: NA | G56: NA | H56: NA | I56: NA | J56: NA | L56: NA | M56: NA | N56: NA | O56: NA | P56: NA | Q56: 46 | R56: 18.91492156 | S56: 0.014 | T56: 424227.1037 | U56: 426611.1899 | V56: 5158.339549 | W56: 328723.1296 | X56: 272.7127117 | Y56: 22826.92678 | AA56: 7542.425752 | AB56: 354494.0103 | AD56: NA | AE56: NA | AF56: NA | AG56: 0 | AH56: 0 | AI56: 0 | AJ56: 0 | AK56: 0 | AL56: 0 | AM56: 0
A57: 48 | B57: 19.9174124 | C57: NA | D57: NA | E57: NA | F57: NA | G57: NA | H57: NA | I57: NA | J57: NA | L57: NA | M57: NA | N57: NA | O57: NA | P57: NA | Q57: 47 | R57: 19.9174124 | S57: 0.053 | T57: 435367.6089 | U57: 454653.3145 | V57: 1000 | W57: 329723.1296 | X57: 50.20732513 | Y57: 22877.13411 | AA57: 7542.425752 | AB57: 362036.4361 | AD57: NA | AE57: NA | AF57: NA | AG57: 0 | AH57: 0 | AI57: 0 | AJ57: 0 | AK57: 0 | AL57: 0 | AM57: 0
A58: 49 | B58: 19.55889898 | C58: NA | D58: NA | E58: NA | F58: NA | G58: NA | H58: NA | I58: NA | J58: NA | L58: NA | M58: NA | N58: NA | O58: NA | P58: NA | Q58: 48 | R58: 19.55889898 | S58: -0.018 | T58: 446600.9516 | U58: 447451.5548 | V58: 6691.822471 | W58: 336414.9521 | X58: 342.136972 | Y58: 23219.27108 | AA58: 7542.425752 | AB58: 369578.8618 | AD58: NA | AE58: NA | AF58: NA | AG58: 0 | AH58: 0 | AI58: 0 | AJ58: 0 | AK58: 0 | AL58: 0 | AM58: 0
A59: 50 | B59: 19.71537017 | C59: NA | D59: NA | E59: NA | F59: NA | G59: NA | H59: NA | I59: NA | J59: NA | L59: NA | M59: NA | N59: NA | O59: NA | P59: NA | Q59: 49 | R59: 19.71537017 | S59: 0.008 | T59: 457927.9055 | U59: 457776.5243 | V59: 7693.806878 | W59: 344108.759 | X59: 390.2440995 | Y59: 23609.51518 | AA59: 7542.425752 | AB59: 377121.2876 | AD59: NA | AE59: NA | AF59: NA | AG59: 0 | AH59: 0 | AI59: 0 | AJ59: 0 | AK59: 0 | AL59: 0 | AM59: 0
A60: 51 | B60: 19.30134739 | C60: NA | D60: NA | E60: NA | F60: NA | G60: NA | H60: NA | I60: NA | J60: NA | L60: NA | M60: NA | N60: NA | O60: NA | P60: NA | Q60: 50 | R60: 19.30134739 | S60: -0.021 | T60: 469349.2506 | U60: 455695.4543 | V60: 15000 | W60: 359108.759 | X60: 777.1478174 | Y60: 24386.663 | AA60: 7542.425752 | AB60: 384663.7133 | AD60: NA | AE60: NA | AF60: NA | AG60: 0 | AH60: 0 | AI60: 0 | AJ60: 0 | AK60: 0 | AL60: 0 | AM60: 0
A61: 52 | B61: 18.50999215 | C61: NA | D61: NA | E61: NA | F61: NA | G61: NA | H61: NA | I61: NA | J61: NA | L61: NA | M61: NA | N61: NA | O61: NA | P61: NA | Q61: 51 | R61: 18.50999215 | S61: -0.041 | T61: 480865.7737 | U61: 451396.9406 | V61: 15000 | W61: 374108.759 | X61: 810.3731151 | Y61: 25197.03611 | AA61: 7542.425752 | AB61: 392206.1391 | AD61: NA | AE61: NA | AF61: NA | AG61: 0 | AH61: 0 | AI61: 0 | AJ61: 0 | AK61: 0 | AL61: 0 | AM61: 0
A62: 53 | B62: 18.93572197 | C62: NA | D62: NA | E62: NA | F62: NA | G62: NA | H62: NA | I62: NA | J62: NA | L62: NA | M62: NA | N62: NA | O62: NA | P62: NA | Q62: 52 | R62: 18.93572197 | S62: 0.023 | T62: 492478.2678 | U62: 477124.0703 | V62: 15000 | W62: 389108.759 | X62: 792.1535827 | Y62: 25989.18969 | AA62: 7542.425752 | AB62: 399748.5648 | AD62: NA | AE62: NA | AF62: NA | AG62: 0 | AH62: 0 | AI62: 0 | AJ62: 0 | AK62: 0 | AL62: 0 | AM62: 0
A63: 54 | B63: 19.61740796 | C63: NA | D63: NA | E63: NA | F63: NA | G63: NA | H63: NA | I63: NA | J63: NA | L63: NA | M63: NA | N63: NA | O63: NA | P63: NA | Q63: 53 | R63: 19.61740796 | S63: 0.036 | T63: 504187.5326 | U63: 509840.5368 | V63: 1889.421594 | W63: 390998.1806 | X63: 96.313519 | Y63: 26085.50321 | AA63: 7542.425752 | AB63: 407290.9906 | AD63: NA | AE63: NA | AF63: NA | AG63: 0 | AH63: 0 | AI63: 0 | AJ63: 0 | AK63: 0 | AL63: 0 | AM63: 0
A64: 55 | B64: 19.9509039 | C64: NA | D64: NA | E64: NA | F64: NA | G64: NA | H64: NA | I64: NA | J64: NA | L64: NA | M64: NA | N64: NA | O64: NA | P64: NA | Q64: 54 | R64: 19.9509039 | S64: 0.017 | T64: 515994.3747 | U64: 520429.3677 | V64: 3107.432779 | W64: 394105.6133 | X64: 155.7539846 | Y64: 26241.2572 | AA64: 7542.425752 | AB64: 414833.4163 | AD64: NA | AE64: NA | AF64: NA | AG64: 0 | AH64: 0 | AI64: 0 | AJ64: 0 | AK64: 0 | AL64: 0 | AM64: 0
A65: 56 | B65: 19.59178763 | C65: NA | D65: NA | E65: NA | F65: NA | G65: NA | H65: NA | I65: NA | J65: NA | L65: NA | M65: NA | N65: NA | O65: NA | P65: NA | Q65: 55 | R65: 19.59178763 | S65: -0.018 | T65: 527899.6071 | U65: 514113.1381 | V65: 15000 | W65: 409105.6133 | X65: 765.6269191 | Y65: 27006.88412 | AA65: 7542.425752 | AB65: 422375.8421 | AD65: NA | AE65: NA | AF65: NA | AG65: 0 | AH65: 0 | AI65: 0 | AJ65: 0 | AK65: 0 | AL65: 0 | AM65: 0
A66: 57 | B66: 20.88484561 | C66: NA | D66: NA | E66: NA | F66: NA | G66: NA | H66: NA | I66: NA | J66: NA | L66: NA | M66: NA | N66: NA | O66: NA | P66: NA | Q66: 56 | R66: 20.88484561 | S66: 0.066 | T66: 539904.0498 | U66: 564034.6052 | V66: 1000 | W66: 410105.6133 | X66: 47.88160845 | Y66: 27054.76572 | AA66: 7542.425752 | AB66: 429918.2679 | AD66: NA | AE66: NA | AF66: NA | AG66: 0 | AH66: 0 | AI66: 0 | AJ66: 0 | AK66: 0 | AL66: 0 | AM66: 0
A67: 58 | B67: 21.05192438 | C67: NA | D67: NA | E67: NA | F67: NA | G67: NA | H67: NA | I67: NA | J67: NA | L67: NA | M67: NA | N67: NA | O67: NA | P67: NA | Q67: 57 | R67: 21.05192438 | S67: 0.008 | T67: 552008.5295 | U67: 569554.882 | V67: 1000 | W67: 411105.6133 | X67: 47.50159568 | Y67: 27102.26732 | AA67: 7542.425752 | AB67: 437460.6936 | AD67: NA | AE67: NA | AF67: NA | AG67: 0 | AH67: 0 | AI67: 0 | AJ67: 0 | AK67: 0 | AL67: 0 | AM67: 0
A68: 59 | B68: 20.39931472 | C68: NA | D68: NA | E68: NA | F68: NA | G68: NA | H68: NA | I68: NA | J68: NA | L68: NA | M68: NA | N68: NA | O68: NA | P68: NA | Q68: 58 | R68: 20.39931472 | S68: -0.031 | T68: 564213.8799 | U68: 552867.6807 | V68: 15000 | W68: 426105.6133 | X68: 735.3188186 | Y68: 27837.58614 | AA68: 7542.425752 | AB68: 445003.1194 | AD68: NA | AE68: NA | AF68: NA | AG68: 0 | AH68: 0 | AI68: 0 | AJ68: 0 | AK68: 0 | AL68: 0 | AM68: 0
A69: 60 | B69: 21.37848183 | C69: NA | D69: NA | E69: NA | F69: NA | G69: NA | H69: NA | I69: NA | J69: NA | L69: NA | M69: NA | N69: NA | O69: NA | P69: NA | Q69: 59 | R69: 21.37848183 | S69: 0.048 | T69: 576520.9416 | U69: 595125.3293 | V69: 1000 | W69: 427105.6133 | X69: 46.77600627 | Y69: 27884.36214 | AA69: 7542.425752 | AB69: 452545.5451 | AD69: NA | AE69: NA | AF69: NA | AG69: 0 | AH69: 0 | AI69: 0 | AJ69: 0 | AK69: 0 | AL69: 0 | AM69: 0
A70: 61 | B70: 22.61843377 | C70: NA | D70: NA | E70: NA | F70: NA | G70: NA | H70: NA | I70: NA | J70: NA | L70: NA | M70: NA | N70: NA | O70: NA | P70: NA | Q70: 60 | R70: 22.61843377 | S70: 0.058 | T70: 588930.562 | U70: 630700.5984 | V70: 1000 | W70: 428105.6133 | X70: 44.21172616 | Y70: 27928.57387 | AA70: 7542.425752 | AB70: 460087.9709 | AD70: NA | AE70: NA | AF70: NA | AG70: 0 | AH70: 0 | AI70: 0 | AJ70: 0 | AK70: 0 | AL70: 0 | AM70: 0
A71: 62 | B71: 23.88506606 | C71: NA | D71: NA | E71: NA | F71: NA | G71: NA | H71: NA | I71: NA | J71: NA | L71: NA | M71: NA | N71: NA | O71: NA | P71: NA | Q71: 61 | R71: 23.88506606 | S71: 0.056 | T71: 601443.596 | U71: 667075.832 | V71: 1000 | W71: 429105.6133 | X71: 41.86716492 | Y71: 27970.44104 | AA71: 7542.425752 | AB71: 467630.3966 | AD71: NA | AE71: NA | AF71: NA | AG71: 0 | AH71: 0 | AI71: 0 | AJ71: 0 | AK71: 0 | AL71: 0 | AM71: 0
A72: 63 | B72: 27.82610196 | C72: NA | D72: NA | E72: NA | F72: NA | G72: NA | H72: NA | I72: NA | J72: NA | L72: NA | M72: NA | N72: NA | O72: NA | P72: NA | Q72: 62 | R72: 27.82610196 | S72: 0.165 | T72: 614060.9053 | U72: 778308.3442 | V72: 1000 | W72: 430105.6133 | X72: 35.93748062 | Y72: 28006.37852 | AA72: 7542.425752 | AB72: 475172.8224 | AD72: NA | AE72: NA | AF72: NA | AG72: 0 | AH72: 0 | AI72: 0 | AJ72: 0 | AK72: 0 | AL72: 0 | AM72: 0
A73: 64 | B73: 30.44175555 | C73: NA | D73: NA | E73: NA | F73: NA | G73: NA | H73: NA | I73: NA | J73: NA | L73: NA | M73: NA | N73: NA | O73: NA | P73: NA | Q73: 63 | R73: 30.44175555 | S73: 0.094 | T73: 626783.3588 | U73: 852563.3286 | V73: 1000 | W73: 431105.6133 | X73: 32.84961665 | Y73: 28039.22813 | AA73: 7542.425752 | AB73: 482715.2481 | AD73: NA | AE73: NA | AF73: NA | AG73: 0 | AH73: 0 | AI73: 0 | AJ73: 0 | AK73: 0 | AL73: 0 | AM73: 0
A74: 65 | B74: 31.41589173 | C74: =IF(AND(A74>=startm,A74<=endm),A74-startm,"NA") -> NA | D74: NA | E74: =IF(C74="NA","NA",IF(C74=0,typical,(1+return/12)*typical*((1+return/12)^C74-1)/(return/12))) -> NA | F74: NA | G74: =IF(C74="NA","NA",IF(C74=0,typical,IF((F74-E74)>0,IF(typical-(F74-E74)<min,min,typical-(F74-E74)),IF((F74-E74)<0,IF(typical-(F74-E74)>max,max,typical-(F74-E74)),IF((E74-F74)=0,min,))))) -> NA | H74: NA | I74: NA | J74: NA | L74: =IF(C74="NA","NA",typical) -> NA | M74: NA | N74: NA | O74: NA | P74: NA | Q74: 64 | R74: 31.41589173 | S74: 0.032 | T74: 639611.8327 | U74: 880877.3551 | V74: 1000 | W74: 432105.6133 | X74: =V74/R74 -> 31.83102389 | Y74: 28071.05916 | AA74: =typical -> 7542.425752 | AB74: 490257.6739 | AD74: =IF(A74=endm,E74,IF(C74="NA","NA",-typical)) -> NA | AE74: =IF(A74=endm,P74,IF(C74="NA","NA",-typical)) -> NA | AF74: =IF(A74=endm,F74,IF(C74="NA","NA",-G74)) -> NA | AG74: =IF(A74=endm,O74,0) -> 0 | AH74: =IF(A74=endm,J74,0) -> 0 | AI74: =IF(A74=endm,E74,0) -> 0 | AJ74: =IF(A74=endm,P74,0) -> 0 | AK74: =IF(A74=endm,F74,0) -> 0 | AL74: =IF(A74=endm,M74,0) -> 0 | AM74: =IF(A74=endm,H74,0) -> 0
A75: 66 | B75: 37.6048224 | C75: NA | D75: =IF(C75="NA","NA",IF(C75=0,0,(B75-B74)/B74)) -> NA | E75: NA | F75: =IF(C75="NA","NA",IF(C75=0,typical,(F74+IF(V74=typical,0,V74))*(1+D75))) -> NA | G75: NA | H75: NA | I75: =IF(C75="NA","NA",G75/B75) -> NA | J75: NA | L75: NA | M75: NA | N75: =IF(C75="NA","NA",L75/B75) -> NA | O75: NA | P75: =IF(C75="NA","NA",O75*B75) -> NA | Q75: 65 | R75: 37.6048224 | S75: 0.197 | T75: =(1+return/12)*typical*((1+return/12)^Q75-1)/(return/12) -> 652547.2107 | U75: 1055607.194 | V75: =IF((U75-T75)>0,IF(typical-(U75-T75)<min,min,typical-(U75-T75)),IF((U75-T75)<0,IF(typical-(U75-T75)>max,max,typical-(U75-T75)),IF((T75-U75)=0,min,))) -> 1000 | W75: =W74+V75 -> 433105.6133 | X75: 26.59233408 | Y75: 28097.65149 | AA75: 7542.425752 | AB75: 497800.0996 | AD75: NA | AE75: NA | AF75: NA | AG75: 0 | AH75: 0 | AI75: 0 | AJ75: 0 | AK75: 0 | AL75: 0 | AM75: 0
A76: =A75+1 -> 67 | B76: 40.50039372 | C76: NA | D76: NA | E76: NA | F76: NA | G76: NA | H76: NA | I76: NA | J76: NA | L76: NA | M76: NA | N76: NA | O76: NA | P76: NA | Q76: =Q75+1 -> 66 | R76: 40.50039372 | S76: 0.077 | T76: 665590.3834 | U76: 1137965.948 | V76: 1000 | W76: 434105.6133 | X76: 24.69111799 | Y76: 28122.34261 | AA76: 7542.425752 | AB76: 505342.5254 | AD76: NA | AE76: NA | AF76: NA | AG76: 0 | AH76: 0 | AI76: 0 | AJ76: 0 | AK76: 0 | AL76: 0 | AM76: 0
A77: 68 | B77: 36.81485789 | C77: NA | D77: NA | E77: NA | F77: NA | G77: NA | H77: NA | I77: NA | J77: NA | L77: NA | M77: NA | N77: NA | O77: NA | P77: NA | Q77: 67 | R77: 36.81485789 | S77: -0.091 | T77: 678742.2492 | U77: 1035320.047 | V77: 1000 | W77: 435105.6133 | X77: 27.16294608 | Y77: 28149.50556 | AA77: 7542.425752 | AB77: 512884.9511 | AD77: NA | AE77: NA | AF77: NA | AG77: 0 | AH77: 0 | AI77: 0 | AJ77: 0 | AK77: 0 | AL77: 0 | AM77: 0
A78: 69 | B78: 34.20100298 | C78: NA | D78: NA | E78: NA | F78: NA | G78: NA | H78: NA | I78: NA | J78: NA | L78: NA | M78: NA | N78: NA | O78: NA | P78: NA | Q78: 68 | R78: 34.20100298 | S78: =(R78-R77)/R77 -> -0.071 | T78: 692003.7139 | U78: 962741.3234 | V78: 1000 | W78: 436105.6133 | X78: 29.23890859 | Y78: 28178.74446 | AA78: 7542.425752 | AB78: 520427.3769 | AD78: NA | AE78: NA | AF78: NA | AG78: 0 | AH78: 0 | AI78: 0 | AJ78: 0 | AK78: 0 | AL78: 0 | AM78: 0
A79: 70 | B79: 37.45009826 | C79: NA | D79: NA | E79: NA | F79: NA | G79: NA | H79: NA | I79: NA | J79: NA | L79: NA | M79: NA | N79: NA | O79: NA | P79: NA | Q79: 69 | R79: 37.45009826 | S79: 0.095 | T79: 705375.6908 | U79: 1055296.749 | V79: 1000 | W79: 437105.6133 | X79: 26.70219963 | Y79: 28205.44666 | AA79: 7542.425752 | AB79: 527969.8026 | AD79: NA | AE79: NA | AF79: NA | AG79: 0 | AH79: 0 | AI79: 0 | AJ79: 0 | AK79: 0 | AL79: 0 | AM79: 0
A80: 71 | B80: 39.02300239 | C80: NA | D80: NA | E80: NA | F80: NA | G80: NA | H80: NA | I80: NA | J80: NA | L80: NA | M80: NA | N80: NA | O80: NA | P80: NA | Q80: 70 | R80: 39.02300239 | S80: 0.042 | T80: 718859.1009 | U80: 1100661.213 | V80: 1000 | W80: 438105.6133 | X80: 25.62591135 | Y80: 28231.07257 | AA80: 7542.425752 | AB80: 535512.2284 | AD80: NA | AE80: NA | AF80: NA | AG80: 0 | AH80: 0 | AI80: 0 | AJ80: 0 | AK80: 0 | AL80: 0 | AM80: 0
A81: 72 | B81: 41.44242854 | C81: NA | D81: NA | E81: NA | F81: NA | G81: NA | H81: NA | I81: NA | J81: NA | L81: NA | M81: NA | N81: NA | O81: NA | P81: NA | Q81: 71 | R81: 41.44242854 | S81: 0.062 | T81: 732454.8727 | U81: 1169964.208 | V81: 1000 | W81: 439105.6133 | X81: 24.12986003 | Y81: 28255.20243 | AA81: 7542.425752 | AB81: 543054.6541 | AD81: NA | AE81: NA | AF81: NA | AG81: 0 | AH81: 0 | AI81: 0 | AJ81: 0 | AK81: 0 | AL81: 0 | AM81: 0
A82: 73 | B82: 46.99571396 | C82: NA | D82: NA | E82: NA | F82: NA | G82: NA | H82: NA | I82: NA | J82: NA | L82: NA | M82: NA | N82: NA | O82: NA | P82: NA | Q82: 72 | R82: 46.99571396 | S82: 0.134 | T82: 746163.9426 | U82: 1327873.412 | V82: 1000 | W82: 440105.6133 | X82: 21.27853618 | Y82: 28276.48097 | AA82: 7542.425752 | AB82: 550597.0799 | AD82: NA | AE82: NA | AF82: NA | AG82: 0 | AH82: 0 | AI82: 0 | AJ82: 0 | AK82: 0 | AL82: 0 | AM82: 0
A83: 74 | B83: 51.64828965 | C83: NA | D83: NA | E83: NA | F83: NA | G83: NA | H83: NA | I83: NA | J83: NA | L83: NA | M83: NA | N83: NA | O83: NA | P83: NA | Q83: 73 | R83: 51.64828965 | S83: 0.099 | T83: 759987.2548 | U83: 1460431.879 | V83: 1000 | W83: 441105.6133 | X83: 19.36172537 | Y83: 28295.8427 | AA83: 7542.425752 | AB83: 558139.5056 | AD83: NA | AE83: NA | AF83: NA | AG83: 0 | AH83: 0 | AI83: 0 | AJ83: 0 | AK83: 0 | AL83: 0 | AM83: 0
A84: 75 | B84: 45.14060515 | C84: NA | D84: NA | E84: NA | F84: NA | G84: NA | H84: NA | I84: NA | J84: NA | L84: NA | M84: NA | N84: NA | O84: NA | P84: NA | Q84: 74 | R84: 45.14060515 | S84: -0.126 | T84: 773925.7612 | U84: 1277291.463 | V84: 1000 | W84: 442105.6133 | X84: 22.15300386 | Y84: 28317.9957 | AA84: 7542.425752 | AB84: 565681.9314 | AD84: NA | AE84: NA | AF84: NA | AG84: 0 | AH84: 0 | AI84: 0 | AJ84: 0 | AK84: 0 | AL84: 0 | AM84: 0
A85: 76 | B85: 47.08165117 | C85: NA | D85: NA | E85: NA | F85: NA | G85: NA | H85: NA | I85: NA | J85: NA | L85: NA | M85: NA | N85: NA | O85: NA | P85: NA | Q85: 75 | R85: 47.08165117 | S85: 0.043 | T85: 787980.4218 | U85: 1333257.995 | V85: 1000 | W85: 443105.6133 | X85: 21.23969689 | Y85: 28339.2354 | AA85: 7542.425752 | AB85: 573224.3571 | AD85: NA | AE85: NA | AF85: NA | AG85: 0 | AH85: 0 | AI85: 0 | AJ85: 0 | AK85: 0 | AL85: 0 | AM85: 0
A86: 77 | B86: 49.20032548 | C86: NA | D86: NA | E86: NA | F86: NA | G86: NA | H86: NA | I86: NA | J86: NA | L86: NA | M86: NA | N86: NA | O86: NA | P86: NA | Q86: 76 | R86: 49.20032548 | S86: 0.045 | T86: 802152.2046 | U86: 1394299.605 | V86: 1000 | W86: 444105.6133 | X86: 20.32506879 | Y86: 28359.56047 | AA86: 7542.425752 | AB86: 580766.7829 | AD86: NA | AE86: NA | AF86: NA | AG86: 0 | AH86: 0 | AI86: 0 | AJ86: 0 | AK86: 0 | AL86: 0 | AM86: 0
A87: 78 | B87: 47.62591506 | C87: NA | D87: NA | E87: NA | F87: NA | G87: NA | H87: =IF(C87="NA","NA",IF(H86="NA",G87,H86+G87)) -> NA | I87: NA | J87: =IF(C87="NA","NA",IF(J86="NA",I87,J86+I87)) -> NA | L87: NA | M87: =IF(C87="NA","NA",IF(M86="NA",L87,M86+L87)) -> NA | N87: NA | O87: =IF(C87="NA","NA",IF(O86="NA",N87,O86+N87)) -> NA | P87: NA | Q87: 77 | R87: 47.62591506 | S87: -0.032 | T87: 816442.0856 | U87: 1350650.018 | V87: 1000 | W87: 445105.6133 | X87: 20.9969719 | Y87: 28380.55744 | AA87: 7542.425752 | AB87: 588309.2086 | AD87: NA | AE87: NA | AF87: NA | AG87: 0 | AH87: 0 | AI87: 0 | AJ87: 0 | AK87: 0 | AL87: 0 | AM87: 0
A88: 79 | B88: 46.91152633 | C88: NA | D88: NA | E88: NA | F88: NA | G88: NA | H88: NA | I88: NA | J88: NA | L88: NA | M88: NA | N88: NA | O88: NA | P88: NA | Q88: 78 | R88: 46.91152633 | S88: -0.015 | T88: 830851.049 | U88: 1331375.268 | V88: 1000 | W88: 446105.6133 | X88: 21.31672274 | Y88: 28401.87416 | AA88: 7542.425752 | AB88: 595851.6344 | AD88: NA | AE88: NA | AF88: NA | AG88: 0 | AH88: 0 | AI88: 0 | AJ88: 0 | AK88: 0 | AL88: 0 | AM88: 0
A89: 80 | B89: 43.1116927 | C89: NA | D89: NA | E89: NA | F89: NA | G89: NA | H89: NA | I89: NA | J89: NA | L89: NA | M89: NA | N89: NA | O89: NA | P89: NA | Q89: 79 | R89: 43.1116927 | S89: -0.081 | T89: 845380.087 | U89: 1224452.871 | V89: 1000 | W89: 447105.6133 | X89: 23.19556337 | Y89: 28425.06972 | AA89: 7542.425752 | AB89: 603394.0601 | AD89: NA | AE89: NA | AF89: NA | AG89: 0 | AH89: 0 | AI89: 0 | AJ89: 0 | AK89: 0 | AL89: 0 | AM89: 0
A90: 81 | B90: 46.25884627 | C90: NA | D90: NA | E90: NA | F90: NA | G90: NA | H90: NA | I90: NA | J90: NA | L90: NA | M90: NA | N90: NA | O90: NA | P90: NA | Q90: 80 | R90: 46.25884627 | S90: 0.073 | T90: 860030.2004 | U90: 1314910.931 | V90: 1000 | W90: 448105.6133 | X90: 21.61748683 | Y90: 28446.68721 | AA90: 7542.425752 | AB90: 610936.4859 | AD90: NA | AE90: NA | AF90: NA | AG90: 0 | AH90: 0 | AI90: 0 | AJ90: 0 | AK90: 0 | AL90: 0 | AM90: 0
A91: 82 | B91: 45.24115165 | C91: NA | D91: NA | E91: NA | F91: NA | G91: NA | H91: NA | I91: NA | J91: NA | L91: NA | M91: NA | N91: NA | O91: NA | P91: NA | Q91: 81 | R91: 45.24115165 | S91: -0.022 | T91: 874802.398 | U91: 1286960.89 | V91: 1000 | W91: 449105.6133 | X91: 22.10376977 | Y91: 28468.79098 | AA91: 7542.425752 | AB91: 618478.9116 | AD91: NA | AE91: NA | AF91: NA | AG91: 0 | AH91: 0 | AI91: 0 | AJ91: 0 | AK91: 0 | AL91: 0 | AM91: 0
A92: 83 | B92: 39.26931963 | C92: NA | D92: NA | E92: NA | F92: NA | G92: NA | H92: NA | I92: NA | J92: NA | L92: NA | M92: NA | N92: NA | O92: NA | P92: NA | Q92: 82 | R92: 39.26931963 | S92: -0.132 | T92: 889697.6973 | U92: 1117950.053 | V92: 1000 | W92: 450105.6133 | X92: 25.46517254 | Y92: 28494.25615 | AA92: 7542.425752 | AB92: 626021.3374 | AD92: NA | AE92: NA | AF92: NA | AG92: 0 | AH92: 0 | AI92: 0 | AJ92: 0 | AK92: 0 | AL92: 0 | AM92: 0
A93: 84 | B93: 41.19351629 | C93: NA | D93: NA | E93: NA | F93: NA | G93: NA | H93: NA | I93: NA | J93: NA | L93: NA | M93: NA | N93: NA | O93: NA | P93: NA | Q93: 83 | R93: 41.19351629 | S93: 0.049 | T93: 904717.1241 | U93: 1173778.605 | V93: 1000 | W93: 451105.6133 | X93: 24.27566496 | Y93: 28518.53182 | AA93: 7542.425752 | AB93: 633563.7631 | AD93: NA | AE93: NA | AF93: NA | AG93: 0 | AH93: 0 | AI93: 0 | AJ93: 0 | AK93: 0 | AL93: 0 | AM93: 0
A94: 85 | B94: 43.50035321 | C94: NA | D94: NA | E94: NA | F94: NA | G94: NA | H94: NA | I94: NA | J94: NA | L94: NA | M94: NA | N94: NA | O94: NA | P94: NA | Q94: 84 | R94: 43.50035321 | S94: 0.056 | T94: 919861.7127 | U94: 1240566.207 | V94: 1000 | W94: 452105.6133 | X94: 22.98831909 | Y94: 28541.52014 | AA94: 7542.425752 | AB94: 641106.1889 | AD94: NA | AE94: NA | AF94: NA | AG94: 0 | AH94: 0 | AI94: 0 | AJ94: 0 | AK94: 0 | AL94: 0 | AM94: 0
A95: 86 | B95: 45.24036734 | C95: NA | D95: NA | E95: NA | F95: NA | G95: NA | H95: NA | I95: NA | J95: NA | L95: NA | M95: NA | N95: NA | O95: NA | P95: NA | Q95: 85 | R95: 45.24036734 | S95: 0.04 | T95: 935132.5063 | U95: 1291228.855 | V95: 1000 | W95: 453105.6133 | X95: 22.10415297 | Y95: 28563.62429 | AA95: 7542.425752 | AB95: 648648.6147 | AD95: NA | AE95: NA | AF95: NA | AG95: 0 | AH95: 0 | AI95: 0 | AJ95: 0 | AK95: 0 | AL95: 0 | AM95: 0
A96: 87 | B96: 40.08296546 | C96: NA | D96: NA | E96: NA | F96: NA | G96: NA | H96: NA | I96: NA | J96: NA | L96: NA | M96: NA | N96: NA | O96: NA | P96: NA | Q96: 86 | R96: 40.08296546 | S96: -0.114 | T96: 950530.5565 | U96: 1144914.766 | V96: 1000 | W96: 454105.6133 | X96: 24.94825392 | Y96: 28588.57254 | AA96: 7542.425752 | AB96: 656191.0404 | AD96: NA | AE96: NA | AF96: NA | AG96: 0 | AH96: 0 | AI96: 0 | AJ96: 0 | AK96: 0 | AL96: 0 | AM96: 0
A97: 88 | B97: 37.67798753 | C97: NA | D97: NA | E97: NA | F97: NA | G97: NA | H97: NA | I97: NA | J97: NA | L97: NA | M97: NA | N97: NA | O97: NA | P97: NA | Q97: 87 | R97: 37.67798753 | S97: -0.06 | T97: 966056.9238 | U97: 1077159.88 | V97: 1000 | W97: 455105.6133 | X97: 26.54069566 | Y97: 28615.11324 | AA97: 7542.425752 | AB97: 663733.4662 | AD97: NA | AE97: NA | AF97: NA | AG97: 0 | AH97: 0 | AI97: 0 | AJ97: 0 | AK97: 0 | AL97: 0 | AM97: 0
A98: 89 | B98: 36.28390199 | C98: NA | D98: NA | E98: NA | F98: NA | G98: NA | H98: NA | I98: NA | J98: NA | L98: NA | M98: NA | N98: NA | O98: NA | P98: NA | Q98: 88 | R98: 36.28390199 | S98: -0.037 | T98: 981712.6774 | U98: 1038267.964 | V98: 1000 | W98: 456105.6133 | X98: 27.56043163 | Y98: 28642.67367 | AA98: 7542.425752 | AB98: 671275.8919 | AD98: NA | AE98: NA | AF98: NA | AG98: 0 | AH98: 0 | AI98: 0 | AJ98: 0 | AK98: 0 | AL98: 0 | AM98: 0
A99: 90 | B99: 34.07058397 | C99: NA | D99: NA | E99: NA | F99: NA | G99: NA | H99: NA | I99: NA | J99: NA | L99: NA | M99: NA | N99: NA | O99: NA | P99: NA | Q99: 89 | R99: 34.07058397 | S99: -0.061 | T99: 997498.8957 | U99: 975872.6185 | V99: 15000 | W99: 471105.6133 | X99: 440.262486 | Y99: 29082.93616 | AA99: 7542.425752 | AB99: 678818.3177 | AD99: NA | AE99: NA | AF99: NA | AG99: 0 | AH99: 0 | AI99: 0 | AJ99: 0 | AK99: 0 | AL99: 0 | AM99: 0
A100: 91 | B100: 38.39754814 | C100: NA | D100: NA | E100: NA | F100: NA | G100: NA | H100: NA | I100: NA | J100: NA | L100: NA | M100: NA | N100: NA | O100: NA | P100: NA | Q100: 90 | R100: 38.39754814 | S100: 0.127 | T100: 1013416.666 | U100: 1116713.441 | V100: 1000 | W100: 472105.6133 | X100: 26.04332955 | Y100: 29108.97949 | AA100: 7542.425752 | AB100: 686360.7434 | AD100: NA | AE100: NA | AF100: NA | AG100: 0 | AH100: 0 | AI100: 0 | AJ100: 0 | AK100: 0 | AL100: 0 | AM100: 0
A101: 92 | B101: 37.89838001 | C101: NA | D101: NA | E101: NA | F101: NA | G101: NA | H101: NA | I101: NA | J101: NA | L101: NA | M101: NA | N101: NA | O101: NA | P101: NA | Q101: 91 | R101: 37.89838001 | S101: -0.013 | T101: 1029467.084 | U101: 1103183.166 | V101: 1000 | W101: 473105.6133 | X101: 26.38635213 | Y101: 29135.36584 | AA101: 7542.425752 | AB101: 693903.1692 | AD101: NA | AE101: NA | AF101: NA | AG101: 0 | AH101: 0 | AI101: 0 | AJ101: 0 | AK101: 0 | AL101: 0 | AM101: 0
A102: 93 | B102: 35.28339179 | C102: NA | D102: NA | E102: NA | F102: NA | G102: NA | H102: NA | I102: NA | J102: NA | L102: NA | M102: NA | N102: NA | O102: NA | P102: NA | Q102: 92 | R102: 35.28339179 | S102: -0.069 | T102: 1045651.256 | U102: 1027994.528 | V102: 15000 | W102: 488105.6133 | X102: 425.1291965 | Y102: 29560.49504 | AA102: 7542.425752 | AB102: 701445.5949 | AD102: NA | AE102: NA | AF102: NA | AG102: 0 | AH102: 0 | AI102: 0 | AJ102: 0 | AK102: 0 | AL102: 0 | AM102: 0
A103: 94 | B103: 35.35395857 | C103: NA | D103: NA | E103: NA | F103: NA | G103: NA | H103: NA | I103: NA | J103: NA | L103: NA | M103: NA | N103: NA | O103: NA | P103: NA | Q103: 93 | R103: 35.35395857 | S103: 0.002 | T103: 1061970.295 | U103: 1045080.517 | V103: 15000 | W103: 503105.6133 | X103: 424.2806352 | Y103: 29984.77567 | AA103: 7542.425752 | AB103: 708988.0207 | AD103: NA | AE103: NA | AF103: NA | AG103: 0 | AH103: 0 | AI103: 0 | AJ103: 0 | AK103: 0 | AL103: 0 | AM103: 0
A104: 95 | B104: 33.76303044 | C104: NA | D104: NA | E104: NA | F104: NA | G104: NA | H104: NA | I104: NA | J104: NA | L104: NA | M104: NA | N104: NA | O104: NA | P104: NA | Q104: 94 | R104: 33.76303044 | S104: -0.045 | T104: 1078425.327 | U104: 1012376.894 | V104: 15000 | W104: 518105.6133 | X104: 444.2729164 | Y104: 30429.04859 | AA104: 7542.425752 | AB104: 716530.4464 | AD104: NA | AE104: NA | AF104: NA | AG104: 0 | AH104: 0 | AI104: 0 | AJ104: 0 | AK104: 0 | AL104: 0 | AM104: 0
A105: 96 | B105: 34.70839529 | C105: NA | D105: NA | E105: NA | F105: NA | G105: NA | H105: NA | I105: NA | J105: NA | L105: NA | M105: NA | N105: NA | O105: NA | P105: NA | Q105: 95 | R105: 34.70839529 | S105: 0.028 | T105: 1095017.484 | U105: 1056143.447 | V105: 15000 | W105: 533105.6133 | X105: 432.1720977 | Y105: 30861.22068 | AA105: 7542.425752 | AB105: 724072.8722 | AD105: NA | AE105: NA | AF105: NA | AG105: 0 | AH105: 0 | AI105: 0 | AJ105: 0 | AK105: 0 | AL105: 0 | AM105: 0
A106: 97 | B106: 34.70839529 | C106: 0 | D106: 0 | E106: 7542.425752 | F106: 7542.425752 | G106: 7542.425752 | H106: 7542.425752 | I106: 217.3083973 | J106: 217.3083973 | L106: 7542.425752 | M106: 7542.425752 | N106: 217.3083973 | O106: 217.3083973 | P106: 7542.425752 | Q106: 96 | R106: 34.70839529 | S106: 0 | T106: 1111747.909 | U106: 1071143.447 | V106: 15000 | W106: 548105.6133 | X106: 432.1720977 | Y106: 31293.39278 | AA106: 7542.425752 | AB106: 731615.2979 | AD106: -7542.425752 | AE106: -7542.425752 | AF106: -7542.425752 | AG106: 0 | AH106: 0 | AI106: 0 | AJ106: 0 | AK106: 0 | AL106: 0 | AM106: 0
A107: 98 | B107: 32.20939083 | C107: 1 | D107: -0.072 | E107: 7605.2793 | F107: 20919.3711 | G107: 1000 | H107: 8542.425752 | I107: 31.0468461 | J107: 248.3552434 | L107: 7542.425752 | M107: 15084.8515 | N107: 234.1685315 | O107: 451.4769288 | P107: 14541.79685 | Q107: 97 | R107: 32.20939083 | S107: -0.072 | T107: 1128617.754 | U107: 1007941.118 | V107: 15000 | W107: 563105.6133 | X107: 465.7026915 | Y107: 31759.09547 | AA107: 7542.425752 | AB107: 739157.7237 | AD107: -7542.425752 | AE107: -7542.425752 | AF107: -1000 | AG107: 0 | AH107: 0 | AI107: 0 | AJ107: 0 | AK107: 0 | AL107: 0 | AM107: 0
A108: 99 | B108: 31.30752789 | C108: 2 | D108: -0.028 | E108: 15273.93593 | F108: 34913.62871 | G108: 1000 | H108: 9542.425752 | I108: 31.94119969 | J108: 280.2964431 | L108: 7542.425752 | M108: 22627.27726 | N108: 240.9141271 | O108: 692.3910559 | P108: 21677.05229 | Q108: 98 | R108: 31.30752789 | S108: -0.028 | T108: 1145628.182 | U108: 994298.7672 | V108: 15000 | W108: 578105.6133 | X108: 479.1179954 | Y108: 32238.21347 | AA108: 7542.425752 | AB108: 746700.1494 | AD108: -7542.425752 | AE108: -7542.425752 | AF108: -1000 | AG108: 0 | AH108: 0 | AI108: 0 | AJ108: 0 | AK108: 0 | AL108: 0 | AM108: 0
A109: 100 | B109: 37.06811302 | C109: 3 | D109: 0.184 | E109: 23006.49803 | F109: 59097.73639 | G109: 1000 | H109: 10542.42575 | I109: 26.9773646 | J109: 307.2738077 | L109: 7542.425752 | M109: 30169.70301 | N109: 203.4747695 | O109: 895.8658254 | P109: 33208.05566 | Q109: 99 | R109: 37.06811302 | S109: 0.184 | T109: 1162780.362 | U109: 1195009.74 | V109: 1000 | W109: 579105.6133 | X109: 26.9773646 | Y109: 32265.19083 | AA109: 7542.425752 | AB109: 754242.5752 | AD109: -7542.425752 | AE109: -7542.425752 | AF109: -1000 | AG109: 0 | AH109: 0 | AI109: 0 | AJ109: 0 | AK109: 0 | AL109: 0 | AM109: 0
A110: 101 | B110: 45.59377901 | C110: 4 | D110: 0.23 | E110: 30803.49814 | F110: 73920.21576 | G110: 1000 | H110: 11542.42575 | I110: 21.93281675 | J110: 329.2066244 | L110: 7542.425752 | M110: 37712.12876 | N110: 165.4266419 | O110: 1061.292467 | P110: 48388.33422 | Q110: 100 | R110: 45.59377901 | S110: 0.23 | T110: 1180075.478 | U110: 1471091.981 | V110: 1000 | W110: 580105.6133 | X110: 21.93281675 | Y110: 32287.12365 | AA110: 7542.425752 | AB110: 761785.0009 | AD110: -7542.425752 | AE110: -7542.425752 | AF110: -1000 | AG110: 0 | AH110: 0 | AI110: 0 | AJ110: 0 | AK110: 0 | AL110: 0 | AM110: 0
A111: 102 | B111: 45.86734168 | C111: 5 | D111: 0.006 | E111: 38665.47326 | F111: 75369.73705 | G111: 1000 | H111: 12542.42575 | I111: 21.80200472 | J111: 351.0086291 | L111: 7542.425752 | M111: 45254.55451 | N111: 164.4400019 | O111: 1225.732469 | P111: 56221.08997 | Q111: 101 | R111: 45.86734168 | S111: 0.006 | T111: 1197514.72 | U111: =(U110+V110)*(1+S111) -> 1480924.532 | V111: 1000 | W111: 581105.6133 | X111: 21.80200472 | Y111: =Y110+X111 -> 32308.92566 | AA111: 7542.425752 | AB111: =AB110+AA111 -> 769327.4267 | AD111: -7542.425752 | AE111: -7542.425752 | AF111: -1000 | AG111: 0 | AH111: 0 | AI111: 0 | AJ111: 0 | AK111: 0 | AL111: 0 | AM111: 0
A112: 103 | B112: 47.4268313 | C112: 6 | D112: 0.034 | E112: 46592.96484 | F112: 78966.30811 | G112: 1000 | H112: 13542.42575 | I112: 21.08511095 | J112: 372.0937401 | L112: 7542.425752 | M112: 52796.98026 | N112: 159.0328838 | O112: 1384.765353 | P112: 65675.03278 | Q112: 102 | R112: 47.4268313 | S112: 0.034 | T112: 1215099.288 | U112: 1532309.967 | V112: 1000 | W112: 582105.6133 | X112: 21.08511095 | Y112: 32330.01077 | AA112: 7542.425752 | AB112: 776869.8524 | AD112: -7542.425752 | AE112: -7542.425752 | AF112: -1000 | AG112: 0 | AH112: 0 | AI112: 0 | AJ112: 0 | AK112: 0 | AL112: 0 | AM112: 0
A113: 104 | B113: 46.668002 | C113: 7 | D113: -0.016 | E113: 54586.51884 | F113: 78686.84718 | G113: 1000 | H113: 14542.42575 | I113: 21.42795828 | J113: 393.5216984 | L113: 7542.425752 | M113: 60339.40601 | N113: 161.6187844 | O113: 1546.384137 | P113: 72166.65801 | Q113: 103 | R113: 46.668002 | S113: -0.016 | T113: 1232830.395 | U113: 1508777.007 | V113: 1000 | W113: 583105.6133 | X113: 21.42795828 | Y113: 32351.43872 | AA113: 7542.425752 | AB113: 784412.2782 | AD113: -7542.425752 | AE113: -7542.425752 | AF113: -1000 | AG113: 0 | AH113: 0 | AI113: 0 | AJ113: 0 | AK113: 0 | AL113: 0 | AM113: 0
A114: 105 | B114: 52.08149023 | C114: 8 | D114: 0.116 | E114: 62646.6858 | F114: 88930.52146 | G114: 1000 | H114: 15542.42575 | I114: 19.20067946 | J114: 412.7223778 | L114: 7542.425752 | M114: 67881.83177 | N114: 144.8196992 | O114: 1691.203837 | P114: 88080.41609 | Q114: 104 | R114: 52.08149023 | S114: 0.116 | T114: 1250709.261 | U114: 1684911.14 | V114: 1000 | W114: 584105.6133 | X114: 19.20067946 | Y114: 32370.6394 | AA114: 7542.425752 | AB114: 791954.7039 | AD114: -7542.425752 | AE114: -7542.425752 | AF114: -1000 | AG114: 0 | AH114: 0 | AI114: 0 | AJ114: 0 | AK114: 0 | AL114: 0 | AM114: 0
A115: 106 | B115: 51.40443086 | C115: 9 | D115: -0.013 | E115: 70774.02082 | F115: 88761.42468 | G115: 1000 | H115: 16542.42575 | I115: 19.45357595 | J115: 432.1759538 | L115: 7542.425752 | M115: 75424.25752 | N115: 146.7271522 | O115: 1837.930989 | P115: 94477.79644 | Q115: 105 | R115: 51.40443086 | S115: -0.013 | T115: 1268737.118 | U115: 1663994.295 | V115: 1000 | W115: 585105.6133 | X115: 19.45357595 | Y115: 32390.09298 | AA115: 7542.425752 | AB115: 799497.1297 | AD115: -7542.425752 | AE115: -7542.425752 | AF115: -1000 | AG115: 0 | AH115: 0 | AI115: 0 | AJ115: 0 | AK115: 0 | AL115: 0 | AM115: 0
A116: 107 | B116: 55.56818976 | C116: 10 | D116: 0.081 | E116: 78969.08362 | F116: 97032.10008 | G116: 1000 | H116: 17542.42575 | I116: 17.99590745 | J116: 450.1718612 | L116: 7542.425752 | M116: 82966.68327 | N116: 135.7327958 | O116: 1973.663785 | P116: 109672.9237 | Q116: 106 | R116: 55.56818976 | S116: 0.081 | T116: 1286915.206 | U116: 1799858.833 | V116: 1000 | W116: 586105.6133 | X116: 17.99590745 | Y116: 32408.08889 | AA116: 7542.425752 | AB116: 807039.5554 | AD116: -7542.425752 | AE116: -7542.425752 | AF116: -1000 | AG116: 0 | AH116: 0 | AI116: 0 | AJ116: 0 | AK116: 0 | AL116: 0 | AM116: 0
A117: 108 | B117: 52.34523475 | C117: 11 | D117: -0.058 | E117: 87232.43862 | F117: 92346.23827 | G117: 2428.626098 | H117: 19971.05185 | I117: 46.39631687 | J117: 496.5681781 | L117: 7542.425752 | M117: 90509.10902 | N117: 144.0900167 | O117: 2117.753801 | P117: 110854.3199 | Q117: 107 | R117: 52.34523475 | S117: -0.058 | T117: 1305244.779 | U117: 1696409.021 | V117: 1000 | W117: 587105.6133 | X117: 19.10393572 | Y117: 32427.19282 | AA117: 7542.425752 | AB117: 814581.9812 | AD117: -7542.425752 | AE117: -7542.425752 | AF117: -2428.626098 | AG117: 0 | AH117: 0 | AI117: 0 | AJ117: 0 | AK117: 0 | AL117: 0 | AM117: 0
A118: 109 | B118: 53.33979421 | C118: 12 | D118: 0.019 | E118: 95564.65491 | F118: 95119.8168 | G118: 7987.263859 | H118: 27958.31571 | I118: 149.7430573 | J118: 646.3112354 | L118: 7542.425752 | M118: 98051.53477 | N118: 141.403353 | O118: 2259.157154 | P118: 120502.9777 | Q118: 108 | R118: 53.33979421 | S118: 0.019 | T118: 1323727.098 | U118: 1729659.792 | V118: 1000 | W118: 588105.6133 | X118: 18.74772887 | Y118: 32445.94055 | AA118: 7542.425752 | AB118: 822124.4069 | AD118: -7542.425752 | AE118: -7542.425752 | AF118: -7987.263859 | AG118: 0 | AH118: 0 | AI118: 0 | AJ118: 0 | AK118: 0 | AL118: 0 | AM118: 0
A119: 110 | B119: 52.16631874 | C119: 13 | D119: -0.022 | E119: 103966.3063 | F119: 94005.18083 | G119: 15000 | H119: 42958.31571 | I119: 287.5418539 | J119: 933.8530892 | L119: 7542.425752 | M119: 105593.9605 | N119: 144.5842056 | O119: 2403.74136 | P119: 125394.3379 | Q119: 109 | R119: 52.16631874 | S119: -0.022 | T119: 1342363.436 | U119: 1692585.277 | V119: 1000 | W119: 589105.6133 | X119: 19.16945692 | Y119: 32465.11001 | AA119: 7542.425752 | AB119: 829666.8327 | AD119: -7542.425752 | AE119: -7542.425752 | AF119: -15000 | AG119: 0 | AH119: 0 | AI119: 0 | AJ119: 0 | AK119: 0 | AL119: 0 | AM119: 0
A120: 111 | B120: 56.07879265 | C120: 14 | D120: 0.075 | E120: 112437.9715 | F120: 102130.5694 | G120: 15000 | H120: 57958.31571 | I120: 267.4807943 | J120: 1201.333884 | L120: 7542.425752 | M120: 113136.3863 | N120: 134.4969354 | O120: 2538.238295 | P120: 142341.339 | Q120: 110 | R120: 56.07879265 | S120: 0.075 | T120: 1361155.078 | U120: 1820604.172 | V120: 1000 | W120: 590105.6133 | X120: 17.83205295 | Y120: 32482.94206 | AA120: 7542.425752 | AB120: 837209.2584 | AD120: -7542.425752 | AE120: -7542.425752 | AF120: -15000 | AG120: 0 | AH120: 0 | AI120: 0 | AJ120: 0 | AK120: 0 | AL120: 0 | AM120: 0
A121: 112 | B121: 61.35019915 | C121: 15 | D121: 0.094 | E121: 120980.2339 | F121: 112824.8429 | G121: 15000 | H121: 72958.31571 | I121: 244.4979838 | J121: 1445.831867 | L121: 7542.425752 | M121: 120678.812 | N121: 122.940526 | O121: 2661.178821 | P121: 163263.8507 | Q121: 111 | R121: 61.35019915 | S121: 0.094 | T121: 1380103.316 | U121: 1992834.965 | V121: 1000 | W121: 591105.6133 | X121: 16.29986559 | Y121: 32499.24193 | AA121: 7542.425752 | AB121: 844751.6842 | AD121: -7542.425752 | AE121: -7542.425752 | AF121: -15000 | AG121: 0 | AH121: 0 | AI121: 0 | AJ121: 0 | AK121: 0 | AL121: 0 | AM121: 0
A122: 113 | B122: 54.35627645 | C122: 16 | D122: -0.114 | E122: 129593.6818 | F122: 100848.8108 | G122: 15000 | H122: 87958.31571 | I122: 275.9570923 | J122: 1721.78896 | L122: 7542.425752 | M122: 128221.2378 | N122: 138.7590586 | O122: 2799.93788 | P122: 152194.1974 | Q122: 112 | R122: 54.35627645 | S122: -0.114 | T122: 1399209.456 | U122: 1766537.779 | V122: 1000 | W122: 592105.6133 | X122: 18.39713949 | Y122: 32517.63907 | AA122: 7542.425752 | AB122: 852294.11 | AD122: -7542.425752 | AE122: -7542.425752 | AF122: -15000 | AG122: 0 | AH122: 0 | AI122: 0 | AJ122: 0 | AK122: 0 | AL122: 0 | AM122: 0
A123: 114 | B123: 62.29229281 | C123: 17 | D123: 0.146 | E123: 138278.9085 | F123: 116718.7372 | G123: 15000 | H123: 102958.3157 | I123: 240.8002551 | J123: 1962.589215 | L123: 7542.425752 | M123: 135763.6635 | N123: 121.081203 | O123: 2921.019083 | P123: 181956.976 | Q123: 113 | R123: 62.29229281 | S123: 0.146 | T123: 1418474.814 | U123: 2025598.294 | V123: 1000 | W123: 593105.6133 | X123: 16.05335034 | Y123: 32533.69242 | AA123: 7542.425752 | AB123: 859836.5357 | AD123: -7542.425752 | AE123: -7542.425752 | AF123: -15000 | AG123: 0 | AH123: 0 | AI123: 0 | AJ123: 0 | AK123: 0 | AL123: 0 | AM123: 0
A124: 115 | B124: 56.3122327 | C124: 18 | D124: -0.096 | E124: 147036.512 | F124: 106417.7384 | G124: 15000 | H124: 117958.3157 | I124: 266.3719636 | J124: 2228.961178 | L124: 7542.425752 | M124: 143306.0893 | N124: 133.9393839 | O124: 3054.958467 | P124: 172031.5321 | Q124: 114 | R124: 56.3122327 | S124: -0.096 | T124: 1437900.717 | U124: 1832044.858 | V124: 1000 | W124: 594105.6133 | X124: 17.75813091 | Y124: 32551.45055 | AA124: 7542.425752 | AB124: 867378.9615 | AD124: -7542.425752 | AE124: -7542.425752 | AF124: -15000 | AG124: 0 | AH124: 0 | AI124: 0 | AJ124: 0 | AK124: 0 | AL124: 0 | AM124: 0
